Workbook

Sheet Gen Info
B1: ROOF FRAMING ANALYSIS
B2: Steel Joist Institute
B3: 234 W. Cheves Street
B4: Florence, SC 29501
B5: www.steeljoist.org
B6: Copyright © 2018
B8: Purpose:
B9: This workbook provides a design aid for estimating purposes for the selection of roof framing.
B11: The design worksheets in this workbook are arranged such that "USER" input is as shown below.
B12: Input | C12: Input values are in boxed cells with highlighted light yellow background.
B14: The "USER" must be familiar with the analysis and design procedures of the SJI Specification
B15: and the SDI Specification.
B18: ANSI/SJI100-15
B19: STANDARD SPECIFICATION FOR K-SERIES, LH-SERIES, AND DLH-SERIES OPEN WEB STEEL JOISTS
B20: AND FOR JOIST GIRDERS
B22: 103.1 | C22: Design Basis
B23: 103.2 | C23: Design Using Load and Resistance Factor Design (LRFD)
C24: Joists and Joist Girders shall have their components so proportioned that the required stresses,
C25: fu, shall not exceed ФFn
B26: 103.2 | C26: Design Using Allowable Strength Design (ASD)
C27: Joists and Joist Girders shall have their components so proportioned that the required stresses,
C28: fa, shall not exceed Fn / Ω
A31: Notes:
A32: 1. | B32: Governing code is IBC 2012
A33: 2. | B33: Bay sizes are limited to Joist and Joist Girder Load Tables
A34: 3. | B34: Deck size selected by minimum weight and deflection limits, from SDI Tables
A35: 4. | B35: Deck deflection is based on minimum of Ip or In, per direction of SDI
A36: 5. | B36: SDI minimum bearing lengths assumed
A37: 6. | B37: Joist size selected by minimum weight and deflection limits from SJI Load Tables
A38: 7. | B38: Actual joist span rounded up to next available span in SJI Load Tables
A39: 8. | B39: DLH joist data is limited to spans greater than the "safe load" spans in SJI Load Tables
A40: 9. | B40: Joist Girder depth selected by minimum weight and deflection limits, from SJI Joist Girder Weight Tables
A41: 10. | B41: Joist Girder seat depth is not included
A42: 11. | B42: Actual Joist Girder span rounded up to next available span in Weight Tables
A43: 12. | B43: Actual number of joist spaces rounded up to next available number of joist spaces in Weight Tables
A44: 13. | B44: Joist and Joist Girder design is based on a 50 ksi yield stress
A45: 14. | B45: Sample bridging sizes limit joist spacing to maximum of 19'-6"
A46: 15. | B46: Cost data is the responsibility of the user
A47: 16. | B47: User must check if FM Global requirements exist
A48: 17. | B48: Maximum roof slope is 1/2 inch per foot
A49: 18. | B49: Columns are not included
A50: 19. | B50: Standing seam roofs are not included
A51: 20. | B51: Uplift loading is not considered
A52: 21. | B52: A red triangle in the upper right corner of a cell indicates that a comment is present
A55: References:
A56: 1. | B56: SJI 43rd Edition, Standard Specifications - Load Tables and Weight Tables
B57: For Steel Joists and Joist Girders, Copyright 2007 by Steel Joist Institute
A58: 2. | B58: Vulcraft Steel Joists & Joists Girders, Copyright 2013 by Vulcraft
A59: 3. | B59: First Edition, Standard Specifications For Composite Steel Joists, Weight Tables
B60: and Bridging Tables, Code of Standard Practice, Copyright 2007 by Steel Joist Institute
A61: 4. | B61: First Edition Roof Deck Design Manual - No. RDDM, Copyright 2013 by Steel Deck Institute
A62: 5. | B62: First Edition Floor Deck Design Manual - No. FDDM, Copyright 2014 by Steel Deck Institute

Sheet Format
A2: Sheet formatting is based on the margin settings shown in the screenshot below. Changing margin settings, document scaling, print area, page break location, or output device will affect the layout of the output. To avoid any problems, print or save the document as a PDF first, then print a paper copy if desired.

Sheet Roof Bay Analysis
B1: Roof Bay Analysis
B2: (SJI Load Tables / SDI Specification) Copyright © 2018
B4: Project Name: | D4: xyz
B5: Project Number: | D5: 2015xyz
B6: Engineer: | D6: XYZ | H6: Date: | I6: =TODAY() -> 2018-01-18
B8: Design Methodology | D8: ASD | E8: ('LRFD' - Load and Resistance Factor Design, 'ASD' - Allowable Strength Design)
B10: TYPICAL INTERIOR BAY LAYOUT
B11: Bay Width / Joist Span | E11: 30 | F11: ft.
B12: Bay Length / Joist Girder (JG) Span | E12: 50 | F12: ft.
AK24: Maximum Joist Depth | AM24: Maximum JG Depth | AP24: Joists
AK25: =ROUNDUP(12*$E$11/12,0) -> 30 | AL25: =VLOOKUP(AK25,AK29:AL144,2) -> 30 | AM25: =IF(E12<28,ROUNDUP(12*E12/9,0),ROUNDUP(12*E12/10,0)) -> 60 | AN25: =VLOOKUP(AM25,AM34:AN144,2) -> 60 | AP25: 10K 1
AP26: 12K 1
X27: Calculations | AK27: Minimum Joist Depth | AM27: Minimum JG Depth | AP27: 12K 3
AK28: =ROUNDUP(12*$E$11/24,0) -> 15 | AL28: =VLOOKUP(AK28,AK29:AL144,2) -> 16 | AM28: =ROUNDUP(12*$E$12/24,0) -> 25 | AN28: =VLOOKUP(AM28,AM34:AN144,2) -> 28 | AP28: 12K 5
AK29: 5 | AL29: 10 | AP29: 14K 1
B30: ROOF NOMINAL LOADS | AK30: 6 | AL30: 10 | AP30: 14K 3
B31: Dead Load, D | X31: IBC 2012 | AK31: 7 | AL31: 10 | AP31: 14K 4
B32: Roofing Material | D32: 5 | E32: psf | F32: Live Load | H32: Lr | I32: 20 | J32: psf | X32: LRFD LOAD COMBINATIONS | AD32: ASD LOAD COMBINATIONS | AK32: 8 | AL32: 10 | AP32: 14K 6
B33: Deck | D33: 1.78 | E33: psf | F33: Live Load Reduction (Per Code) | I33: Y | J33: (Y or N) | AA33: Deck Load | AB33: Joist Load | AC33: Girder Load | AG33: Deck Load | AH33: Joist Load | AI33: Girder Load | AK33: 9 | AL33: 10 | AP33: 16K 2
B34: Joists & Bridging | D34: 1.202 | E34: psf | F34: Snow Load * | H34: S | I34: 5 | J34: psf | AA34: psf | AB34: psf | AC34: psf | AG34: psf | AH34: psf | AI34: psf | AK34: 10 | AL34: 10 | AM34: 10 | AN34: 20 | AP34: 16K 3
B35: Joist Girders (JG) | D35: 0.8333333333 | E35: psf | F35: Wind Downward Load | H35: W | I35: 0 | J35: psf | X35: 1 | Y35: 1.4D | AA35: =1.4*SUM($D$32:$D$33) -> 9.492 | AB35: =1.4*SUM($D$32:$D$34,$D$36) -> 13.9748 | AC35: =1.4*SUM($D$32:$D$36) -> 15.14146667 | AD35: 3a | AE35: D + Lr | AG35: =$D$32+$D$33+$I$32 -> 26.78 | AH35: =$D$32+$D$33+$D$34+$D$36+IF(I33="Y",Z64*$I$32,I32) -> 29.982 | AI35: =$D$32+$D$33+$D$34+$D$35+$D$36+IF(I33="Y",AA64*$I$32,I32) -> 22.81533333 | AK35: 11 | AL35: 12 | AM35: 11 | AN35: 20 | AP35: 16K 4
B36: Collateral | D36: 2 | E36: psf | F36: * Or "Rain on Snow" Load | X36: 2a | Y36: 1.2D +0.5Lr | AA36: =1.2*SUM($D$32:$D$33)+0.5*$I$32 -> 18.136 | AB36: =1.2*SUM($D$32:$D$34,$D$36)+IF(I33="Y",0.5*Z64*$I$32,0.5*I32) -> 21.9784 | AC36: =1.2*SUM($D$32:$D$36)+IF(I33="Y",0.5*AA64*$I$32,0.5*I32) -> 18.9784 | AD36: 3b | AE36: D + S | AG36: =$D$32+$D$33+$I$34 -> 11.78 | AH36: =$D$32+$D$33+$D$34+$D$36+$I$34 -> 14.982 | AI36: =$D$32+$D$33+$D$34+$D$35+$D$36+$I$34 -> 15.81533333 | AK36: 12 | AL36: 12 | AM36: 12 | AN36: 20 | AP36: 16K 5
X37: 2b | Y37: 1.2D + 0.5S | AA37: =1.2*SUM($D$32:$D$33)+0.5*$I$34 -> 10.636 | AB37: =1.2*SUM($D$32:$D$34,$D$36)+0.5*$I$34 -> 14.4784 | AC37: =1.2*SUM($D$32:$D$36)+0.5*$I$34 -> 15.4784 | AD37: 5 | AE37: D + 0.6W | AG37: =$D$32+$D$33+0.6*$I$35 -> 6.78 | AH37: =$D$32+$D$33+$D$34+$D$36+0.6*$I$35 -> 9.982 | AI37: =$D$32+$D$33+$D$34+$D$35+$D$36+0.6*$I$35 -> 10.81533333 | AK37: 13 | AL37: 14 | AM37: 13 | AN37: 20 | AP37: 16K 6
B38: ROOF DECK PROFILE, GAGE & JOIST SPACES | X38: 3a | Y38: 1.2D + 1.6Lr + 0.5W | AA38: =1.2*SUM($D$32:$D$33)+1.6*$I$32+0.5*$I$35 -> 40.136 | AB38: =1.2*SUM($D$32:$D$34,$D$36)+IF(I33="Y",1.6*Z64*$I$32+0.5*$I$35,1.6*$I$32+0.5*$I$35) -> 43.9784 | AC38: =1.2*SUM($D$32:$D$36)+IF(I33="Y",1.6*AA64*$I$32,1.6*I32)+0.5*$I$35 -> 32.1784 | AD38: 6a | AE38: D + 0.75(0.6)W + 0.75Lr | AG38: =$D$32+$D$33+0.75*0.6*$I$35+0.75*$I$32 -> 21.78 | AH38: =$D$32+$D$33+$D$34+$D$36+0.75*0.6*$I$35+IF(I33="Y",0.75*Z64*$I$32,0.75*I32) -> 24.982 | AI38: =$D$32+$D$33+$D$34+$D$35+$D$36+0.75*0.6*$I$35+IF(I33="Y",0.75*AA64*$I$32,0.75*I32) -> 19.81533333 | AK38: 14 | AL38: 14 | AM38: 14 | AN38: 20 | AP38: 16K 7
B39: Deck Profile & Gage | D39: WR22 | E39: 'IR' - Intermediate Rib (F deck), 'WR' - Wide Rib (B deck), 'DR' - Deep Rib (N deck) | X39: 3b | Y39: 1.2D + 1.6S + 0.5W | AA39: =1.2*SUM($D$32:$D$33)+1.6*$I$34+0.5*$I$35 -> 16.136 | AB39: =1.2*SUM($D$32:$D$34,$D$36)+1.6*$I$34+0.5*$I$35 -> 19.9784 | AC39: =1.2*SUM($D$32:$D$36)+1.6*$I$34+0.5*$I$35 -> 20.9784 | AD39: 6b | AE39: D + 0.75(0.6)W + 0.75S | AG39: =$D$32+$D$33+0.75*0.6*$I$35+0.75*$I$34 -> 10.53 | AH39: =$D$32+$D$33+$D$34+$D$36+0.75*0.6*$I$35+0.75*$I$34 -> 13.732 | AI39: =$D$32+$D$33+$D$34+$D$35+$D$36+0.75*0.6*$I$35+0.75*$I$34 -> 14.56533333 | AK39: 15 | AL39: 16 | AM39: 15 | AN39: 20 | AP39: 16K 9
B40: Number of Joist Spaces | D40: 8 | X40: 4a | Y40: 1.2D + 1.0W +0.5Lr | AA40: =1.2*SUM($D$32:$D$33)+$I$35+0.5*$I$32 -> 18.136 | AB40: =1.2*SUM($D$32:$D$34,$D$36)+$I$35+IF(I33="Y",0.5*Z64*$I$32,0.5*I32) -> 21.9784 | AC40: =1.2*SUM($D$32:$D$36)+$I$35+IF(I33="Y",0.5*AA64*$I$32,0.5*I32) -> 18.9784 | AK40: 16 | AL40: 16 | AM40: 16 | AN40: 20 | AP40: 18K 3
X41: 4b | Y41: 1.2D + 1.0W +0.5S | AA41: =1.2*SUM($D$32:$D$33)+$I$35+0.5*$I$34 -> 10.636 | AB41: =1.2*SUM($D$32:$D$34,$D$36)+$I$35+0.5*$I$34 -> 14.4784 | AC41: =1.2*SUM($D$32:$D$36)+$I$35+0.5*$I$34 -> 15.4784 | AK41: 17 | AL41: 18 | AM41: 17 | AN41: 20 | AP41: 18K 4
B42: ROOF DECK CHECK | D42: =IF(C46>D46,"Verify Deck Span","") ->  | AK42: 18 | AL42: 18 | AM42: 18 | AN42: 20 | AP42: 18K 5
B43: Deck | C43: Deck | D43: Max Deck | E43: Deck | F43: Moment | AK43: 19 | AL43: 20 | AM43: 19 | AN43: 20 | AP43: 18K 6
B44: Profile | C44: Span | D44: Span * | E44: Moment | F44: Interaction | Z44: ASD | AA44: LRFD | AC44: Max. Const. Spans | AK44: 20 | AL44: 20 | AM44: 20 | AN44: 20 | AP44: 18K 7
B45: & Gage | C45: ft. | D45: ft. | E45: inch-lb | F45: Check | X45: Profile | Y45: Gage | Z45: Mn/Ω | AA45: ΦMn | AB45: Weight | AC45: ASD SPAN | AD45: LRFD SPAN | AK45: 21 | AL45: 22 | AM45: 21 | AN45: 24 | AP45: 18K 9
B46: =D39 -> WR22 | C46: =E12/D40 -> 6.25 | D46: =IF($D$8="ASD",IF($D$39="IR22",$AC47,IF($D$39="IR20",$AC48,IF($D$39="IR18",$AC49,IF($D$39="WR22",$AC50,IF($D$39="WR20",$AC51,IF($D$39="WR18",$AC52,IF($D$39="DR22",$AC53,IF($D$39="DR20",$AC54,IF($D$39="DR18",$AC55))))))))),IF($D$39="IR22",AD47,IF($D$39="IR20",AD48,IF($D$39="IR18",AD49,IF($D$39="WR22",AD50,IF($D$39="WR20",AD51,IF($D$39="WR18",AD52,IF($D$39="DR22",AD53,IF($D$39="DR20",AD54,IF($D$39="IR18",AD55)))))))))) -> 6.9167 | E46: =IF($D$8="ASD",0.125*MAX(AG35:AG39)*C46^2*12,0.125*MAX(AA35:AA41)*C46^2*12) -> 1569.140625 | F46: =IF($D$8="ASD",IF($D$39="IR22",$E46/$Z47,IF($D$39="IR20",$E46/$Z48,IF($D$39="IR18",$E46/Z49,IF($D$39="WR22",$E46/Z50,IF($D$39="WR20",$E46/Z51,IF($D$39="WR18",$E46/Z52,IF($D$39="DR22",$E46/Z53,IF($D$39="DR20",$E46/Z54,$E46/Z55)))))))),IF($D$39="IR22",$E46/$AA47,IF($D$39="IR20",$E46/$AA48,IF($D$39="IR18",$E46/AA49,IF($D$39="WR22",$E46/AA50,IF($D$39="WR20",$E46/AA51,IF($D$39="WR18",$E46/AA52,IF($D$39="DR22",$E46/AA53,IF($D$39="DR20",$E46/AA54,$E46/AA55))))))))) -> 0.440151648 | G46: =IF(F46>1,"NG","OK") -> OK | Z46: inch-lb | AA46: inch-lb | AB46: psf | AC46: ft. | AD46: ft. | AK46: 22 | AL46: 22 | AM46: 22 | AN46: 24 | AP46: 18K10
B47: * Maximum Deck Construction Span (two or more) per SDI | X47: IR22 | Y47: 22 | Z47: 2239 | AA47: 3365 | AB47: 1.73 | AC47: 4.25 | AD47: 4.5833 | AE47: IR22 | AF47: =IF(LEFT(AE47,2)="IR",4,IF(LEFT(AE47,2)="WR",5,IF(LEFT(AE47,2)="DR",6,"NG"))) -> 4 | AG47: 4.18 | AH47: 0.1998 | AI47: 0.2008 | AK47: 23 | AL47: 24 | AM47: 23 | AN47: 24 | AP47: 20K 3
X48: IR20 | Y48: 20 | Z48: 2713 | AA48: 4078 | AB48: 2.09 | AC48: 5.25 | AD48: 5.667 | AE48: IR20 | AF48: =IF(LEFT(AE48,2)="IR",4,IF(LEFT(AE48,2)="WR",5,IF(LEFT(AE48,2)="DR",6,"NG"))) -> 4 | AG48: =AF48+Y48/100 -> 4.2 | AH48: 0.1413 | AI48: 0.1513 | AK48: 24 | AL48: 24 | AM48: 24 | AN48: 24 | AP48: 20K 4
B49: DEPTH DATA | D49: =IF(OR(AND(D51<D50,D51>0),D51>D52,AND(D55<D54,D55>0),D55>D56,D53>D52,AND(D53<D50,D53>0),D57>D56,AND(D57<D54,D57>0)),"Verify Depths","") ->  | F49: DEFLECTION CRITERIA | X49: IR18 | Y49: 18 | Z49: 3585 | AA49: 5388 | AB49: 2.74 | AC49: 7.1667 | AD49: 7.75 | AE49: IR18 | AF49: 4 | AG49: 4.22 | AH49: 0.1099 | AI49: 0.1245 | AK49: 25 | AL49: 26 | AM49: 25 | AN49: 28 | AP49: 20K 5
B50: Joist Min Depth: Default | D50: =AL28 -> 16 | E50: in. | F50: Deck - Total Service Load | H50: Span / | I50: 240 | J50: =C46*12/I50 -> 0.3125 | K50: in. | X50: WR22 | Y50: 22 | Z50: 3565 | AA50: 5358 | AB50: 1.78 | AC50: 6.9167 | AD50: 7.4167 | AE50: WR22 | AF50: 5 | AG50: 5.22 | AH50: 0.1473 | AI50: 0.1732 | AK50: 26 | AL50: 26 | AM50: 26 | AN50: 28 | AP50: 20K 6
B51: Joist Min Depth: Manual | E51: in. | F51: Joist - Lr or Snow Load | H51: Span / | I51: 240 | J51: =$E$11*12/I51 -> 1.5 | K51: in. | X51: WR20 | Y51: 20 | Z51: 4440 | AA51: 6674 | AB51: 2.14 | AC51: 8.5833 | AD51: 9.25 | AE51: WR20 | AF51: 5 | AG51: 5.2 | AH51: 0.191 | AI51: 0.2104 | AK51: 27 | AL51: 28 | AM51: 27 | AN51: 28 | AP51: 20K 7
B52: Joist Max Depth: Default | D52: =AL25 -> 30 | E52: in. | F52: JG - Lr or Snow Load | H52: Span / | I52: 240 | J52: =$E$12*12/I52 -> 2.5 | K52: in. | X52: WR18 | Y52: 18 | Z52: 5855 | AA52: 8800 | AB52: 2.82 | AC52: 11.667 | AD52: 12.5833 | AE52: WR18 | AF52: 5 | AG52: 5.18 | AH52: 0.2741 | AI52: 0.2791 | AK52: 28 | AL52: 28 | AM52: 28 | AN52: 28 | AP52: 20K 9
B53: Joist Max Depth: Manual | E53: in. | F53: Loads considered are unfactored service loads. | X53: DR22 | Y53: 22 | Z53: 8100 | AA53: 12174 | AB53: 2.26 | AC53: 14.5833 | AD53: 15.6667 | AE53: DR22 | AF53: 6 | AG53: 6.22 | AH53: 0.6017 | AI53: 0.8082 | AK53: 29 | AL53: 30 | AM53: 29 | AN53: 32 | AP53: 20K10
B54: JG Min Depth: Default | D54: =AN28 -> 28 | E54: in. | X54: DR20 | Y54: 20 | Z54: 10167 | AA54: 15281 | AB54: 2.71 | AC54: 18.9167 | AD54: 20.25 | AE54: DR20 | AF54: 6 | AG54: 6.2 | AH54: 0.7812 | AI54: 0.9889 | AK54: 30 | AL54: 30 | AM54: 30 | AN54: 32 | AP54: 22K 4
B55: JG Min Depth: Manual | E55: in. | X55: DR18 | Y55: 18 | Z55: 13672 | AA55: 20549 | AB55: 3.56 | AC55: 26 | AD55: 27.9167 | AE55: DR18 | AF55: 6 | AG55: 6.18 | AH55: 1.142 | AI55: 1.3232 | AK55: 31 | AL55: 32 | AM55: 31 | AN55: 32 | AP55: 22K 5
B56: JG Max Depth: Default | D56: =AN25 -> 60 | E56: in. | F56: X-BRIDGING | AK56: 32 | AL56: 32 | AM56: 32 | AN56: 32 | AP56: 22K 6
B57: JG Max Depth: Manual | E57: in. | F57: Minimize X-Bridging for Spans ≤ 60 ft. | I57: Y | J57: (Y or N) | AK57: 33 | AL57: 36 | AM57: 33 | AN57: 36 | AP57: 22K 7
B58: Minimum depths are span/24. | F58: If "Y", the lightest joist without x-bridging is selected, if it's adequate. | AK58: 34 | AL58: 36 | AM58: 34 | AN58: 36 | AP58: 22K 9
X59: IBC 2012 Live Load Reduction | AK59: 35 | AL59: 36 | AM59: 35 | AN59: 36 | AP59: 22K10
X60: Live load reduction is only applied to roof live loads of 20 psf. | AK60: 36 | AL60: 36 | AM60: 36 | AN60: 36 | AP60: 22K11
B61: OPTIONAL INCREASED LOAD DATA | G61: Member | H61: I | I61: Ieff = I/1.15 | X61: Live load reduction is not applied to the deck | AK61: 37 | AL61: 40 | AM61: 37 | AN61: 40 | AP61: 24K 4
B62: Joist Load | E62: lb / ft | G62: =B76 -> 18K 3 | H62: =AA83 -> 85.99188109 | I62: =H62/1.15 -> 74.77554877 | J62: in.4 | L62: =IF(D62="","",IF(D62<IF($D$8="LRFD",$C76*MAX(AB35:AB41),$C76*MAX(AH35:AH39)),"Warning: Less than calculated load","")) ->  | X62: Joist Area | Y62: JG Area | Z62: Joist R1 | AA62: JG R1 | AK62: 38 | AL62: 40 | AM62: 38 | AN62: 40 | AP62: 24K 5
B63: JG Panel Point Load | E63: kips | G63: =D140 -> 52G8N4.3K | H63: =AC88 -> 2414.88 | I63: =H63/1.15 -> 2099.895652 | J63: in.4 | L63: =IF(D63="","",IF(D63<ROUNDUP(IF($D$8="LRFD",$C76*MAX(AC35:AC41),$C76*MAX(AI35:AI39))*$E$11/1000,1),"Warning: Less than calculated load","")) ->  | X63: sq. ft. | Y63: sq. ft. | Z63: factor | AA63: factor | AK63: 39 | AL63: 40 | AM63: 39 | AN63: 40 | AP63: 24K 6
X64: =C46*E11 -> 187.5 | Y64: =E11*E12 -> 1500 | Z64: =IF(X64<=200,1,IF(X64>600,0.6,(1.2-0.001*X64))) -> 1 | AA64: =IF(Y64<=200,1,IF(Y64>600,0.6,(1.2-0.001*Y64))) -> 0.6 | AK64: 40 | AL64: 40 | AM64: 40 | AN64: 40 | AP64: 24K 7
B65: DECK SUMMARY | AK65: 41 | AL65: 44 | AM65: 41 | AN65: 44 | AP65: 24K 8
B66: Deck | C66: Deck | D66: Allowable | E66: Serv. Load | AK66: 42 | AL66: 44 | AM66: 42 | AN66: 44 | AP66: 24K 9
B67: Profile & | C67: Weight | D67: Deflection | E67: Deflection | X67: Deck Profile | AB67: Ip | AC67: In | AD67: minimum I | AK67: 43 | AL67: 44 | AM67: 43 | AN67: 44 | AP67: 24K10
B68: Gage | C68: psf | D68: in. | E68: in. | AB68: in.^4 | AC68: in.^4 | AD68: in.^4 | AK68: 44 | AL68: 44 | AM68: 44 | AN68: 44 | AP68: 24K12
B69: =D39 -> WR22 | C69: =IF($D$39="IR22",1.73,IF($D$39="IR20",2.09,IF($D$39="IR18",2.74,IF($D$39="WR22",1.78,IF($D$39="WR20",2.14,IF($D$39="WR18",2.82,IF($D$39="DR22",2.26,IF($D$39="DR20",2.71,3.56)))))))) -> 1.78 | D69: =J50 -> 0.3125 | E69: =0.0069*MAX(AG35:AG39)/12*(C46*12)^4/29000000/AD79 -> 0.1140572053 | X69: IR18 | Y69: =IF(LEFT(X69,2)="IR",4,IF(LEFT(X69,2)="WR",5,IF(LEFT(X69,2)="DR",6,"NG"))) -> 4 | Z69: =RIGHT(X69,2) -> 18 | AA69: =Y69+Z69/100 -> 4.18 | AB69: 0.1998 | AC69: 0.2008 | AD69: =MIN(AB69:AC69) -> 0.1998 | AK69: 45 | AL69: 48 | AM69: 45 | AN69: 48 | AP69: 26K 5
E70: =IF(E69>D69,"NG","OK") -> OK | X70: IR20 | Y70: =IF(LEFT(X70,2)="IR",4,IF(LEFT(X70,2)="WR",5,IF(LEFT(X70,2)="DR",6,"NG"))) -> 4 | Z70: =RIGHT(X70,2) -> 20 | AA70: =Y70+Z70/100 -> 4.2 | AB70: 0.1413 | AC70: 0.1513 | AD70: =MIN(AB70:AC70) -> 0.1413 | AK70: 46 | AL70: 48 | AM70: 46 | AN70: 48 | AP70: 26K 6
X71: IR22 | Y71: 4 | Z71: 22 | AA71: 4.22 | AB71: 0.1099 | AC71: 0.1245 | AD71: 0.1099 | AK71: 47 | AL71: 48 | AM71: 47 | AN71: 48 | AP71: 26K 7
B72: JOIST SUMMARY (Total Loads) | X72: WR18 | Y72: 5 | Z72: 18 | AA72: 5.18 | AB72: 0.2741 | AC72: 0.2791 | AD72: 0.2741 | AK72: 48 | AL72: 48 | AM72: 48 | AN72: 48 | AP72: 26K 8
B73: Joist | C73: Joist | D73: Required | E73: Available | F73: Joist | G73: Allowable | H73: Lr Load | I73: Snow Load | X73: WR20 | Y73: 5 | Z73: 20 | AA73: 5.2 | AB73: 0.191 | AC73: 0.2104 | AD73: 0.191 | AK73: 49 | AL73: 52 | AM73: 49 | AN73: 52 | AP73: 26K 9
B74: Designation | C74: Spacing | D74: Load | E74: Load | F74: Weight | G74: Deflection | H74: Deflection | I74: Deflection | X74: WR22 | Y74: 5 | Z74: 22 | AA74: 5.22 | AB74: 0.1473 | AC74: 0.1732 | AD74: 0.1473 | AK74: 50 | AL74: 52 | AM74: 50 | AN74: 52 | AP74: 26K10
C75: ft. | D75: lb / ft | E75: lb / ft | F75: lb / ft | G75: in. | H75: in. | I75: in. | X75: DR18 | Y75: 6 | Z75: 18 | AA75: 6.18 | AB75: 1.142 | AC75: 1.3232 | AD75: 1.142 | AK75: 51 | AL75: 52 | AM75: 51 | AN75: 52 | AP75: 26K12
B76: =IF(F76="NG","NG",IF(OR(I57="",I57="N"),AA95,IF(AE103="NG",AA95,AA103))) -> 18K 3 | C76: =$C46 -> 6.25 | D76: =IF(D62="",IF($D$8="LRFD",$C76*MAX(AB35:AB41),$C76*MAX(AH35:AH39)),D62) -> 187.3875 | E76: =IF(F76="NG","NG",IF(OR(I57="",I57="N"),IF(D8="ASD",AB95,AC95),IF(AE103="NG",IF(D8="ASD",AB95,AC95),IF(D8="ASD",AB103,AC103)))) -> 203 | F76: =IF(OR(I57="",I57="N"),AE95,IF(AE103="NG",AE95,AE103)) -> 6.4 | G76: =J51 -> 1.5 | H76: =IF(F76="NG","NG",1.15*5*Y83/12*((E11-0.33)*12)^4/384/29000000/AA83) -> 1.005090364 | I76: =IF(F76="NG","NG",1.15*5*Z83/12*((E11-0.33)*12)^4/384/29000000/AA83) -> 0.2512725911 | X76: DR20 | Y76: 6 | Z76: 20 | AA76: 6.2 | AB76: 0.7812 | AC76: 0.9889 | AD76: 0.7812 | AK76: 52 | AL76: 52 | AM76: 52 | AN76: 52 | AP76: 28K 6
E77: =IF(F76="NG","NG",IF(F76=0,"NG",IF(D76>E76,"NG","OK"))) -> OK | H77: =IF(F76="NG","NG",IF(F76=0,"NG",IF(H76>G76,"NG","OK"))) -> OK | I77: =IF(F76="NG","NG",IF(F76=0,"NG",IF(I76>G76,"NG","OK"))) -> OK | X77: DR22 | Y77: 6 | Z77: 22 | AA77: 6.22 | AB77: 0.6017 | AC77: 0.8082 | AD77: 0.6017 | AK77: 53 | AL77: 56 | AM77: 53 | AN77: 56 | AP77: 28K 7
AK78: 54 | AL78: 56 | AM78: 54 | AN78: 56 | AP78: 28K 8
B79: BRIDGING SUMMARY | X79: =B69 -> WR22 | Y79: 5 | Z79: 22 | AA79: 5.22 | AB79: =INDEX(AB69:AB77,MATCH($AA79,$AA69:$AA77)) -> 0.1473 | AC79: =INDEX(AC69:AC77,MATCH($AA79,$AA69:$AA77)) -> 0.1732 | AD79: 0.1473 | AK79: 55 | AL79: 56 | AM79: 55 | AN79: 56 | AP79: 28K 9
B80: X-Bridging | C80: Number | D80: Length of | E80: Weight of | F80: H-Bridging | G80: Number | H80: Length of | I80: Weight of | AK80: 56 | AL80: 56 | AM80: 56 | AN80: 56 | AP80: 28K10
B81: Req'd | C81: of rows | D81: X-Bridging | E81: X-Bridging | F81: Req'd | G81: of rows | H81: H-Bridging | I81: H-Bridging | X81: Joist | Y81: Lr Load | Z81: Snow Load | AA81: I | AB81: Span | AC81: L/360 Load | AK81: 57 | AL81: 60 | AM81: 57 | AN81: 60 | AP81: 28K12
B82: (Y or N) | C82: X-Bridging | D82: ft. | E82: plf | F82: (Y or N) | G82: H-Bridging | H82: ft. | I82: plf | Y82: lb / ft | Z82: lb / ft | AA82: in.^4 | AB82: ft | AC82: lb / ft | AK82: 58 | AL82: 60 | AM82: 58 | AN82: 60 | AP82: 30K 7
B83: =IF(Bridging!G18>0,"Y","N") -> N | C83: =Bridging!G18 -> 0 | D83: =Bridging!G21 -> 0 | E83: =IF(B83="N",0,Bridging!G22) -> 0 | F83: =IF(Bridging!G26>0,"Y","N") -> Y | G83: =Bridging!G26 -> 3 | H83: =Bridging!G29 -> 300 | I83: =IF(F83="N",0,Bridging!G30) -> 0.89 | J83: =IF(OR(E83="NG",I83="NG"),"NG","OK") -> OK | Y83: =IF(I33="Y",C46*Z64*I32,C46*I32) -> 125 | Z83: =C46*I34 -> 31.25 | AA83: =26.767*AC83*(AB83-0.33)^3*10^-6 -> 85.99188109 | AB83: =ROUNDUP(E11,0) -> 30 | AC83: =IF(OR(I57="",I57="N"),AI95,IF(AE103="NG",AI95,AI103)) -> 123 | AK83: 59 | AL83: 60 | AM83: 59 | AN83: 60 | AP83: 30K 8
AK84: 60 | AL84: 60 | AM84: 60 | AN84: 60 | AP84: 30K 9
B85: JOIST GIRDER SUMMARY (Total Panel Point Loads) | X85: JG | Y85: Lr Serv. | Z85: Snow Serv. | AK85: 61 | AL85: 64 | AM85: 61 | AN85: 66 | AP85: 30K10
B86: Joist Girder | C86: Joist | D86: Required | E86: Load Used to | F86: Joist Girder | G86: Allowable | H86: Lr Load | I86: Snow Load | Y86: Panel Load | Z86: Panel Load | AA86: Lr Load | AB86: Snow Load | AC86: I | AK86: 62 | AL86: 64 | AM86: 62 | AN86: 66 | AP86: 30K11
B87: Depth | C87: Spaces | D87: Load | E87: Estimate Wt. | F87: Weight | G87: Deflection | H87: Deflection | I87: Deflection | Y87: kips | Z87: kips | AA87: lb / ft | AB87: lb / ft | AC87: in.^4 | AK87: 63 | AL87: 64 | AM87: 63 | AN87: 66 | AP87: 30K12
B88: in. | D88: kips | E88: kips | F88: lb / ft | G88: in. | H88: in. | I88: in. | Y88: =IF(I33="Y",C46*E11*AA64*I32/1000,C46*E11*I32/1000) -> 2.25 | Z88: =C46*E11*I34/1000 -> 0.9375 | AA88: =Y88*1000/C76 -> 360 | AB88: =Z88*1000/C76 -> 150 | AC88: =IF(D8="ASD",0.027,0.018)*C89*D89*E12*B89 -> 2414.88 | AK88: 64 | AL88: 64 | AM88: 64 | AN88: 66 | AP88: 18LH 2
B89: =IF(E12>50,'55-120 Girders'!AV5,'20-50 Girders'!AX5) -> 52 | C89: =$E$12/$C76 -> 8 | D89: =IF(D63="",ROUNDUP(IF($D$8="LRFD",$C76*MAX(AC35:AC41),$C76*MAX(AI35:AI39))*$E$11/1000,1),D63) -> 4.3 | E89: =IF(E12>50,'55-120 Girders'!AV3,'20-50 Girders'!AX3) -> 6 | F89: =IF(E12>50,'55-120 Girders'!AV4,'20-50 Girders'!AX4) -> 25 | G89: =J52 -> 2.5 | H89: =IF(B89="NG","NG",1.15*5*AA88/12*($E$12*12)^4/384/29000000/$AC$88) -> 0.8313220961 | I89: =IF(B89="NG","NG",1.15*5*AB88/12*($E$12*12)^4/384/29000000/$AC$88) -> 0.3463842067 | AK89: 65 | AL89: 68 | AM89: 65 | AN89: 66 | AP89: 18LH 3
B90: =IF(B89="NG","JG Designation: NG","JG Designation: "&B89&"G"&C89&"N"&ROUNDUP(D89,1)&IF(D8="ASD","K","F")) -> JG Designation: 52G8N4.3K | E90: =IF(B89="NG","NG",IF(D89>E89,"NG","OK")) -> OK | H90: =IF(B89="NG","NG",IF(H89>G89,"NG","OK")) -> OK | I90: =IF(B89="NG","NG",IF(I89>G89,"NG","OK")) -> OK | X90: X-Bridging Not Minimized | AK90: 66 | AL90: 68 | AM90: 66 | AN90: 66 | AP90: 18LH 4
Y91: ID | Z91: Depth | AA91: Type | AB91: ASD Load | AC91: LRFD Load | AD91: ="L/"&'Roof Bay Analysis'!$I$51&" Load" -> L/240 Load | AE91: Weight | AF91: Type | AG91: Seat | AH91: Section | AI91: L/360 Load | AK91: 67 | AL91: 68 | AM91: 67 | AN91: 72 | AP91: 18LH 5
B92: WEIGHT CHECK - ESTIMATED VS ACTUAL | X92: K Joist | Y92: ='K Joists'!P144 -> 30018.0203 | Z92: ='K Joists'!Q144 -> 18 | AA92: ='K Joists'!R144 -> 18K 3 | AB92: ='K Joists'!S144 -> 203 | AC92: ='K Joists'!T144 -> 304.5 | AD92: ='K Joists'!U144 -> 184.5 | AE92: ='K Joists'!V144 -> 6.4 | AF92: K | AG92: 2.5 | AI92: ='K Joists'!U147 -> 123 | AK92: 68 | AL92: 68 | AM92: 68 | AN92: 72 | AP92: 18LH 6
B93: Deck | D93: Joists & Bridging | F93: Joist Girders | X93: LH Joist | Y93: ='LH Joists'!P144 -> 30018.0367 | Z93: ='LH Joists'!Q144 -> 18 | AA93: ='LH Joists'!R144 -> 18LH 2 | AB93: ='LH Joists'!S144 -> 367 | AC93: ='LH Joists'!T144 -> 550.5 | AD93: ='LH Joists'!U144 -> 318 | AE93: ='LH Joists'!V144 -> 10 | AF93: LH | AG93: 5 | AI93: ='LH Joists'!U147 -> 212 | AK93: 69 | AL93: 72 | AM93: 69 | AN93: 72 | AP93: 18LH 7
B94: Estimated | C94: Actual | D94: Estimated | E94: Actual | F94: Estimated | G94: Actual | X94: DLH Joist | Y94: ='DLH Joists'!P144 ->  | Z94: ='DLH Joists'!Q144 ->  | AA94: ='DLH Joists'!R144 ->  | AB94: ='DLH Joists'!S144 ->  | AC94: ='DLH Joists'!T144 ->  | AD94: ='DLH Joists'!U144 ->  | AE94: ='DLH Joists'!V144 -> 0 | AF94: DLH | AG94: =IF(AE94=0,0,IF(AH94<18,5,7.5)) -> 0 | AH94: =VALUE(RIGHT(AA94,2)) ->  | AI94: ='DLH Joists'!U147 ->  | AK94: 70 | AL94: 72 | AM94: 70 | AN94: 72 | AP94: 18LH 8
B95: psf | C95: psf | D95: psf | E95: psf | F95: psf | G95: psf | X95: Minimum | Y95: =INDEX(Y92:Y94,MATCH($AE$95,$AE92:$AE94,0)) -> 30018.0203 | Z95: 18 | AA95: 18K 3 | AB95: =INDEX(AB92:AB94,MATCH($AE$95,$AE92:$AE94,0)) -> 203 | AC95: 304.5 | AD95: =INDEX(AD92:AD94,MATCH($AE$95,$AE92:$AE94,0)) -> 184.5 | AE95: =IF(MAX(AE92:AE94)=0,"NG",SMALL(AE92:AE94,COUNTIF(AE92:AE94,0)+1)) -> 6.4 | AF95: =IF(Z95<100,MID(AA95,3,LEN(AA95)-4),MID(AA95,4,LEN(AA95)-5)) -> K | AG95: =INDEX(AG92:AG94,MATCH(AE95,AE92:AE94,0)) -> 2.5 | AI95: =INDEX(AI92:AI94,MATCH($AE$95,$AE92:$AE94,0)) -> 123 | AK95: 71 | AL95: 72 | AM95: 71 | AN95: 72 | AP95: 18LH 9
B96: =D33 -> 1.78 | C96: =C69 -> 1.78 | D96: =D34 -> 1.202 | E96: =SUM(C103:F103) -> 1.202 | F96: =D35 -> 0.8333333333 | G96: =G103 -> 0.8333333333 | AK96: 72 | AL96: 72 | AM96: 72 | AN96: 72 | AP96: 20LH 2
B97: =IF(C96>B96,"NG","OK") -> OK | D97: =IF(F76="NG","NG",IF(F76=0,"NG",IF(E96>D96,"NG","OK"))) -> OK | F97: =IF(B89="NG","NG",IF(G96>F96,"NG","OK")) -> OK | AK97: 73 | AL97: 80 | AM97: 73 | AN97: 78 | AP97: 20LH 3
X98: X-Bridging Minimized | AK98: 74 | AL98: 80 | AM98: 74 | AN98: 78 | AP98: 20LH 4
B99: WEIGHT RESULTS | Y99: ID | Z99: Depth | AA99: Type | AB99: ASD Load | AC99: LRFD Load | AD99: ="L/"&'Roof Bay Analysis'!$I$51&" Load" -> L/240 Load | AE99: Weight | AF99: Type | AG99: Seat | AH99: Section | AI99: L/360 Load | AK99: 75 | AL99: 80 | AM99: 75 | AN99: 78 | AP99: 20LH 5
B100: Deck | C100: K-Joist, | D100: DLH-Joist, | E100: X-Bridging | F100: H-Bridging | G100: Joist Girder | X100: K Joist | Y100: ='K No X'!P144 -> 30018.0203 | Z100: ='K No X'!Q144 -> 18 | AA100: ='K No X'!R144 -> 18K 3 | AB100: ='K No X'!S144 -> 203 | AC100: ='K No X'!T144 -> 304.5 | AD100: ='K No X'!U144 -> 184.5 | AE100: ='K No X'!V144 -> 6.4 | AF100: K | AG100: 2.5 | AI100: ='K No X'!U147 -> 123 | AK100: 76 | AL100: 80 | AM100: 76 | AN100: 78 | AP100: 20LH 6
B101: Weight | C101: LH ≤ 60' | D101: LH > 60' | E101: Weight | F101: Weight | G101: Weight | X101: LH Joist | Y101: ='LH No X'!P144 -> 30018.0367 | Z101: ='LH No X'!Q144 -> 18 | AA101: ='LH No X'!R144 -> 18LH 2 | AB101: ='LH No X'!S144 -> 367 | AC101: ='LH No X'!T144 -> 550.5 | AD101: ='LH No X'!U144 -> 318 | AE101: ='LH No X'!V144 -> 10 | AF101: LH | AG101: 5 | AI101: ='LH No X'!U147 -> 212 | AK101: 77 | AL101: 80 | AM101: 77 | AN101: 78 | AP101: 20LH 7
C102: Weight | D102: Weight | X102: DLH Joist | Y102: ='DLH Joists'!P144 ->  | Z102: ='DLH Joists'!Q144 ->  | AA102: ='DLH Joists'!R144 ->  | AB102: ='DLH Joists'!S144 ->  | AC102: ='DLH Joists'!T144 ->  | AD102: ='DLH Joists'!U144 ->  | AE102: ='DLH Joists'!V144 -> 0 | AF102: DLH | AG102: =IF(AE102=0,0,IF(AH102<18,5,7.5)) -> 0 | AH102: =VALUE(RIGHT(AA102,2)) ->  | AI102: ='DLH Joists'!U147 ->  | AK102: 78 | AL102: 80 | AM102: 78 | AN102: 78 | AP102: 20LH 8
B103: =C69 -> 1.78 | C103: =IF(OR(AA107="K",AND(AA107="LH",AB107="Y")),F76/C76,0) -> 1.024 | D103: =IF(OR(AA107="DLH",AND(AA107="LH",AB107="N")),F76/C76,0) -> 0 | E103: =D83*E83/E11/E12 -> 0 | F103: =H83*I83/E11/E12 -> 0.178 | G103: =F89/E11 -> 0.8333333333 | H103: psf | X103: Minimum | Y103: =INDEX(Y100:Y102,MATCH($AE$103,$AE100:$AE102,0)) -> 30018.0203 | Z103: 18 | AA103: 18K 3 | AB103: 203 | AC103: 304.5 | AD103: 184.5 | AE103: =IF(MAX(AE100:AE102)=0,"NG",SMALL(AE100:AE102,COUNTIF(AE100:AE102,0)+1)) -> 6.4 | AF103: =IF(Z103<100,MID(AA103,3,LEN(AA103)-4),MID(AA103,4,LEN(AA103)-5)) -> K | AG103: =INDEX(AG100:AG102,MATCH(AE103,AE100:AE102,0)) -> 2.5 | AI103: =INDEX(AI100:AI102,MATCH($AE$103,$AE100:$AE102,0)) -> 123 | AK103: 79 | AL103: 80 | AM103: 79 | AN103: 84 | AP103: 20LH 9
B104: =B103*$E$11*$E$12/2000 -> 1.335 | C104: =C103*$E$11*$E$12/2000 -> 0.768 | D104: 0 | E104: 0 | F104: 0.1335 | G104: 0.625 | H104: tons / bay | AK104: 80 | AL104: 80 | AM104: 80 | AN104: 84 | AP104: 20LH10
Y105: Joist | Z105: Joist | AA105: Joist | AB105: Span | AK105: 81 | AL105: 88 | AM105: 81 | AN105: 84 | AP105: 24LH 3
B106: COST DATA | Y106: ID | Z106: Depth | AA106: Type | AB106: ≤ 60' | AC106: Seat | AK106: 82 | AL106: 88 | AM106: 82 | AN106: 84 | AP106: 24LH 4
D107: Purchase | E107: Installation | Y107: =IF(OR(I57="",I57="N"),Y95,IF(AE103="NG",Y95,Y103)) -> 30018.0203 | Z107: =IF(OR(I57="",I57="N"),Z95,IF(AE103="NG",Z95,Z103)) -> 18 | AA107: =IF(OR(I57="",I57="N"),AF95,IF(AE103="NG",AF95,AF103)) -> K | AB107: =IF(E11>60,"N","Y") -> Y | AC107: =IF(OR(I57="",I57="N"),AG95,IF(AE103="NG",AG95,AG103)) -> 2.5 | AK107: 83 | AL107: 88 | AM107: 83 | AN107: 84 | AP107: 24LH 5
B108: Item | D108: $ / Ton | E108: $ / Unit | F108: Unit | AK108: 84 | AL108: 88 | AM108: 84 | AN108: 84 | AP108: 24LH 6
B109: Deck | D109: 1400 | E109: 55 | F109: square | AK109: 85 | AL109: 88 | AM109: 85 | AN109: 90 | AP109: 24LH 7
B110: K-Joists, LH-Joists ≤ 60' | D110: 1450 | E110: 150 | F110: piece | AK110: 86 | AL110: 88 | AM110: 86 | AN110: 90 | AP110: 24LH 8
B111: LH-Joists > 60', | D111: 1550 | E111: 200 | F111: piece | AK111: 87 | AL111: 88 | AM111: 87 | AN111: 90 | AP111: 24LH 9
B112: DLH-Joists, Joist Girders | N112: Error Checks | AK112: 88 | AL112: 88 | AM112: 88 | AN112: 90 | AP112: 24LH10
B113: X-Bridging | D113: 1700 | E113: 3.5 | F113: foot | M113: =IF(C46>D46,"NG","OK") -> OK | N113: Deck Span | AK113: 89 | AL113: 96 | AM113: 89 | AN113: 90 | AP113: 24LH11
B114: H-Bridging | D114: 1500 | E114: 2 | F114: foot | M114: =G46 -> OK | N114: Deck Flexure | AK114: 90 | AL114: 96 | AM114: 90 | AN114: 90 | AP114: 28LH 5
B115: Consult with general contractor / joist manufacturer / erector for cost data. | M115: =IF(OR(AND(D51<D50,D51>0),D51>D52,D53>D52,AND(D53<D50,D53>0)),"NG","OK") -> OK | N115: Joist Depth | AK115: 91 | AL115: 96 | AM115: 91 | AN115: 96 | AP115: 28LH 6
M116: =IF(OR(AND(D55<D54,D55>0),D55>D56,D57>D56,AND(D57<D54,D57>0)),"NG","OK") -> OK | N116: JG Depth | AK116: 92 | AL116: 96 | AM116: 92 | AN116: 96 | AP116: 28LH 7
B117: COST RESULTS | M117: =E70 -> OK | N117: Deck Deflection | AK117: 93 | AL117: 96 | AM117: 93 | AN117: 96 | AP117: 28LH 8
B118: Deck | D118: Joists | F118: Bridging | H118: Joist Girders | M118: =E77 -> OK | N118: Joist Strength | AK118: 94 | AL118: 96 | AM118: 94 | AN118: 96 | AP118: 28LH 9
B119: Purchase | C119: Installation | D119: Purchase | E119: Installation | F119: Purchase | G119: Installation | H119: Purchase | I119: Installation | M119: =IF(AND(H77="OK",I77="OK"),"OK","NG") -> OK | N119: Joist Deflection | AK119: 95 | AL119: 96 | AM119: 95 | AN119: 96 | AP119: 28LH10
B120: =D109/2000*B103 -> 1.246 | C120: =E109/100 -> 0.55 | D120: =D110/2000*C103+D111/2000*D103 -> 0.7424 | E120: =IF(C103>0,E110,E111)*C89/E11/E12 -> 0.8 | F120: =E103/2000*D113+F103/2000*D114 -> 0.1335 | G120: =(E113*D83+E114*H83)/E11/E12 -> 0.4 | H120: =D111/2000*G103 -> 0.6458333333 | I120: =E111*1/E11/E12 -> 0.1333333333 | J120: $ / sf | M120: =E90 -> OK | N120: JG Strength | AK120: 96 | AL120: 96 | AM120: 96 | AN120: 96 | AP120: 28LH11
B121: =B120*$E$11*$E$12 -> 1869 | C121: =C120*$E$11*$E$12 -> 825 | D121: 1113.6 | E121: 1200 | F121: 200.25 | G121: 600 | H121: 968.75 | I121: 200 | J121: $ / bay | M121: =IF(AND(H90="OK",I90="OK"),"OK","NG") -> OK | N121: JG Deflection | AK121: 97 | AL121: 104 | AM121: 97 | AN121: 102 | AP121: 28LH12
M122: =B97 -> OK | N122: Estimated Deck Weight | AK122: 98 | AL122: 104 | AM122: 98 | AN122: 102 | AP122: 28LH13
B123: FINAL TOTALS | I123: =IF(M127>0,"NO GOOD","OK") -> OK | M123: =D97 -> OK | N123: Estimated Joist & Bridging Weight | AK123: 99 | AL123: 104 | AM123: 99 | AN123: 102 | AP123: 32LH 6
B124: Weight | E124: Cost | M124: =F97 -> OK | N124: Estimated JG Weight | AK124: 100 | AL124: 104 | AM124: 100 | AN124: 102 | AP124: 32LH 7
E125: Purchase | F125: Installation | G125: Total | I125: =IF(M127>0,"Design may be outside the limits of this program. Verify input or consult with manufacturer.","Design is acceptable and within the limits of this program.") -> Design is acceptable and within the limits of this program. | M125: =J83 -> OK | N125: Joist Spacing for Bridging | AK125: 101 | AL125: 104 | AM125: 101 | AN125: 102 | AP125: 32LH 8
B126: =SUM(B103:G103) -> 3.815333333 | C126: psf | E126: =B120+D120+F120+H120 -> 2.767733333 | F126: =C120+E120+G120+I120 -> 1.883333333 | G126: =E126+F126 -> 4.651066667 | H126: $ / sf | AK126: 102 | AL126: 104 | AM126: 102 | AN126: 102 | AP126: 32LH 9
B127: =SUM(B104:G104) -> 2.8615 | C127: tons / bay | E127: =E126*$E$11*$E$12 -> 4151.6 | F127: =F126*$E$11*$E$12 -> 2825 | G127: =G126*$E$11*$E$12 -> 6976.6 | H127: $ / bay | M127: =13-COUNTIF(M113:M125,"OK") -> 0 | N127: Total NG | AK127: 103 | AL127: 104 | AM127: 103 | AN127: 108 | AP127: 32LH10
AK128: 104 | AL128: 104 | AM128: 104 | AN128: 108 | AP128: 32LH11
AK129: 105 | AL129: 112 | AM129: 105 | AN129: 108 | AP129: 32LH12
B130: RUN DATA | AK130: 106 | AL130: 112 | AM130: 106 | AN130: 108 | AP130: 32LH13
B131: Design Methodology | D131: =D8 -> ASD | AK131: 107 | AL131: 112 | AM131: 107 | AN131: 108 | AP131: 32LH14
B132: Joist Span, ft. | D132: =E11 -> 30 | AK132: 108 | AL132: 112 | AM132: 108 | AN132: 108 | AP132: 32LH15
B133: Joist Girder Span, ft. | D133: =E12 -> 50 | AK133: 109 | AL133: 112 | AM133: 109 | AN133: 114 | AP133: 36LH 7
B134: Deck Profile & Gage | D134: =B46 -> WR22 | AK134: 110 | AL134: 112 | AM134: 110 | AN134: 114 | AP134: 36LH 8
B135: Deck Span, ft. | D135: =C46 -> 6.25 | AK135: 111 | AL135: 112 | AM135: 111 | AN135: 114 | AP135: 36LH 9
B136: X-Bridging Rows | D136: =C83 -> 0 | AK136: 112 | AL136: 112 | AM136: 112 | AN136: 114 | AP136: 36LH10
B137: H-Bridging Rows | D137: =G83 -> 3 | AK137: 113 | AL137: 120 | AM137: 113 | AN137: 114 | AP137: 36LH11
B138: Joist Size | D138: =B76 -> 18K 3 | AK138: 114 | AL138: =AL137+0 -> 120 | AM138: 114 | AN138: 114 | AP138: 36LH12
B139: Joist Seat Depth, in. | D139: =AC107 -> 2.5 | AK139: 115 | AL139: 120 | AM139: 115 | AN139: 120 | AP139: 36LH13
B140: Joist Girder Size | D140: =B89&"G"&C89&"N"&ROUNDUP(D89,1)&IF(D8="ASD","K","F") -> 52G8N4.3K | AK140: 116 | AL140: 120 | AM140: 116 | AN140: 120 | AP140: 36LH14
B141: Weight, psf | D141: =B126 -> 3.815333333 | AK141: 117 | AL141: 120 | AM141: 117 | AN141: 120 | AP141: 36LH15
B142: Cost, $ / sf | D142: =G126 -> 4.651066667 | AK142: 118 | AL142: 120 | AM142: 118 | AN142: 120 | AP142: 40LH 8
AK143: 119 | AL143: 120 | AM143: 119 | AN143: 120 | AP143: 40LH 9
B144: RUN COMPARISONS | AK144: 120 | AL144: 120 | AM144: 120 | AN144: =AN143+0 -> 120 | AP144: 40LH10
D145: Run 1 | E145: Run 2 | F145: Run 3 | G145: Run 4 | H145: Run 5 | I145: Run 6 | J145: Run 7 | K145: Run 8 | AP145: 40LH11
B146: Design Methodology | AP146: 40LH12
B147: Joist Span, ft. | AP147: 40LH13
B148: Joist Girder Span, ft. | AP148: 40LH14
B149: Deck Profile & Gage | AP149: 40LH15
B150: Deck Span, ft. | AP150: 40LH16
B151: X-Bridging Rows | AP151: 44LH 9
B152: H-Bridging Rows | AP152: 44LH10
B153: Joist Size | AP153: 44LH11
B154: Joist Seat Depth, in. | AP154: 44LH12
B155: Joist Girder Size | AP155: 44LH13
B156: Weight, psf | AP156: 44LH14
B157: Cost, $ / sf | AP157: 44LH15
AP158: 44LH16
AP159: 44LH17
AP160: 48LH10
AP161: 48LH11
AP162: 48LH12
AP163: 48LH13
AP164: 48LH14
AP165: 48LH15
AP166: 48LH16
AP167: 48LH17
AP168: 52DLH10
AP169: 52DLH11
AP170: 52DLH12
AP171: 52DLH13
AP172: 52DLH14
AP173: 52DLH15
AP174: 52DLH16
AP175: 52DLH17
AP176: 56DLH11
AP177: 56DLH12
AP178: 56DLH13
AP179: 56DLH14
AP180: 56DLH15
AP181: 56DLH16
AP182: 56DLH17
AP183: 60DLH12
AP184: 60DLH13
AP185: 60DLH14
AP186: 60DLH15
AP187: 60DLH16
AP188: 60DLH17
AP189: 60DLH18
AP190: 64DLH12
AP191: 64DLH13
AP192: 64DLH14
AP193: 64DLH15
AP194: 64DLH16
AP195: 64DLH17
AP196: 64DLH18
AP197: 68DLH13
AP198: 68DLH14
AP199: 68DLH15
AP200: 68DLH16
AP201: 68DLH17
AP202: 68DLH18
AP203: 68DLH19
AP204: 72DLH14
AP205: 72DLH15
AP206: 72DLH16
AP207: 72DLH17
AP208: 72DLH18
AP209: 72DLH19
AP210: 80DLH15
AP211: 80DLH16
AP212: 80DLH17
AP213: 80DLH18
AP214: 80DLH19
... 31 more rows

Sheet Ponding Instructions
A1: INSTRUCTIONS FOR RUNNING PONDING ANALYSIS
A3: 1. | B3: Determine the joist and Joist Girder preliminary design using the roof bay analysis spreadsheet.
A4: 2. | B4: Determine the hydraulic head based on the flow rate, Q, and the drainage system.
B5: a. | C5: The flow rate can be determined using ASCE 7-16 Equation C8-1.
B6: b. | C6: The hydraulic head can be determined based on ASCE 7-16 Table C8-1 and the drain size.
A7: 3. | B7: Determine the water level above the primary drain (dh + ds).
B8: a. | C8: Check the Building Code to see if a minimum height for secondary drains is provided. ASCE 7-16
C9: provides no minimum height except that the height should be higher than the primary drain. A minimum
C10: of 2 inches above the primary drain is often used and is required by FM Global.
B11: b. | C11: Some codes require that scuppers be a minimum of 2 inches above the roof level, but should not
C12: exceed 4 inches above the roof level.
A13: 4. | B13: Input the required data into the ponding analysis spreadsheet. The data from the roof bay analysis is
B14: automatically transferred to the ponding analysis.
A15: 5. | B15: Run the ponding analysis.
B16: a. | C16: If stability is achieved, the analysis is complete. Ponding stability is achieved when the shear and
C17: moment envelopes for the joists and Joist Girders are not exceeded. Joist Girder stability can be
C18: achieved and yet individual panel point loads can be exceeded. These individual panel point loads
C19: should be specified to prevent local instability, or for simplicity the Joist Girders can be specified
C20: using the maximum panel point load.
B21: b. | C21: If stability is not achieved, return to the roof bay analysis and select a stiffer joist and/or Joist Girder by
C22: inputting larger loads in the “optional increased load data” section. Rerun the ponding analysis until
C23: stability is achieved.
A25: Local Load Effects (Indicated with red font):
A26: Due to the nonuniform nature of ponding loads, applied load on a portion of the length of a joist or Joist Girder
A27: can occasionally exceed the allowable load even when the shear and bending moment diagrams fall within
A28: their respective design envelopes. In such instances, there is the potential for overstress due to top chord bending
A29: between the panel points for joists or buckling of web verticals for Joist Girders. The specifying professional may
A30: select a larger joist and/or specify a larger Joist Girder panel point load.
A32: Ponding Analysis Notes:
A33: 1. | B33: Spreadsheet uses an iterative analysis to determine the loads from the ponded water.
A34: 2. | B34: Ponding is a nonlinear phenomenon. For ASD, the analysis is conducted using a force level adjustment factor
B35: (a) of 1.6, unless overridden by the user. The loads are amplified by this factor and the results (i.e., moments
B36: and shears) are reduced by this factor. The AISC Specification requires such a factor for all load-dependent
B37: effects. The SJI recommends using the default value of 1.6, however, because of the long history of not using
B38: an iterative solution for ponding calculations the spreadsheet allows the user to use a reduced multiplier.
A39: 3. | B39: The 2015 IBC does not prescribe load factors for the combination of dead, snow and ponded water. The
B40: default load factors are based on those of similar combinations. The SJI recommends using the load factors
B41: shown in the spreadsheet; however, the user may override these load factors based on their judgement.
A42: 4. | B42: Snow load must include rain on snow if required by IBC.
A43: 5. | B43: The snow density can be determined using ASCE 7-16 Equation 7.7-1. The snow density is used to compute
B44: the height of snow in the bay. When computing ponding loads, the spreadsheet accounts for the possibility
B45: of snow and water occupying the same physical space (in this case, the density of snow plus water is taken
B46: as that of just water). To override this behavior and conservatively allow snow and ponded water to overlap,
B47: input a value of zero for snow density
A48: 6. | B48: Slopes to drains must be a minimum of 1/4 inch per foot per IBC.
A49: 7. | B49: Small deformations are assumed with no catenary action.
A50: 8. | B50: Cricket elevations are not included.
A51: 9. | B51: Steel deck deflection is ignored.
A52: 10. | B52: Standard SJI cambers are used, unless overridden by the user.
A53: 11. | B53: If joists at the end of the bay are defined as rigid then camber is taken as zero.
A54: 12. | B54: The stiffnesses for the selected joists and/or the Joist Girders can be overridden by the user. This feature
B55: allows the user to investigate ponding for those situations where the chosen joists are supported by a steel
B56: beam or other situations which are not explicitly covered by the spreadsheet.
A57: 13. | B57: Equivalent loads for joists and Joist Girders are calculated through a comparison between the computed shear
B58: and moment diagrams and SJI allowable envelopes.
A59: 14. | B59: For conditions with sloped joists and ponding toward one end of the joist, the Design Professional should
B60: consider the potential for shear reversal in joist and Joist Girder web members. If shear reversal is not
B61: addressed via other design loading criteria such as Net Uplift or Snow Drift, the Design Professional could
B62: specify the joist manufacturer is required to: “Design joists and Joist Girder webs for a minimum vertical
B63: shear equal to 12.5% of the end reaction in compression.”
A65: Software Notes:
A66: 1. | B66: This spreadsheet incorporates subroutines for LU factorization and forward and back substitution created by
B67: http://www.numerical-methods.com.

Sheet Ponding Analysis
B1: Roof Bay Ponding Analysis
B2: (SJI Load Tables / SDI Specification) Copyright © 2018
B4: Project Name: | C4: ='Roof Bay Analysis'!D4 -> xyz
B5: Project Number: | C5: ='Roof Bay Analysis'!D5 -> 2015xyz
B6: Engineer: | C6: ='Roof Bay Analysis'!D6 -> XYZ | F6: Date: | G6: ='Roof Bay Analysis'!I6 -> 2018-01-18
O7: Camber Table
O8: Span | P8: Camber
B9: General Input (Defined in Roof Bay Analysis Spreadsheet) | O9: 0 | P9: 0
O10: 20 | P10: 0.25 | R10: Data from last run
B11: Design Methodology | D11: ='Roof Bay Analysis'!D8 -> ASD | O11: 30 | P11: 0.375 | R11: ASD | S11: =IF(OR(R11="",R11=D11),0,1) -> 0
B12: Joist Span | D12: ='Roof Bay Analysis'!E11 -> 30 | E12: ft | O12: 40 | P12: 0.625 | R12: 30 | S12: 0
B13: Joist Girder Span | D13: ='Roof Bay Analysis'!E12 -> 50 | E13: ft | O13: 50 | P13: 1 | R13: 50 | S13: 0
B14: Joist Size | D14: ='Roof Bay Analysis'!B76 -> 18K 3 | O14: 60 | P14: 1.5 | R14: 18K 3 | S14: 0
B15: Joist Allowable Load | D15: ='Roof Bay Analysis'!E76 -> 203 | E15: lb/ft | O15: 70 | P15: 2 | R15: 203 | S15: 0
B16: Joist Girder Size | D16: ='Roof Bay Analysis'!D140 -> 52G8N4.3K | O16: 80 | P16: 2.75 | R16: 52G8N4.3K | S16: 0
B17: Joist Girder Allowable Load | D17: ='Roof Bay Analysis'!D89 -> 4.3 | E17: k | O17: 90 | P17: 3.5 | R17: 4.3 | S17: 0
B18: Number of Joist Spaces | D18: ='Roof Bay Analysis'!D40 -> 8 | O18: 100 | P18: 4.25 | R18: 8 | S18: 0
B19: Dead Load on Joists | D19: =SUM('Roof Bay Analysis'!D32:D34,'Roof Bay Analysis'!D36) -> 9.982 | E19: psf | R19: 9.982 | S19: 0
B20: Joist Girder Self Weight | D20: ='Roof Bay Analysis'!F89 -> 25 | E20: lb/ft | R20: 25 | S20: 0
B21: Snow Load | D21: ='Roof Bay Analysis'!I34 -> 5 | E21: psf | O21: Iteration | P21: ΣW | R21: 5 | S21: 0
O22: # | P22: (kips) | R22: rerun if not 0: | S22: =SUM(S11:S21) -> 0
O23: 1 | P23: 3.044616661
O24: 2 | P24: 6.816006458
B25: =CONCATENATE("z = ",TEXT(E67,"0.000")," in") -> z = 12.000 in | F25: =CONCATENATE("z = ",TEXT(E68,"0.000")," in") -> z = 12.000 in | O25: 3 | P25: 7.562350521
O26: 4 | P26: 7.722056055
O27: 5 | P27: 7.75700235
O28: 6 | P28: 7.764684798
O29: 7 | P29: 7.766376283
O30: 8 | P30: 7.766749184
O31: 9 | P31: 7.766831418
O32: 10 | P32: 7.766849554
O33: 11
O34: 12
O35: 13
O36: 14
O37: 15
O38: 16
O39: 17
O40: 18
O41: 19
O42: 20
B43: =CONCATENATE("z = ",TEXT(E69,"0.000")," in") -> z = 0.000 in | F43: =CONCATENATE("z = ",TEXT(E70,"0.000")," in") -> z = 0.000 in | O43: 21
O44: 22
O45: 23
O46: 24
O47: 25
O48: 26
O49: 27
O50: 28
O51: 29
B52: Ponding Specific Input | O52: 30
O53: 31
B54: Water level relative to zero datum: | E54: 4 | F54: in | O54: 32
B55: Compute load on deformed roof: | E55: Y | F55: (Y or N) | O55: 33
B56: Snow density: | E56: 17 | F56: lb/ft3 | O56: 34
B57: Force level adjustment factor (a): | E57: =IF(ISBLANK(E58),IF(D11="ASD",1.6,1),E58) -> 1.6 | O57: 35
D58: override: | O58: 36
B59: Load factors: | O59: 37
C60: Dead | E60: =IF(ISBLANK(E61),IF(D11="ASD",1,1.2),E61) -> 1 | O60: 38
D61: override: | O61: 39
C62: Snow | E62: =IF(ISBLANK(E63),IF(E55="Y",IF(D11="ASD",0.75,1.2),0),E63) -> 0.75 | O62: 40
D63: override: | O63: 41
C64: Ponded Water | E64: =IF(ISBLANK(E65),IF(E55="Y",IF(D11="ASD",0.75,1.2),IF(D11="ASD",1,1.6)),E65) -> 0.75 | O64: 42
D65: override: | O65: 43
B66: Top of roof elevation: | O66: 44
C67: Top Left | E67: 12 | F67: in | O67: 45
C68: Top Right | E68: 12 | F68: in | O68: 46
C69: Bottom Left | E69: 0 | F69: in | O69: 47
C70: Bottom Right | E70: 0 | F70: in | O70: 48
B71: Camber: | O71: 49
C72: Joist | E72: =IF(ISBLANK(E73),IF(D12>100,D12*12/300,VLOOKUP(D12,O9:P18,2,TRUE)),E73) -> 0.375 | F72: in | O72: 50
D73: override: | F73: in
C74: Top Joist Girder | E74: =IF(ISBLANK(E75),IF(E84="Y",0,IF(D13>100,D13*12/300,VLOOKUP(D13,O9:P18,2,TRUE))),E75) -> 0 | F74: in
D75: override: | F75: in
C76: Bottom Joist Girder | E76: =IF(ISBLANK(E77),IF(E85="Y",0,IF(D13>100,D13*12/300,VLOOKUP(D13,O9:P18,2,TRUE))),E77) -> 1 | F76: in
D77: override: | F77: in
B78: Bay is mirrored:
C79: Left | E79: Y | F79: (Y or N)
C80: Right | E80: Y | F80: (Y or N)
C81: Top | E81: N | F81: (Y or N)
C82: Bottom | E82: Y | F82: (Y or N)
B83: Joist support is wall:
C84: Top | E84: Y | F84: (Y or N)
C85: Bottom | E85: N | F85: (Y or N)
B86: Joist is rigid:
C87: Joist 1 (Leftmost) | E87: N | F87: (Y or N)
C88: =CONCATENATE("Joist ",D18+1," (Rightmost)") -> Joist 9 (Rightmost) | E88: N | F88: (Y or N)
B89: Effective moment of inertia:
C90: Joist | E90: =IF(ISBLANK(E91),'Roof Bay Analysis'!I62,E91) -> 74.77554877 | F90: in4
B91: (Values include | D91: override: | F91: in4
B92: 1.15 factor for | C92: Joist Girder | E92: =IF(ISBLANK(E93),'Roof Bay Analysis'!I63,E93) -> 2099.895652 | F92: in4
B93: shear deformations) | D93: override: | F93: in4
B96: Joist Output | E96: =IF(COUNTIF(H100:H124,"NO GOOD")>0,"Joist size can be revised by inputting larger loads in the ''optional increased load data'' section of the Roof Bay Analysis spreadsheet","") -> 
K97: 0 | L97: =K97+1 -> 1 | M97: =L97+1 -> 2 | N97: 3 | O97: 4 | P97: 5 | Q97: 6 | R97: 7 | S97: 8 | T97: 9 | U97: 10 | V97: 11 | W97: 12 | X97: 13 | Y97: 14 | Z97: 15 | AA97: 16 | AB97: 17 | AC97: 18 | AD97: 19 | AE97: =AD97+1 -> 20
B98: Joist | C98: Max Shear | D98: Equiv. Load | E98: Max Moment | F98: Equiv. Load | G98: Strength | H98: Strength | J98: Joist | K98: Total Distributed Load on Joist as a Function of Distance from Bottom Support (lb/ft)
B99: Number | C99: kips | D99: lb/ft | E99: kip-ft | F99: lb/ft | G99: Ratio | H99: Check | J99: Number | K99: =INT($D$12*K97/20)&"' "&TEXT(12*($D$12*K97/20-INT($D$12*K97/20)),"0")&CHAR(34) -> 0' 0" | L99: =INT($D$12*L97/20)&"' "&TEXT(12*($D$12*L97/20-INT($D$12*L97/20)),"0")&CHAR(34) -> 1' 6" | M99: 3' 0" | N99: 4' 6" | O99: 6' 0" | P99: 7' 6" | Q99: 9' 0" | R99: 10' 6" | S99: 12' 0" | T99: 13' 6" | U99: 15' 0" | V99: 16' 6" | W99: 18' 0" | X99: 19' 6" | Y99: 21' 0" | Z99: 22' 6" | AA99: 24' 0" | AB99: 25' 6" | AC99: 27' 0" | AD99: 28' 6" | AE99: 30' 0"
B100: 1 | C100: 1.697956575 | D100: 113.197105 | E100: 10.66290116 | F100: 110.7564715 | G100: =IF(ISBLANK(B100),"",MAX(D100,F100)/$D$15) -> 0.5576212069 | H100: =IF(ISBLANK(B100),"",IF(MAX(D100,F100)>$D$15,"NO GOOD","OKAY")) -> OKAY | J100: 1 | K100: 159.5691419 | L100: 152.2080904 | M100: 142.7767783 | N100: 134.3610286 | O100: 125.8170503 | P100: 117.0265844 | Q100: 107.9321138 | R100: 98.48965713 | S100: 89.37554356 | T100: 85.89892166 | U100: 85.825 | V100: 85.825 | W100: 85.825 | X100: 85.825 | Y100: 85.825 | Z100: 85.825 | AA100: 85.825 | AB100: 85.825 | AC100: 85.825 | AD100: 85.825 | AE100: 85.825
B101: 2 | C101: 1.744400118 | D101: 116.2933412 | E101: 10.83568411 | F101: 113.6579799 | G101: =IF(ISBLANK(B101),"",MAX(D101,F101)/$D$15) -> 0.5728736019 | H101: =IF(ISBLANK(B101),"",IF(MAX(D101,F101)>$D$15,"NO GOOD","OKAY")) -> OKAY | J101: 2 | K101: 166.3652056 | L101: 158.6344445 | M101: 147.8535499 | N101: 138.7704095 | O101: 130.0068403 | P101: 120.9979689 | Q101: 111.678022 | R101: 102.002704 | S101: 92.15926531 | T101: 86.32799586 | U101: 85.82502993 | V101: 85.825 | W101: 85.825 | X101: 85.825 | Y101: 85.825 | Z101: 85.825 | AA101: 85.825 | AB101: 85.825 | AC101: 85.825 | AD101: 85.825 | AE101: 85.825
B102: 3 | C102: 1.812933257 | D102: 120.8622172 | E102: 11.09905524 | F102: 117.967344 | G102: 0.5953803801 | H102: OKAY | J102: 3 | K102: 175.8648079 | L102: 167.8599591 | M102: 155.9255477 | N102: 145.175868 | O102: 135.9327596 | P102: 126.6323106 | Q102: 117.0082071 | R102: 107.0154105 | S102: 96.63227144 | T102: 87.82199676 | U102: 85.83282459 | V102: 85.825 | W102: 85.825 | X102: 85.825 | Y102: 85.825 | Z102: 85.825 | AA102: 85.825 | AB102: 85.825 | AC102: 85.825 | AD102: 85.825 | AE102: 85.825
B103: 4 | C103: 1.863970877 | D103: 124.2647251 | E103: 11.30178496 | F103: 121.1942986 | G103: 0.6121415032 | H103: OKAY | J103: 4 | K103: 182.6028299 | L103: 174.4367882 | M103: 162.1683813 | N103: 150.2096309 | O103: 140.168125 | P103: 130.6608028 | Q103: 120.82535 | R103: 110.6106413 | S103: 99.98505883 | T103: 89.73040356 | U103: 85.89477381 | V103: 85.825 | W103: 85.825 | X103: 85.825 | Y103: 85.825 | Z103: 85.825 | AA103: 85.825 | AB103: 85.825 | AC103: 85.825 | AD103: 85.825 | AE103: 85.825
B104: 5 | C104: 1.882753274 | D104: 125.5168849 | E104: 11.3778602 | F104: 122.3849993 | G104: 0.618309778 | H104: OKAY | J104: 5 | K104: 185.0227121 | L104: 176.7996773 | M104: 164.4431246 | N104: 152.169622 | O104: 141.7028721 | P104: 132.1114832 | Q104: 122.2006839 | R104: 111.9067083 | S104: 101.1979013 | T104: 90.5911781 | U104: 85.95784213 | V104: 85.825 | W104: 85.825 | X104: 85.825 | Y104: 85.825 | Z104: 85.825 | AA104: 85.825 | AB104: 85.825 | AC104: 85.825 | AD104: 85.825 | AE104: 85.825
B105: 6 | C105: 1.863970877 | D105: 124.2647251 | E105: 11.30178496 | F105: 121.1942986 | G105: 0.6121415032 | H105: OKAY | J105: 6 | K105: 182.6028299 | L105: 174.4367882 | M105: 162.1683813 | N105: 150.2096309 | O105: 140.168125 | P105: 130.6608028 | Q105: 120.82535 | R105: 110.6106413 | S105: 99.98505883 | T105: 89.73040356 | U105: 85.89477381 | V105: 85.825 | W105: 85.825 | X105: 85.825 | Y105: 85.825 | Z105: 85.825 | AA105: 85.825 | AB105: 85.825 | AC105: 85.825 | AD105: 85.825 | AE105: 85.825
B106: 7 | C106: 1.812933257 | D106: 120.8622172 | E106: 11.09905524 | F106: 117.967344 | G106: 0.5953803801 | H106: OKAY | J106: 7 | K106: 175.8648079 | L106: 167.8599591 | M106: 155.9255477 | N106: 145.175868 | O106: 135.9327596 | P106: 126.6323106 | Q106: 117.0082071 | R106: 107.0154105 | S106: 96.63227144 | T106: 87.82199676 | U106: 85.83282459 | V106: 85.825 | W106: 85.825 | X106: 85.825 | Y106: 85.825 | Z106: 85.825 | AA106: 85.825 | AB106: 85.825 | AC106: 85.825 | AD106: 85.825 | AE106: 85.825
B107: 8 | C107: 1.744400118 | D107: 116.2933412 | E107: 10.83568411 | F107: 113.6579799 | G107: 0.5728736019 | H107: OKAY | J107: 8 | K107: 166.3652056 | L107: 158.6344445 | M107: 147.8535499 | N107: 138.7704095 | O107: 130.0068403 | P107: 120.9979689 | Q107: 111.678022 | R107: 102.002704 | S107: 92.15926531 | T107: 86.32799586 | U107: 85.82502993 | V107: 85.825 | W107: 85.825 | X107: 85.825 | Y107: 85.825 | Z107: 85.825 | AA107: 85.825 | AB107: 85.825 | AC107: 85.825 | AD107: 85.825 | AE107: 85.825
B108: 9 | C108: 1.697956575 | D108: 113.197105 | E108: 10.66290116 | F108: 110.7564715 | G108: 0.5576212069 | H108: OKAY | J108: 9 | K108: 159.5691419 | L108: 152.2080904 | M108: 142.7767783 | N108: 134.3610286 | O108: 125.8170503 | P108: 117.0265844 | Q108: 107.9321138 | R108: 98.48965713 | S108: 89.37554356 | T108: 85.89892166 | U108: 85.825 | V108: 85.825 | W108: 85.825 | X108: 85.825 | Y108: 85.825 | Z108: 85.825 | AA108: 85.825 | AB108: 85.825 | AC108: 85.825 | AD108: 85.825 | AE108: 85.825
H121: =IF(ISBLANK(B121),"",IF(MAX(D121,F121)>$D$15,"NO GOOD","OKAY")) -> 
B125: NOTES: | C125: =CONCATENATE("1. Loads and load effects correspond to ",D11," load combinations.") -> 1. Loads and load effects correspond to ASD load combinations. | J125: NOTES: | K125: =CONCATENATE("1. Loads correspond to ",D11," load combinations.") -> 1. Loads correspond to ASD load combinations.
C126: 2. Strength ratio computed assuming shear capacity equal to 12.5% of the end reaction for shear | K126: =IF(MAX(K100:AE124)>$D$15,"2. Highlighted distributed loads may cause a local overstress, see notes on Ponding Instructions spreadsheet.","") -> 
C127: reversals, see Note 14 on the Ponding Instructions spreadsheet.
B129: Joist Girder Output | D129: =IF(OR(E160="NO GOOD",H160="NO GOOD"),"Joist Girder size can be revised by inputting larger loads in the ''optional increased load data'' section of the Roof Bay Analysis spreadsheet","") -> 
C131: Top Joist Girder | F131: Bottom Joist Girder | J131: Joist | K131: Total Distributed Load in Excess of Allowable Load on Joist as a Function of Distance from Bottom Support (lb/ft)
B132: Joist | C132: Joist React. | D132: Panel Point Load | F132: Joist React. | G132: Panel Point Load | J132: Number | K132: =K99 -> 0' 0" | L132: =L99 -> 1' 6" | M132: 3' 0" | N132: 4' 6" | O132: 6' 0" | P132: 7' 6" | Q132: 9' 0" | R132: 10' 6" | S132: 12' 0" | T132: 13' 6" | U132: 15' 0" | V132: 16' 6" | W132: 18' 0" | X132: 19' 6" | Y132: 21' 0" | Z132: 22' 6" | AA132: 24' 0" | AB132: 25' 6" | AC132: 27' 0" | AD132: 28' 6" | AE132: 30' 0"
B133: Number | C133: kips | D133: kips | F133: kips | G133: kips | J133: =IF(J100="","",J100) -> 1 | K133: =IF(K100="","",IF(K100>$D$15,K100-$D$15,"")) ->  | L133: =IF(L100="","",IF(L100>$D$15,L100-$D$15,"")) -> 
B134: 2 | C134: 1.364764382 | F134: 1.744400118 | G134: 3.645050235 | J134: =IF(J101="","",J101) -> 2 | K134: =IF(K101="","",IF(K101>$D$15,K101-$D$15,"")) -> 
B135: 3 | C135: 1.380727332 | F135: 1.812933257 | G135: 3.782116515 | J135: 3
B136: 4 | C136: 1.393022429 | F136: 1.863970877 | G136: 3.884191754 | J136: 4
B137: 5 | C137: 1.397641649 | F137: 1.882753274 | G137: 3.921756548 | J137: 5
B138: 6 | C138: 1.393022429 | F138: 1.863970877 | G138: 3.884191754 | J138: 6
B139: 7 | C139: 1.380727332 | F139: 1.812933257 | G139: 3.782116515 | J139: 7
B140: 8 | C140: 1.364764382 | F140: 1.744400118 | G140: 3.645050235 | J140: 8
J141: 9
V146: =IF(V113="","",IF(V113>$D$15,V113-$D$15,"")) -> 
C157: Equiv. Load for Shear (kips): | E157: N/A (WALL) | F157: Equiv. Load for Shear (kips): | H157: 3.896713352
C158: Equiv. Load for Moment (kips): | E158: N/A (WALL) | F158: Equiv. Load for Moment (kips): | H158: 3.838171453
C159: Strength Ratio: | E159: =IF(E158="","",IF(ISTEXT(E158),E158,MAX(E157:E158)/$D$17)) -> N/A (WALL) | F159: Strength Ratio: | H159: =IF(H158="","",IF(ISTEXT(H158),H158,MAX(H157:H158)/$D$17)) -> 0.9062124075
C160: Strength Check: | E160: =IF(E158="","",IF(ISTEXT(E158),E158,IF(MAX(E157:E158)>$D$17,"NO GOOD","OKAY"))) -> N/A (WALL) | F160: Strength Check: | H160: =IF(H158="","",IF(ISTEXT(H158),H158,IF(MAX(H157:H158)>$D$17,"NO GOOD","OKAY"))) -> OKAY
B161: NOTES: | C161: =CONCATENATE("1. Loads and load effects correspond to ",D11," load combinations.") -> 1. Loads and load effects correspond to ASD load combinations.
C162: =IF(OR(MAX(D134:E156)>$D$17,MAX(G134:H156)>$D$17),"2. Highlighted panel point loads may cause a local overstress, see notes in Ponding Instructions.","") -> 

Sheet Ponding Load Results
B2: Joist | C2: Total Distributed Load on Joist as a Function of Distance from Bottom Support (lb/ft)
B3: Number | C3: ='Ponding Analysis'!K99 -> 0' 0" | D3: ='Ponding Analysis'!L99 -> 1' 6" | E3: ='Ponding Analysis'!M99 -> 3' 0" | F3: ='Ponding Analysis'!N99 -> 4' 6" | G3: ='Ponding Analysis'!O99 -> 6' 0" | H3: ='Ponding Analysis'!P99 -> 7' 6" | I3: ='Ponding Analysis'!Q99 -> 9' 0" | J3: ='Ponding Analysis'!R99 -> 10' 6" | K3: ='Ponding Analysis'!S99 -> 12' 0" | L3: ='Ponding Analysis'!T99 -> 13' 6" | M3: ='Ponding Analysis'!U99 -> 15' 0" | N3: ='Ponding Analysis'!V99 -> 16' 6" | O3: ='Ponding Analysis'!W99 -> 18' 0" | P3: ='Ponding Analysis'!X99 -> 19' 6" | Q3: ='Ponding Analysis'!Y99 -> 21' 0" | R3: ='Ponding Analysis'!Z99 -> 22' 6" | S3: ='Ponding Analysis'!AA99 -> 24' 0" | T3: ='Ponding Analysis'!AB99 -> 25' 6" | U3: ='Ponding Analysis'!AC99 -> 27' 0" | V3: ='Ponding Analysis'!AD99 -> 28' 6" | W3: ='Ponding Analysis'!AE99 -> 30' 0"
B4: =IF('Ponding Analysis'!J100="","",'Ponding Analysis'!J100) -> 1 | C4: =IF('Ponding Analysis'!K100="","",'Ponding Analysis'!K100) -> 159.5691419 | D4: =IF('Ponding Analysis'!L100="","",'Ponding Analysis'!L100) -> 152.2080904 | E4: =IF('Ponding Analysis'!M100="","",'Ponding Analysis'!M100) -> 142.7767783 | F4: =IF('Ponding Analysis'!N100="","",'Ponding Analysis'!N100) -> 134.3610286 | G4: =IF('Ponding Analysis'!O100="","",'Ponding Analysis'!O100) -> 125.8170503 | H4: =IF('Ponding Analysis'!P100="","",'Ponding Analysis'!P100) -> 117.0265844 | I4: =IF('Ponding Analysis'!Q100="","",'Ponding Analysis'!Q100) -> 107.9321138 | J4: =IF('Ponding Analysis'!R100="","",'Ponding Analysis'!R100) -> 98.48965713 | K4: =IF('Ponding Analysis'!S100="","",'Ponding Analysis'!S100) -> 89.37554356 | L4: =IF('Ponding Analysis'!T100="","",'Ponding Analysis'!T100) -> 85.89892166 | M4: =IF('Ponding Analysis'!U100="","",'Ponding Analysis'!U100) -> 85.825 | N4: =IF('Ponding Analysis'!V100="","",'Ponding Analysis'!V100) -> 85.825 | O4: =IF('Ponding Analysis'!W100="","",'Ponding Analysis'!W100) -> 85.825 | P4: =IF('Ponding Analysis'!X100="","",'Ponding Analysis'!X100) -> 85.825 | Q4: =IF('Ponding Analysis'!Y100="","",'Ponding Analysis'!Y100) -> 85.825 | R4: =IF('Ponding Analysis'!Z100="","",'Ponding Analysis'!Z100) -> 85.825 | S4: =IF('Ponding Analysis'!AA100="","",'Ponding Analysis'!AA100) -> 85.825 | T4: =IF('Ponding Analysis'!AB100="","",'Ponding Analysis'!AB100) -> 85.825 | U4: =IF('Ponding Analysis'!AC100="","",'Ponding Analysis'!AC100) -> 85.825 | V4: =IF('Ponding Analysis'!AD100="","",'Ponding Analysis'!AD100) -> 85.825 | W4: =IF('Ponding Analysis'!AE100="","",'Ponding Analysis'!AE100) -> 85.825
B5: =IF('Ponding Analysis'!J101="","",'Ponding Analysis'!J101) -> 2 | C5: =IF('Ponding Analysis'!K101="","",'Ponding Analysis'!K101) -> 166.3652056 | D5: =IF('Ponding Analysis'!L101="","",'Ponding Analysis'!L101) -> 158.6344445 | E5: =IF('Ponding Analysis'!M101="","",'Ponding Analysis'!M101) -> 147.8535499 | F5: =IF('Ponding Analysis'!N101="","",'Ponding Analysis'!N101) -> 138.7704095 | G5: =IF('Ponding Analysis'!O101="","",'Ponding Analysis'!O101) -> 130.0068403 | H5: =IF('Ponding Analysis'!P101="","",'Ponding Analysis'!P101) -> 120.9979689 | I5: =IF('Ponding Analysis'!Q101="","",'Ponding Analysis'!Q101) -> 111.678022 | J5: =IF('Ponding Analysis'!R101="","",'Ponding Analysis'!R101) -> 102.002704 | K5: =IF('Ponding Analysis'!S101="","",'Ponding Analysis'!S101) -> 92.15926531 | L5: =IF('Ponding Analysis'!T101="","",'Ponding Analysis'!T101) -> 86.32799586 | M5: =IF('Ponding Analysis'!U101="","",'Ponding Analysis'!U101) -> 85.82502993 | N5: =IF('Ponding Analysis'!V101="","",'Ponding Analysis'!V101) -> 85.825 | O5: =IF('Ponding Analysis'!W101="","",'Ponding Analysis'!W101) -> 85.825 | P5: =IF('Ponding Analysis'!X101="","",'Ponding Analysis'!X101) -> 85.825 | Q5: =IF('Ponding Analysis'!Y101="","",'Ponding Analysis'!Y101) -> 85.825 | R5: =IF('Ponding Analysis'!Z101="","",'Ponding Analysis'!Z101) -> 85.825 | S5: =IF('Ponding Analysis'!AA101="","",'Ponding Analysis'!AA101) -> 85.825 | T5: =IF('Ponding Analysis'!AB101="","",'Ponding Analysis'!AB101) -> 85.825 | U5: =IF('Ponding Analysis'!AC101="","",'Ponding Analysis'!AC101) -> 85.825 | V5: =IF('Ponding Analysis'!AD101="","",'Ponding Analysis'!AD101) -> 85.825 | W5: =IF('Ponding Analysis'!AE101="","",'Ponding Analysis'!AE101) -> 85.825
B6: =IF('Ponding Analysis'!J102="","",'Ponding Analysis'!J102) -> 3 | C6: =IF('Ponding Analysis'!K102="","",'Ponding Analysis'!K102) -> 175.8648079 | D6: =IF('Ponding Analysis'!L102="","",'Ponding Analysis'!L102) -> 167.8599591 | E6: =IF('Ponding Analysis'!M102="","",'Ponding Analysis'!M102) -> 155.9255477 | F6: =IF('Ponding Analysis'!N102="","",'Ponding Analysis'!N102) -> 145.175868 | G6: =IF('Ponding Analysis'!O102="","",'Ponding Analysis'!O102) -> 135.9327596 | H6: =IF('Ponding Analysis'!P102="","",'Ponding Analysis'!P102) -> 126.6323106 | I6: =IF('Ponding Analysis'!Q102="","",'Ponding Analysis'!Q102) -> 117.0082071 | J6: =IF('Ponding Analysis'!R102="","",'Ponding Analysis'!R102) -> 107.0154105 | K6: =IF('Ponding Analysis'!S102="","",'Ponding Analysis'!S102) -> 96.63227144 | L6: =IF('Ponding Analysis'!T102="","",'Ponding Analysis'!T102) -> 87.82199676 | M6: =IF('Ponding Analysis'!U102="","",'Ponding Analysis'!U102) -> 85.83282459 | N6: =IF('Ponding Analysis'!V102="","",'Ponding Analysis'!V102) -> 85.825 | O6: =IF('Ponding Analysis'!W102="","",'Ponding Analysis'!W102) -> 85.825 | P6: =IF('Ponding Analysis'!X102="","",'Ponding Analysis'!X102) -> 85.825 | Q6: =IF('Ponding Analysis'!Y102="","",'Ponding Analysis'!Y102) -> 85.825 | R6: =IF('Ponding Analysis'!Z102="","",'Ponding Analysis'!Z102) -> 85.825 | S6: =IF('Ponding Analysis'!AA102="","",'Ponding Analysis'!AA102) -> 85.825 | T6: =IF('Ponding Analysis'!AB102="","",'Ponding Analysis'!AB102) -> 85.825 | U6: =IF('Ponding Analysis'!AC102="","",'Ponding Analysis'!AC102) -> 85.825 | V6: =IF('Ponding Analysis'!AD102="","",'Ponding Analysis'!AD102) -> 85.825 | W6: =IF('Ponding Analysis'!AE102="","",'Ponding Analysis'!AE102) -> 85.825
B7: =IF('Ponding Analysis'!J103="","",'Ponding Analysis'!J103) -> 4 | C7: =IF('Ponding Analysis'!K103="","",'Ponding Analysis'!K103) -> 182.6028299 | D7: =IF('Ponding Analysis'!L103="","",'Ponding Analysis'!L103) -> 174.4367882 | E7: =IF('Ponding Analysis'!M103="","",'Ponding Analysis'!M103) -> 162.1683813 | F7: =IF('Ponding Analysis'!N103="","",'Ponding Analysis'!N103) -> 150.2096309 | G7: =IF('Ponding Analysis'!O103="","",'Ponding Analysis'!O103) -> 140.168125 | H7: =IF('Ponding Analysis'!P103="","",'Ponding Analysis'!P103) -> 130.6608028 | I7: =IF('Ponding Analysis'!Q103="","",'Ponding Analysis'!Q103) -> 120.82535 | J7: =IF('Ponding Analysis'!R103="","",'Ponding Analysis'!R103) -> 110.6106413 | K7: =IF('Ponding Analysis'!S103="","",'Ponding Analysis'!S103) -> 99.98505883 | L7: =IF('Ponding Analysis'!T103="","",'Ponding Analysis'!T103) -> 89.73040356 | M7: =IF('Ponding Analysis'!U103="","",'Ponding Analysis'!U103) -> 85.89477381 | N7: =IF('Ponding Analysis'!V103="","",'Ponding Analysis'!V103) -> 85.825 | O7: =IF('Ponding Analysis'!W103="","",'Ponding Analysis'!W103) -> 85.825 | P7: =IF('Ponding Analysis'!X103="","",'Ponding Analysis'!X103) -> 85.825 | Q7: =IF('Ponding Analysis'!Y103="","",'Ponding Analysis'!Y103) -> 85.825 | R7: =IF('Ponding Analysis'!Z103="","",'Ponding Analysis'!Z103) -> 85.825 | S7: =IF('Ponding Analysis'!AA103="","",'Ponding Analysis'!AA103) -> 85.825 | T7: =IF('Ponding Analysis'!AB103="","",'Ponding Analysis'!AB103) -> 85.825 | U7: =IF('Ponding Analysis'!AC103="","",'Ponding Analysis'!AC103) -> 85.825 | V7: =IF('Ponding Analysis'!AD103="","",'Ponding Analysis'!AD103) -> 85.825 | W7: =IF('Ponding Analysis'!AE103="","",'Ponding Analysis'!AE103) -> 85.825
B8: =IF('Ponding Analysis'!J104="","",'Ponding Analysis'!J104) -> 5 | C8: =IF('Ponding Analysis'!K104="","",'Ponding Analysis'!K104) -> 185.0227121 | D8: =IF('Ponding Analysis'!L104="","",'Ponding Analysis'!L104) -> 176.7996773 | E8: =IF('Ponding Analysis'!M104="","",'Ponding Analysis'!M104) -> 164.4431246 | F8: =IF('Ponding Analysis'!N104="","",'Ponding Analysis'!N104) -> 152.169622 | G8: =IF('Ponding Analysis'!O104="","",'Ponding Analysis'!O104) -> 141.7028721 | H8: =IF('Ponding Analysis'!P104="","",'Ponding Analysis'!P104) -> 132.1114832 | I8: =IF('Ponding Analysis'!Q104="","",'Ponding Analysis'!Q104) -> 122.2006839 | J8: =IF('Ponding Analysis'!R104="","",'Ponding Analysis'!R104) -> 111.9067083 | K8: =IF('Ponding Analysis'!S104="","",'Ponding Analysis'!S104) -> 101.1979013 | L8: =IF('Ponding Analysis'!T104="","",'Ponding Analysis'!T104) -> 90.5911781 | M8: =IF('Ponding Analysis'!U104="","",'Ponding Analysis'!U104) -> 85.95784213 | N8: =IF('Ponding Analysis'!V104="","",'Ponding Analysis'!V104) -> 85.825 | O8: =IF('Ponding Analysis'!W104="","",'Ponding Analysis'!W104) -> 85.825 | P8: =IF('Ponding Analysis'!X104="","",'Ponding Analysis'!X104) -> 85.825 | Q8: =IF('Ponding Analysis'!Y104="","",'Ponding Analysis'!Y104) -> 85.825 | R8: =IF('Ponding Analysis'!Z104="","",'Ponding Analysis'!Z104) -> 85.825 | S8: =IF('Ponding Analysis'!AA104="","",'Ponding Analysis'!AA104) -> 85.825 | T8: =IF('Ponding Analysis'!AB104="","",'Ponding Analysis'!AB104) -> 85.825 | U8: =IF('Ponding Analysis'!AC104="","",'Ponding Analysis'!AC104) -> 85.825 | V8: =IF('Ponding Analysis'!AD104="","",'Ponding Analysis'!AD104) -> 85.825 | W8: =IF('Ponding Analysis'!AE104="","",'Ponding Analysis'!AE104) -> 85.825
B9: =IF('Ponding Analysis'!J105="","",'Ponding Analysis'!J105) -> 6 | C9: =IF('Ponding Analysis'!K105="","",'Ponding Analysis'!K105) -> 182.6028299 | D9: =IF('Ponding Analysis'!L105="","",'Ponding Analysis'!L105) -> 174.4367882 | E9: =IF('Ponding Analysis'!M105="","",'Ponding Analysis'!M105) -> 162.1683813 | F9: =IF('Ponding Analysis'!N105="","",'Ponding Analysis'!N105) -> 150.2096309 | G9: =IF('Ponding Analysis'!O105="","",'Ponding Analysis'!O105) -> 140.168125 | H9: =IF('Ponding Analysis'!P105="","",'Ponding Analysis'!P105) -> 130.6608028 | I9: =IF('Ponding Analysis'!Q105="","",'Ponding Analysis'!Q105) -> 120.82535 | J9: =IF('Ponding Analysis'!R105="","",'Ponding Analysis'!R105) -> 110.6106413 | K9: =IF('Ponding Analysis'!S105="","",'Ponding Analysis'!S105) -> 99.98505883 | L9: =IF('Ponding Analysis'!T105="","",'Ponding Analysis'!T105) -> 89.73040356 | M9: =IF('Ponding Analysis'!U105="","",'Ponding Analysis'!U105) -> 85.89477381 | N9: =IF('Ponding Analysis'!V105="","",'Ponding Analysis'!V105) -> 85.825 | O9: =IF('Ponding Analysis'!W105="","",'Ponding Analysis'!W105) -> 85.825 | P9: =IF('Ponding Analysis'!X105="","",'Ponding Analysis'!X105) -> 85.825 | Q9: =IF('Ponding Analysis'!Y105="","",'Ponding Analysis'!Y105) -> 85.825 | R9: =IF('Ponding Analysis'!Z105="","",'Ponding Analysis'!Z105) -> 85.825 | S9: =IF('Ponding Analysis'!AA105="","",'Ponding Analysis'!AA105) -> 85.825 | T9: =IF('Ponding Analysis'!AB105="","",'Ponding Analysis'!AB105) -> 85.825 | U9: =IF('Ponding Analysis'!AC105="","",'Ponding Analysis'!AC105) -> 85.825 | V9: =IF('Ponding Analysis'!AD105="","",'Ponding Analysis'!AD105) -> 85.825 | W9: =IF('Ponding Analysis'!AE105="","",'Ponding Analysis'!AE105) -> 85.825
B10: =IF('Ponding Analysis'!J106="","",'Ponding Analysis'!J106) -> 7 | C10: =IF('Ponding Analysis'!K106="","",'Ponding Analysis'!K106) -> 175.8648079 | D10: =IF('Ponding Analysis'!L106="","",'Ponding Analysis'!L106) -> 167.8599591 | E10: =IF('Ponding Analysis'!M106="","",'Ponding Analysis'!M106) -> 155.9255477 | F10: =IF('Ponding Analysis'!N106="","",'Ponding Analysis'!N106) -> 145.175868 | G10: =IF('Ponding Analysis'!O106="","",'Ponding Analysis'!O106) -> 135.9327596 | H10: =IF('Ponding Analysis'!P106="","",'Ponding Analysis'!P106) -> 126.6323106 | I10: =IF('Ponding Analysis'!Q106="","",'Ponding Analysis'!Q106) -> 117.0082071 | J10: =IF('Ponding Analysis'!R106="","",'Ponding Analysis'!R106) -> 107.0154105 | K10: =IF('Ponding Analysis'!S106="","",'Ponding Analysis'!S106) -> 96.63227144 | L10: =IF('Ponding Analysis'!T106="","",'Ponding Analysis'!T106) -> 87.82199676 | M10: =IF('Ponding Analysis'!U106="","",'Ponding Analysis'!U106) -> 85.83282459 | N10: =IF('Ponding Analysis'!V106="","",'Ponding Analysis'!V106) -> 85.825 | O10: =IF('Ponding Analysis'!W106="","",'Ponding Analysis'!W106) -> 85.825 | P10: =IF('Ponding Analysis'!X106="","",'Ponding Analysis'!X106) -> 85.825 | Q10: =IF('Ponding Analysis'!Y106="","",'Ponding Analysis'!Y106) -> 85.825 | R10: =IF('Ponding Analysis'!Z106="","",'Ponding Analysis'!Z106) -> 85.825 | S10: =IF('Ponding Analysis'!AA106="","",'Ponding Analysis'!AA106) -> 85.825 | T10: =IF('Ponding Analysis'!AB106="","",'Ponding Analysis'!AB106) -> 85.825 | U10: =IF('Ponding Analysis'!AC106="","",'Ponding Analysis'!AC106) -> 85.825 | V10: =IF('Ponding Analysis'!AD106="","",'Ponding Analysis'!AD106) -> 85.825 | W10: =IF('Ponding Analysis'!AE106="","",'Ponding Analysis'!AE106) -> 85.825
B11: =IF('Ponding Analysis'!J107="","",'Ponding Analysis'!J107) -> 8 | C11: =IF('Ponding Analysis'!K107="","",'Ponding Analysis'!K107) -> 166.3652056 | D11: =IF('Ponding Analysis'!L107="","",'Ponding Analysis'!L107) -> 158.6344445 | E11: =IF('Ponding Analysis'!M107="","",'Ponding Analysis'!M107) -> 147.8535499 | F11: =IF('Ponding Analysis'!N107="","",'Ponding Analysis'!N107) -> 138.7704095 | G11: =IF('Ponding Analysis'!O107="","",'Ponding Analysis'!O107) -> 130.0068403 | H11: =IF('Ponding Analysis'!P107="","",'Ponding Analysis'!P107) -> 120.9979689 | I11: =IF('Ponding Analysis'!Q107="","",'Ponding Analysis'!Q107) -> 111.678022 | J11: =IF('Ponding Analysis'!R107="","",'Ponding Analysis'!R107) -> 102.002704 | K11: =IF('Ponding Analysis'!S107="","",'Ponding Analysis'!S107) -> 92.15926531 | L11: =IF('Ponding Analysis'!T107="","",'Ponding Analysis'!T107) -> 86.32799586 | M11: =IF('Ponding Analysis'!U107="","",'Ponding Analysis'!U107) -> 85.82502993 | N11: =IF('Ponding Analysis'!V107="","",'Ponding Analysis'!V107) -> 85.825 | O11: =IF('Ponding Analysis'!W107="","",'Ponding Analysis'!W107) -> 85.825 | P11: =IF('Ponding Analysis'!X107="","",'Ponding Analysis'!X107) -> 85.825 | Q11: =IF('Ponding Analysis'!Y107="","",'Ponding Analysis'!Y107) -> 85.825 | R11: =IF('Ponding Analysis'!Z107="","",'Ponding Analysis'!Z107) -> 85.825 | S11: =IF('Ponding Analysis'!AA107="","",'Ponding Analysis'!AA107) -> 85.825 | T11: =IF('Ponding Analysis'!AB107="","",'Ponding Analysis'!AB107) -> 85.825 | U11: =IF('Ponding Analysis'!AC107="","",'Ponding Analysis'!AC107) -> 85.825 | V11: =IF('Ponding Analysis'!AD107="","",'Ponding Analysis'!AD107) -> 85.825 | W11: =IF('Ponding Analysis'!AE107="","",'Ponding Analysis'!AE107) -> 85.825
B12: =IF('Ponding Analysis'!J108="","",'Ponding Analysis'!J108) -> 9 | C12: =IF('Ponding Analysis'!K108="","",'Ponding Analysis'!K108) -> 159.5691419 | D12: =IF('Ponding Analysis'!L108="","",'Ponding Analysis'!L108) -> 152.2080904 | E12: =IF('Ponding Analysis'!M108="","",'Ponding Analysis'!M108) -> 142.7767783 | F12: =IF('Ponding Analysis'!N108="","",'Ponding Analysis'!N108) -> 134.3610286 | G12: =IF('Ponding Analysis'!O108="","",'Ponding Analysis'!O108) -> 125.8170503 | H12: =IF('Ponding Analysis'!P108="","",'Ponding Analysis'!P108) -> 117.0265844 | I12: =IF('Ponding Analysis'!Q108="","",'Ponding Analysis'!Q108) -> 107.9321138 | J12: =IF('Ponding Analysis'!R108="","",'Ponding Analysis'!R108) -> 98.48965713 | K12: =IF('Ponding Analysis'!S108="","",'Ponding Analysis'!S108) -> 89.37554356 | L12: =IF('Ponding Analysis'!T108="","",'Ponding Analysis'!T108) -> 85.89892166 | M12: =IF('Ponding Analysis'!U108="","",'Ponding Analysis'!U108) -> 85.825 | N12: =IF('Ponding Analysis'!V108="","",'Ponding Analysis'!V108) -> 85.825 | O12: =IF('Ponding Analysis'!W108="","",'Ponding Analysis'!W108) -> 85.825 | P12: =IF('Ponding Analysis'!X108="","",'Ponding Analysis'!X108) -> 85.825 | Q12: =IF('Ponding Analysis'!Y108="","",'Ponding Analysis'!Y108) -> 85.825 | R12: =IF('Ponding Analysis'!Z108="","",'Ponding Analysis'!Z108) -> 85.825 | S12: =IF('Ponding Analysis'!AA108="","",'Ponding Analysis'!AA108) -> 85.825 | T12: =IF('Ponding Analysis'!AB108="","",'Ponding Analysis'!AB108) -> 85.825 | U12: =IF('Ponding Analysis'!AC108="","",'Ponding Analysis'!AC108) -> 85.825 | V12: =IF('Ponding Analysis'!AD108="","",'Ponding Analysis'!AD108) -> 85.825 | W12: =IF('Ponding Analysis'!AE108="","",'Ponding Analysis'!AE108) -> 85.825
B13: =IF('Ponding Analysis'!J109="","",'Ponding Analysis'!J109) ->  | C13: =IF('Ponding Analysis'!K109="","",'Ponding Analysis'!K109) ->  | D13: =IF('Ponding Analysis'!L109="","",'Ponding Analysis'!L109) ->  | E13: =IF('Ponding Analysis'!M109="","",'Ponding Analysis'!M109) ->  | F13: =IF('Ponding Analysis'!N109="","",'Ponding Analysis'!N109) ->  | G13: =IF('Ponding Analysis'!O109="","",'Ponding Analysis'!O109) ->  | H13: =IF('Ponding Analysis'!P109="","",'Ponding Analysis'!P109) ->  | I13: =IF('Ponding Analysis'!Q109="","",'Ponding Analysis'!Q109) ->  | J13: =IF('Ponding Analysis'!R109="","",'Ponding Analysis'!R109) ->  | K13: =IF('Ponding Analysis'!S109="","",'Ponding Analysis'!S109) ->  | L13: =IF('Ponding Analysis'!T109="","",'Ponding Analysis'!T109) ->  | M13: =IF('Ponding Analysis'!U109="","",'Ponding Analysis'!U109) ->  | N13: =IF('Ponding Analysis'!V109="","",'Ponding Analysis'!V109) ->  | O13: =IF('Ponding Analysis'!W109="","",'Ponding Analysis'!W109) ->  | P13: =IF('Ponding Analysis'!X109="","",'Ponding Analysis'!X109) ->  | Q13: =IF('Ponding Analysis'!Y109="","",'Ponding Analysis'!Y109) ->  | R13: =IF('Ponding Analysis'!Z109="","",'Ponding Analysis'!Z109) ->  | S13: =IF('Ponding Analysis'!AA109="","",'Ponding Analysis'!AA109) ->  | T13: =IF('Ponding Analysis'!AB109="","",'Ponding Analysis'!AB109) ->  | U13: =IF('Ponding Analysis'!AC109="","",'Ponding Analysis'!AC109) ->  | V13: =IF('Ponding Analysis'!AD109="","",'Ponding Analysis'!AD109) ->  | W13: =IF('Ponding Analysis'!AE109="","",'Ponding Analysis'!AE109) -> 
B14: =IF('Ponding Analysis'!J110="","",'Ponding Analysis'!J110) ->  | C14: =IF('Ponding Analysis'!K110="","",'Ponding Analysis'!K110) ->  | D14: =IF('Ponding Analysis'!L110="","",'Ponding Analysis'!L110) ->  | E14: =IF('Ponding Analysis'!M110="","",'Ponding Analysis'!M110) ->  | F14: =IF('Ponding Analysis'!N110="","",'Ponding Analysis'!N110) ->  | G14: =IF('Ponding Analysis'!O110="","",'Ponding Analysis'!O110) ->  | H14: =IF('Ponding Analysis'!P110="","",'Ponding Analysis'!P110) ->  | I14: =IF('Ponding Analysis'!Q110="","",'Ponding Analysis'!Q110) ->  | J14: =IF('Ponding Analysis'!R110="","",'Ponding Analysis'!R110) ->  | K14: =IF('Ponding Analysis'!S110="","",'Ponding Analysis'!S110) ->  | L14: =IF('Ponding Analysis'!T110="","",'Ponding Analysis'!T110) ->  | M14: =IF('Ponding Analysis'!U110="","",'Ponding Analysis'!U110) ->  | N14: =IF('Ponding Analysis'!V110="","",'Ponding Analysis'!V110) ->  | O14: =IF('Ponding Analysis'!W110="","",'Ponding Analysis'!W110) ->  | P14: =IF('Ponding Analysis'!X110="","",'Ponding Analysis'!X110) ->  | Q14: =IF('Ponding Analysis'!Y110="","",'Ponding Analysis'!Y110) ->  | R14: =IF('Ponding Analysis'!Z110="","",'Ponding Analysis'!Z110) ->  | S14: =IF('Ponding Analysis'!AA110="","",'Ponding Analysis'!AA110) ->  | T14: =IF('Ponding Analysis'!AB110="","",'Ponding Analysis'!AB110) ->  | U14: =IF('Ponding Analysis'!AC110="","",'Ponding Analysis'!AC110) ->  | V14: =IF('Ponding Analysis'!AD110="","",'Ponding Analysis'!AD110) ->  | W14: =IF('Ponding Analysis'!AE110="","",'Ponding Analysis'!AE110) -> 
B15: =IF('Ponding Analysis'!J111="","",'Ponding Analysis'!J111) ->  | C15: =IF('Ponding Analysis'!K111="","",'Ponding Analysis'!K111) ->  | D15: =IF('Ponding Analysis'!L111="","",'Ponding Analysis'!L111) ->  | E15: =IF('Ponding Analysis'!M111="","",'Ponding Analysis'!M111) ->  | F15: =IF('Ponding Analysis'!N111="","",'Ponding Analysis'!N111) ->  | G15: =IF('Ponding Analysis'!O111="","",'Ponding Analysis'!O111) ->  | H15: =IF('Ponding Analysis'!P111="","",'Ponding Analysis'!P111) ->  | I15: =IF('Ponding Analysis'!Q111="","",'Ponding Analysis'!Q111) ->  | J15: =IF('Ponding Analysis'!R111="","",'Ponding Analysis'!R111) ->  | K15: =IF('Ponding Analysis'!S111="","",'Ponding Analysis'!S111) ->  | L15: =IF('Ponding Analysis'!T111="","",'Ponding Analysis'!T111) ->  | M15: =IF('Ponding Analysis'!U111="","",'Ponding Analysis'!U111) ->  | N15: =IF('Ponding Analysis'!V111="","",'Ponding Analysis'!V111) ->  | O15: =IF('Ponding Analysis'!W111="","",'Ponding Analysis'!W111) ->  | P15: =IF('Ponding Analysis'!X111="","",'Ponding Analysis'!X111) ->  | Q15: =IF('Ponding Analysis'!Y111="","",'Ponding Analysis'!Y111) ->  | R15: =IF('Ponding Analysis'!Z111="","",'Ponding Analysis'!Z111) ->  | S15: =IF('Ponding Analysis'!AA111="","",'Ponding Analysis'!AA111) ->  | T15: =IF('Ponding Analysis'!AB111="","",'Ponding Analysis'!AB111) ->  | U15: =IF('Ponding Analysis'!AC111="","",'Ponding Analysis'!AC111) ->  | V15: =IF('Ponding Analysis'!AD111="","",'Ponding Analysis'!AD111) ->  | W15: =IF('Ponding Analysis'!AE111="","",'Ponding Analysis'!AE111) -> 
B16: =IF('Ponding Analysis'!J112="","",'Ponding Analysis'!J112) ->  | C16: =IF('Ponding Analysis'!K112="","",'Ponding Analysis'!K112) ->  | D16: =IF('Ponding Analysis'!L112="","",'Ponding Analysis'!L112) ->  | E16: =IF('Ponding Analysis'!M112="","",'Ponding Analysis'!M112) ->  | F16: =IF('Ponding Analysis'!N112="","",'Ponding Analysis'!N112) ->  | G16: =IF('Ponding Analysis'!O112="","",'Ponding Analysis'!O112) ->  | H16: =IF('Ponding Analysis'!P112="","",'Ponding Analysis'!P112) ->  | I16: =IF('Ponding Analysis'!Q112="","",'Ponding Analysis'!Q112) ->  | J16: =IF('Ponding Analysis'!R112="","",'Ponding Analysis'!R112) ->  | K16: =IF('Ponding Analysis'!S112="","",'Ponding Analysis'!S112) ->  | L16: =IF('Ponding Analysis'!T112="","",'Ponding Analysis'!T112) ->  | M16: =IF('Ponding Analysis'!U112="","",'Ponding Analysis'!U112) ->  | N16: =IF('Ponding Analysis'!V112="","",'Ponding Analysis'!V112) ->  | O16: =IF('Ponding Analysis'!W112="","",'Ponding Analysis'!W112) ->  | P16: =IF('Ponding Analysis'!X112="","",'Ponding Analysis'!X112) ->  | Q16: =IF('Ponding Analysis'!Y112="","",'Ponding Analysis'!Y112) ->  | R16: =IF('Ponding Analysis'!Z112="","",'Ponding Analysis'!Z112) ->  | S16: =IF('Ponding Analysis'!AA112="","",'Ponding Analysis'!AA112) ->  | T16: =IF('Ponding Analysis'!AB112="","",'Ponding Analysis'!AB112) ->  | U16: =IF('Ponding Analysis'!AC112="","",'Ponding Analysis'!AC112) ->  | V16: =IF('Ponding Analysis'!AD112="","",'Ponding Analysis'!AD112) ->  | W16: =IF('Ponding Analysis'!AE112="","",'Ponding Analysis'!AE112) -> 
B17: =IF('Ponding Analysis'!J113="","",'Ponding Analysis'!J113) ->  | C17: =IF('Ponding Analysis'!K113="","",'Ponding Analysis'!K113) ->  | D17: =IF('Ponding Analysis'!L113="","",'Ponding Analysis'!L113) ->  | E17: =IF('Ponding Analysis'!M113="","",'Ponding Analysis'!M113) ->  | F17: =IF('Ponding Analysis'!N113="","",'Ponding Analysis'!N113) ->  | G17: =IF('Ponding Analysis'!O113="","",'Ponding Analysis'!O113) ->  | H17: =IF('Ponding Analysis'!P113="","",'Ponding Analysis'!P113) ->  | I17: =IF('Ponding Analysis'!Q113="","",'Ponding Analysis'!Q113) ->  | J17: =IF('Ponding Analysis'!R113="","",'Ponding Analysis'!R113) ->  | K17: =IF('Ponding Analysis'!S113="","",'Ponding Analysis'!S113) ->  | L17: =IF('Ponding Analysis'!T113="","",'Ponding Analysis'!T113) ->  | M17: =IF('Ponding Analysis'!U113="","",'Ponding Analysis'!U113) ->  | N17: =IF('Ponding Analysis'!V113="","",'Ponding Analysis'!V113) ->  | O17: =IF('Ponding Analysis'!W113="","",'Ponding Analysis'!W113) ->  | P17: =IF('Ponding Analysis'!X113="","",'Ponding Analysis'!X113) ->  | Q17: =IF('Ponding Analysis'!Y113="","",'Ponding Analysis'!Y113) ->  | R17: =IF('Ponding Analysis'!Z113="","",'Ponding Analysis'!Z113) ->  | S17: =IF('Ponding Analysis'!AA113="","",'Ponding Analysis'!AA113) ->  | T17: =IF('Ponding Analysis'!AB113="","",'Ponding Analysis'!AB113) ->  | U17: =IF('Ponding Analysis'!AC113="","",'Ponding Analysis'!AC113) ->  | V17: =IF('Ponding Analysis'!AD113="","",'Ponding Analysis'!AD113) ->  | W17: =IF('Ponding Analysis'!AE113="","",'Ponding Analysis'!AE113) -> 
B18: =IF('Ponding Analysis'!J114="","",'Ponding Analysis'!J114) ->  | C18: =IF('Ponding Analysis'!K114="","",'Ponding Analysis'!K114) ->  | D18: =IF('Ponding Analysis'!L114="","",'Ponding Analysis'!L114) ->  | E18: =IF('Ponding Analysis'!M114="","",'Ponding Analysis'!M114) ->  | F18: =IF('Ponding Analysis'!N114="","",'Ponding Analysis'!N114) ->  | G18: =IF('Ponding Analysis'!O114="","",'Ponding Analysis'!O114) ->  | H18: =IF('Ponding Analysis'!P114="","",'Ponding Analysis'!P114) ->  | I18: =IF('Ponding Analysis'!Q114="","",'Ponding Analysis'!Q114) ->  | J18: =IF('Ponding Analysis'!R114="","",'Ponding Analysis'!R114) ->  | K18: =IF('Ponding Analysis'!S114="","",'Ponding Analysis'!S114) ->  | L18: =IF('Ponding Analysis'!T114="","",'Ponding Analysis'!T114) ->  | M18: =IF('Ponding Analysis'!U114="","",'Ponding Analysis'!U114) ->  | N18: =IF('Ponding Analysis'!V114="","",'Ponding Analysis'!V114) ->  | O18: =IF('Ponding Analysis'!W114="","",'Ponding Analysis'!W114) ->  | P18: =IF('Ponding Analysis'!X114="","",'Ponding Analysis'!X114) ->  | Q18: =IF('Ponding Analysis'!Y114="","",'Ponding Analysis'!Y114) ->  | R18: =IF('Ponding Analysis'!Z114="","",'Ponding Analysis'!Z114) ->  | S18: =IF('Ponding Analysis'!AA114="","",'Ponding Analysis'!AA114) ->  | T18: =IF('Ponding Analysis'!AB114="","",'Ponding Analysis'!AB114) ->  | U18: =IF('Ponding Analysis'!AC114="","",'Ponding Analysis'!AC114) ->  | V18: =IF('Ponding Analysis'!AD114="","",'Ponding Analysis'!AD114) ->  | W18: =IF('Ponding Analysis'!AE114="","",'Ponding Analysis'!AE114) -> 
B19: =IF('Ponding Analysis'!J115="","",'Ponding Analysis'!J115) ->  | C19: =IF('Ponding Analysis'!K115="","",'Ponding Analysis'!K115) ->  | D19: =IF('Ponding Analysis'!L115="","",'Ponding Analysis'!L115) ->  | E19: =IF('Ponding Analysis'!M115="","",'Ponding Analysis'!M115) ->  | F19: =IF('Ponding Analysis'!N115="","",'Ponding Analysis'!N115) ->  | G19: =IF('Ponding Analysis'!O115="","",'Ponding Analysis'!O115) ->  | H19: =IF('Ponding Analysis'!P115="","",'Ponding Analysis'!P115) ->  | I19: =IF('Ponding Analysis'!Q115="","",'Ponding Analysis'!Q115) ->  | J19: =IF('Ponding Analysis'!R115="","",'Ponding Analysis'!R115) ->  | K19: =IF('Ponding Analysis'!S115="","",'Ponding Analysis'!S115) ->  | L19: =IF('Ponding Analysis'!T115="","",'Ponding Analysis'!T115) ->  | M19: =IF('Ponding Analysis'!U115="","",'Ponding Analysis'!U115) ->  | N19: =IF('Ponding Analysis'!V115="","",'Ponding Analysis'!V115) ->  | O19: =IF('Ponding Analysis'!W115="","",'Ponding Analysis'!W115) ->  | P19: =IF('Ponding Analysis'!X115="","",'Ponding Analysis'!X115) ->  | Q19: =IF('Ponding Analysis'!Y115="","",'Ponding Analysis'!Y115) ->  | R19: =IF('Ponding Analysis'!Z115="","",'Ponding Analysis'!Z115) ->  | S19: =IF('Ponding Analysis'!AA115="","",'Ponding Analysis'!AA115) ->  | T19: =IF('Ponding Analysis'!AB115="","",'Ponding Analysis'!AB115) ->  | U19: =IF('Ponding Analysis'!AC115="","",'Ponding Analysis'!AC115) ->  | V19: =IF('Ponding Analysis'!AD115="","",'Ponding Analysis'!AD115) ->  | W19: =IF('Ponding Analysis'!AE115="","",'Ponding Analysis'!AE115) -> 
B20: =IF('Ponding Analysis'!J116="","",'Ponding Analysis'!J116) ->  | C20: =IF('Ponding Analysis'!K116="","",'Ponding Analysis'!K116) ->  | D20: =IF('Ponding Analysis'!L116="","",'Ponding Analysis'!L116) ->  | E20: =IF('Ponding Analysis'!M116="","",'Ponding Analysis'!M116) ->  | F20: =IF('Ponding Analysis'!N116="","",'Ponding Analysis'!N116) ->  | G20: =IF('Ponding Analysis'!O116="","",'Ponding Analysis'!O116) ->  | H20: =IF('Ponding Analysis'!P116="","",'Ponding Analysis'!P116) ->  | I20: =IF('Ponding Analysis'!Q116="","",'Ponding Analysis'!Q116) ->  | J20: =IF('Ponding Analysis'!R116="","",'Ponding Analysis'!R116) ->  | K20: =IF('Ponding Analysis'!S116="","",'Ponding Analysis'!S116) ->  | L20: =IF('Ponding Analysis'!T116="","",'Ponding Analysis'!T116) ->  | M20: =IF('Ponding Analysis'!U116="","",'Ponding Analysis'!U116) ->  | N20: =IF('Ponding Analysis'!V116="","",'Ponding Analysis'!V116) ->  | O20: =IF('Ponding Analysis'!W116="","",'Ponding Analysis'!W116) ->  | P20: =IF('Ponding Analysis'!X116="","",'Ponding Analysis'!X116) ->  | Q20: =IF('Ponding Analysis'!Y116="","",'Ponding Analysis'!Y116) ->  | R20: =IF('Ponding Analysis'!Z116="","",'Ponding Analysis'!Z116) ->  | S20: =IF('Ponding Analysis'!AA116="","",'Ponding Analysis'!AA116) ->  | T20: =IF('Ponding Analysis'!AB116="","",'Ponding Analysis'!AB116) ->  | U20: =IF('Ponding Analysis'!AC116="","",'Ponding Analysis'!AC116) ->  | V20: =IF('Ponding Analysis'!AD116="","",'Ponding Analysis'!AD116) ->  | W20: =IF('Ponding Analysis'!AE116="","",'Ponding Analysis'!AE116) -> 
B21: =IF('Ponding Analysis'!J117="","",'Ponding Analysis'!J117) ->  | C21: =IF('Ponding Analysis'!K117="","",'Ponding Analysis'!K117) ->  | D21: =IF('Ponding Analysis'!L117="","",'Ponding Analysis'!L117) ->  | E21: =IF('Ponding Analysis'!M117="","",'Ponding Analysis'!M117) ->  | F21: =IF('Ponding Analysis'!N117="","",'Ponding Analysis'!N117) ->  | G21: =IF('Ponding Analysis'!O117="","",'Ponding Analysis'!O117) ->  | H21: =IF('Ponding Analysis'!P117="","",'Ponding Analysis'!P117) ->  | I21: =IF('Ponding Analysis'!Q117="","",'Ponding Analysis'!Q117) ->  | J21: =IF('Ponding Analysis'!R117="","",'Ponding Analysis'!R117) ->  | K21: =IF('Ponding Analysis'!S117="","",'Ponding Analysis'!S117) ->  | L21: =IF('Ponding Analysis'!T117="","",'Ponding Analysis'!T117) ->  | M21: =IF('Ponding Analysis'!U117="","",'Ponding Analysis'!U117) ->  | N21: =IF('Ponding Analysis'!V117="","",'Ponding Analysis'!V117) ->  | O21: =IF('Ponding Analysis'!W117="","",'Ponding Analysis'!W117) ->  | P21: =IF('Ponding Analysis'!X117="","",'Ponding Analysis'!X117) ->  | Q21: =IF('Ponding Analysis'!Y117="","",'Ponding Analysis'!Y117) ->  | R21: =IF('Ponding Analysis'!Z117="","",'Ponding Analysis'!Z117) ->  | S21: =IF('Ponding Analysis'!AA117="","",'Ponding Analysis'!AA117) ->  | T21: =IF('Ponding Analysis'!AB117="","",'Ponding Analysis'!AB117) ->  | U21: =IF('Ponding Analysis'!AC117="","",'Ponding Analysis'!AC117) ->  | V21: =IF('Ponding Analysis'!AD117="","",'Ponding Analysis'!AD117) ->  | W21: =IF('Ponding Analysis'!AE117="","",'Ponding Analysis'!AE117) -> 
B22: =IF('Ponding Analysis'!J118="","",'Ponding Analysis'!J118) ->  | C22: =IF('Ponding Analysis'!K118="","",'Ponding Analysis'!K118) ->  | D22: =IF('Ponding Analysis'!L118="","",'Ponding Analysis'!L118) ->  | E22: =IF('Ponding Analysis'!M118="","",'Ponding Analysis'!M118) ->  | F22: =IF('Ponding Analysis'!N118="","",'Ponding Analysis'!N118) ->  | G22: =IF('Ponding Analysis'!O118="","",'Ponding Analysis'!O118) ->  | H22: =IF('Ponding Analysis'!P118="","",'Ponding Analysis'!P118) ->  | I22: =IF('Ponding Analysis'!Q118="","",'Ponding Analysis'!Q118) ->  | J22: =IF('Ponding Analysis'!R118="","",'Ponding Analysis'!R118) ->  | K22: =IF('Ponding Analysis'!S118="","",'Ponding Analysis'!S118) ->  | L22: =IF('Ponding Analysis'!T118="","",'Ponding Analysis'!T118) ->  | M22: =IF('Ponding Analysis'!U118="","",'Ponding Analysis'!U118) ->  | N22: =IF('Ponding Analysis'!V118="","",'Ponding Analysis'!V118) ->  | O22: =IF('Ponding Analysis'!W118="","",'Ponding Analysis'!W118) ->  | P22: =IF('Ponding Analysis'!X118="","",'Ponding Analysis'!X118) ->  | Q22: =IF('Ponding Analysis'!Y118="","",'Ponding Analysis'!Y118) ->  | R22: =IF('Ponding Analysis'!Z118="","",'Ponding Analysis'!Z118) ->  | S22: =IF('Ponding Analysis'!AA118="","",'Ponding Analysis'!AA118) ->  | T22: =IF('Ponding Analysis'!AB118="","",'Ponding Analysis'!AB118) ->  | U22: =IF('Ponding Analysis'!AC118="","",'Ponding Analysis'!AC118) ->  | V22: =IF('Ponding Analysis'!AD118="","",'Ponding Analysis'!AD118) ->  | W22: =IF('Ponding Analysis'!AE118="","",'Ponding Analysis'!AE118) -> 
B23: =IF('Ponding Analysis'!J119="","",'Ponding Analysis'!J119) ->  | C23: =IF('Ponding Analysis'!K119="","",'Ponding Analysis'!K119) ->  | D23: =IF('Ponding Analysis'!L119="","",'Ponding Analysis'!L119) ->  | E23: =IF('Ponding Analysis'!M119="","",'Ponding Analysis'!M119) ->  | F23: =IF('Ponding Analysis'!N119="","",'Ponding Analysis'!N119) ->  | G23: =IF('Ponding Analysis'!O119="","",'Ponding Analysis'!O119) ->  | H23: =IF('Ponding Analysis'!P119="","",'Ponding Analysis'!P119) ->  | I23: =IF('Ponding Analysis'!Q119="","",'Ponding Analysis'!Q119) ->  | J23: =IF('Ponding Analysis'!R119="","",'Ponding Analysis'!R119) ->  | K23: =IF('Ponding Analysis'!S119="","",'Ponding Analysis'!S119) ->  | L23: =IF('Ponding Analysis'!T119="","",'Ponding Analysis'!T119) ->  | M23: =IF('Ponding Analysis'!U119="","",'Ponding Analysis'!U119) ->  | N23: =IF('Ponding Analysis'!V119="","",'Ponding Analysis'!V119) ->  | O23: =IF('Ponding Analysis'!W119="","",'Ponding Analysis'!W119) ->  | P23: =IF('Ponding Analysis'!X119="","",'Ponding Analysis'!X119) ->  | Q23: =IF('Ponding Analysis'!Y119="","",'Ponding Analysis'!Y119) ->  | R23: =IF('Ponding Analysis'!Z119="","",'Ponding Analysis'!Z119) ->  | S23: =IF('Ponding Analysis'!AA119="","",'Ponding Analysis'!AA119) ->  | T23: =IF('Ponding Analysis'!AB119="","",'Ponding Analysis'!AB119) ->  | U23: =IF('Ponding Analysis'!AC119="","",'Ponding Analysis'!AC119) ->  | V23: =IF('Ponding Analysis'!AD119="","",'Ponding Analysis'!AD119) ->  | W23: =IF('Ponding Analysis'!AE119="","",'Ponding Analysis'!AE119) -> 
B24: =IF('Ponding Analysis'!J120="","",'Ponding Analysis'!J120) ->  | C24: =IF('Ponding Analysis'!K120="","",'Ponding Analysis'!K120) ->  | D24: =IF('Ponding Analysis'!L120="","",'Ponding Analysis'!L120) ->  | E24: =IF('Ponding Analysis'!M120="","",'Ponding Analysis'!M120) ->  | F24: =IF('Ponding Analysis'!N120="","",'Ponding Analysis'!N120) ->  | G24: =IF('Ponding Analysis'!O120="","",'Ponding Analysis'!O120) ->  | H24: =IF('Ponding Analysis'!P120="","",'Ponding Analysis'!P120) ->  | I24: =IF('Ponding Analysis'!Q120="","",'Ponding Analysis'!Q120) ->  | J24: =IF('Ponding Analysis'!R120="","",'Ponding Analysis'!R120) ->  | K24: =IF('Ponding Analysis'!S120="","",'Ponding Analysis'!S120) ->  | L24: =IF('Ponding Analysis'!T120="","",'Ponding Analysis'!T120) ->  | M24: =IF('Ponding Analysis'!U120="","",'Ponding Analysis'!U120) ->  | N24: =IF('Ponding Analysis'!V120="","",'Ponding Analysis'!V120) ->  | O24: =IF('Ponding Analysis'!W120="","",'Ponding Analysis'!W120) ->  | P24: =IF('Ponding Analysis'!X120="","",'Ponding Analysis'!X120) ->  | Q24: =IF('Ponding Analysis'!Y120="","",'Ponding Analysis'!Y120) ->  | R24: =IF('Ponding Analysis'!Z120="","",'Ponding Analysis'!Z120) ->  | S24: =IF('Ponding Analysis'!AA120="","",'Ponding Analysis'!AA120) ->  | T24: =IF('Ponding Analysis'!AB120="","",'Ponding Analysis'!AB120) ->  | U24: =IF('Ponding Analysis'!AC120="","",'Ponding Analysis'!AC120) ->  | V24: =IF('Ponding Analysis'!AD120="","",'Ponding Analysis'!AD120) ->  | W24: =IF('Ponding Analysis'!AE120="","",'Ponding Analysis'!AE120) -> 
B25: =IF('Ponding Analysis'!J121="","",'Ponding Analysis'!J121) ->  | C25: =IF('Ponding Analysis'!K121="","",'Ponding Analysis'!K121) ->  | D25: =IF('Ponding Analysis'!L121="","",'Ponding Analysis'!L121) ->  | E25: =IF('Ponding Analysis'!M121="","",'Ponding Analysis'!M121) ->  | F25: =IF('Ponding Analysis'!N121="","",'Ponding Analysis'!N121) ->  | G25: =IF('Ponding Analysis'!O121="","",'Ponding Analysis'!O121) ->  | H25: =IF('Ponding Analysis'!P121="","",'Ponding Analysis'!P121) ->  | I25: =IF('Ponding Analysis'!Q121="","",'Ponding Analysis'!Q121) ->  | J25: =IF('Ponding Analysis'!R121="","",'Ponding Analysis'!R121) ->  | K25: =IF('Ponding Analysis'!S121="","",'Ponding Analysis'!S121) ->  | L25: =IF('Ponding Analysis'!T121="","",'Ponding Analysis'!T121) ->  | M25: =IF('Ponding Analysis'!U121="","",'Ponding Analysis'!U121) ->  | N25: =IF('Ponding Analysis'!V121="","",'Ponding Analysis'!V121) ->  | O25: =IF('Ponding Analysis'!W121="","",'Ponding Analysis'!W121) ->  | P25: =IF('Ponding Analysis'!X121="","",'Ponding Analysis'!X121) ->  | Q25: =IF('Ponding Analysis'!Y121="","",'Ponding Analysis'!Y121) ->  | R25: =IF('Ponding Analysis'!Z121="","",'Ponding Analysis'!Z121) ->  | S25: =IF('Ponding Analysis'!AA121="","",'Ponding Analysis'!AA121) ->  | T25: =IF('Ponding Analysis'!AB121="","",'Ponding Analysis'!AB121) ->  | U25: =IF('Ponding Analysis'!AC121="","",'Ponding Analysis'!AC121) ->  | V25: =IF('Ponding Analysis'!AD121="","",'Ponding Analysis'!AD121) ->  | W25: =IF('Ponding Analysis'!AE121="","",'Ponding Analysis'!AE121) -> 
B26: =IF('Ponding Analysis'!J122="","",'Ponding Analysis'!J122) ->  | C26: =IF('Ponding Analysis'!K122="","",'Ponding Analysis'!K122) ->  | D26: =IF('Ponding Analysis'!L122="","",'Ponding Analysis'!L122) ->  | E26: =IF('Ponding Analysis'!M122="","",'Ponding Analysis'!M122) ->  | F26: =IF('Ponding Analysis'!N122="","",'Ponding Analysis'!N122) ->  | G26: =IF('Ponding Analysis'!O122="","",'Ponding Analysis'!O122) ->  | H26: =IF('Ponding Analysis'!P122="","",'Ponding Analysis'!P122) ->  | I26: =IF('Ponding Analysis'!Q122="","",'Ponding Analysis'!Q122) ->  | J26: =IF('Ponding Analysis'!R122="","",'Ponding Analysis'!R122) ->  | K26: =IF('Ponding Analysis'!S122="","",'Ponding Analysis'!S122) ->  | L26: =IF('Ponding Analysis'!T122="","",'Ponding Analysis'!T122) ->  | M26: =IF('Ponding Analysis'!U122="","",'Ponding Analysis'!U122) ->  | N26: =IF('Ponding Analysis'!V122="","",'Ponding Analysis'!V122) ->  | O26: =IF('Ponding Analysis'!W122="","",'Ponding Analysis'!W122) ->  | P26: =IF('Ponding Analysis'!X122="","",'Ponding Analysis'!X122) ->  | Q26: =IF('Ponding Analysis'!Y122="","",'Ponding Analysis'!Y122) ->  | R26: =IF('Ponding Analysis'!Z122="","",'Ponding Analysis'!Z122) ->  | S26: =IF('Ponding Analysis'!AA122="","",'Ponding Analysis'!AA122) ->  | T26: =IF('Ponding Analysis'!AB122="","",'Ponding Analysis'!AB122) ->  | U26: =IF('Ponding Analysis'!AC122="","",'Ponding Analysis'!AC122) ->  | V26: =IF('Ponding Analysis'!AD122="","",'Ponding Analysis'!AD122) ->  | W26: =IF('Ponding Analysis'!AE122="","",'Ponding Analysis'!AE122) -> 
B27: =IF('Ponding Analysis'!J123="","",'Ponding Analysis'!J123) ->  | C27: =IF('Ponding Analysis'!K123="","",'Ponding Analysis'!K123) ->  | D27: =IF('Ponding Analysis'!L123="","",'Ponding Analysis'!L123) ->  | E27: =IF('Ponding Analysis'!M123="","",'Ponding Analysis'!M123) ->  | F27: =IF('Ponding Analysis'!N123="","",'Ponding Analysis'!N123) ->  | G27: =IF('Ponding Analysis'!O123="","",'Ponding Analysis'!O123) ->  | H27: =IF('Ponding Analysis'!P123="","",'Ponding Analysis'!P123) ->  | I27: =IF('Ponding Analysis'!Q123="","",'Ponding Analysis'!Q123) ->  | J27: =IF('Ponding Analysis'!R123="","",'Ponding Analysis'!R123) ->  | K27: =IF('Ponding Analysis'!S123="","",'Ponding Analysis'!S123) ->  | L27: =IF('Ponding Analysis'!T123="","",'Ponding Analysis'!T123) ->  | M27: =IF('Ponding Analysis'!U123="","",'Ponding Analysis'!U123) ->  | N27: =IF('Ponding Analysis'!V123="","",'Ponding Analysis'!V123) ->  | O27: =IF('Ponding Analysis'!W123="","",'Ponding Analysis'!W123) ->  | P27: =IF('Ponding Analysis'!X123="","",'Ponding Analysis'!X123) ->  | Q27: =IF('Ponding Analysis'!Y123="","",'Ponding Analysis'!Y123) ->  | R27: =IF('Ponding Analysis'!Z123="","",'Ponding Analysis'!Z123) ->  | S27: =IF('Ponding Analysis'!AA123="","",'Ponding Analysis'!AA123) ->  | T27: =IF('Ponding Analysis'!AB123="","",'Ponding Analysis'!AB123) ->  | U27: =IF('Ponding Analysis'!AC123="","",'Ponding Analysis'!AC123) ->  | V27: =IF('Ponding Analysis'!AD123="","",'Ponding Analysis'!AD123) ->  | W27: =IF('Ponding Analysis'!AE123="","",'Ponding Analysis'!AE123) -> 
B28: =IF('Ponding Analysis'!J124="","",'Ponding Analysis'!J124) ->  | C28: =IF('Ponding Analysis'!K124="","",'Ponding Analysis'!K124) ->  | D28: =IF('Ponding Analysis'!L124="","",'Ponding Analysis'!L124) ->  | E28: =IF('Ponding Analysis'!M124="","",'Ponding Analysis'!M124) ->  | F28: =IF('Ponding Analysis'!N124="","",'Ponding Analysis'!N124) ->  | G28: =IF('Ponding Analysis'!O124="","",'Ponding Analysis'!O124) ->  | H28: =IF('Ponding Analysis'!P124="","",'Ponding Analysis'!P124) ->  | I28: =IF('Ponding Analysis'!Q124="","",'Ponding Analysis'!Q124) ->  | J28: =IF('Ponding Analysis'!R124="","",'Ponding Analysis'!R124) ->  | K28: =IF('Ponding Analysis'!S124="","",'Ponding Analysis'!S124) ->  | L28: =IF('Ponding Analysis'!T124="","",'Ponding Analysis'!T124) ->  | M28: =IF('Ponding Analysis'!U124="","",'Ponding Analysis'!U124) ->  | N28: =IF('Ponding Analysis'!V124="","",'Ponding Analysis'!V124) ->  | O28: =IF('Ponding Analysis'!W124="","",'Ponding Analysis'!W124) ->  | P28: =IF('Ponding Analysis'!X124="","",'Ponding Analysis'!X124) ->  | Q28: =IF('Ponding Analysis'!Y124="","",'Ponding Analysis'!Y124) ->  | R28: =IF('Ponding Analysis'!Z124="","",'Ponding Analysis'!Z124) ->  | S28: =IF('Ponding Analysis'!AA124="","",'Ponding Analysis'!AA124) ->  | T28: =IF('Ponding Analysis'!AB124="","",'Ponding Analysis'!AB124) ->  | U28: =IF('Ponding Analysis'!AC124="","",'Ponding Analysis'!AC124) ->  | V28: =IF('Ponding Analysis'!AD124="","",'Ponding Analysis'!AD124) ->  | W28: =IF('Ponding Analysis'!AE124="","",'Ponding Analysis'!AE124) -> 
B29: NOTES: | C29: =IF('Ponding Analysis'!K125="","",'Ponding Analysis'!K125) -> 1. Loads correspond to ASD load combinations.
C30: =IF('Ponding Analysis'!K126="","",'Ponding Analysis'!K126) -> 
B33: Joist | C33: Total Distributed Load in Excess of Allowable Load on Joist as a Function of Distance from Bottom Support (lb/ft)
B34: Number | C34: =C3 -> 0' 0" | D34: =D3 -> 1' 6" | E34: 3' 0" | F34: 4' 6" | G34: 6' 0" | H34: 7' 6" | I34: 9' 0" | J34: 10' 6" | K34: 12' 0" | L34: 13' 6" | M34: 15' 0" | N34: 16' 6" | O34: 18' 0" | P34: 19' 6" | Q34: 21' 0" | R34: 22' 6" | S34: 24' 0" | T34: 25' 6" | U34: 27' 0" | V34: 28' 6" | W34: 30' 0"
B35: =IF(B4="","",B4) -> 1 | C35: =IF(C4="","",IF(C4>'Ponding Analysis'!$D$15,C4-'Ponding Analysis'!$D$15,"")) ->  | D35: =IF(D4="","",IF(D4>'Ponding Analysis'!$D$15,D4-'Ponding Analysis'!$D$15,"")) ->  | E35: =IF(E4="","",IF(E4>'Ponding Analysis'!$D$15,E4-'Ponding Analysis'!$D$15,"")) ->  | F35: =IF(F4="","",IF(F4>'Ponding Analysis'!$D$15,F4-'Ponding Analysis'!$D$15,"")) ->  | G35: =IF(G4="","",IF(G4>'Ponding Analysis'!$D$15,G4-'Ponding Analysis'!$D$15,"")) ->  | H35: =IF(H4="","",IF(H4>'Ponding Analysis'!$D$15,H4-'Ponding Analysis'!$D$15,"")) ->  | I35: =IF(I4="","",IF(I4>'Ponding Analysis'!$D$15,I4-'Ponding Analysis'!$D$15,"")) ->  | J35: =IF(J4="","",IF(J4>'Ponding Analysis'!$D$15,J4-'Ponding Analysis'!$D$15,"")) ->  | K35: =IF(K4="","",IF(K4>'Ponding Analysis'!$D$15,K4-'Ponding Analysis'!$D$15,"")) ->  | L35: =IF(L4="","",IF(L4>'Ponding Analysis'!$D$15,L4-'Ponding Analysis'!$D$15,"")) ->  | M35: =IF(M4="","",IF(M4>'Ponding Analysis'!$D$15,M4-'Ponding Analysis'!$D$15,"")) ->  | N35: =IF(N4="","",IF(N4>'Ponding Analysis'!$D$15,N4-'Ponding Analysis'!$D$15,"")) ->  | O35: =IF(O4="","",IF(O4>'Ponding Analysis'!$D$15,O4-'Ponding Analysis'!$D$15,"")) ->  | P35: =IF(P4="","",IF(P4>'Ponding Analysis'!$D$15,P4-'Ponding Analysis'!$D$15,"")) ->  | Q35: =IF(Q4="","",IF(Q4>'Ponding Analysis'!$D$15,Q4-'Ponding Analysis'!$D$15,"")) ->  | R35: =IF(R4="","",IF(R4>'Ponding Analysis'!$D$15,R4-'Ponding Analysis'!$D$15,"")) ->  | S35: =IF(S4="","",IF(S4>'Ponding Analysis'!$D$15,S4-'Ponding Analysis'!$D$15,"")) ->  | T35: =IF(T4="","",IF(T4>'Ponding Analysis'!$D$15,T4-'Ponding Analysis'!$D$15,"")) ->  | U35: =IF(U4="","",IF(U4>'Ponding Analysis'!$D$15,U4-'Ponding Analysis'!$D$15,"")) ->  | V35: =IF(V4="","",IF(V4>'Ponding Analysis'!$D$15,V4-'Ponding Analysis'!$D$15,"")) ->  | W35: =IF(W4="","",IF(W4>'Ponding Analysis'!$D$15,W4-'Ponding Analysis'!$D$15,"")) -> 
B36: =IF(B5="","",B5) -> 2 | C36: =IF(C5="","",IF(C5>'Ponding Analysis'!$D$15,C5-'Ponding Analysis'!$D$15,"")) ->  | D36: =IF(D5="","",IF(D5>'Ponding Analysis'!$D$15,D5-'Ponding Analysis'!$D$15,"")) ->  | E36: =IF(E5="","",IF(E5>'Ponding Analysis'!$D$15,E5-'Ponding Analysis'!$D$15,"")) ->  | F36: =IF(F5="","",IF(F5>'Ponding Analysis'!$D$15,F5-'Ponding Analysis'!$D$15,"")) ->  | G36: =IF(G5="","",IF(G5>'Ponding Analysis'!$D$15,G5-'Ponding Analysis'!$D$15,"")) ->  | H36: =IF(H5="","",IF(H5>'Ponding Analysis'!$D$15,H5-'Ponding Analysis'!$D$15,"")) ->  | I36: =IF(I5="","",IF(I5>'Ponding Analysis'!$D$15,I5-'Ponding Analysis'!$D$15,"")) ->  | J36: =IF(J5="","",IF(J5>'Ponding Analysis'!$D$15,J5-'Ponding Analysis'!$D$15,"")) ->  | K36: =IF(K5="","",IF(K5>'Ponding Analysis'!$D$15,K5-'Ponding Analysis'!$D$15,"")) ->  | L36: =IF(L5="","",IF(L5>'Ponding Analysis'!$D$15,L5-'Ponding Analysis'!$D$15,"")) ->  | M36: =IF(M5="","",IF(M5>'Ponding Analysis'!$D$15,M5-'Ponding Analysis'!$D$15,"")) ->  | N36: =IF(N5="","",IF(N5>'Ponding Analysis'!$D$15,N5-'Ponding Analysis'!$D$15,"")) ->  | O36: =IF(O5="","",IF(O5>'Ponding Analysis'!$D$15,O5-'Ponding Analysis'!$D$15,"")) ->  | P36: =IF(P5="","",IF(P5>'Ponding Analysis'!$D$15,P5-'Ponding Analysis'!$D$15,"")) ->  | Q36: =IF(Q5="","",IF(Q5>'Ponding Analysis'!$D$15,Q5-'Ponding Analysis'!$D$15,"")) ->  | R36: =IF(R5="","",IF(R5>'Ponding Analysis'!$D$15,R5-'Ponding Analysis'!$D$15,"")) ->  | S36: =IF(S5="","",IF(S5>'Ponding Analysis'!$D$15,S5-'Ponding Analysis'!$D$15,"")) ->  | T36: =IF(T5="","",IF(T5>'Ponding Analysis'!$D$15,T5-'Ponding Analysis'!$D$15,"")) ->  | U36: =IF(U5="","",IF(U5>'Ponding Analysis'!$D$15,U5-'Ponding Analysis'!$D$15,"")) ->  | V36: =IF(V5="","",IF(V5>'Ponding Analysis'!$D$15,V5-'Ponding Analysis'!$D$15,"")) ->  | W36: =IF(W5="","",IF(W5>'Ponding Analysis'!$D$15,W5-'Ponding Analysis'!$D$15,"")) -> 
B37: 3 | C37: =IF(C6="","",IF(C6>'Ponding Analysis'!$D$15,C6-'Ponding Analysis'!$D$15,"")) ->  | D37: =IF(D6="","",IF(D6>'Ponding Analysis'!$D$15,D6-'Ponding Analysis'!$D$15,"")) ->  | E37: =IF(E6="","",IF(E6>'Ponding Analysis'!$D$15,E6-'Ponding Analysis'!$D$15,"")) ->  | F37: =IF(F6="","",IF(F6>'Ponding Analysis'!$D$15,F6-'Ponding Analysis'!$D$15,"")) ->  | G37: =IF(G6="","",IF(G6>'Ponding Analysis'!$D$15,G6-'Ponding Analysis'!$D$15,"")) ->  | H37: =IF(H6="","",IF(H6>'Ponding Analysis'!$D$15,H6-'Ponding Analysis'!$D$15,"")) ->  | I37: =IF(I6="","",IF(I6>'Ponding Analysis'!$D$15,I6-'Ponding Analysis'!$D$15,"")) ->  | J37: =IF(J6="","",IF(J6>'Ponding Analysis'!$D$15,J6-'Ponding Analysis'!$D$15,"")) ->  | K37: =IF(K6="","",IF(K6>'Ponding Analysis'!$D$15,K6-'Ponding Analysis'!$D$15,"")) ->  | L37: =IF(L6="","",IF(L6>'Ponding Analysis'!$D$15,L6-'Ponding Analysis'!$D$15,"")) ->  | M37: =IF(M6="","",IF(M6>'Ponding Analysis'!$D$15,M6-'Ponding Analysis'!$D$15,"")) ->  | N37: =IF(N6="","",IF(N6>'Ponding Analysis'!$D$15,N6-'Ponding Analysis'!$D$15,"")) ->  | O37: =IF(O6="","",IF(O6>'Ponding Analysis'!$D$15,O6-'Ponding Analysis'!$D$15,"")) ->  | P37: =IF(P6="","",IF(P6>'Ponding Analysis'!$D$15,P6-'Ponding Analysis'!$D$15,"")) ->  | Q37: =IF(Q6="","",IF(Q6>'Ponding Analysis'!$D$15,Q6-'Ponding Analysis'!$D$15,"")) ->  | R37: =IF(R6="","",IF(R6>'Ponding Analysis'!$D$15,R6-'Ponding Analysis'!$D$15,"")) ->  | S37: =IF(S6="","",IF(S6>'Ponding Analysis'!$D$15,S6-'Ponding Analysis'!$D$15,"")) ->  | T37: =IF(T6="","",IF(T6>'Ponding Analysis'!$D$15,T6-'Ponding Analysis'!$D$15,"")) ->  | U37: =IF(U6="","",IF(U6>'Ponding Analysis'!$D$15,U6-'Ponding Analysis'!$D$15,"")) ->  | V37: =IF(V6="","",IF(V6>'Ponding Analysis'!$D$15,V6-'Ponding Analysis'!$D$15,"")) ->  | W37: =IF(W6="","",IF(W6>'Ponding Analysis'!$D$15,W6-'Ponding Analysis'!$D$15,"")) -> 
B38: 4 | C38: =IF(C7="","",IF(C7>'Ponding Analysis'!$D$15,C7-'Ponding Analysis'!$D$15,"")) ->  | D38: =IF(D7="","",IF(D7>'Ponding Analysis'!$D$15,D7-'Ponding Analysis'!$D$15,"")) ->  | E38: =IF(E7="","",IF(E7>'Ponding Analysis'!$D$15,E7-'Ponding Analysis'!$D$15,"")) ->  | F38: =IF(F7="","",IF(F7>'Ponding Analysis'!$D$15,F7-'Ponding Analysis'!$D$15,"")) ->  | G38: =IF(G7="","",IF(G7>'Ponding Analysis'!$D$15,G7-'Ponding Analysis'!$D$15,"")) ->  | H38: =IF(H7="","",IF(H7>'Ponding Analysis'!$D$15,H7-'Ponding Analysis'!$D$15,"")) ->  | I38: =IF(I7="","",IF(I7>'Ponding Analysis'!$D$15,I7-'Ponding Analysis'!$D$15,"")) ->  | J38: =IF(J7="","",IF(J7>'Ponding Analysis'!$D$15,J7-'Ponding Analysis'!$D$15,"")) ->  | K38: =IF(K7="","",IF(K7>'Ponding Analysis'!$D$15,K7-'Ponding Analysis'!$D$15,"")) ->  | L38: =IF(L7="","",IF(L7>'Ponding Analysis'!$D$15,L7-'Ponding Analysis'!$D$15,"")) ->  | M38: =IF(M7="","",IF(M7>'Ponding Analysis'!$D$15,M7-'Ponding Analysis'!$D$15,"")) ->  | N38: =IF(N7="","",IF(N7>'Ponding Analysis'!$D$15,N7-'Ponding Analysis'!$D$15,"")) ->  | O38: =IF(O7="","",IF(O7>'Ponding Analysis'!$D$15,O7-'Ponding Analysis'!$D$15,"")) ->  | P38: =IF(P7="","",IF(P7>'Ponding Analysis'!$D$15,P7-'Ponding Analysis'!$D$15,"")) ->  | Q38: =IF(Q7="","",IF(Q7>'Ponding Analysis'!$D$15,Q7-'Ponding Analysis'!$D$15,"")) ->  | R38: =IF(R7="","",IF(R7>'Ponding Analysis'!$D$15,R7-'Ponding Analysis'!$D$15,"")) ->  | S38: =IF(S7="","",IF(S7>'Ponding Analysis'!$D$15,S7-'Ponding Analysis'!$D$15,"")) ->  | T38: =IF(T7="","",IF(T7>'Ponding Analysis'!$D$15,T7-'Ponding Analysis'!$D$15,"")) ->  | U38: =IF(U7="","",IF(U7>'Ponding Analysis'!$D$15,U7-'Ponding Analysis'!$D$15,"")) ->  | V38: =IF(V7="","",IF(V7>'Ponding Analysis'!$D$15,V7-'Ponding Analysis'!$D$15,"")) ->  | W38: =IF(W7="","",IF(W7>'Ponding Analysis'!$D$15,W7-'Ponding Analysis'!$D$15,"")) -> 
B39: 5 | C39: =IF(C8="","",IF(C8>'Ponding Analysis'!$D$15,C8-'Ponding Analysis'!$D$15,"")) ->  | D39: =IF(D8="","",IF(D8>'Ponding Analysis'!$D$15,D8-'Ponding Analysis'!$D$15,"")) ->  | E39: =IF(E8="","",IF(E8>'Ponding Analysis'!$D$15,E8-'Ponding Analysis'!$D$15,"")) ->  | F39: =IF(F8="","",IF(F8>'Ponding Analysis'!$D$15,F8-'Ponding Analysis'!$D$15,"")) ->  | G39: =IF(G8="","",IF(G8>'Ponding Analysis'!$D$15,G8-'Ponding Analysis'!$D$15,"")) ->  | H39: =IF(H8="","",IF(H8>'Ponding Analysis'!$D$15,H8-'Ponding Analysis'!$D$15,"")) ->  | I39: =IF(I8="","",IF(I8>'Ponding Analysis'!$D$15,I8-'Ponding Analysis'!$D$15,"")) ->  | J39: =IF(J8="","",IF(J8>'Ponding Analysis'!$D$15,J8-'Ponding Analysis'!$D$15,"")) ->  | K39: =IF(K8="","",IF(K8>'Ponding Analysis'!$D$15,K8-'Ponding Analysis'!$D$15,"")) ->  | L39: =IF(L8="","",IF(L8>'Ponding Analysis'!$D$15,L8-'Ponding Analysis'!$D$15,"")) ->  | M39: =IF(M8="","",IF(M8>'Ponding Analysis'!$D$15,M8-'Ponding Analysis'!$D$15,"")) ->  | N39: =IF(N8="","",IF(N8>'Ponding Analysis'!$D$15,N8-'Ponding Analysis'!$D$15,"")) ->  | O39: =IF(O8="","",IF(O8>'Ponding Analysis'!$D$15,O8-'Ponding Analysis'!$D$15,"")) ->  | P39: =IF(P8="","",IF(P8>'Ponding Analysis'!$D$15,P8-'Ponding Analysis'!$D$15,"")) ->  | Q39: =IF(Q8="","",IF(Q8>'Ponding Analysis'!$D$15,Q8-'Ponding Analysis'!$D$15,"")) ->  | R39: =IF(R8="","",IF(R8>'Ponding Analysis'!$D$15,R8-'Ponding Analysis'!$D$15,"")) ->  | S39: =IF(S8="","",IF(S8>'Ponding Analysis'!$D$15,S8-'Ponding Analysis'!$D$15,"")) ->  | T39: =IF(T8="","",IF(T8>'Ponding Analysis'!$D$15,T8-'Ponding Analysis'!$D$15,"")) ->  | U39: =IF(U8="","",IF(U8>'Ponding Analysis'!$D$15,U8-'Ponding Analysis'!$D$15,"")) ->  | V39: =IF(V8="","",IF(V8>'Ponding Analysis'!$D$15,V8-'Ponding Analysis'!$D$15,"")) ->  | W39: =IF(W8="","",IF(W8>'Ponding Analysis'!$D$15,W8-'Ponding Analysis'!$D$15,"")) -> 
B40: 6 | C40: =IF(C9="","",IF(C9>'Ponding Analysis'!$D$15,C9-'Ponding Analysis'!$D$15,"")) ->  | D40: =IF(D9="","",IF(D9>'Ponding Analysis'!$D$15,D9-'Ponding Analysis'!$D$15,"")) ->  | E40: =IF(E9="","",IF(E9>'Ponding Analysis'!$D$15,E9-'Ponding Analysis'!$D$15,"")) ->  | F40: =IF(F9="","",IF(F9>'Ponding Analysis'!$D$15,F9-'Ponding Analysis'!$D$15,"")) ->  | G40: =IF(G9="","",IF(G9>'Ponding Analysis'!$D$15,G9-'Ponding Analysis'!$D$15,"")) ->  | H40: =IF(H9="","",IF(H9>'Ponding Analysis'!$D$15,H9-'Ponding Analysis'!$D$15,"")) ->  | I40: =IF(I9="","",IF(I9>'Ponding Analysis'!$D$15,I9-'Ponding Analysis'!$D$15,"")) ->  | J40: =IF(J9="","",IF(J9>'Ponding Analysis'!$D$15,J9-'Ponding Analysis'!$D$15,"")) ->  | K40: =IF(K9="","",IF(K9>'Ponding Analysis'!$D$15,K9-'Ponding Analysis'!$D$15,"")) ->  | L40: =IF(L9="","",IF(L9>'Ponding Analysis'!$D$15,L9-'Ponding Analysis'!$D$15,"")) ->  | M40: =IF(M9="","",IF(M9>'Ponding Analysis'!$D$15,M9-'Ponding Analysis'!$D$15,"")) ->  | N40: =IF(N9="","",IF(N9>'Ponding Analysis'!$D$15,N9-'Ponding Analysis'!$D$15,"")) ->  | O40: =IF(O9="","",IF(O9>'Ponding Analysis'!$D$15,O9-'Ponding Analysis'!$D$15,"")) ->  | P40: =IF(P9="","",IF(P9>'Ponding Analysis'!$D$15,P9-'Ponding Analysis'!$D$15,"")) ->  | Q40: =IF(Q9="","",IF(Q9>'Ponding Analysis'!$D$15,Q9-'Ponding Analysis'!$D$15,"")) ->  | R40: =IF(R9="","",IF(R9>'Ponding Analysis'!$D$15,R9-'Ponding Analysis'!$D$15,"")) ->  | S40: =IF(S9="","",IF(S9>'Ponding Analysis'!$D$15,S9-'Ponding Analysis'!$D$15,"")) ->  | T40: =IF(T9="","",IF(T9>'Ponding Analysis'!$D$15,T9-'Ponding Analysis'!$D$15,"")) ->  | U40: =IF(U9="","",IF(U9>'Ponding Analysis'!$D$15,U9-'Ponding Analysis'!$D$15,"")) ->  | V40: =IF(V9="","",IF(V9>'Ponding Analysis'!$D$15,V9-'Ponding Analysis'!$D$15,"")) ->  | W40: =IF(W9="","",IF(W9>'Ponding Analysis'!$D$15,W9-'Ponding Analysis'!$D$15,"")) -> 
B41: 7 | C41: =IF(C10="","",IF(C10>'Ponding Analysis'!$D$15,C10-'Ponding Analysis'!$D$15,"")) ->  | D41: =IF(D10="","",IF(D10>'Ponding Analysis'!$D$15,D10-'Ponding Analysis'!$D$15,"")) ->  | E41: =IF(E10="","",IF(E10>'Ponding Analysis'!$D$15,E10-'Ponding Analysis'!$D$15,"")) ->  | F41: =IF(F10="","",IF(F10>'Ponding Analysis'!$D$15,F10-'Ponding Analysis'!$D$15,"")) ->  | G41: =IF(G10="","",IF(G10>'Ponding Analysis'!$D$15,G10-'Ponding Analysis'!$D$15,"")) ->  | H41: =IF(H10="","",IF(H10>'Ponding Analysis'!$D$15,H10-'Ponding Analysis'!$D$15,"")) ->  | I41: =IF(I10="","",IF(I10>'Ponding Analysis'!$D$15,I10-'Ponding Analysis'!$D$15,"")) ->  | J41: =IF(J10="","",IF(J10>'Ponding Analysis'!$D$15,J10-'Ponding Analysis'!$D$15,"")) ->  | K41: =IF(K10="","",IF(K10>'Ponding Analysis'!$D$15,K10-'Ponding Analysis'!$D$15,"")) ->  | L41: =IF(L10="","",IF(L10>'Ponding Analysis'!$D$15,L10-'Ponding Analysis'!$D$15,"")) ->  | M41: =IF(M10="","",IF(M10>'Ponding Analysis'!$D$15,M10-'Ponding Analysis'!$D$15,"")) ->  | N41: =IF(N10="","",IF(N10>'Ponding Analysis'!$D$15,N10-'Ponding Analysis'!$D$15,"")) ->  | O41: =IF(O10="","",IF(O10>'Ponding Analysis'!$D$15,O10-'Ponding Analysis'!$D$15,"")) ->  | P41: =IF(P10="","",IF(P10>'Ponding Analysis'!$D$15,P10-'Ponding Analysis'!$D$15,"")) ->  | Q41: =IF(Q10="","",IF(Q10>'Ponding Analysis'!$D$15,Q10-'Ponding Analysis'!$D$15,"")) ->  | R41: =IF(R10="","",IF(R10>'Ponding Analysis'!$D$15,R10-'Ponding Analysis'!$D$15,"")) ->  | S41: =IF(S10="","",IF(S10>'Ponding Analysis'!$D$15,S10-'Ponding Analysis'!$D$15,"")) ->  | T41: =IF(T10="","",IF(T10>'Ponding Analysis'!$D$15,T10-'Ponding Analysis'!$D$15,"")) ->  | U41: =IF(U10="","",IF(U10>'Ponding Analysis'!$D$15,U10-'Ponding Analysis'!$D$15,"")) ->  | V41: =IF(V10="","",IF(V10>'Ponding Analysis'!$D$15,V10-'Ponding Analysis'!$D$15,"")) ->  | W41: =IF(W10="","",IF(W10>'Ponding Analysis'!$D$15,W10-'Ponding Analysis'!$D$15,"")) -> 
B42: 8 | C42: =IF(C11="","",IF(C11>'Ponding Analysis'!$D$15,C11-'Ponding Analysis'!$D$15,"")) ->  | D42: =IF(D11="","",IF(D11>'Ponding Analysis'!$D$15,D11-'Ponding Analysis'!$D$15,"")) ->  | E42: =IF(E11="","",IF(E11>'Ponding Analysis'!$D$15,E11-'Ponding Analysis'!$D$15,"")) ->  | F42: =IF(F11="","",IF(F11>'Ponding Analysis'!$D$15,F11-'Ponding Analysis'!$D$15,"")) ->  | G42: =IF(G11="","",IF(G11>'Ponding Analysis'!$D$15,G11-'Ponding Analysis'!$D$15,"")) ->  | H42: =IF(H11="","",IF(H11>'Ponding Analysis'!$D$15,H11-'Ponding Analysis'!$D$15,"")) ->  | I42: =IF(I11="","",IF(I11>'Ponding Analysis'!$D$15,I11-'Ponding Analysis'!$D$15,"")) ->  | J42: =IF(J11="","",IF(J11>'Ponding Analysis'!$D$15,J11-'Ponding Analysis'!$D$15,"")) ->  | K42: =IF(K11="","",IF(K11>'Ponding Analysis'!$D$15,K11-'Ponding Analysis'!$D$15,"")) ->  | L42: =IF(L11="","",IF(L11>'Ponding Analysis'!$D$15,L11-'Ponding Analysis'!$D$15,"")) ->  | M42: =IF(M11="","",IF(M11>'Ponding Analysis'!$D$15,M11-'Ponding Analysis'!$D$15,"")) ->  | N42: =IF(N11="","",IF(N11>'Ponding Analysis'!$D$15,N11-'Ponding Analysis'!$D$15,"")) ->  | O42: =IF(O11="","",IF(O11>'Ponding Analysis'!$D$15,O11-'Ponding Analysis'!$D$15,"")) ->  | P42: =IF(P11="","",IF(P11>'Ponding Analysis'!$D$15,P11-'Ponding Analysis'!$D$15,"")) ->  | Q42: =IF(Q11="","",IF(Q11>'Ponding Analysis'!$D$15,Q11-'Ponding Analysis'!$D$15,"")) ->  | R42: =IF(R11="","",IF(R11>'Ponding Analysis'!$D$15,R11-'Ponding Analysis'!$D$15,"")) ->  | S42: =IF(S11="","",IF(S11>'Ponding Analysis'!$D$15,S11-'Ponding Analysis'!$D$15,"")) ->  | T42: =IF(T11="","",IF(T11>'Ponding Analysis'!$D$15,T11-'Ponding Analysis'!$D$15,"")) ->  | U42: =IF(U11="","",IF(U11>'Ponding Analysis'!$D$15,U11-'Ponding Analysis'!$D$15,"")) ->  | V42: =IF(V11="","",IF(V11>'Ponding Analysis'!$D$15,V11-'Ponding Analysis'!$D$15,"")) ->  | W42: =IF(W11="","",IF(W11>'Ponding Analysis'!$D$15,W11-'Ponding Analysis'!$D$15,"")) -> 
B43: 9 | C43: =IF(C12="","",IF(C12>'Ponding Analysis'!$D$15,C12-'Ponding Analysis'!$D$15,"")) ->  | D43: =IF(D12="","",IF(D12>'Ponding Analysis'!$D$15,D12-'Ponding Analysis'!$D$15,"")) ->  | E43: =IF(E12="","",IF(E12>'Ponding Analysis'!$D$15,E12-'Ponding Analysis'!$D$15,"")) ->  | F43: =IF(F12="","",IF(F12>'Ponding Analysis'!$D$15,F12-'Ponding Analysis'!$D$15,"")) ->  | G43: =IF(G12="","",IF(G12>'Ponding Analysis'!$D$15,G12-'Ponding Analysis'!$D$15,"")) ->  | H43: =IF(H12="","",IF(H12>'Ponding Analysis'!$D$15,H12-'Ponding Analysis'!$D$15,"")) ->  | I43: =IF(I12="","",IF(I12>'Ponding Analysis'!$D$15,I12-'Ponding Analysis'!$D$15,"")) ->  | J43: =IF(J12="","",IF(J12>'Ponding Analysis'!$D$15,J12-'Ponding Analysis'!$D$15,"")) ->  | K43: =IF(K12="","",IF(K12>'Ponding Analysis'!$D$15,K12-'Ponding Analysis'!$D$15,"")) ->  | L43: =IF(L12="","",IF(L12>'Ponding Analysis'!$D$15,L12-'Ponding Analysis'!$D$15,"")) ->  | M43: =IF(M12="","",IF(M12>'Ponding Analysis'!$D$15,M12-'Ponding Analysis'!$D$15,"")) ->  | N43: =IF(N12="","",IF(N12>'Ponding Analysis'!$D$15,N12-'Ponding Analysis'!$D$15,"")) ->  | O43: =IF(O12="","",IF(O12>'Ponding Analysis'!$D$15,O12-'Ponding Analysis'!$D$15,"")) ->  | P43: =IF(P12="","",IF(P12>'Ponding Analysis'!$D$15,P12-'Ponding Analysis'!$D$15,"")) ->  | Q43: =IF(Q12="","",IF(Q12>'Ponding Analysis'!$D$15,Q12-'Ponding Analysis'!$D$15,"")) ->  | R43: =IF(R12="","",IF(R12>'Ponding Analysis'!$D$15,R12-'Ponding Analysis'!$D$15,"")) ->  | S43: =IF(S12="","",IF(S12>'Ponding Analysis'!$D$15,S12-'Ponding Analysis'!$D$15,"")) ->  | T43: =IF(T12="","",IF(T12>'Ponding Analysis'!$D$15,T12-'Ponding Analysis'!$D$15,"")) ->  | U43: =IF(U12="","",IF(U12>'Ponding Analysis'!$D$15,U12-'Ponding Analysis'!$D$15,"")) ->  | V43: =IF(V12="","",IF(V12>'Ponding Analysis'!$D$15,V12-'Ponding Analysis'!$D$15,"")) ->  | W43: =IF(W12="","",IF(W12>'Ponding Analysis'!$D$15,W12-'Ponding Analysis'!$D$15,"")) -> 
C44: =IF(C13="","",IF(C13>'Ponding Analysis'!$D$15,C13-'Ponding Analysis'!$D$15,"")) ->  | D44: =IF(D13="","",IF(D13>'Ponding Analysis'!$D$15,D13-'Ponding Analysis'!$D$15,"")) ->  | E44: =IF(E13="","",IF(E13>'Ponding Analysis'!$D$15,E13-'Ponding Analysis'!$D$15,"")) ->  | F44: =IF(F13="","",IF(F13>'Ponding Analysis'!$D$15,F13-'Ponding Analysis'!$D$15,"")) ->  | G44: =IF(G13="","",IF(G13>'Ponding Analysis'!$D$15,G13-'Ponding Analysis'!$D$15,"")) ->  | H44: =IF(H13="","",IF(H13>'Ponding Analysis'!$D$15,H13-'Ponding Analysis'!$D$15,"")) ->  | I44: =IF(I13="","",IF(I13>'Ponding Analysis'!$D$15,I13-'Ponding Analysis'!$D$15,"")) ->  | J44: =IF(J13="","",IF(J13>'Ponding Analysis'!$D$15,J13-'Ponding Analysis'!$D$15,"")) ->  | K44: =IF(K13="","",IF(K13>'Ponding Analysis'!$D$15,K13-'Ponding Analysis'!$D$15,"")) ->  | L44: =IF(L13="","",IF(L13>'Ponding Analysis'!$D$15,L13-'Ponding Analysis'!$D$15,"")) ->  | M44: =IF(M13="","",IF(M13>'Ponding Analysis'!$D$15,M13-'Ponding Analysis'!$D$15,"")) ->  | N44: =IF(N13="","",IF(N13>'Ponding Analysis'!$D$15,N13-'Ponding Analysis'!$D$15,"")) ->  | O44: =IF(O13="","",IF(O13>'Ponding Analysis'!$D$15,O13-'Ponding Analysis'!$D$15,"")) ->  | P44: =IF(P13="","",IF(P13>'Ponding Analysis'!$D$15,P13-'Ponding Analysis'!$D$15,"")) ->  | Q44: =IF(Q13="","",IF(Q13>'Ponding Analysis'!$D$15,Q13-'Ponding Analysis'!$D$15,"")) ->  | R44: =IF(R13="","",IF(R13>'Ponding Analysis'!$D$15,R13-'Ponding Analysis'!$D$15,"")) ->  | S44: =IF(S13="","",IF(S13>'Ponding Analysis'!$D$15,S13-'Ponding Analysis'!$D$15,"")) ->  | T44: =IF(T13="","",IF(T13>'Ponding Analysis'!$D$15,T13-'Ponding Analysis'!$D$15,"")) ->  | U44: =IF(U13="","",IF(U13>'Ponding Analysis'!$D$15,U13-'Ponding Analysis'!$D$15,"")) ->  | V44: =IF(V13="","",IF(V13>'Ponding Analysis'!$D$15,V13-'Ponding Analysis'!$D$15,"")) ->  | W44: =IF(W13="","",IF(W13>'Ponding Analysis'!$D$15,W13-'Ponding Analysis'!$D$15,"")) -> 
C45: =IF(C14="","",IF(C14>'Ponding Analysis'!$D$15,C14-'Ponding Analysis'!$D$15,"")) ->  | D45: =IF(D14="","",IF(D14>'Ponding Analysis'!$D$15,D14-'Ponding Analysis'!$D$15,"")) ->  | E45: =IF(E14="","",IF(E14>'Ponding Analysis'!$D$15,E14-'Ponding Analysis'!$D$15,"")) ->  | F45: =IF(F14="","",IF(F14>'Ponding Analysis'!$D$15,F14-'Ponding Analysis'!$D$15,"")) ->  | G45: =IF(G14="","",IF(G14>'Ponding Analysis'!$D$15,G14-'Ponding Analysis'!$D$15,"")) ->  | H45: =IF(H14="","",IF(H14>'Ponding Analysis'!$D$15,H14-'Ponding Analysis'!$D$15,"")) ->  | I45: =IF(I14="","",IF(I14>'Ponding Analysis'!$D$15,I14-'Ponding Analysis'!$D$15,"")) ->  | J45: =IF(J14="","",IF(J14>'Ponding Analysis'!$D$15,J14-'Ponding Analysis'!$D$15,"")) ->  | K45: =IF(K14="","",IF(K14>'Ponding Analysis'!$D$15,K14-'Ponding Analysis'!$D$15,"")) ->  | L45: =IF(L14="","",IF(L14>'Ponding Analysis'!$D$15,L14-'Ponding Analysis'!$D$15,"")) ->  | M45: =IF(M14="","",IF(M14>'Ponding Analysis'!$D$15,M14-'Ponding Analysis'!$D$15,"")) ->  | N45: =IF(N14="","",IF(N14>'Ponding Analysis'!$D$15,N14-'Ponding Analysis'!$D$15,"")) ->  | O45: =IF(O14="","",IF(O14>'Ponding Analysis'!$D$15,O14-'Ponding Analysis'!$D$15,"")) ->  | P45: =IF(P14="","",IF(P14>'Ponding Analysis'!$D$15,P14-'Ponding Analysis'!$D$15,"")) ->  | Q45: =IF(Q14="","",IF(Q14>'Ponding Analysis'!$D$15,Q14-'Ponding Analysis'!$D$15,"")) ->  | R45: =IF(R14="","",IF(R14>'Ponding Analysis'!$D$15,R14-'Ponding Analysis'!$D$15,"")) ->  | S45: =IF(S14="","",IF(S14>'Ponding Analysis'!$D$15,S14-'Ponding Analysis'!$D$15,"")) ->  | T45: =IF(T14="","",IF(T14>'Ponding Analysis'!$D$15,T14-'Ponding Analysis'!$D$15,"")) ->  | U45: =IF(U14="","",IF(U14>'Ponding Analysis'!$D$15,U14-'Ponding Analysis'!$D$15,"")) ->  | V45: =IF(V14="","",IF(V14>'Ponding Analysis'!$D$15,V14-'Ponding Analysis'!$D$15,"")) ->  | W45: =IF(W14="","",IF(W14>'Ponding Analysis'!$D$15,W14-'Ponding Analysis'!$D$15,"")) -> 
C46: =IF(C15="","",IF(C15>'Ponding Analysis'!$D$15,C15-'Ponding Analysis'!$D$15,"")) ->  | D46: =IF(D15="","",IF(D15>'Ponding Analysis'!$D$15,D15-'Ponding Analysis'!$D$15,"")) ->  | E46: =IF(E15="","",IF(E15>'Ponding Analysis'!$D$15,E15-'Ponding Analysis'!$D$15,"")) ->  | F46: =IF(F15="","",IF(F15>'Ponding Analysis'!$D$15,F15-'Ponding Analysis'!$D$15,"")) ->  | G46: =IF(G15="","",IF(G15>'Ponding Analysis'!$D$15,G15-'Ponding Analysis'!$D$15,"")) ->  | H46: =IF(H15="","",IF(H15>'Ponding Analysis'!$D$15,H15-'Ponding Analysis'!$D$15,"")) ->  | I46: =IF(I15="","",IF(I15>'Ponding Analysis'!$D$15,I15-'Ponding Analysis'!$D$15,"")) ->  | J46: =IF(J15="","",IF(J15>'Ponding Analysis'!$D$15,J15-'Ponding Analysis'!$D$15,"")) ->  | K46: =IF(K15="","",IF(K15>'Ponding Analysis'!$D$15,K15-'Ponding Analysis'!$D$15,"")) ->  | L46: =IF(L15="","",IF(L15>'Ponding Analysis'!$D$15,L15-'Ponding Analysis'!$D$15,"")) ->  | M46: =IF(M15="","",IF(M15>'Ponding Analysis'!$D$15,M15-'Ponding Analysis'!$D$15,"")) ->  | N46: =IF(N15="","",IF(N15>'Ponding Analysis'!$D$15,N15-'Ponding Analysis'!$D$15,"")) ->  | O46: =IF(O15="","",IF(O15>'Ponding Analysis'!$D$15,O15-'Ponding Analysis'!$D$15,"")) ->  | P46: =IF(P15="","",IF(P15>'Ponding Analysis'!$D$15,P15-'Ponding Analysis'!$D$15,"")) ->  | Q46: =IF(Q15="","",IF(Q15>'Ponding Analysis'!$D$15,Q15-'Ponding Analysis'!$D$15,"")) ->  | R46: =IF(R15="","",IF(R15>'Ponding Analysis'!$D$15,R15-'Ponding Analysis'!$D$15,"")) ->  | S46: =IF(S15="","",IF(S15>'Ponding Analysis'!$D$15,S15-'Ponding Analysis'!$D$15,"")) ->  | T46: =IF(T15="","",IF(T15>'Ponding Analysis'!$D$15,T15-'Ponding Analysis'!$D$15,"")) ->  | U46: =IF(U15="","",IF(U15>'Ponding Analysis'!$D$15,U15-'Ponding Analysis'!$D$15,"")) ->  | V46: =IF(V15="","",IF(V15>'Ponding Analysis'!$D$15,V15-'Ponding Analysis'!$D$15,"")) ->  | W46: =IF(W15="","",IF(W15>'Ponding Analysis'!$D$15,W15-'Ponding Analysis'!$D$15,"")) -> 
C47: =IF(C16="","",IF(C16>'Ponding Analysis'!$D$15,C16-'Ponding Analysis'!$D$15,"")) ->  | D47: =IF(D16="","",IF(D16>'Ponding Analysis'!$D$15,D16-'Ponding Analysis'!$D$15,"")) ->  | E47: =IF(E16="","",IF(E16>'Ponding Analysis'!$D$15,E16-'Ponding Analysis'!$D$15,"")) ->  | F47: =IF(F16="","",IF(F16>'Ponding Analysis'!$D$15,F16-'Ponding Analysis'!$D$15,"")) ->  | G47: =IF(G16="","",IF(G16>'Ponding Analysis'!$D$15,G16-'Ponding Analysis'!$D$15,"")) ->  | H47: =IF(H16="","",IF(H16>'Ponding Analysis'!$D$15,H16-'Ponding Analysis'!$D$15,"")) ->  | I47: =IF(I16="","",IF(I16>'Ponding Analysis'!$D$15,I16-'Ponding Analysis'!$D$15,"")) ->  | J47: =IF(J16="","",IF(J16>'Ponding Analysis'!$D$15,J16-'Ponding Analysis'!$D$15,"")) ->  | K47: =IF(K16="","",IF(K16>'Ponding Analysis'!$D$15,K16-'Ponding Analysis'!$D$15,"")) ->  | L47: =IF(L16="","",IF(L16>'Ponding Analysis'!$D$15,L16-'Ponding Analysis'!$D$15,"")) ->  | M47: =IF(M16="","",IF(M16>'Ponding Analysis'!$D$15,M16-'Ponding Analysis'!$D$15,"")) ->  | N47: =IF(N16="","",IF(N16>'Ponding Analysis'!$D$15,N16-'Ponding Analysis'!$D$15,"")) ->  | O47: =IF(O16="","",IF(O16>'Ponding Analysis'!$D$15,O16-'Ponding Analysis'!$D$15,"")) ->  | P47: =IF(P16="","",IF(P16>'Ponding Analysis'!$D$15,P16-'Ponding Analysis'!$D$15,"")) ->  | Q47: =IF(Q16="","",IF(Q16>'Ponding Analysis'!$D$15,Q16-'Ponding Analysis'!$D$15,"")) ->  | R47: =IF(R16="","",IF(R16>'Ponding Analysis'!$D$15,R16-'Ponding Analysis'!$D$15,"")) ->  | S47: =IF(S16="","",IF(S16>'Ponding Analysis'!$D$15,S16-'Ponding Analysis'!$D$15,"")) ->  | T47: =IF(T16="","",IF(T16>'Ponding Analysis'!$D$15,T16-'Ponding Analysis'!$D$15,"")) ->  | U47: =IF(U16="","",IF(U16>'Ponding Analysis'!$D$15,U16-'Ponding Analysis'!$D$15,"")) ->  | V47: =IF(V16="","",IF(V16>'Ponding Analysis'!$D$15,V16-'Ponding Analysis'!$D$15,"")) ->  | W47: =IF(W16="","",IF(W16>'Ponding Analysis'!$D$15,W16-'Ponding Analysis'!$D$15,"")) -> 
C48: =IF(C17="","",IF(C17>'Ponding Analysis'!$D$15,C17-'Ponding Analysis'!$D$15,"")) ->  | D48: =IF(D17="","",IF(D17>'Ponding Analysis'!$D$15,D17-'Ponding Analysis'!$D$15,"")) ->  | E48: =IF(E17="","",IF(E17>'Ponding Analysis'!$D$15,E17-'Ponding Analysis'!$D$15,"")) ->  | F48: =IF(F17="","",IF(F17>'Ponding Analysis'!$D$15,F17-'Ponding Analysis'!$D$15,"")) ->  | G48: =IF(G17="","",IF(G17>'Ponding Analysis'!$D$15,G17-'Ponding Analysis'!$D$15,"")) ->  | H48: =IF(H17="","",IF(H17>'Ponding Analysis'!$D$15,H17-'Ponding Analysis'!$D$15,"")) ->  | I48: =IF(I17="","",IF(I17>'Ponding Analysis'!$D$15,I17-'Ponding Analysis'!$D$15,"")) ->  | J48: =IF(J17="","",IF(J17>'Ponding Analysis'!$D$15,J17-'Ponding Analysis'!$D$15,"")) ->  | K48: =IF(K17="","",IF(K17>'Ponding Analysis'!$D$15,K17-'Ponding Analysis'!$D$15,"")) ->  | L48: =IF(L17="","",IF(L17>'Ponding Analysis'!$D$15,L17-'Ponding Analysis'!$D$15,"")) ->  | M48: =IF(M17="","",IF(M17>'Ponding Analysis'!$D$15,M17-'Ponding Analysis'!$D$15,"")) ->  | N48: =IF(N17="","",IF(N17>'Ponding Analysis'!$D$15,N17-'Ponding Analysis'!$D$15,"")) ->  | O48: =IF(O17="","",IF(O17>'Ponding Analysis'!$D$15,O17-'Ponding Analysis'!$D$15,"")) ->  | P48: =IF(P17="","",IF(P17>'Ponding Analysis'!$D$15,P17-'Ponding Analysis'!$D$15,"")) ->  | Q48: =IF(Q17="","",IF(Q17>'Ponding Analysis'!$D$15,Q17-'Ponding Analysis'!$D$15,"")) ->  | R48: =IF(R17="","",IF(R17>'Ponding Analysis'!$D$15,R17-'Ponding Analysis'!$D$15,"")) ->  | S48: =IF(S17="","",IF(S17>'Ponding Analysis'!$D$15,S17-'Ponding Analysis'!$D$15,"")) ->  | T48: =IF(T17="","",IF(T17>'Ponding Analysis'!$D$15,T17-'Ponding Analysis'!$D$15,"")) ->  | U48: =IF(U17="","",IF(U17>'Ponding Analysis'!$D$15,U17-'Ponding Analysis'!$D$15,"")) ->  | V48: =IF(V17="","",IF(V17>'Ponding Analysis'!$D$15,V17-'Ponding Analysis'!$D$15,"")) ->  | W48: =IF(W17="","",IF(W17>'Ponding Analysis'!$D$15,W17-'Ponding Analysis'!$D$15,"")) -> 
C49: =IF(C18="","",IF(C18>'Ponding Analysis'!$D$15,C18-'Ponding Analysis'!$D$15,"")) ->  | D49: =IF(D18="","",IF(D18>'Ponding Analysis'!$D$15,D18-'Ponding Analysis'!$D$15,"")) ->  | E49: =IF(E18="","",IF(E18>'Ponding Analysis'!$D$15,E18-'Ponding Analysis'!$D$15,"")) ->  | F49: =IF(F18="","",IF(F18>'Ponding Analysis'!$D$15,F18-'Ponding Analysis'!$D$15,"")) ->  | G49: =IF(G18="","",IF(G18>'Ponding Analysis'!$D$15,G18-'Ponding Analysis'!$D$15,"")) ->  | H49: =IF(H18="","",IF(H18>'Ponding Analysis'!$D$15,H18-'Ponding Analysis'!$D$15,"")) ->  | I49: =IF(I18="","",IF(I18>'Ponding Analysis'!$D$15,I18-'Ponding Analysis'!$D$15,"")) ->  | J49: =IF(J18="","",IF(J18>'Ponding Analysis'!$D$15,J18-'Ponding Analysis'!$D$15,"")) ->  | K49: =IF(K18="","",IF(K18>'Ponding Analysis'!$D$15,K18-'Ponding Analysis'!$D$15,"")) ->  | L49: =IF(L18="","",IF(L18>'Ponding Analysis'!$D$15,L18-'Ponding Analysis'!$D$15,"")) ->  | M49: =IF(M18="","",IF(M18>'Ponding Analysis'!$D$15,M18-'Ponding Analysis'!$D$15,"")) ->  | N49: =IF(N18="","",IF(N18>'Ponding Analysis'!$D$15,N18-'Ponding Analysis'!$D$15,"")) ->  | O49: =IF(O18="","",IF(O18>'Ponding Analysis'!$D$15,O18-'Ponding Analysis'!$D$15,"")) ->  | P49: =IF(P18="","",IF(P18>'Ponding Analysis'!$D$15,P18-'Ponding Analysis'!$D$15,"")) ->  | Q49: =IF(Q18="","",IF(Q18>'Ponding Analysis'!$D$15,Q18-'Ponding Analysis'!$D$15,"")) ->  | R49: =IF(R18="","",IF(R18>'Ponding Analysis'!$D$15,R18-'Ponding Analysis'!$D$15,"")) ->  | S49: =IF(S18="","",IF(S18>'Ponding Analysis'!$D$15,S18-'Ponding Analysis'!$D$15,"")) ->  | T49: =IF(T18="","",IF(T18>'Ponding Analysis'!$D$15,T18-'Ponding Analysis'!$D$15,"")) ->  | U49: =IF(U18="","",IF(U18>'Ponding Analysis'!$D$15,U18-'Ponding Analysis'!$D$15,"")) ->  | V49: =IF(V18="","",IF(V18>'Ponding Analysis'!$D$15,V18-'Ponding Analysis'!$D$15,"")) ->  | W49: =IF(W18="","",IF(W18>'Ponding Analysis'!$D$15,W18-'Ponding Analysis'!$D$15,"")) -> 
C50: =IF(C19="","",IF(C19>'Ponding Analysis'!$D$15,C19-'Ponding Analysis'!$D$15,"")) ->  | D50: =IF(D19="","",IF(D19>'Ponding Analysis'!$D$15,D19-'Ponding Analysis'!$D$15,"")) ->  | E50: =IF(E19="","",IF(E19>'Ponding Analysis'!$D$15,E19-'Ponding Analysis'!$D$15,"")) ->  | F50: =IF(F19="","",IF(F19>'Ponding Analysis'!$D$15,F19-'Ponding Analysis'!$D$15,"")) ->  | G50: =IF(G19="","",IF(G19>'Ponding Analysis'!$D$15,G19-'Ponding Analysis'!$D$15,"")) ->  | H50: =IF(H19="","",IF(H19>'Ponding Analysis'!$D$15,H19-'Ponding Analysis'!$D$15,"")) ->  | I50: =IF(I19="","",IF(I19>'Ponding Analysis'!$D$15,I19-'Ponding Analysis'!$D$15,"")) ->  | J50: =IF(J19="","",IF(J19>'Ponding Analysis'!$D$15,J19-'Ponding Analysis'!$D$15,"")) ->  | K50: =IF(K19="","",IF(K19>'Ponding Analysis'!$D$15,K19-'Ponding Analysis'!$D$15,"")) ->  | L50: =IF(L19="","",IF(L19>'Ponding Analysis'!$D$15,L19-'Ponding Analysis'!$D$15,"")) ->  | M50: =IF(M19="","",IF(M19>'Ponding Analysis'!$D$15,M19-'Ponding Analysis'!$D$15,"")) ->  | N50: =IF(N19="","",IF(N19>'Ponding Analysis'!$D$15,N19-'Ponding Analysis'!$D$15,"")) ->  | O50: =IF(O19="","",IF(O19>'Ponding Analysis'!$D$15,O19-'Ponding Analysis'!$D$15,"")) ->  | P50: =IF(P19="","",IF(P19>'Ponding Analysis'!$D$15,P19-'Ponding Analysis'!$D$15,"")) ->  | Q50: =IF(Q19="","",IF(Q19>'Ponding Analysis'!$D$15,Q19-'Ponding Analysis'!$D$15,"")) ->  | R50: =IF(R19="","",IF(R19>'Ponding Analysis'!$D$15,R19-'Ponding Analysis'!$D$15,"")) ->  | S50: =IF(S19="","",IF(S19>'Ponding Analysis'!$D$15,S19-'Ponding Analysis'!$D$15,"")) ->  | T50: =IF(T19="","",IF(T19>'Ponding Analysis'!$D$15,T19-'Ponding Analysis'!$D$15,"")) ->  | U50: =IF(U19="","",IF(U19>'Ponding Analysis'!$D$15,U19-'Ponding Analysis'!$D$15,"")) ->  | V50: =IF(V19="","",IF(V19>'Ponding Analysis'!$D$15,V19-'Ponding Analysis'!$D$15,"")) ->  | W50: =IF(W19="","",IF(W19>'Ponding Analysis'!$D$15,W19-'Ponding Analysis'!$D$15,"")) -> 
C51: =IF(C20="","",IF(C20>'Ponding Analysis'!$D$15,C20-'Ponding Analysis'!$D$15,"")) ->  | D51: =IF(D20="","",IF(D20>'Ponding Analysis'!$D$15,D20-'Ponding Analysis'!$D$15,"")) ->  | E51: =IF(E20="","",IF(E20>'Ponding Analysis'!$D$15,E20-'Ponding Analysis'!$D$15,"")) ->  | F51: =IF(F20="","",IF(F20>'Ponding Analysis'!$D$15,F20-'Ponding Analysis'!$D$15,"")) ->  | G51: =IF(G20="","",IF(G20>'Ponding Analysis'!$D$15,G20-'Ponding Analysis'!$D$15,"")) ->  | H51: =IF(H20="","",IF(H20>'Ponding Analysis'!$D$15,H20-'Ponding Analysis'!$D$15,"")) ->  | I51: =IF(I20="","",IF(I20>'Ponding Analysis'!$D$15,I20-'Ponding Analysis'!$D$15,"")) ->  | J51: =IF(J20="","",IF(J20>'Ponding Analysis'!$D$15,J20-'Ponding Analysis'!$D$15,"")) ->  | K51: =IF(K20="","",IF(K20>'Ponding Analysis'!$D$15,K20-'Ponding Analysis'!$D$15,"")) ->  | L51: =IF(L20="","",IF(L20>'Ponding Analysis'!$D$15,L20-'Ponding Analysis'!$D$15,"")) ->  | M51: =IF(M20="","",IF(M20>'Ponding Analysis'!$D$15,M20-'Ponding Analysis'!$D$15,"")) ->  | N51: =IF(N20="","",IF(N20>'Ponding Analysis'!$D$15,N20-'Ponding Analysis'!$D$15,"")) ->  | O51: =IF(O20="","",IF(O20>'Ponding Analysis'!$D$15,O20-'Ponding Analysis'!$D$15,"")) ->  | P51: =IF(P20="","",IF(P20>'Ponding Analysis'!$D$15,P20-'Ponding Analysis'!$D$15,"")) ->  | Q51: =IF(Q20="","",IF(Q20>'Ponding Analysis'!$D$15,Q20-'Ponding Analysis'!$D$15,"")) ->  | R51: =IF(R20="","",IF(R20>'Ponding Analysis'!$D$15,R20-'Ponding Analysis'!$D$15,"")) ->  | S51: =IF(S20="","",IF(S20>'Ponding Analysis'!$D$15,S20-'Ponding Analysis'!$D$15,"")) ->  | T51: =IF(T20="","",IF(T20>'Ponding Analysis'!$D$15,T20-'Ponding Analysis'!$D$15,"")) ->  | U51: =IF(U20="","",IF(U20>'Ponding Analysis'!$D$15,U20-'Ponding Analysis'!$D$15,"")) ->  | V51: =IF(V20="","",IF(V20>'Ponding Analysis'!$D$15,V20-'Ponding Analysis'!$D$15,"")) ->  | W51: =IF(W20="","",IF(W20>'Ponding Analysis'!$D$15,W20-'Ponding Analysis'!$D$15,"")) -> 
C52: =IF(C21="","",IF(C21>'Ponding Analysis'!$D$15,C21-'Ponding Analysis'!$D$15,"")) ->  | D52: =IF(D21="","",IF(D21>'Ponding Analysis'!$D$15,D21-'Ponding Analysis'!$D$15,"")) ->  | E52: =IF(E21="","",IF(E21>'Ponding Analysis'!$D$15,E21-'Ponding Analysis'!$D$15,"")) ->  | F52: =IF(F21="","",IF(F21>'Ponding Analysis'!$D$15,F21-'Ponding Analysis'!$D$15,"")) ->  | G52: =IF(G21="","",IF(G21>'Ponding Analysis'!$D$15,G21-'Ponding Analysis'!$D$15,"")) ->  | H52: =IF(H21="","",IF(H21>'Ponding Analysis'!$D$15,H21-'Ponding Analysis'!$D$15,"")) ->  | I52: =IF(I21="","",IF(I21>'Ponding Analysis'!$D$15,I21-'Ponding Analysis'!$D$15,"")) ->  | J52: =IF(J21="","",IF(J21>'Ponding Analysis'!$D$15,J21-'Ponding Analysis'!$D$15,"")) ->  | K52: =IF(K21="","",IF(K21>'Ponding Analysis'!$D$15,K21-'Ponding Analysis'!$D$15,"")) ->  | L52: =IF(L21="","",IF(L21>'Ponding Analysis'!$D$15,L21-'Ponding Analysis'!$D$15,"")) ->  | M52: =IF(M21="","",IF(M21>'Ponding Analysis'!$D$15,M21-'Ponding Analysis'!$D$15,"")) ->  | N52: =IF(N21="","",IF(N21>'Ponding Analysis'!$D$15,N21-'Ponding Analysis'!$D$15,"")) ->  | O52: =IF(O21="","",IF(O21>'Ponding Analysis'!$D$15,O21-'Ponding Analysis'!$D$15,"")) ->  | P52: =IF(P21="","",IF(P21>'Ponding Analysis'!$D$15,P21-'Ponding Analysis'!$D$15,"")) ->  | Q52: =IF(Q21="","",IF(Q21>'Ponding Analysis'!$D$15,Q21-'Ponding Analysis'!$D$15,"")) ->  | R52: =IF(R21="","",IF(R21>'Ponding Analysis'!$D$15,R21-'Ponding Analysis'!$D$15,"")) ->  | S52: =IF(S21="","",IF(S21>'Ponding Analysis'!$D$15,S21-'Ponding Analysis'!$D$15,"")) ->  | T52: =IF(T21="","",IF(T21>'Ponding Analysis'!$D$15,T21-'Ponding Analysis'!$D$15,"")) ->  | U52: =IF(U21="","",IF(U21>'Ponding Analysis'!$D$15,U21-'Ponding Analysis'!$D$15,"")) ->  | V52: =IF(V21="","",IF(V21>'Ponding Analysis'!$D$15,V21-'Ponding Analysis'!$D$15,"")) ->  | W52: =IF(W21="","",IF(W21>'Ponding Analysis'!$D$15,W21-'Ponding Analysis'!$D$15,"")) -> 
C53: =IF(C22="","",IF(C22>'Ponding Analysis'!$D$15,C22-'Ponding Analysis'!$D$15,"")) ->  | D53: =IF(D22="","",IF(D22>'Ponding Analysis'!$D$15,D22-'Ponding Analysis'!$D$15,"")) ->  | E53: =IF(E22="","",IF(E22>'Ponding Analysis'!$D$15,E22-'Ponding Analysis'!$D$15,"")) ->  | F53: =IF(F22="","",IF(F22>'Ponding Analysis'!$D$15,F22-'Ponding Analysis'!$D$15,"")) ->  | G53: =IF(G22="","",IF(G22>'Ponding Analysis'!$D$15,G22-'Ponding Analysis'!$D$15,"")) ->  | H53: =IF(H22="","",IF(H22>'Ponding Analysis'!$D$15,H22-'Ponding Analysis'!$D$15,"")) ->  | I53: =IF(I22="","",IF(I22>'Ponding Analysis'!$D$15,I22-'Ponding Analysis'!$D$15,"")) ->  | J53: =IF(J22="","",IF(J22>'Ponding Analysis'!$D$15,J22-'Ponding Analysis'!$D$15,"")) ->  | K53: =IF(K22="","",IF(K22>'Ponding Analysis'!$D$15,K22-'Ponding Analysis'!$D$15,"")) ->  | L53: =IF(L22="","",IF(L22>'Ponding Analysis'!$D$15,L22-'Ponding Analysis'!$D$15,"")) ->  | M53: =IF(M22="","",IF(M22>'Ponding Analysis'!$D$15,M22-'Ponding Analysis'!$D$15,"")) ->  | N53: =IF(N22="","",IF(N22>'Ponding Analysis'!$D$15,N22-'Ponding Analysis'!$D$15,"")) ->  | O53: =IF(O22="","",IF(O22>'Ponding Analysis'!$D$15,O22-'Ponding Analysis'!$D$15,"")) ->  | P53: =IF(P22="","",IF(P22>'Ponding Analysis'!$D$15,P22-'Ponding Analysis'!$D$15,"")) ->  | Q53: =IF(Q22="","",IF(Q22>'Ponding Analysis'!$D$15,Q22-'Ponding Analysis'!$D$15,"")) ->  | R53: =IF(R22="","",IF(R22>'Ponding Analysis'!$D$15,R22-'Ponding Analysis'!$D$15,"")) ->  | S53: =IF(S22="","",IF(S22>'Ponding Analysis'!$D$15,S22-'Ponding Analysis'!$D$15,"")) ->  | T53: =IF(T22="","",IF(T22>'Ponding Analysis'!$D$15,T22-'Ponding Analysis'!$D$15,"")) ->  | U53: =IF(U22="","",IF(U22>'Ponding Analysis'!$D$15,U22-'Ponding Analysis'!$D$15,"")) ->  | V53: =IF(V22="","",IF(V22>'Ponding Analysis'!$D$15,V22-'Ponding Analysis'!$D$15,"")) ->  | W53: =IF(W22="","",IF(W22>'Ponding Analysis'!$D$15,W22-'Ponding Analysis'!$D$15,"")) -> 
C54: =IF(C23="","",IF(C23>'Ponding Analysis'!$D$15,C23-'Ponding Analysis'!$D$15,"")) ->  | D54: =IF(D23="","",IF(D23>'Ponding Analysis'!$D$15,D23-'Ponding Analysis'!$D$15,"")) ->  | E54: =IF(E23="","",IF(E23>'Ponding Analysis'!$D$15,E23-'Ponding Analysis'!$D$15,"")) ->  | F54: =IF(F23="","",IF(F23>'Ponding Analysis'!$D$15,F23-'Ponding Analysis'!$D$15,"")) ->  | G54: =IF(G23="","",IF(G23>'Ponding Analysis'!$D$15,G23-'Ponding Analysis'!$D$15,"")) ->  | H54: =IF(H23="","",IF(H23>'Ponding Analysis'!$D$15,H23-'Ponding Analysis'!$D$15,"")) ->  | I54: =IF(I23="","",IF(I23>'Ponding Analysis'!$D$15,I23-'Ponding Analysis'!$D$15,"")) ->  | J54: =IF(J23="","",IF(J23>'Ponding Analysis'!$D$15,J23-'Ponding Analysis'!$D$15,"")) ->  | K54: =IF(K23="","",IF(K23>'Ponding Analysis'!$D$15,K23-'Ponding Analysis'!$D$15,"")) ->  | L54: =IF(L23="","",IF(L23>'Ponding Analysis'!$D$15,L23-'Ponding Analysis'!$D$15,"")) ->  | M54: =IF(M23="","",IF(M23>'Ponding Analysis'!$D$15,M23-'Ponding Analysis'!$D$15,"")) ->  | N54: =IF(N23="","",IF(N23>'Ponding Analysis'!$D$15,N23-'Ponding Analysis'!$D$15,"")) ->  | O54: =IF(O23="","",IF(O23>'Ponding Analysis'!$D$15,O23-'Ponding Analysis'!$D$15,"")) ->  | P54: =IF(P23="","",IF(P23>'Ponding Analysis'!$D$15,P23-'Ponding Analysis'!$D$15,"")) ->  | Q54: =IF(Q23="","",IF(Q23>'Ponding Analysis'!$D$15,Q23-'Ponding Analysis'!$D$15,"")) ->  | R54: =IF(R23="","",IF(R23>'Ponding Analysis'!$D$15,R23-'Ponding Analysis'!$D$15,"")) ->  | S54: =IF(S23="","",IF(S23>'Ponding Analysis'!$D$15,S23-'Ponding Analysis'!$D$15,"")) ->  | T54: =IF(T23="","",IF(T23>'Ponding Analysis'!$D$15,T23-'Ponding Analysis'!$D$15,"")) ->  | U54: =IF(U23="","",IF(U23>'Ponding Analysis'!$D$15,U23-'Ponding Analysis'!$D$15,"")) ->  | V54: =IF(V23="","",IF(V23>'Ponding Analysis'!$D$15,V23-'Ponding Analysis'!$D$15,"")) ->  | W54: =IF(W23="","",IF(W23>'Ponding Analysis'!$D$15,W23-'Ponding Analysis'!$D$15,"")) -> 
C55: =IF(C24="","",IF(C24>'Ponding Analysis'!$D$15,C24-'Ponding Analysis'!$D$15,"")) ->  | D55: =IF(D24="","",IF(D24>'Ponding Analysis'!$D$15,D24-'Ponding Analysis'!$D$15,"")) ->  | E55: =IF(E24="","",IF(E24>'Ponding Analysis'!$D$15,E24-'Ponding Analysis'!$D$15,"")) ->  | F55: =IF(F24="","",IF(F24>'Ponding Analysis'!$D$15,F24-'Ponding Analysis'!$D$15,"")) ->  | G55: =IF(G24="","",IF(G24>'Ponding Analysis'!$D$15,G24-'Ponding Analysis'!$D$15,"")) ->  | H55: =IF(H24="","",IF(H24>'Ponding Analysis'!$D$15,H24-'Ponding Analysis'!$D$15,"")) ->  | I55: =IF(I24="","",IF(I24>'Ponding Analysis'!$D$15,I24-'Ponding Analysis'!$D$15,"")) ->  | J55: =IF(J24="","",IF(J24>'Ponding Analysis'!$D$15,J24-'Ponding Analysis'!$D$15,"")) ->  | K55: =IF(K24="","",IF(K24>'Ponding Analysis'!$D$15,K24-'Ponding Analysis'!$D$15,"")) ->  | L55: =IF(L24="","",IF(L24>'Ponding Analysis'!$D$15,L24-'Ponding Analysis'!$D$15,"")) ->  | M55: =IF(M24="","",IF(M24>'Ponding Analysis'!$D$15,M24-'Ponding Analysis'!$D$15,"")) ->  | N55: =IF(N24="","",IF(N24>'Ponding Analysis'!$D$15,N24-'Ponding Analysis'!$D$15,"")) ->  | O55: =IF(O24="","",IF(O24>'Ponding Analysis'!$D$15,O24-'Ponding Analysis'!$D$15,"")) ->  | P55: =IF(P24="","",IF(P24>'Ponding Analysis'!$D$15,P24-'Ponding Analysis'!$D$15,"")) ->  | Q55: =IF(Q24="","",IF(Q24>'Ponding Analysis'!$D$15,Q24-'Ponding Analysis'!$D$15,"")) ->  | R55: =IF(R24="","",IF(R24>'Ponding Analysis'!$D$15,R24-'Ponding Analysis'!$D$15,"")) ->  | S55: =IF(S24="","",IF(S24>'Ponding Analysis'!$D$15,S24-'Ponding Analysis'!$D$15,"")) ->  | T55: =IF(T24="","",IF(T24>'Ponding Analysis'!$D$15,T24-'Ponding Analysis'!$D$15,"")) ->  | U55: =IF(U24="","",IF(U24>'Ponding Analysis'!$D$15,U24-'Ponding Analysis'!$D$15,"")) ->  | V55: =IF(V24="","",IF(V24>'Ponding Analysis'!$D$15,V24-'Ponding Analysis'!$D$15,"")) ->  | W55: =IF(W24="","",IF(W24>'Ponding Analysis'!$D$15,W24-'Ponding Analysis'!$D$15,"")) -> 
C56: =IF(C25="","",IF(C25>'Ponding Analysis'!$D$15,C25-'Ponding Analysis'!$D$15,"")) ->  | D56: =IF(D25="","",IF(D25>'Ponding Analysis'!$D$15,D25-'Ponding Analysis'!$D$15,"")) ->  | E56: =IF(E25="","",IF(E25>'Ponding Analysis'!$D$15,E25-'Ponding Analysis'!$D$15,"")) ->  | F56: =IF(F25="","",IF(F25>'Ponding Analysis'!$D$15,F25-'Ponding Analysis'!$D$15,"")) ->  | G56: =IF(G25="","",IF(G25>'Ponding Analysis'!$D$15,G25-'Ponding Analysis'!$D$15,"")) ->  | H56: =IF(H25="","",IF(H25>'Ponding Analysis'!$D$15,H25-'Ponding Analysis'!$D$15,"")) ->  | I56: =IF(I25="","",IF(I25>'Ponding Analysis'!$D$15,I25-'Ponding Analysis'!$D$15,"")) ->  | J56: =IF(J25="","",IF(J25>'Ponding Analysis'!$D$15,J25-'Ponding Analysis'!$D$15,"")) ->  | K56: =IF(K25="","",IF(K25>'Ponding Analysis'!$D$15,K25-'Ponding Analysis'!$D$15,"")) ->  | L56: =IF(L25="","",IF(L25>'Ponding Analysis'!$D$15,L25-'Ponding Analysis'!$D$15,"")) ->  | M56: =IF(M25="","",IF(M25>'Ponding Analysis'!$D$15,M25-'Ponding Analysis'!$D$15,"")) ->  | N56: =IF(N25="","",IF(N25>'Ponding Analysis'!$D$15,N25-'Ponding Analysis'!$D$15,"")) ->  | O56: =IF(O25="","",IF(O25>'Ponding Analysis'!$D$15,O25-'Ponding Analysis'!$D$15,"")) ->  | P56: =IF(P25="","",IF(P25>'Ponding Analysis'!$D$15,P25-'Ponding Analysis'!$D$15,"")) ->  | Q56: =IF(Q25="","",IF(Q25>'Ponding Analysis'!$D$15,Q25-'Ponding Analysis'!$D$15,"")) ->  | R56: =IF(R25="","",IF(R25>'Ponding Analysis'!$D$15,R25-'Ponding Analysis'!$D$15,"")) ->  | S56: =IF(S25="","",IF(S25>'Ponding Analysis'!$D$15,S25-'Ponding Analysis'!$D$15,"")) ->  | T56: =IF(T25="","",IF(T25>'Ponding Analysis'!$D$15,T25-'Ponding Analysis'!$D$15,"")) ->  | U56: =IF(U25="","",IF(U25>'Ponding Analysis'!$D$15,U25-'Ponding Analysis'!$D$15,"")) ->  | V56: =IF(V25="","",IF(V25>'Ponding Analysis'!$D$15,V25-'Ponding Analysis'!$D$15,"")) ->  | W56: =IF(W25="","",IF(W25>'Ponding Analysis'!$D$15,W25-'Ponding Analysis'!$D$15,"")) -> 
C57: =IF(C26="","",IF(C26>'Ponding Analysis'!$D$15,C26-'Ponding Analysis'!$D$15,"")) ->  | D57: =IF(D26="","",IF(D26>'Ponding Analysis'!$D$15,D26-'Ponding Analysis'!$D$15,"")) ->  | E57: =IF(E26="","",IF(E26>'Ponding Analysis'!$D$15,E26-'Ponding Analysis'!$D$15,"")) ->  | F57: =IF(F26="","",IF(F26>'Ponding Analysis'!$D$15,F26-'Ponding Analysis'!$D$15,"")) ->  | G57: =IF(G26="","",IF(G26>'Ponding Analysis'!$D$15,G26-'Ponding Analysis'!$D$15,"")) ->  | H57: =IF(H26="","",IF(H26>'Ponding Analysis'!$D$15,H26-'Ponding Analysis'!$D$15,"")) ->  | I57: =IF(I26="","",IF(I26>'Ponding Analysis'!$D$15,I26-'Ponding Analysis'!$D$15,"")) ->  | J57: =IF(J26="","",IF(J26>'Ponding Analysis'!$D$15,J26-'Ponding Analysis'!$D$15,"")) ->  | K57: =IF(K26="","",IF(K26>'Ponding Analysis'!$D$15,K26-'Ponding Analysis'!$D$15,"")) ->  | L57: =IF(L26="","",IF(L26>'Ponding Analysis'!$D$15,L26-'Ponding Analysis'!$D$15,"")) ->  | M57: =IF(M26="","",IF(M26>'Ponding Analysis'!$D$15,M26-'Ponding Analysis'!$D$15,"")) ->  | N57: =IF(N26="","",IF(N26>'Ponding Analysis'!$D$15,N26-'Ponding Analysis'!$D$15,"")) ->  | O57: =IF(O26="","",IF(O26>'Ponding Analysis'!$D$15,O26-'Ponding Analysis'!$D$15,"")) ->  | P57: =IF(P26="","",IF(P26>'Ponding Analysis'!$D$15,P26-'Ponding Analysis'!$D$15,"")) ->  | Q57: =IF(Q26="","",IF(Q26>'Ponding Analysis'!$D$15,Q26-'Ponding Analysis'!$D$15,"")) ->  | R57: =IF(R26="","",IF(R26>'Ponding Analysis'!$D$15,R26-'Ponding Analysis'!$D$15,"")) ->  | S57: =IF(S26="","",IF(S26>'Ponding Analysis'!$D$15,S26-'Ponding Analysis'!$D$15,"")) ->  | T57: =IF(T26="","",IF(T26>'Ponding Analysis'!$D$15,T26-'Ponding Analysis'!$D$15,"")) ->  | U57: =IF(U26="","",IF(U26>'Ponding Analysis'!$D$15,U26-'Ponding Analysis'!$D$15,"")) ->  | V57: =IF(V26="","",IF(V26>'Ponding Analysis'!$D$15,V26-'Ponding Analysis'!$D$15,"")) ->  | W57: =IF(W26="","",IF(W26>'Ponding Analysis'!$D$15,W26-'Ponding Analysis'!$D$15,"")) -> 
C58: =IF(C27="","",IF(C27>'Ponding Analysis'!$D$15,C27-'Ponding Analysis'!$D$15,"")) ->  | D58: =IF(D27="","",IF(D27>'Ponding Analysis'!$D$15,D27-'Ponding Analysis'!$D$15,"")) ->  | E58: =IF(E27="","",IF(E27>'Ponding Analysis'!$D$15,E27-'Ponding Analysis'!$D$15,"")) ->  | F58: =IF(F27="","",IF(F27>'Ponding Analysis'!$D$15,F27-'Ponding Analysis'!$D$15,"")) ->  | G58: =IF(G27="","",IF(G27>'Ponding Analysis'!$D$15,G27-'Ponding Analysis'!$D$15,"")) ->  | H58: =IF(H27="","",IF(H27>'Ponding Analysis'!$D$15,H27-'Ponding Analysis'!$D$15,"")) ->  | I58: =IF(I27="","",IF(I27>'Ponding Analysis'!$D$15,I27-'Ponding Analysis'!$D$15,"")) ->  | J58: =IF(J27="","",IF(J27>'Ponding Analysis'!$D$15,J27-'Ponding Analysis'!$D$15,"")) ->  | K58: =IF(K27="","",IF(K27>'Ponding Analysis'!$D$15,K27-'Ponding Analysis'!$D$15,"")) ->  | L58: =IF(L27="","",IF(L27>'Ponding Analysis'!$D$15,L27-'Ponding Analysis'!$D$15,"")) ->  | M58: =IF(M27="","",IF(M27>'Ponding Analysis'!$D$15,M27-'Ponding Analysis'!$D$15,"")) ->  | N58: =IF(N27="","",IF(N27>'Ponding Analysis'!$D$15,N27-'Ponding Analysis'!$D$15,"")) ->  | O58: =IF(O27="","",IF(O27>'Ponding Analysis'!$D$15,O27-'Ponding Analysis'!$D$15,"")) ->  | P58: =IF(P27="","",IF(P27>'Ponding Analysis'!$D$15,P27-'Ponding Analysis'!$D$15,"")) ->  | Q58: =IF(Q27="","",IF(Q27>'Ponding Analysis'!$D$15,Q27-'Ponding Analysis'!$D$15,"")) ->  | R58: =IF(R27="","",IF(R27>'Ponding Analysis'!$D$15,R27-'Ponding Analysis'!$D$15,"")) ->  | S58: =IF(S27="","",IF(S27>'Ponding Analysis'!$D$15,S27-'Ponding Analysis'!$D$15,"")) ->  | T58: =IF(T27="","",IF(T27>'Ponding Analysis'!$D$15,T27-'Ponding Analysis'!$D$15,"")) ->  | U58: =IF(U27="","",IF(U27>'Ponding Analysis'!$D$15,U27-'Ponding Analysis'!$D$15,"")) ->  | V58: =IF(V27="","",IF(V27>'Ponding Analysis'!$D$15,V27-'Ponding Analysis'!$D$15,"")) ->  | W58: =IF(W27="","",IF(W27>'Ponding Analysis'!$D$15,W27-'Ponding Analysis'!$D$15,"")) -> 
C59: =IF(C28="","",IF(C28>'Ponding Analysis'!$D$15,C28-'Ponding Analysis'!$D$15,"")) ->  | D59: =IF(D28="","",IF(D28>'Ponding Analysis'!$D$15,D28-'Ponding Analysis'!$D$15,"")) ->  | E59: =IF(E28="","",IF(E28>'Ponding Analysis'!$D$15,E28-'Ponding Analysis'!$D$15,"")) ->  | F59: =IF(F28="","",IF(F28>'Ponding Analysis'!$D$15,F28-'Ponding Analysis'!$D$15,"")) ->  | G59: =IF(G28="","",IF(G28>'Ponding Analysis'!$D$15,G28-'Ponding Analysis'!$D$15,"")) ->  | H59: =IF(H28="","",IF(H28>'Ponding Analysis'!$D$15,H28-'Ponding Analysis'!$D$15,"")) ->  | I59: =IF(I28="","",IF(I28>'Ponding Analysis'!$D$15,I28-'Ponding Analysis'!$D$15,"")) ->  | J59: =IF(J28="","",IF(J28>'Ponding Analysis'!$D$15,J28-'Ponding Analysis'!$D$15,"")) ->  | K59: =IF(K28="","",IF(K28>'Ponding Analysis'!$D$15,K28-'Ponding Analysis'!$D$15,"")) ->  | L59: =IF(L28="","",IF(L28>'Ponding Analysis'!$D$15,L28-'Ponding Analysis'!$D$15,"")) ->  | M59: =IF(M28="","",IF(M28>'Ponding Analysis'!$D$15,M28-'Ponding Analysis'!$D$15,"")) ->  | N59: =IF(N28="","",IF(N28>'Ponding Analysis'!$D$15,N28-'Ponding Analysis'!$D$15,"")) ->  | O59: =IF(O28="","",IF(O28>'Ponding Analysis'!$D$15,O28-'Ponding Analysis'!$D$15,"")) ->  | P59: =IF(P28="","",IF(P28>'Ponding Analysis'!$D$15,P28-'Ponding Analysis'!$D$15,"")) ->  | Q59: =IF(Q28="","",IF(Q28>'Ponding Analysis'!$D$15,Q28-'Ponding Analysis'!$D$15,"")) ->  | R59: =IF(R28="","",IF(R28>'Ponding Analysis'!$D$15,R28-'Ponding Analysis'!$D$15,"")) ->  | S59: =IF(S28="","",IF(S28>'Ponding Analysis'!$D$15,S28-'Ponding Analysis'!$D$15,"")) ->  | T59: =IF(T28="","",IF(T28>'Ponding Analysis'!$D$15,T28-'Ponding Analysis'!$D$15,"")) ->  | U59: =IF(U28="","",IF(U28>'Ponding Analysis'!$D$15,U28-'Ponding Analysis'!$D$15,"")) ->  | V59: =IF(V28="","",IF(V28>'Ponding Analysis'!$D$15,V28-'Ponding Analysis'!$D$15,"")) ->  | W59: =IF(W28="","",IF(W28>'Ponding Analysis'!$D$15,W28-'Ponding Analysis'!$D$15,"")) -> 

Sheet K Joists (hidden)
A1: JOIST SELECTION TABLE (sorted by span, then joist depth, then black total ASD loads, then weight) | O1: ='Roof Bay Analysis'!D8 -> ASD | P1: Span | Q1: =ROUNDUP('Roof Bay Analysis'!E11,0) -> 30 | R1: ft. | S1: Joist Depths | AI1: JOIST SELECTION TABLE (sorted by span, then joist depth, then red L/360 deflection loads, then weight)
A2: ASD ID | B2: LRFD ID | C2: Span | D2: Requires | E2: Joist Type | I2: ASD Load | J2: LRFD Load | K2: L/360 Load | L2: ="L/"&'Roof Bay Analysis'!$I$51&" Load" -> L/240 Load | M2: Weight | P2: Applied Total Load | Q2: ='Roof Bay Analysis'!D76 -> 187.3875 | R2: plf | S2: Min. | T2: =MAX('Roof Bay Analysis'!D50:D51) -> 16 | U2: in. | AI2: ="L/"&'Roof Bay Analysis'!$I$51&" ID" -> L/240 ID | AJ2: Span | AK2: Requires | AL2: Joist Type | AP2: ASD Load | AQ2: LRFD Load | AR2: L/360 Load | AS2: ="L/"&'Roof Bay Analysis'!$I$51&" Load" -> L/240 Load | AT2: Weight | AV2: Joist | AW2: Span | AX2: Load | AY2: IJ | BC2: From Vulcraft
C3: ft. | D3: X-Bridging | I3: plf | J3: plf | K3: plf | L3: plf | M3: plf | P3: ="Applied L/"&'Roof Bay Analysis'!$I$51&" Load" -> Applied L/240 Load | Q3: =MAX('Roof Bay Analysis'!Y83:Z83) -> 125 | R3: plf | S3: Max. | T3: =MIN('Roof Bay Analysis'!D52:D53) -> 30 | U3: in. | AJ3: ft. | AK3: X-Bridging | AP3: plf | AQ3: plf | AR3: plf | AS3: plf | AT3: plf | AV3: Type | AW3: ft. | AX3: plf | AY3: in.^4 | BA3: Comparison | BC3: Joist | BD3: Ixx
A4: =C4*1000+E4+I4/10000 -> 10000 | B4: =C4*1000+E4+J4/10000 -> 10000 | C4: 10 | E4: 0 | F4: 0 | G4: 0 | H4: 0 | I4: 0 | J4: =1.5*I4 -> 0 | K4: 0 | L4: =MIN(I4,360/'Roof Bay Analysis'!$I$51*K4) -> 0 | M4: 0 | AI4: =AJ4*1000+AL4+AS4/10000 -> 10000 | AJ4: 10 | AL4: 0 | AM4: 0 | AN4: 0 | AO4: 0 | AP4: 0 | AQ4: =1.5*AP4 -> 0 | AR4: 0 | AS4: =MIN(AP4,360/'Roof Bay Analysis'!$I$51*AR4) -> 0 | AT4: 0 | AV4: 10K 1 | AW4: 20 | AX4: 97 | AY4: =26.767*AX4*(AW4-0.33)^3*10^-6 -> 19.75988956 | BA4: =AY4/BD4 -> 0.9021345491 | BC4: 10K1 | BD4: 21.90348389
A5: 10010.055 | B5: 10010.0825 | C5: 10 | E5: =VALUE(LEFT(H5,2)) -> 10 | F5: =MID(H5,3,LEN(H5)-4) -> K | G5: =VALUE(RIGHT(H5,2)) -> 1 | H5: 10K 1 | I5: 550 | J5: 825 | K5: 550 | L5: =MIN(I5,360/'Roof Bay Analysis'!$I$51*K5) -> 550 | M5: 5 | AI5: 10010.055 | AJ5: 10 | AL5: =VALUE(LEFT(AO5,2)) -> 10 | AM5: =MID(AO5,3,LEN(AO5)-4) -> K | AN5: =VALUE(RIGHT(AO5,2)) -> 1 | AO5: 10K 1 | AP5: 550 | AQ5: 825 | AR5: 550 | AS5: =MIN(AP5,360/'Roof Bay Analysis'!$I$51*AR5) -> 550 | AT5: 5 | AV5: 12K 1 | AW5: 24 | AX5: 81 | AY5: 28.75275684 | BA5: 0.892505841 | BC5: 12K1 | BD5: 32.21576322
A6: 11010.055 | B6: 11010.0825 | C6: 11 | E6: 10 | F6: K | G6: 1 | H6: 10K 1 | I6: 550 | J6: 825 | K6: 542 | L6: =MIN(I6,360/'Roof Bay Analysis'!$I$51*K6) -> 550 | M6: 5 | AI6: 11010.055 | AJ6: 11 | AL6: 10 | AM6: K | AN6: 1 | AO6: 10K 1 | AP6: 550 | AQ6: 825 | AR6: 542 | AS6: =MIN(AP6,360/'Roof Bay Analysis'!$I$51*AR6) -> 550 | AT6: 5 | AV6: 12K 3 | AW6: 24 | AX6: 101 | AY6: 35.85220298 | BA6: 0.9751680637 | BC6: 12K3 | BD6: 36.76515291
A7: 12010.055 | B7: 12010.0825 | C7: 12 | E7: 10 | F7: K | G7: 1 | H7: 10K 1 | I7: 550 | J7: 825 | K7: 455 | L7: =MIN(I7,360/'Roof Bay Analysis'!$I$51*K7) -> 550 | M7: 5 | AI7: 12010.055 | AJ7: 12 | AL7: 10 | AM7: K | AN7: 1 | AO7: 10K 1 | AP7: 550 | AQ7: 825 | AR7: 455 | AS7: =MIN(AP7,360/'Roof Bay Analysis'!$I$51*AR7) -> 550 | AT7: 5 | AV7: 12K 5 | AW7: 24 | AX7: 132 | AY7: 46.85634448 | BA7: 0.9536472415 | BC7: 12K5 | BD7: 49.13383319
A8: 12012.055 | B8: 12012.0825 | C8: 12 | E8: 12 | F8: K | G8: 1 | H8: 12K 1 | I8: 550 | J8: 825 | K8: 550 | L8: =MIN(I8,360/'Roof Bay Analysis'!$I$51*K8) -> 550 | M8: 5 | O8: Vlookup (Only used with exact ID match) | Y8: Vlookup (Only used with exact ID match) | AI8: 12012.055 | AJ8: 12 | AL8: 12 | AM8: K | AN8: 1 | AO8: 12K 1 | AP8: 550 | AQ8: 825 | AR8: 550 | AS8: =MIN(AP8,360/'Roof Bay Analysis'!$I$51*AR8) -> 550 | AT8: 5 | AV8: 14K 1 | AW8: 28 | AX8: 70 | AY8: 39.69403208 | BA8: 0.8915790093 | BC8: 14K1 | BD8: 44.52104824
A9: 12012.055 | B9: 12012.0825 | C9: 12 | E9: 12 | F9: K | G9: 3 | H9: 12K 3 | I9: 550 | J9: 825 | K9: 550 | L9: =MIN(I9,360/'Roof Bay Analysis'!$I$51*K9) -> 550 | M9: 5.7 | AI9: 12012.055 | AJ9: 12 | AL9: 12 | AM9: K | AN9: 3 | AO9: 12K 3 | AP9: 550 | AQ9: 825 | AR9: 550 | AS9: =MIN(AP9,360/'Roof Bay Analysis'!$I$51*AR9) -> 550 | AT9: 5.7 | AV9: 14K 3 | AW9: 28 | AX9: 88 | AY9: 49.9010689 | BA9: 0.9795939427 | BC9: 14K3 | BD9: 50.94056499
A10: 12012.055 | B10: 12012.0825 | C10: 12 | E10: 12 | F10: K | G10: 5 | H10: 12K 5 | I10: 550 | J10: 825 | K10: 550 | L10: =MIN(I10,360/'Roof Bay Analysis'!$I$51*K10) -> 550 | M10: 7.1 | P10: ID | Q10: Depth | R10: Type | S10: ASD Load | T10: LRFD Load | U10: ="L/"&'Roof Bay Analysis'!$I$51&" Load" -> L/240 Load | V10: Weight | Z10: ID | AA10: Depth | AB10: Type | AC10: ASD Load | AD10: LRFD Load | AE10: ="L/"&'Roof Bay Analysis'!$I$51&" Load" -> L/240 Load | AF10: Weight | AI10: 12012.055 | AJ10: 12 | AL10: 12 | AM10: K | AN10: 5 | AO10: 12K 5 | AP10: 550 | AQ10: 825 | AR10: 550 | AS10: =MIN(AP10,360/'Roof Bay Analysis'!$I$51*AR10) -> 550 | AT10: 7.1 | AV10: 14K 4 | AW10: 28 | AX10: 103 | AY10: 58.40693292 | BA10: 0.950854513 | BC10: 14K4 | BD10: 61.42573035
A11: 13010.0479 | B11: 13010.07185 | C11: 13 | E11: 10 | F11: K | G11: 1 | H11: 10K 1 | I11: 479 | J11: 718.5 | K11: 363 | L11: =MIN(I11,360/'Roof Bay Analysis'!$I$51*K11) -> 479 | M11: 5 | O11: =IF(Q11="NA","NA",$Q$1*1000+Q11+$Q$2/10000) -> NA | P11: =IF(Q11="NA","NA",IF($O$1="ASD",VLOOKUP(O11,$A$4:$M$1424,1),VLOOKUP(O11,$B$4:$M$1424,1))) -> NA | Q11: =IF(W11<$T$2,"NA",IF(W11>$T$3,"NA",W11)) -> NA | R11: =IF(Q11="NA","NA",IF($O$1="ASD",VLOOKUP(O11,$A$4:$M$1424,8),VLOOKUP(O11,$B$4:$M$1424,7))) -> NA | S11: =IF(Q11="NA","NA",IF($O$1="ASD",VLOOKUP(O11,$A$4:$M$1424,9),VLOOKUP(O11,$B$4:$M$1424,8))) -> NA | T11: =IF(Q11="NA","NA",IF($O$1="ASD",VLOOKUP(O11,$A$4:$M$1424,10),VLOOKUP(O11,$B$4:$M$1424,9))) -> NA | U11: =IF(Q11="NA","NA",IF($O$1="ASD",VLOOKUP(O11,$A$4:$M$1424,12),VLOOKUP(O11,$B$4:$M$1424,11))) -> NA | V11: =IF(Q11="NA","NA",IF($O$1="ASD",VLOOKUP(O11,$A$4:$M$1424,13),VLOOKUP(O11,$B$4:$M$1424,12))) -> NA | W11: 10 | Y11: =IF(AA11="NA","NA",$Q$1*1000+AA11+$Q$3/10000) -> NA | Z11: =IF(AA11="NA","NA",VLOOKUP(Y11,$AI$4:$AT$1424,1)) -> NA | AA11: =IF(AG11<$T$2,"NA",IF(AG11>$T$3,"NA",AG11)) -> NA | AB11: =IF(AA11="NA","NA",VLOOKUP(Y11,$AI$4:$AT$1424,7)) -> NA | AC11: =IF(AA11="NA","NA",VLOOKUP(Y11,$AI$4:$AT$1424,8)) -> NA | AD11: =IF(AA11="NA","NA",VLOOKUP(Y11,$AI$4:$AT$1424,9)) -> NA | AE11: =IF(AA11="NA","NA",VLOOKUP(Y11,$AI$4:$AT$1424,11)) -> NA | AF11: =IF(AA11="NA","NA",VLOOKUP(Y11,$AI$4:$AT$1424,12)) -> NA | AG11: 10 | AI11: 13010.0479 | AJ11: 13 | AL11: 10 | AM11: K | AN11: 1 | AO11: 10K 1 | AP11: 479 | AQ11: 718.5 | AR11: 363 | AS11: =MIN(AP11,360/'Roof Bay Analysis'!$I$51*AR11) -> 479 | AT11: 5 | AV11: 14K 6 | AW11: 28 | AX11: 124 | AY11: 70.31514254 | BA11: 0.9346427653 | BC11: 14K6 | BD11: 75.23210488
A12: 13012.055 | B12: 13012.0825 | C12: 13 | E12: 12 | F12: K | G12: 1 | H12: 12K 1 | I12: 550 | J12: 825 | K12: 510 | L12: =MIN(I12,360/'Roof Bay Analysis'!$I$51*K12) -> 550 | M12: 5 | O12: NA | P12: NA | Q12: =IF(W12<$T$2,"NA",IF(W12>$T$3,"NA",W12)) -> NA | R12: NA | S12: NA | T12: NA | U12: NA | V12: NA | W12: 12 | Y12: =IF(AA12="NA","NA",$Q$1*1000+AA12+$Q$3/10000) -> NA | Z12: NA | AA12: =IF(AG12<$T$2,"NA",IF(AG12>$T$3,"NA",AG12)) -> NA | AB12: NA | AC12: NA | AD12: NA | AE12: NA | AF12: NA | AG12: 12 | AI12: 13012.055 | AJ12: 13 | AL12: 12 | AM12: K | AN12: 1 | AO12: 12K 1 | AP12: 550 | AQ12: 825 | AR12: 510 | AS12: =MIN(AP12,360/'Roof Bay Analysis'!$I$51*AR12) -> 550 | AT12: 5 | AV12: 16K 2 | AW12: 32 | AX12: 71 | AY12: 60.36736753 | BA12: 0.8952062272 | BC12: 16K2 | BD12: 67.43403441
A13: 13012.055 | B13: 13012.0825 | C13: 13 | E13: 12 | F13: K | G13: 3 | H13: 12K 3 | I13: 550 | J13: 825 | K13: 510 | L13: =MIN(I13,360/'Roof Bay Analysis'!$I$51*K13) -> 550 | M13: 5.7 | O13: NA | P13: NA | Q13: NA | R13: NA | S13: NA | T13: NA | U13: NA | V13: NA | W13: 14 | Y13: NA | Z13: NA | AA13: NA | AB13: NA | AC13: NA | AD13: NA | AE13: NA | AF13: NA | AG13: 14 | AI13: 13012.055 | AJ13: 13 | AL13: 12 | AM13: K | AN13: 3 | AO13: 12K 3 | AP13: 550 | AQ13: 825 | AR13: 510 | AS13: =MIN(AP13,360/'Roof Bay Analysis'!$I$51*AR13) -> 550 | AT13: 5.7 | AV13: 16K 3 | AW13: 32 | AX13: 79 | AY13: 67.16932443 | BA13: 0.9619382328 | BC13: 16K3 | BD13: 69.82706596
A14: 13012.055 | B14: 13012.0825 | C14: 13 | E14: 12 | F14: K | G14: 5 | H14: 12K 5 | I14: 550 | J14: 825 | K14: 510 | L14: =MIN(I14,360/'Roof Bay Analysis'!$I$51*K14) -> 550 | M14: 7.1 | O14: 30016.01874 | P14: 30016.018 | Q14: =IF(W14<$T$2,"NA",IF(W14>$T$3,"NA",W14)) -> 16 | R14: 16K 3 | S14: 180 | T14: 270 | U14: 144 | V14: 6.3 | W14: 16 | Y14: 30016.0125 | Z14: 29028.055 | AA14: 16 | AB14: 28K12 | AC14: 550 | AD14: 825 | AE14: 550 | AF14: 14.5 | AG14: 16 | AI14: 13012.055 | AJ14: 13 | AL14: 12 | AM14: K | AN14: 5 | AO14: 12K 5 | AP14: 550 | AQ14: 825 | AR14: 510 | AS14: =MIN(AP14,360/'Roof Bay Analysis'!$I$51*AR14) -> 550 | AT14: 7.1 | AV14: 16K 4 | AW14: 32 | AX14: 92 | AY14: 78.2225044 | BA14: 0.9616281711 | BC14: 16K4 | BD14: 81.34381537
A15: 14010.0412 | B15: 14010.0618 | C15: 14 | E15: 10 | F15: K | G15: 1 | H15: 10K 1 | I15: 412 | J15: 618 | K15: 289 | L15: =MIN(I15,360/'Roof Bay Analysis'!$I$51*K15) -> 412 | M15: 5 | O15: 30018.01874 | P15: 30016.0355 | Q15: 18 | R15: 16K 9 | S15: 355 | T15: 532.5 | U15: 267 | V15: 10 | W15: 18 | Y15: 30018.0125 | Z15: 30016.0267 | AA15: 18 | AB15: 16K 9 | AC15: 355 | AD15: 532.5 | AE15: 267 | AF15: 10 | AG15: 18 | AI15: 14010.0412 | AJ15: 14 | AL15: 10 | AM15: K | AN15: 1 | AO15: 10K 1 | AP15: 412 | AQ15: 618 | AR15: 289 | AS15: =MIN(AP15,360/'Roof Bay Analysis'!$I$51*AR15) -> 412 | AT15: 5 | AV15: 16K 5 | AW15: 32 | AX15: 103 | AY15: 87.57519515 | BA15: 0.9684021168 | BC15: 16K5 | BD15: 90.43267629
A16: 14012.05 | B16: 14012.075 | C16: 14 | E16: 12 | F16: K | G16: 1 | H16: 12K 1 | I16: 500 | J16: 750 | K16: 425 | L16: =MIN(I16,360/'Roof Bay Analysis'!$I$51*K16) -> 500 | M16: 5 | O16: =IF(Q16="NA","NA",$Q$1*1000+Q16+$Q$2/10000) -> 30020.01874 | P16: 30018.0477 | Q16: 20 | R16: 18K10 | S16: 477 | T16: 715.5 | U16: 403.5 | V16: 11.6 | W16: 20 | Y16: 30020.0125 | Z16: 30018.04035 | AA16: 20 | AB16: 18K10 | AC16: 477 | AD16: 715.5 | AE16: 403.5 | AF16: 11.6 | AG16: 20 | AI16: 14012.05 | AJ16: 14 | AL16: 12 | AM16: K | AN16: 1 | AO16: 12K 1 | AP16: 500 | AQ16: 750 | AR16: 425 | AS16: =MIN(AP16,360/'Roof Bay Analysis'!$I$51*AR16) -> 500 | AT16: 5 | AV16: 16K 6 | AW16: 32 | AX16: 112 | AY16: 95.22739666 | BA16: 0.9545502585 | BC16: 16K6 | BD16: 99.76153253
A17: 14012.055 | B17: 14012.0825 | C17: 14 | E17: 12 | F17: K | G17: 3 | H17: 12K 3 | I17: 550 | J17: 825 | K17: 463 | L17: =MIN(I17,360/'Roof Bay Analysis'!$I$51*K17) -> 550 | M17: 5.7 | O17: =IF(Q17="NA","NA",$Q$1*1000+Q17+$Q$2/10000) -> 30022.01874 | P17: 30020.0533 | Q17: 22 | R17: 20K10 | S17: 533 | T17: 799.5 | U17: 504 | V17: 11.6 | W17: 22 | Y17: 30022.0125 | Z17: 30020.0504 | AA17: 22 | AB17: 20K10 | AC17: 533 | AD17: 799.5 | AE17: 504 | AF17: 11.6 | AG17: 22 | AI17: 14012.055 | AJ17: 14 | AL17: 12 | AM17: K | AN17: 3 | AO17: 12K 3 | AP17: 550 | AQ17: 825 | AR17: 463 | AS17: =MIN(AP17,360/'Roof Bay Analysis'!$I$51*AR17) -> 550 | AT17: 5.7 | AV17: 16K 7 | AW17: 32 | AX17: 124 | AY17: 105.430332 | BA17: 0.9664256392 | BC17: 16K7 | BD17: 109.0930618
A18: 14012.055 | B18: 14012.0825 | C18: 14 | E18: 12 | F18: K | G18: 5 | H18: 12K 5 | I18: 550 | J18: 825 | K18: 463 | L18: =MIN(I18,360/'Roof Bay Analysis'!$I$51*K18) -> 550 | M18: 7.1 | O18: 30024.01874 | P18: 30022.055 | Q18: 24 | R18: 22K11 | S18: 550 | T18: 825 | U18: 550 | V18: 11.9 | W18: 24 | Y18: 30024.0125 | Z18: 30022.055 | AA18: 24 | AB18: 22K11 | AC18: 550 | AD18: 825 | AE18: 550 | AF18: 11.9 | AG18: 24 | AI18: 14012.055 | AJ18: 14 | AL18: 12 | AM18: K | AN18: 5 | AO18: 12K 5 | AP18: 550 | AQ18: 825 | AR18: 463 | AS18: =MIN(AP18,360/'Roof Bay Analysis'!$I$51*AR18) -> 550 | AT18: 7.1 | AV18: 16K 9 | AW18: 32 | AX18: 147 | AY18: 124.9859581 | BA18: 0.9765289182 | BC18: 16K9 | BD18: 127.9900224
A19: 14014.055 | B19: 14014.0825 | C19: 14 | E19: 14 | F19: K | G19: 1 | H19: 14K 1 | I19: 550 | J19: 825 | K19: 550 | L19: =MIN(I19,360/'Roof Bay Analysis'!$I$51*K19) -> 550 | M19: 5.2 | O19: 30026.01874 | P19: 30024.055 | Q19: =IF(W19<$T$2,"NA",IF(W19>$T$3,"NA",W19)) -> 26 | R19: 24K12 | S19: 550 | T19: 825 | U19: 550 | V19: 13.5 | W19: 26 | Y19: 30026.0125 | Z19: 30024.055 | AA19: 26 | AB19: 24K12 | AC19: 550 | AD19: 825 | AE19: 550 | AF19: 13.5 | AG19: 26 | AI19: 14014.055 | AJ19: 14 | AL19: 14 | AM19: K | AN19: 1 | AO19: 14K 1 | AP19: 550 | AQ19: 825 | AR19: 550 | AS19: =MIN(AP19,360/'Roof Bay Analysis'!$I$51*AR19) -> 550 | AT19: 5.2 | AV19: 18K 3 | AW19: 36 | AX19: 70 | AY19: 85.03683093 | BA19: 0.9521515305 | BC19: 18K3 | BD19: 89.31018668
A20: 14014.055 | B20: 14014.0825 | C20: 14 | E20: 14 | F20: K | G20: 3 | H20: 14K 3 | I20: 550 | J20: 825 | K20: 550 | L20: =MIN(I20,360/'Roof Bay Analysis'!$I$51*K20) -> 550 | M20: 6 | O20: 30028.01874 | P20: 30026.055 | Q20: 28 | R20: 26K12 | S20: 550 | T20: 825 | U20: 550 | V20: 13.7 | W20: 28 | Y20: 30028.0125 | Z20: 30026.055 | AA20: 28 | AB20: 26K12 | AC20: 550 | AD20: 825 | AE20: 550 | AF20: 13.7 | AG20: 28 | AI20: 14014.055 | AJ20: 14 | AL20: 14 | AM20: K | AN20: 3 | AO20: 14K 3 | AP20: 550 | AQ20: 825 | AR20: 550 | AS20: =MIN(AP20,360/'Roof Bay Analysis'!$I$51*AR20) -> 550 | AT20: 6 | AV20: 18K 4 | AW20: 36 | AX20: 82 | AY20: 99.61457338 | BA20: 0.9572362866 | BC20: 18K4 | BD20: 104.0647693
A21: 14014.055 | B21: 14014.0825 | C21: 14 | E21: 14 | F21: K | G21: 4 | H21: 14K 4 | I21: 550 | J21: 825 | K21: 550 | L21: =MIN(I21,360/'Roof Bay Analysis'!$I$51*K21) -> 550 | M21: 6.7 | O21: 30030.01874 | P21: 30028.055 | Q21: 30 | R21: 28K12 | S21: 550 | T21: 825 | U21: 550 | V21: 14.5 | W21: 30 | Y21: 30030.0125 | Z21: 30028.055 | AA21: =IF(AG21<$T$2,"NA",IF(AG21>$T$3,"NA",AG21)) -> 30 | AB21: 28K12 | AC21: 550 | AD21: 825 | AE21: 550 | AF21: 14.5 | AG21: 30 | AI21: 14014.055 | AJ21: 14 | AL21: 14 | AM21: K | AN21: 4 | AO21: 14K 4 | AP21: 550 | AQ21: 825 | AR21: 550 | AS21: =MIN(AP21,360/'Roof Bay Analysis'!$I$51*AR21) -> 550 | AT21: 6.7 | AV21: 18K 5 | AW21: 36 | AX21: 92 | AY21: 111.7626921 | BA21: 0.9651863403 | BC21: 18K5 | BD21: 115.7939016
A22: 14014.055 | B22: 14014.0825 | C22: 14 | E22: 14 | F22: K | G22: 6 | H22: 14K 6 | I22: 550 | J22: 825 | K22: 550 | L22: =MIN(I22,360/'Roof Bay Analysis'!$I$51*K22) -> 550 | M22: 7.7 | O22: NA | P22: NA | Q22: NA | R22: NA | S22: NA | T22: NA | U22: NA | V22: NA | W22: 32 | Y22: NA | Z22: NA | AA22: NA | AB22: NA | AC22: NA | AD22: NA | AE22: NA | AF22: NA | AG22: 32 | AI22: 14014.055 | AJ22: 14 | AL22: 14 | AM22: K | AN22: 6 | AO22: 14K 6 | AP22: 550 | AQ22: 825 | AR22: 550 | AS22: =MIN(AP22,360/'Roof Bay Analysis'!$I$51*AR22) -> 550 | AT22: 7.7 | AV22: 18K 6 | AW22: 36 | AX22: 101 | AY22: 122.6959989 | BA22: 0.9603533895 | BC22: 18K6 | BD22: 127.7613015
A23: 15010.0358 | B23: 15010.0537 | C23: 15 | E23: 10 | F23: K | G23: 1 | H23: 10K 1 | I23: 358 | J23: 537 | K23: 234 | L23: =MIN(I23,360/'Roof Bay Analysis'!$I$51*K23) -> 351 | M23: 5 | O23: NA | P23: NA | Q23: NA | R23: NA | S23: NA | T23: NA | U23: NA | V23: NA | W23: 36 | Y23: NA | Z23: NA | AA23: NA | AB23: NA | AC23: NA | AD23: NA | AE23: NA | AF23: NA | AG23: 36 | AI23: 15010.0351 | AJ23: 15 | AL23: 10 | AM23: K | AN23: 1 | AO23: 10K 1 | AP23: 358 | AQ23: 537 | AR23: 234 | AS23: =MIN(AP23,360/'Roof Bay Analysis'!$I$51*AR23) -> 351 | AT23: 5 | AV23: 18K 7 | AW23: 36 | AX23: 111 | AY23: 134.8441176 | BA23: 0.9637520673 | BC23: 18K7 | BD23: 139.9157752
A24: 15012.0434 | B24: 15012.0651 | C24: 15 | E24: 12 | F24: K | G24: 1 | H24: 12K 1 | I24: 434 | J24: 651 | K24: 344 | L24: =MIN(I24,360/'Roof Bay Analysis'!$I$51*K24) -> 434 | M24: 5 | O24: NA | P24: NA | Q24: NA | R24: NA | S24: NA | T24: NA | U24: NA | V24: NA | W24: 40 | Y24: NA | Z24: NA | AA24: NA | AB24: NA | AC24: NA | AD24: NA | AE24: NA | AF24: NA | AG24: 40 | AI24: 15012.0434 | AJ24: 15 | AL24: 12 | AM24: K | AN24: 1 | AO24: 12K 1 | AP24: 434 | AQ24: 651 | AR24: 344 | AS24: =MIN(AP24,360/'Roof Bay Analysis'!$I$51*AR24) -> 434 | AT24: 5 | AV24: 18K 9 | AW24: 36 | AX24: 132 | AY24: =26.767*AX24*(AW24-0.33)^3*10^-6 -> 160.3551669 | BA24: 0.9752296219 | BC24: 18K9 | BD24: 164.4281134
A25: 15012.0543 | B25: 15012.08145 | C25: 15 | E25: 12 | F25: K | G25: 3 | H25: 12K 3 | I25: 543 | J25: 814.5 | K25: 428 | L25: =MIN(I25,360/'Roof Bay Analysis'!$I$51*K25) -> 543 | M25: 5.7 | O25: NA | P25: NA | Q25: NA | R25: NA | S25: NA | T25: NA | U25: NA | V25: NA | W25: 44 | Y25: NA | Z25: NA | AA25: NA | AB25: NA | AC25: NA | AD25: NA | AE25: NA | AF25: NA | AG25: 44 | AI25: 15012.0543 | AJ25: 15 | AL25: 12 | AM25: K | AN25: 3 | AO25: 12K 3 | AP25: 543 | AQ25: 814.5 | AR25: 428 | AS25: =MIN(AP25,360/'Roof Bay Analysis'!$I$51*AR25) -> 543 | AT25: 5.7 | AV25: 18K10 | AW25: 36 | AX25: 154 | AY25: 187.081028 | BA25: 0.9788072623 | BC25: 18K10 | BD25: 191.1316306
A26: 15012.055 | B26: 15012.0825 | C26: 15 | E26: 12 | F26: K | G26: 5 | H26: 12K 5 | I26: 550 | J26: 825 | K26: 434 | L26: =MIN(I26,360/'Roof Bay Analysis'!$I$51*K26) -> 550 | M26: 7.1 | O26: NA | P26: NA | Q26: NA | R26: NA | S26: NA | T26: NA | U26: NA | V26: NA | W26: 48 | Y26: NA | Z26: NA | AA26: NA | AB26: NA | AC26: NA | AD26: NA | AE26: NA | AF26: NA | AG26: 48 | AI26: 15012.055 | AJ26: 15 | AL26: 12 | AM26: K | AN26: 5 | AO26: 12K 5 | AP26: 550 | AQ26: 825 | AR26: 434 | AS26: =MIN(AP26,360/'Roof Bay Analysis'!$I$51*AR26) -> 550 | AT26: 7.1 | AV26: 20K 3 | AW26: 40 | AX26: 64 | AY26: 106.9464257 | BA26: 0.9617946061 | BC26: 20K3 | BD26: 111.1946615
A27: 15014.0511 | B27: 15014.07665 | C27: 15 | E27: 14 | F27: K | G27: 1 | H27: 14K 1 | I27: 511 | J27: 766.5 | K27: 475 | L27: =MIN(I27,360/'Roof Bay Analysis'!$I$51*K27) -> 511 | M27: 5.2 | O27: NA | P27: NA | Q27: NA | R27: NA | S27: NA | T27: NA | U27: NA | V27: NA | W27: 52 | Y27: NA | Z27: NA | AA27: NA | AB27: NA | AC27: NA | AD27: NA | AE27: NA | AF27: NA | AG27: 52 | AI27: 15014.0511 | AJ27: 15 | AL27: 14 | AM27: K | AN27: 1 | AO27: 14K 1 | AP27: 511 | AQ27: 766.5 | AR27: 475 | AS27: =MIN(AP27,360/'Roof Bay Analysis'!$I$51*AR27) -> 511 | AT27: 5.2 | AV27: 20K 4 | AW27: 40 | AX27: 75 | AY27: 125.3278426 | BA27: 0.9671209508 | BC27: 20K4 | BD27: 129.5885923
A28: 15014.055 | B28: 15014.0825 | C28: 15 | E28: 14 | F28: K | G28: 3 | H28: 14K 3 | I28: 550 | J28: 825 | K28: 507 | L28: =MIN(I28,360/'Roof Bay Analysis'!$I$51*K28) -> 550 | M28: 6 | O28: NA | P28: NA | Q28: NA | R28: NA | S28: NA | T28: NA | U28: NA | V28: NA | W28: 56 | Y28: NA | Z28: NA | AA28: NA | AB28: NA | AC28: NA | AD28: NA | AE28: NA | AF28: NA | AG28: 56 | AI28: 15014.055 | AJ28: 15 | AL28: 14 | AM28: K | AN28: 3 | AO28: 14K 3 | AP28: 550 | AQ28: 825 | AR28: 507 | AS28: =MIN(AP28,360/'Roof Bay Analysis'!$I$51*AR28) -> 550 | AT28: 6 | AV28: 20K 5 | AW28: 40 | AX28: 84 | AY28: 140.3671837 | BA28: 0.972770301 | BC28: 20K5 | BD28: 144.2963293
A29: 15014.055 | B29: 15014.0825 | C29: 15 | E29: 14 | F29: K | G29: 4 | H29: 14K 4 | I29: 550 | J29: 825 | K29: 507 | L29: =MIN(I29,360/'Roof Bay Analysis'!$I$51*K29) -> 550 | M29: 6.7 | O29: NA | P29: NA | Q29: NA | R29: NA | S29: NA | T29: NA | U29: NA | V29: NA | W29: 60 | Y29: NA | Z29: NA | AA29: NA | AB29: NA | AC29: NA | AD29: NA | AE29: NA | AF29: NA | AG29: 60 | AI29: 15014.055 | AJ29: 15 | AL29: 14 | AM29: K | AN29: 4 | AO29: 14K 4 | AP29: 550 | AQ29: 825 | AR29: 507 | AS29: =MIN(AP29,360/'Roof Bay Analysis'!$I$51*AR29) -> 550 | AT29: 6.7 | AV29: 20K 6 | AW29: 40 | AX29: 91 | AY29: 152.064449 | BA29: 0.9549902711 | BC29: 20K6 | BD29: 159.2314117
A30: 15014.055 | B30: 15014.0825 | C30: 15 | E30: 14 | F30: K | G30: 6 | H30: 14K 6 | I30: 550 | J30: 825 | K30: 507 | L30: =MIN(I30,360/'Roof Bay Analysis'!$I$51*K30) -> 550 | M30: 7.7 | O30: NA | P30: NA | Q30: NA | R30: NA | S30: NA | T30: NA | U30: NA | V30: NA | W30: 64 | Y30: NA | Z30: NA | AA30: NA | AB30: NA | AC30: NA | AD30: NA | AE30: NA | AF30: NA | AG30: 64 | AI30: 15014.055 | AJ30: 15 | AL30: 14 | AM30: K | AN30: 6 | AO30: 14K 6 | AP30: 550 | AQ30: 825 | AR30: 507 | AS30: =MIN(AP30,360/'Roof Bay Analysis'!$I$51*AR30) -> 550 | AT30: 7.7 | AV30: 20K 7 | AW30: 40 | AX30: 101 | AY30: 168.774828 | BA30: 0.9667079182 | BC30: 20K7 | BD30: 174.5871993
A31: 16010.0313 | B31: 16010.04695 | C31: 16 | E31: 10 | F31: K | G31: 1 | H31: 10K 1 | I31: 313 | J31: 469.5 | K31: 192 | L31: =MIN(I31,360/'Roof Bay Analysis'!$I$51*K31) -> 288 | M31: 5 | O31: NA | P31: NA | Q31: NA | R31: NA | S31: NA | T31: NA | U31: NA | V31: NA | W31: 68 | Y31: NA | Z31: NA | AA31: NA | AB31: NA | AC31: NA | AD31: NA | AE31: NA | AF31: NA | AG31: 68 | AI31: 16010.0288 | AJ31: 16 | AL31: 10 | AM31: K | AN31: 1 | AO31: 10K 1 | AP31: 313 | AQ31: 469.5 | AR31: 192 | AS31: =MIN(AP31,360/'Roof Bay Analysis'!$I$51*AR31) -> 288 | AT31: 5 | AV31: 20K 9 | AW31: 40 | AX31: 119 | AY31: 198.8535102 | BA31: 0.9678793229 | BC31: 20K9 | BD31: 205.4527931
A32: 16012.038 | B32: 16012.057 | C32: 16 | E32: 12 | F32: K | G32: 1 | H32: 12K 1 | I32: 380 | J32: 570 | K32: 282 | L32: =MIN(I32,360/'Roof Bay Analysis'!$I$51*K32) -> 380 | M32: 5 | O32: NA | P32: NA | Q32: NA | R32: NA | S32: NA | T32: NA | U32: NA | V32: NA | W32: 72 | Y32: NA | Z32: NA | AA32: NA | AB32: NA | AC32: NA | AD32: NA | AE32: NA | AF32: NA | AG32: 72 | AI32: 16012.038 | AJ32: 16 | AL32: 12 | AM32: K | AN32: 1 | AO32: 12K 1 | AP32: 380 | AQ32: 570 | AR32: 282 | AS32: =MIN(AP32,360/'Roof Bay Analysis'!$I$51*AR32) -> 380 | AT32: 5 | AV32: 20K10 | AW32: 40 | AX32: 140 | AY32: 233.9453062 | BA32: 0.9793535613 | BC32: 20K10 | BD32: 238.8772711
A33: 16012.0476 | B33: 16012.0714 | C33: 16 | E33: 12 | F33: K | G33: 3 | H33: 12K 3 | I33: 476 | J33: 714 | K33: 351 | L33: =MIN(I33,360/'Roof Bay Analysis'!$I$51*K33) -> 476 | M33: 5.7 | O33: NA | P33: NA | Q33: =IF(W33<$T$2,"NA",IF(W33>$T$3,"NA",W33)) -> NA | R33: NA | S33: NA | T33: NA | U33: NA | V33: NA | W33: 80 | Y33: NA | Z33: NA | AA33: NA | AB33: NA | AC33: NA | AD33: NA | AE33: NA | AF33: NA | AG33: 80 | AI33: 16012.0476 | AJ33: 16 | AL33: 12 | AM33: K | AN33: 3 | AO33: 12K 3 | AP33: 476 | AQ33: 714 | AR33: 351 | AS33: =MIN(AP33,360/'Roof Bay Analysis'!$I$51*AR33) -> 476 | AT33: 5.7 | AV33: 22K 4 | AW33: 44 | AX33: 68 | AY33: 151.5856839 | BA33: 0.9599177474 | BC33: 22K4 | BD33: 157.9152842
A34: 16012.055 | B34: 16012.0825 | C34: 16 | E34: 12 | F34: K | G34: 5 | H34: 12K 5 | I34: 550 | J34: 825 | K34: 396 | L34: =MIN(I34,360/'Roof Bay Analysis'!$I$51*K34) -> 550 | M34: 7.1 | O34: NA | P34: NA | Q34: NA | R34: NA | S34: NA | T34: NA | U34: NA | V34: NA | W34: 88 | Y34: NA | Z34: NA | AA34: NA | AB34: NA | AC34: NA | AD34: NA | AE34: NA | AF34: NA | AG34: 88 | AI34: 16012.055 | AJ34: 16 | AL34: 12 | AM34: K | AN34: 5 | AO34: 12K 5 | AP34: 550 | AQ34: 825 | AR34: 396 | AS34: =MIN(AP34,360/'Roof Bay Analysis'!$I$51*AR34) -> 550 | AT34: 7.1 | AV34: 22K 5 | AW34: 44 | AX34: 76 | AY34: 169.4192937 | BA34: 0.9629381192 | BC34: 22K5 | BD34: 175.9399596
A35: 16014.0448 | B35: 16014.0672 | C35: 16 | E35: 14 | F35: K | G35: 1 | H35: 14K 1 | I35: 448 | J35: 672 | K35: 390 | L35: =MIN(I35,360/'Roof Bay Analysis'!$I$51*K35) -> 448 | M35: 5.2 | O35: NA | P35: NA | Q35: NA | R35: NA | S35: NA | T35: NA | U35: NA | V35: NA | W35: 96 | Y35: NA | Z35: NA | AA35: NA | AB35: NA | AC35: NA | AD35: NA | AE35: NA | AF35: NA | AG35: 96 | AI35: 16014.0448 | AJ35: 16 | AL35: 14 | AM35: K | AN35: 1 | AO35: 14K 1 | AP35: 448 | AQ35: 672 | AR35: 390 | AS35: =MIN(AP35,360/'Roof Bay Analysis'!$I$51*AR35) -> 448 | AT35: 5.2 | AV35: 22K 6 | AW35: 44 | AX35: 83 | AY35: 185.0237024 | BA35: 0.9528862696 | BC35: 22K6 | BD35: 194.1718632
A36: 16014.055 | B36: 16014.0825 | C36: 16 | E36: 14 | F36: K | G36: 3 | H36: 14K 3 | I36: 550 | J36: 825 | K36: 467 | L36: =MIN(I36,360/'Roof Bay Analysis'!$I$51*K36) -> 550 | M36: 6 | O36: NA | P36: NA | Q36: NA | R36: NA | S36: NA | T36: NA | U36: NA | V36: NA | W36: 104 | Y36: NA | Z36: NA | AA36: NA | AB36: NA | AC36: NA | AD36: NA | AE36: NA | AF36: NA | AG36: 104 | AI36: 16014.055 | AJ36: 16 | AL36: 14 | AM36: K | AN36: 3 | AO36: 14K 3 | AP36: 550 | AQ36: 825 | AR36: 467 | AS36: =MIN(AP36,360/'Roof Bay Analysis'!$I$51*AR36) -> 550 | AT36: 6 | AV36: 22K 7 | AW36: 44 | AX36: 92 | AY36: 205.0865135 | BA36: =AY36/BD36 -> 0.9623625308 | BC36: 22K7 | BD36: 213.1073342
A37: 16014.055 | B37: 16014.0825 | C37: 16 | E37: 14 | F37: K | G37: 4 | H37: 14K 4 | I37: 550 | J37: 825 | K37: 467 | L37: =MIN(I37,360/'Roof Bay Analysis'!$I$51*K37) -> 550 | M37: 6.7 | O37: NA | P37: NA | Q37: NA | R37: NA | S37: NA | T37: NA | U37: NA | V37: NA | W37: 112 | Y37: NA | Z37: NA | AA37: NA | AB37: NA | AC37: NA | AD37: NA | AE37: NA | AF37: NA | AG37: 112 | AI37: 16014.055 | AJ37: 16 | AL37: 14 | AM37: K | AN37: 4 | AO37: 14K 4 | AP37: 550 | AQ37: 825 | AR37: 467 | AS37: =MIN(AP37,360/'Roof Bay Analysis'!$I$51*AR37) -> 550 | AT37: 6.7 | AV37: 22K 9 | AW37: 44 | AX37: 109 | AY37: 242.9829344 | BA37: 0.9678124905 | BC37: 22K9 | BD37: 251.0640613
A38: 16014.055 | B38: 16014.0825 | C38: 16 | E38: 14 | F38: K | G38: 6 | H38: 14K 6 | I38: 550 | J38: 825 | K38: 467 | L38: =MIN(I38,360/'Roof Bay Analysis'!$I$51*K38) -> 550 | M38: 7.7 | O38: NA | P38: NA | Q38: NA | R38: NA | S38: NA | T38: NA | U38: NA | V38: NA | W38: 120 | Y38: NA | Z38: NA | AA38: NA | AB38: NA | AC38: NA | AD38: NA | AE38: NA | AF38: NA | AG38: 120 | AI38: 16014.055 | AJ38: 16 | AL38: 14 | AM38: K | AN38: 6 | AO38: 14K 6 | AP38: 550 | AQ38: 825 | AR38: 467 | AS38: =MIN(AP38,360/'Roof Bay Analysis'!$I$51*AR38) -> 550 | AT38: 7.7 | AV38: 22K10 | AW38: 44 | AX38: 128 | AY38: 285.3377579 | BA38: 0.9772963692 | BC38: 22K10 | BD38: 291.9664565
A39: 16016.055 | B39: 16016.0825 | C39: 16 | E39: 16 | F39: K | G39: 2 | H39: 16K 2 | I39: 550 | J39: 825 | K39: 550 | L39: =MIN(I39,360/'Roof Bay Analysis'!$I$51*K39) -> 550 | M39: 5.5 | AI39: 16016.055 | AJ39: 16 | AL39: 16 | AM39: K | AN39: 2 | AO39: 16K 2 | AP39: 550 | AQ39: 825 | AR39: 550 | AS39: =MIN(AP39,360/'Roof Bay Analysis'!$I$51*AR39) -> 550 | AT39: 5.5 | AV39: 22K11 | AW39: 44 | AX39: 146 | AY39: 325.4633801 | BA39: 0.9476440145 | BC39: 22K11 | BD39: 343.4447695
A40: 16016.055 | B40: 16016.0825 | C40: 16 | E40: 16 | F40: K | G40: 3 | H40: 16K 3 | I40: 550 | J40: 825 | K40: 550 | L40: =MIN(I40,360/'Roof Bay Analysis'!$I$51*K40) -> 550 | M40: 6.3 | O40: Use next size up if ID doesn't match. | Y40: Use next size up if ID doesn't match. | AI40: 16016.055 | AJ40: 16 | AL40: 16 | AM40: K | AN40: 3 | AO40: 16K 3 | AP40: 550 | AQ40: 825 | AR40: 550 | AS40: =MIN(AP40,360/'Roof Bay Analysis'!$I$51*AR40) -> 550 | AT40: 6.3 | AV40: 24K 4 | AW40: 48 | AX40: 63 | AY40: 182.6735649 | BA40: 0.9662975198 | BC40: 24K4 | BD40: 189.044845
A41: 16016.055 | B41: 16016.0825 | C41: 16 | E41: 16 | F41: K | G41: 4 | H41: 16K 4 | I41: 550 | J41: 825 | K41: 550 | L41: =MIN(I41,360/'Roof Bay Analysis'!$I$51*K41) -> 550 | M41: 7 | AI41: 16016.055 | AJ41: 16 | AL41: 16 | AM41: K | AN41: 4 | AO41: 16K 4 | AP41: 550 | AQ41: 825 | AR41: 550 | AS41: =MIN(AP41,360/'Roof Bay Analysis'!$I$51*AR41) -> 550 | AT41: 7 | AV41: 24K 5 | AW41: 48 | AX41: 70 | AY41: 202.9706277 | BA41: 0.9632024095 | BC41: 24K5 | BD41: 210.7247923
A42: 16016.055 | B42: 16016.0825 | C42: 16 | E42: 16 | F42: K | G42: 5 | H42: 16K 5 | I42: 550 | J42: 825 | K42: 550 | L42: =MIN(I42,360/'Roof Bay Analysis'!$I$51*K42) -> 550 | M42: 7.5 | O42: =IF(Q42="NA","NA",$Q$1*1000+Q42+$Q$2/10000) -> NA | P42: =IF(Q42="NA","NA",IF($P11=$O11,$P11,IF($O$1="ASD",INDEX($A$4:$A$1424,MATCH($O42,$A$4:$A$1424,1)+1),INDEX($B$4:$B$1424,MATCH($O42,$B$4:$B$1424,1)+1)))) -> NA | Q42: =IF(W42<$T$2,"NA",IF(W42>$T$3,"NA",W42)) -> NA | R42: =IF(Q42="NA","NA",IF($P11=$O11,$R11,INDEX($H$4:$H$1424,MATCH($O42,IF($O$1="ASD",$A$4:$A$1424,$B$4:$B$1424),1)+1))) -> NA | S42: =IF(Q42="NA","NA",IF($P11=$O11,$S11,INDEX($I$4:$I$1424,MATCH($O42,IF($O$1="ASD",$A$4:$A$1424,$B$4:$B$1424),1)+1))) -> NA | T42: =IF(Q42="NA","NA",IF($P11=$O11,$T11,INDEX($J$4:$J$1424,MATCH($O42,IF($O$1="ASD",$A$4:$A$1424,$B$4:$B$1424),1)+1))) -> NA | U42: =IF(Q42="NA","NA",IF($P11=$O11,$U11,INDEX($L$4:$L$1424,MATCH($O42,IF($O$1="ASD",$A$4:$A$1424,$B$4:$B$1424),1)+1))) -> NA | V42: =IF(Q42="NA","NA",IF($P11=$O11,$V11,INDEX($M$4:$M$1424,MATCH($O42,IF($O$1="ASD",$A$4:$A$1424,$B$4:$B$1424),1)+1))) -> NA | W42: 10 | Y42: =IF(AA42="NA","NA",$Q$1*1000+AA42+$Q$3/10000) -> NA | Z42: =IF(AA42="NA","NA",IF($Z11=$Y11,$Z11,INDEX($AI$4:$AI$1424,MATCH($Y42,$AI$4:$AI$1424,1)+1))) -> NA | AA42: =IF(AG42<$T$2,"NA",IF(AG42>$T$3,"NA",AG42)) -> NA | AB42: =IF(AA42="NA","NA",IF($Z11=$Y11,$AB11,INDEX($AO$4:$AO$1424,MATCH($Y42,$AI$4:$AI$1424,1)+1))) -> NA | AC42: =IF(AA42="NA","NA",IF($Z11=$Y11,$AC11,INDEX($AP$4:$AP$1424,MATCH($Y42,$AI$4:$AI$1424,1)+1))) -> NA | AD42: =IF(AA42="NA","NA",IF($Z11=$Y11,$AD11,INDEX($AQ$4:$AQ$1424,MATCH($Y42,$AI$4:$AI$1424,1)+1))) -> NA | AE42: =IF(AA42="NA","NA",IF($Z11=$Y11,$AE11,INDEX($AS$4:$AS$1424,MATCH($Y42,$AI$4:$AI$1424,1)+1))) -> NA | AF42: =IF(AA42="NA","NA",IF($Z11=$Y11,$AF11,INDEX($AT$4:$AT$1424,MATCH($Y42,$AI$4:$AI$1424,1)+1))) -> NA | AG42: 10 | AI42: 16016.055 | AJ42: 16 | AL42: 16 | AM42: K | AN42: 5 | AO42: 16K 5 | AP42: 550 | AQ42: 825 | AR42: 550 | AS42: =MIN(AP42,360/'Roof Bay Analysis'!$I$51*AR42) -> 550 | AT42: 7.5 | AV42: 24K 6 | AW42: 48 | AX42: 77 | AY42: 223.2676904 | BA42: 0.9599498702 | BC42: 24K6 | BD42: 232.582656
A43: 16016.055 | B43: 16016.0825 | C43: 16 | E43: 16 | F43: K | G43: 6 | H43: 16K 6 | I43: 550 | J43: 825 | K43: 550 | L43: =MIN(I43,360/'Roof Bay Analysis'!$I$51*K43) -> 550 | M43: 8.1 | O43: =IF(Q43="NA","NA",$Q$1*1000+Q43+$Q$2/10000) -> NA | P43: NA | Q43: NA | R43: NA | S43: NA | T43: NA | U43: NA | V43: NA | W43: 12 | Y43: =IF(AA43="NA","NA",$Q$1*1000+AA43+$Q$3/10000) -> NA | Z43: NA | AA43: =IF(AG43<$T$2,"NA",IF(AG43>$T$3,"NA",AG43)) -> NA | AB43: NA | AC43: NA | AD43: NA | AE43: NA | AF43: NA | AG43: 12 | AI43: 16016.055 | AJ43: 16 | AL43: 16 | AM43: K | AN43: 6 | AO43: 16K 6 | AP43: 550 | AQ43: 825 | AR43: 550 | AS43: =MIN(AP43,360/'Roof Bay Analysis'!$I$51*AR43) -> 550 | AT43: 8.1 | AV43: 24K 7 | AW43: 48 | AX43: 85 | AY43: 246.4643336 | BA43: 0.9647252976 | BC43: 24K7 | BD43: 255.4761798
A44: 16016.055 | B44: 16016.0825 | C44: 16 | E44: 16 | F44: K | G44: 7 | H44: 16K 7 | I44: 550 | J44: 825 | K44: 550 | L44: =MIN(I44,360/'Roof Bay Analysis'!$I$51*K44) -> 550 | M44: 8.6 | O44: NA | P44: NA | Q44: NA | R44: NA | S44: NA | T44: NA | U44: NA | V44: NA | W44: 14 | Y44: NA | Z44: NA | AA44: NA | AB44: NA | AC44: NA | AD44: NA | AE44: NA | AF44: NA | AG44: 14 | AI44: 16016.055 | AJ44: 16 | AL44: 16 | AM44: K | AN44: 7 | AO44: 16K 7 | AP44: 550 | AQ44: 825 | AR44: 550 | AS44: =MIN(AP44,360/'Roof Bay Analysis'!$I$51*AR44) -> 550 | AT44: 8.6 | AV44: 24K 8 | AW44: 48 | AX44: 93 | AY44: 269.6609767 | BA44: 1.008024676 | BC44: 24K8 | BD44: 267.5142614
A45: 16016.055 | B45: 16016.0825 | C45: 16 | E45: 16 | F45: K | G45: 9 | H45: 16K 9 | I45: 550 | J45: 825 | K45: 550 | L45: =MIN(I45,360/'Roof Bay Analysis'!$I$51*K45) -> 550 | M45: 10 | O45: 30016.01874 | P45: 30016.0216 | Q45: 16 | R45: 16K 4 | S45: 216 | T45: 324 | U45: 168 | V45: 7 | W45: 16 | Y45: 30016.0125 | Z45: 30016.0129 | AA45: 16 | AB45: 16K 2 | AC45: 161 | AD45: 241.5 | AE45: 129 | AF45: 5.5 | AG45: 16 | AI45: 16016.055 | AJ45: 16 | AL45: 16 | AM45: K | AN45: 9 | AO45: 16K 9 | AP45: 550 | AQ45: 825 | AR45: 550 | AS45: =MIN(AP45,360/'Roof Bay Analysis'!$I$51*AR45) -> 550 | AT45: 10 | AV45: 24K 9 | AW45: 48 | AX45: 101 | AY45: 292.8576199 | BA45: 0.9721030182 | BC45: 24K9 | BD45: 301.2619182
A46: 17010.0277 | B46: 17010.04155 | C46: 17 | E46: 10 | F46: K | G46: 1 | H46: 10K 1 | I46: 277 | J46: 415.5 | K46: 159 | L46: =MIN(I46,360/'Roof Bay Analysis'!$I$51*K46) -> 238.5 | M46: 5 | O46: 30018.01874 | P46: 30018.0203 | Q46: 18 | R46: 18K 3 | S46: 203 | T46: 304.5 | U46: 184.5 | V46: 6.4 | W46: 18 | Y46: 30018.0125 | Z46: 30018.01845 | AA46: 18 | AB46: 18K 3 | AC46: 203 | AD46: 304.5 | AE46: 184.5 | AF46: 6.4 | AG46: 18 | AI46: 17010.02385 | AJ46: 17 | AL46: 10 | AM46: K | AN46: 1 | AO46: 10K 1 | AP46: 277 | AQ46: 415.5 | AR46: 159 | AS46: =MIN(AP46,360/'Roof Bay Analysis'!$I$51*AR46) -> 238.5 | AT46: 5 | AV46: 24K10 | AW46: 48 | AX46: 118 | AY46: 342.1504866 | BA46: 0.9764591346 | BC46: 24K10 | BD46: 350.3991867
A47: 17012.0336 | B47: 17012.0504 | C47: 17 | E47: 12 | F47: K | G47: 1 | H47: 12K 1 | I47: 336 | J47: 504 | K47: 234 | L47: =MIN(I47,360/'Roof Bay Analysis'!$I$51*K47) -> 336 | M47: 5 | O47: 30020.01874 | P47: 30020.0227 | Q47: 20 | R47: 20K 3 | S47: 227 | T47: 340.5 | U47: 227 | V47: 6.5 | W47: 20 | Y47: 30020.0125 | Z47: 30020.0227 | AA47: 20 | AB47: 20K 3 | AC47: 227 | AD47: 340.5 | AE47: 227 | AF47: 6.5 | AG47: 20 | AI47: 17012.0336 | AJ47: 17 | AL47: 12 | AM47: K | AN47: 1 | AO47: 12K 1 | AP47: 336 | AQ47: 504 | AR47: 234 | AS47: =MIN(AP47,360/'Roof Bay Analysis'!$I$51*AR47) -> 336 | AT47: 5 | AV47: 24K12 | AW47: 48 | AX47: 153 | AY47: 443.6358005 | BA47: 0.9386768092 | BC47: 24K12 | BD47: 472.6182602
A48: 17012.042 | B48: 17012.063 | C48: 17 | E48: 12 | F48: K | G48: 3 | H48: 12K 3 | I48: 420 | J48: 630 | K48: 291 | L48: =MIN(I48,360/'Roof Bay Analysis'!$I$51*K48) -> 420 | M48: 5.7 | O48: 30022.01874 | P48: 30022.0302 | Q48: 22 | R48: 22K 4 | S48: 302 | T48: 453 | U48: 302 | V48: 7.3 | W48: 22 | Y48: 30022.0125 | Z48: 30022.0302 | AA48: 22 | AB48: 22K 4 | AC48: 302 | AD48: 453 | AE48: 302 | AF48: 7.3 | AG48: 22 | AI48: 17012.042 | AJ48: 17 | AL48: 12 | AM48: K | AN48: 3 | AO48: 12K 3 | AP48: 420 | AQ48: 630 | AR48: 291 | AS48: =MIN(AP48,360/'Roof Bay Analysis'!$I$51*AR48) -> 420 | AT48: 5.7 | AV48: 26K 5 | AW48: 52 | AX48: 65 | AY48: 240.0095044 | BA48: 0.9652471575 | BC48: 26K5 | BD48: 248.6508275
A49: 17012.055 | B49: 17012.0825 | C49: 17 | E49: 12 | F49: K | G49: 5 | H49: 12K 5 | I49: 550 | J49: 825 | K49: 366 | L49: =MIN(I49,360/'Roof Bay Analysis'!$I$51*K49) -> 549 | M49: 7.1 | O49: 30024.01874 | P49: 30024.0331 | Q49: 24 | R49: =IF(Q49="NA","NA",IF($P18=$O18,$R18,INDEX($H$4:$H$1424,MATCH($O49,IF($O$1="ASD",$A$4:$A$1424,$B$4:$B$1424),1)+1))) -> 24K 4 | S49: 331 | T49: 496.5 | U49: 331 | V49: 7.8 | W49: 24 | Y49: 30024.0125 | Z49: 30024.0331 | AA49: 24 | AB49: 24K 4 | AC49: 331 | AD49: 496.5 | AE49: 331 | AF49: 7.8 | AG49: 24 | AI49: 17012.0549 | AJ49: 17 | AL49: 12 | AM49: K | AN49: 5 | AO49: 12K 5 | AP49: 550 | AQ49: 825 | AR49: 366 | AS49: =MIN(AP49,360/'Roof Bay Analysis'!$I$51*AR49) -> 549 | AT49: 7.1 | AV49: 26K 6 | AW49: 52 | AX49: 71 | AY49: 262.1642279 | BA49: 0.9551869405 | BC49: 26K6 | BD49: 274.4637901
A50: 17014.0395 | B50: 17014.05925 | C50: 17 | E50: 14 | F50: K | G50: 1 | H50: 14K 1 | I50: 395 | J50: 592.5 | K50: 324 | L50: =MIN(I50,360/'Roof Bay Analysis'!$I$51*K50) -> 395 | M50: 5.2 | O50: 30026.01874 | P50: 30026.0405 | Q50: 26 | R50: 26K 5 | S50: 405 | T50: 607.5 | U50: 405 | V50: 8.1 | W50: 26 | Y50: 30026.0125 | Z50: 30026.0405 | AA50: 26 | AB50: 26K 5 | AC50: 405 | AD50: 607.5 | AE50: 405 | AF50: 8.1 | AG50: 26 | AI50: 17014.0395 | AJ50: 17 | AL50: 14 | AM50: K | AN50: 1 | AO50: 14K 1 | AP50: 395 | AQ50: 592.5 | AR50: 324 | AS50: =MIN(AP50,360/'Roof Bay Analysis'!$I$51*AR50) -> 395 | AT50: 5.2 | AV50: 26K 7 | AW50: 52 | AX50: 79 | AY50: 291.7038592 | BA50: 0.9668873573 | BC50: 26K7 | BD50: 301.6937361
A51: 17014.0495 | B51: 17014.07425 | C51: 17 | E51: 14 | F51: K | G51: 3 | H51: 14K 3 | I51: 495 | J51: 742.5 | K51: 404 | L51: =MIN(I51,360/'Roof Bay Analysis'!$I$51*K51) -> 495 | M51: 6 | O51: 30028.01874 | P51: 30028.0477 | Q51: 28 | R51: 28K 6 | S51: 477 | T51: 715.5 | U51: 477 | V51: 8.9 | W51: 28 | Y51: 30028.0125 | Z51: 30028.0477 | AA51: 28 | AB51: 28K 6 | AC51: 477 | AD51: 715.5 | AE51: 477 | AF51: 8.9 | AG51: 28 | AI51: 17014.0495 | AJ51: 17 | AL51: 14 | AM51: K | AN51: 3 | AO51: 14K 3 | AP51: 495 | AQ51: 742.5 | AR51: 404 | AS51: =MIN(AP51,360/'Roof Bay Analysis'!$I$51*AR51) -> 495 | AT51: 6 | AV51: 26K 8 | AW51: 52 | AX51: 86 | AY51: 317.5510366 | BA51: 1.005150736 | BC51: 26K8 | BD51: 315.9237967
A52: 17014.055 | B52: 17014.0825 | C52: 17 | E52: 14 | F52: K | G52: 4 | H52: 14K 4 | I52: 550 | J52: 825 | K52: 443 | L52: =MIN(I52,360/'Roof Bay Analysis'!$I$51*K52) -> 550 | M52: 6.7 | O52: 30030.01874 | P52: 30030.055 | Q52: 30 | R52: 30K 7 | S52: 550 | T52: 825 | U52: 550 | V52: 9.6 | W52: 30 | Y52: 30030.0125 | Z52: 30030.055 | AA52: =IF(AG52<$T$2,"NA",IF(AG52>$T$3,"NA",AG52)) -> 30 | AB52: 30K 7 | AC52: 550 | AD52: 825 | AE52: 550 | AF52: 9.6 | AG52: 30 | AI52: 17014.055 | AJ52: 17 | AL52: 14 | AM52: K | AN52: 4 | AO52: 14K 4 | AP52: 550 | AQ52: 825 | AR52: 443 | AS52: =MIN(AP52,360/'Roof Bay Analysis'!$I$51*AR52) -> 550 | AT52: 6.7 | AV52: 26K 9 | AW52: 52 | AX52: 93 | AY52: 343.398214 | BA52: 0.9644761163 | BC52: 26K9 | BD52: 356.0463636
A53: 17014.055 | B53: 17014.0825 | C53: 17 | E53: 14 | F53: K | G53: 6 | H53: 14K 6 | I53: 550 | J53: 825 | K53: 443 | L53: =MIN(I53,360/'Roof Bay Analysis'!$I$51*K53) -> 550 | M53: 7.7 | O53: NA | P53: NA | Q53: NA | R53: NA | S53: NA | T53: NA | U53: NA | V53: NA | W53: 32 | Y53: NA | Z53: NA | AA53: NA | AB53: NA | AC53: NA | AD53: NA | AE53: NA | AF53: NA | AG53: 32 | AI53: 17014.055 | AJ53: 17 | AL53: 14 | AM53: K | AN53: 6 | AO53: 14K 6 | AP53: 550 | AQ53: 825 | AR53: 443 | AS53: =MIN(AP53,360/'Roof Bay Analysis'!$I$51*AR53) -> 550 | AT53: 7.7 | AV53: 26K10 | AW53: 52 | AX53: 110 | AY53: 406.1699306 | BA53: 0.98067116 | BC53: 26K10 | BD53: 414.1754618
A54: 17016.0512 | B54: 17016.0768 | C54: 17 | E54: 16 | F54: K | G54: 2 | H54: 16K 2 | I54: 512 | J54: 768 | K54: 488 | L54: =MIN(I54,360/'Roof Bay Analysis'!$I$51*K54) -> 512 | M54: 5.5 | O54: NA | P54: NA | Q54: NA | R54: NA | S54: NA | T54: NA | U54: NA | V54: NA | W54: 36 | Y54: NA | Z54: NA | AA54: NA | AB54: NA | AC54: NA | AD54: NA | AE54: NA | AF54: NA | AG54: 36 | AI54: 17016.0512 | AJ54: 17 | AL54: 16 | AM54: K | AN54: 2 | AO54: 16K 2 | AP54: 512 | AQ54: 768 | AR54: 488 | AS54: =MIN(AP54,360/'Roof Bay Analysis'!$I$51*AR54) -> 512 | AT54: 5.5 | AV54: 26K12 | AW54: 52 | AX54: 142 | AY54: 524.3284558 | BA54: 0.9382571699 | BC54: 26K12 | BD54: 558.8323464
A55: 17016.055 | B55: 17016.0825 | C55: 17 | E55: 16 | F55: K | G55: 3 | H55: 16K 3 | I55: 550 | J55: 825 | K55: 526 | L55: =MIN(I55,360/'Roof Bay Analysis'!$I$51*K55) -> 550 | M55: 6.3 | O55: NA | P55: NA | Q55: NA | R55: NA | S55: NA | T55: NA | U55: NA | V55: NA | W55: 40 | Y55: NA | Z55: NA | AA55: NA | AB55: NA | AC55: NA | AD55: NA | AE55: NA | AF55: NA | AG55: 40 | AI55: 17016.055 | AJ55: 17 | AL55: 16 | AM55: K | AN55: 3 | AO55: 16K 3 | AP55: 550 | AQ55: 825 | AR55: 526 | AS55: =MIN(AP55,360/'Roof Bay Analysis'!$I$51*AR55) -> 550 | AT55: 6.3 | AV55: 28K 6 | AW55: 56 | AX55: 66 | AY55: 304.794621 | BA55: 0.9530333727 | BC55: 28K6 | BD55: 319.8152654
A56: 17016.055 | B56: 17016.0825 | C56: 17 | E56: 16 | F56: K | G56: 4 | H56: 16K 4 | I56: 550 | J56: 825 | K56: 526 | L56: =MIN(I56,360/'Roof Bay Analysis'!$I$51*K56) -> 550 | M56: 7 | O56: NA | P56: NA | Q56: NA | R56: NA | S56: NA | T56: NA | U56: NA | V56: NA | W56: 44 | Y56: NA | Z56: NA | AA56: NA | AB56: NA | AC56: NA | AD56: NA | AE56: NA | AF56: NA | AG56: 44 | AI56: 17016.055 | AJ56: 17 | AL56: 16 | AM56: K | AN56: 4 | AO56: 16K 4 | AP56: 550 | AQ56: 825 | AR56: 526 | AS56: =MIN(AP56,360/'Roof Bay Analysis'!$I$51*AR56) -> 550 | AT56: 7 | AV56: 28K 7 | AW56: 56 | AX56: 73 | AY56: 337.1213233 | BA56: 0.9583844674 | BC56: 28K7 | BD56: 351.7600032
A57: 17016.055 | B57: 17016.0825 | C57: 17 | E57: 16 | F57: K | G57: 5 | H57: 16K 5 | I57: 550 | J57: 825 | K57: 526 | L57: =MIN(I57,360/'Roof Bay Analysis'!$I$51*K57) -> 550 | M57: 7.5 | O57: NA | P57: NA | Q57: NA | R57: NA | S57: NA | T57: NA | U57: NA | V57: NA | W57: 48 | Y57: NA | Z57: NA | AA57: NA | AB57: NA | AC57: NA | AD57: NA | AE57: NA | AF57: NA | AG57: 48 | AI57: 17016.055 | AJ57: 17 | AL57: 16 | AM57: K | AN57: 5 | AO57: 16K 5 | AP57: 550 | AQ57: 825 | AR57: 526 | AS57: =MIN(AP57,360/'Roof Bay Analysis'!$I$51*AR57) -> 550 | AT57: 7.5 | AV57: 28K 8 | AW57: 56 | AX57: 80 | AY57: 369.4480255 | BA57: 1.002938769 | BC57: 28K8 | BD57: 368.3654843
A58: 17016.055 | B58: 17016.0825 | C58: 17 | E58: 16 | F58: K | G58: 6 | H58: 16K 6 | I58: 550 | J58: 825 | K58: 526 | L58: =MIN(I58,360/'Roof Bay Analysis'!$I$51*K58) -> 550 | M58: 8.1 | O58: NA | P58: NA | Q58: NA | R58: NA | S58: NA | T58: NA | U58: NA | V58: NA | W58: 52 | Y58: NA | Z58: NA | AA58: NA | AB58: NA | AC58: NA | AD58: NA | AE58: NA | AF58: NA | AG58: 52 | AI58: 17016.055 | AJ58: 17 | AL58: 16 | AM58: K | AN58: 6 | AO58: 16K 6 | AP58: 550 | AQ58: 825 | AR58: 526 | AS58: =MIN(AP58,360/'Roof Bay Analysis'!$I$51*AR58) -> 550 | AT58: 8.1 | AV58: 28K 9 | AW58: 56 | AX58: 87 | AY58: 401.7747277 | BA58: 0.9671591271 | BC58: 28K9 | BD58: 415.4173977
A59: 17016.055 | B59: 17016.0825 | C59: 17 | E59: 16 | F59: K | G59: 7 | H59: 16K 7 | I59: 550 | J59: 825 | K59: 526 | L59: =MIN(I59,360/'Roof Bay Analysis'!$I$51*K59) -> 550 | M59: 8.6 | O59: NA | P59: NA | Q59: NA | R59: NA | S59: NA | T59: NA | U59: NA | V59: NA | W59: 56 | Y59: NA | Z59: NA | AA59: NA | AB59: NA | AC59: NA | AD59: NA | AE59: NA | AF59: NA | AG59: 56 | AI59: 17016.055 | AJ59: 17 | AL59: 16 | AM59: K | AN59: 7 | AO59: 16K 7 | AP59: 550 | AQ59: 825 | AR59: 526 | AS59: =MIN(AP59,360/'Roof Bay Analysis'!$I$51*AR59) -> 550 | AT59: 8.6 | AV59: 28K10 | AW59: 56 | AX59: 102 | AY59: 471.0462325 | BA59: 0.9746551443 | BC59: 28K10 | BD59: 483.2952817
A60: 17016.055 | B60: 17016.0825 | C60: 17 | E60: 16 | F60: K | G60: 9 | H60: 16K 9 | I60: 550 | J60: 825 | K60: 526 | L60: =MIN(I60,360/'Roof Bay Analysis'!$I$51*K60) -> 550 | M60: 10 | O60: NA | P60: NA | Q60: NA | R60: NA | S60: NA | T60: NA | U60: NA | V60: NA | W60: 60 | Y60: NA | Z60: NA | AA60: NA | AB60: NA | AC60: NA | AD60: NA | AE60: NA | AF60: NA | AG60: 60 | AI60: 17016.055 | AJ60: 17 | AL60: 16 | AM60: K | AN60: 9 | AO60: 16K 9 | AP60: 550 | AQ60: 825 | AR60: 526 | AS60: =MIN(AP60,360/'Roof Bay Analysis'!$I$51*AR60) -> 550 | AT60: 10 | AV60: 28K12 | AW60: 56 | AX60: 132 | AY60: 609.5892421 | BA60: 0.9345453475 | BC60: 28K12 | BD60: 652.2842831
A61: 18010.0246 | B61: 18010.0369 | C61: 18 | E61: 10 | F61: K | G61: 1 | H61: 10K 1 | I61: 246 | J61: 369 | K61: 134 | L61: =MIN(I61,360/'Roof Bay Analysis'!$I$51*K61) -> 201 | M61: 5 | O61: NA | P61: NA | Q61: NA | R61: NA | S61: NA | T61: NA | U61: NA | V61: NA | W61: 64 | Y61: NA | Z61: NA | AA61: NA | AB61: NA | AC61: NA | AD61: NA | AE61: NA | AF61: NA | AG61: 64 | AI61: 18010.0201 | AJ61: 18 | AL61: 10 | AM61: K | AN61: 1 | AO61: 10K 1 | AP61: 246 | AQ61: 369 | AR61: 134 | AS61: =MIN(AP61,360/'Roof Bay Analysis'!$I$51*AR61) -> 201 | AT61: 5 | AV61: 30K 7 | AW61: 60 | AX61: 69 | AY61: 392.3890714 | BA61: 0.9672498672 | BC61: 30K7 | BD61: 405.6749809
A62: 18012.0299 | B62: 18012.04485 | C62: 18 | E62: 12 | F62: K | G62: 1 | H62: 12K 1 | I62: 299 | J62: 448.5 | K62: 197 | L62: =MIN(I62,360/'Roof Bay Analysis'!$I$51*K62) -> 295.5 | M62: 5 | O62: NA | P62: NA | Q62: NA | R62: NA | S62: NA | T62: NA | U62: NA | V62: NA | W62: 68 | Y62: NA | Z62: NA | AA62: NA | AB62: NA | AC62: NA | AD62: NA | AE62: NA | AF62: NA | AG62: 68 | AI62: 18012.02955 | AJ62: 18 | AL62: 12 | AM62: K | AN62: 1 | AO62: 12K 1 | AP62: 299 | AQ62: 448.5 | AR62: 197 | AS62: =MIN(AP62,360/'Roof Bay Analysis'!$I$51*AR62) -> 295.5 | AT62: 5 | AV62: 30K 8 | AW62: 60 | AX62: 75 | AY62: 426.5098603 | BA62: 1.003932159 | BC62: 30K8 | BD62: 424.8393243
A63: 18012.0374 | B63: 18012.0561 | C63: 18 | E63: 12 | F63: K | G63: 3 | H63: 12K 3 | I63: 374 | J63: 561 | K63: 245 | L63: =MIN(I63,360/'Roof Bay Analysis'!$I$51*K63) -> 367.5 | M63: 5.7 | O63: NA | P63: NA | Q63: NA | R63: NA | S63: NA | T63: NA | U63: NA | V63: NA | W63: 72 | Y63: NA | Z63: NA | AA63: NA | AB63: NA | AC63: NA | AD63: NA | AE63: NA | AF63: NA | AG63: 72 | AI63: 18012.03675 | AJ63: 18 | AL63: 12 | AM63: K | AN63: 3 | AO63: 12K 3 | AP63: 374 | AQ63: 561 | AR63: 245 | AS63: =MIN(AP63,360/'Roof Bay Analysis'!$I$51*AR63) -> 367.5 | AT63: 5.7 | AV63: 30K 9 | AW63: 60 | AX63: 81 | AY63: 460.6306491 | BA63: 0.9608983145 | BC63: 30K9 | BD63: 479.3750204
A64: 18012.0507 | B64: 18012.07605 | C64: 18 | E64: 12 | F64: K | G64: 5 | H64: 12K 5 | I64: 507 | J64: 760.5 | K64: 317 | L64: =MIN(I64,360/'Roof Bay Analysis'!$I$51*K64) -> 475.5 | M64: 7.1 | O64: =IF(Q64="NA","NA",$Q$1*1000+Q64+$Q$2/10000) -> NA | P64: NA | Q64: =IF(W64<$T$2,"NA",IF(W64>$T$3,"NA",W64)) -> NA | R64: NA | S64: NA | T64: NA | U64: NA | V64: NA | W64: 80 | Y64: =IF(AA64="NA","NA",$Q$1*1000+AA64+$Q$3/10000) -> NA | Z64: NA | AA64: NA | AB64: NA | AC64: NA | AD64: NA | AE64: NA | AF64: NA | AG64: 80 | AI64: 18012.04755 | AJ64: 18 | AL64: 12 | AM64: K | AN64: 5 | AO64: 12K 5 | AP64: 507 | AQ64: 760.5 | AR64: 317 | AS64: =MIN(AP64,360/'Roof Bay Analysis'!$I$51*AR64) -> 475.5 | AT64: 7.1 | AV64: 30K10 | AW64: 60 | AX64: 96 | AY64: 545.9326211 | BA64: 0.9787972353 | BC64: 30K10 | BD64: 557.7586465
A65: 18014.0352 | B65: 18014.0528 | C65: 18 | E65: 14 | F65: K | G65: 1 | H65: 14K 1 | I65: 352 | J65: 528 | K65: 272 | L65: =MIN(I65,360/'Roof Bay Analysis'!$I$51*K65) -> 352 | M65: 5.2 | O65: NA | P65: NA | Q65: NA | R65: NA | S65: NA | T65: NA | U65: NA | V65: NA | W65: 88 | Y65: NA | Z65: NA | AA65: NA | AB65: NA | AC65: NA | AD65: NA | AE65: NA | AF65: NA | AG65: 88 | AI65: 18014.0352 | AJ65: 18 | AL65: 14 | AM65: K | AN65: 1 | AO65: 14K 1 | AP65: 352 | AQ65: 528 | AR65: 272 | AS65: =MIN(AP65,360/'Roof Bay Analysis'!$I$51*AR65) -> 352 | AT65: 5.2 | AV65: 30K11 | AW65: 60 | AX65: 109 | AY65: 619.8609969 | BA65: 0.9441270682 | BC65: 30K11 | BD65: 656.5440371
A66: 18014.0441 | B66: 18014.06615 | C66: 18 | E66: 14 | F66: K | G66: 3 | H66: 14K 3 | I66: 441 | J66: 661.5 | K66: 339 | L66: =MIN(I66,360/'Roof Bay Analysis'!$I$51*K66) -> 441 | M66: 6 | O66: NA | P66: NA | Q66: NA | R66: NA | S66: NA | T66: NA | U66: NA | V66: NA | W66: 96 | Y66: NA | Z66: NA | AA66: NA | AB66: NA | AC66: NA | AD66: NA | AE66: NA | AF66: NA | AG66: 96 | AI66: 18014.0441 | AJ66: 18 | AL66: 14 | AM66: K | AN66: 3 | AO66: 14K 3 | AP66: 441 | AQ66: 661.5 | AR66: 339 | AS66: =MIN(AP66,360/'Roof Bay Analysis'!$I$51*AR66) -> 441 | AT66: 6 | AV66: 30K12 | AW66: 60 | AX66: 124 | AY66: 705.162969 | BA66: 0.936503655 | BC66: 30K12 | BD66: 752.9740703
A67: 18014.053 | B67: 18014.0795 | C67: 18 | E67: 14 | F67: K | G67: 4 | H67: 14K 4 | I67: 530 | J67: 795 | K67: 397 | L67: =MIN(I67,360/'Roof Bay Analysis'!$I$51*K67) -> 530 | M67: 6.7 | O67: NA | P67: NA | Q67: NA | R67: NA | S67: NA | T67: NA | U67: NA | V67: NA | W67: 104 | Y67: NA | Z67: NA | AA67: NA | AB67: NA | AC67: NA | AD67: NA | AE67: NA | AF67: NA | AG67: 104 | AI67: 18014.053 | AJ67: 18 | AL67: 14 | AM67: K | AN67: 4 | AO67: 14K 4 | AP67: 530 | AQ67: 795 | AR67: 397 | AS67: =MIN(AP67,360/'Roof Bay Analysis'!$I$51*AR67) -> 530 | AT67: 6.7 | AV67: 18LH 2 | AW67: 36 | AX67: 124 | AY67: 150.6366719 | BA67: 1.028387101 | BC67: 18LH02 | BD67: 146.4785699
A68: =C68*1000+E68+I68/10000 -> 18014.055 | B68: =C68*1000+E68+J68/10000 -> 18014.0825 | C68: 18 | E68: 14 | F68: K | G68: 6 | H68: 14K 6 | I68: 550 | J68: =1.5*I68 -> 825 | K68: 408 | L68: =MIN(I68,360/'Roof Bay Analysis'!$I$51*K68) -> 550 | M68: 7.7 | O68: NA | P68: NA | Q68: NA | R68: NA | S68: NA | T68: NA | U68: NA | V68: NA | W68: 112 | Y68: NA | Z68: NA | AA68: =IF(AG68<$T$2,"NA",IF(AG68>$T$3,"NA",AG68)) -> NA | AB68: NA | AC68: NA | AD68: NA | AE68: NA | AF68: NA | AG68: 112 | AI68: =AJ68*1000+AL68+AS68/10000 -> 18014.055 | AJ68: 18 | AL68: 14 | AM68: K | AN68: 6 | AO68: 14K 6 | AP68: 550 | AQ68: =1.5*AP68 -> 825 | AR68: 408 | AS68: =MIN(AP68,360/'Roof Bay Analysis'!$I$51*AR68) -> 550 | AT68: 7.7 | AV68: 18LH 3 | AW68: 36 | AX68: 136 | AY68: 165.2144144 | BA68: =AY68/BD68 -> 1.004782035 | BC68: 18LH03 | BD68: 164.4281134
A69: 18016.0456 | B69: 18016.0684 | C69: 18 | E69: =VALUE(LEFT(H69,2)) -> 16 | F69: =MID(H69,3,LEN(H69)-4) -> K | G69: =VALUE(RIGHT(H69,2)) -> 2 | H69: 16K 2 | I69: 456 | J69: 684 | K69: 409 | L69: =MIN(I69,360/'Roof Bay Analysis'!$I$51*K69) -> 456 | M69: 5.5 | O69: NA | P69: NA | Q69: NA | R69: NA | S69: NA | T69: NA | U69: NA | V69: NA | W69: 120 | Y69: NA | Z69: NA | AA69: NA | AB69: NA | AC69: NA | AD69: NA | AE69: NA | AF69: NA | AG69: 120 | AI69: 18016.0456 | AJ69: 18 | AL69: =VALUE(LEFT(AO69,2)) -> 16 | AM69: =MID(AO69,3,LEN(AO69)-4) -> K | AN69: =VALUE(RIGHT(AO69,2)) -> 2 | AO69: 16K 2 | AP69: 456 | AQ69: 684 | AR69: 409 | AS69: =MIN(AP69,360/'Roof Bay Analysis'!$I$51*AR69) -> 456 | AT69: 5.5 | AV69: 18LH 4 | AW69: 36 | AX69: 153 | AY69: 185.8662162 | BA69: 0.972451371 | BC69: 18LH04 | BD69: 191.1316306
A70: 18016.0508 | B70: 18016.0762 | C70: 18 | E70: 16 | F70: K | G70: 3 | H70: 16K 3 | I70: 508 | J70: 762 | K70: 456 | L70: =MIN(I70,360/'Roof Bay Analysis'!$I$51*K70) -> 508 | M70: 6.3 | AI70: 18016.0508 | AJ70: 18 | AL70: 16 | AM70: K | AN70: 3 | AO70: 16K 3 | AP70: 508 | AQ70: 762 | AR70: 456 | AS70: =MIN(AP70,360/'Roof Bay Analysis'!$I$51*AR70) -> 508 | AT70: 6.3 | AV70: 18LH 5 | AW70: 36 | AX70: 179 | AY70: 217.4513248 | BA70: 0.9677373351 | BC70: 18LH05 | BD70: 224.7007705
A71: 18016.055 | B71: 18016.0825 | C71: 18 | E71: 16 | F71: K | G71: 4 | H71: 16K 4 | I71: 550 | J71: 825 | K71: 490 | L71: =MIN(I71,360/'Roof Bay Analysis'!$I$51*K71) -> 550 | M71: 7 | O71: Return "X" if depths don't match. | Y71: Return "X" if depths don't match. | AI71: 18016.055 | AJ71: 18 | AL71: 16 | AM71: K | AN71: 4 | AO71: 16K 4 | AP71: 550 | AQ71: 825 | AR71: 490 | AS71: =MIN(AP71,360/'Roof Bay Analysis'!$I$51*AR71) -> 550 | AT71: 7 | AV71: 18LH 6 | AW71: 36 | AX71: 195 | AY71: 236.8883147 | BA71: 0.9203009237 | BC71: 18LH06 | BD71: 257.4031044
A72: 18016.055 | B72: 18016.0825 | C72: 18 | E72: 16 | F72: K | G72: 5 | H72: 16K 5 | I72: 550 | J72: 825 | K72: 490 | L72: =MIN(I72,360/'Roof Bay Analysis'!$I$51*K72) -> 550 | M72: 7.5 | AI72: 18016.055 | AJ72: 18 | AL72: 16 | AM72: K | AN72: 5 | AO72: 16K 5 | AP72: 550 | AQ72: 825 | AR72: 490 | AS72: =MIN(AP72,360/'Roof Bay Analysis'!$I$51*AR72) -> 550 | AT72: 7.5 | AV72: 18LH 7 | AW72: 36 | AX72: 222 | AY72: 269.6882352 | BA72: 0.9845458977 | BC72: 18LH07 | BD72: 273.9214453
A73: 18016.055 | B73: 18016.0825 | C73: 18 | E73: 16 | F73: K | G73: 6 | H73: 16K 6 | I73: 550 | J73: 825 | K73: 490 | L73: =MIN(I73,360/'Roof Bay Analysis'!$I$51*K73) -> 550 | M73: 8.1 | O73: =IF(Q73="NA","NA",$Q$1*1000+Q73+$Q$2/10000) -> NA | P73: =IF($Q73="NA","NA",IF($P11=$O11,$P11,IF(ROUNDDOWN($O42,0)=ROUNDDOWN($P42,0),P42,"X"))) -> NA | Q73: =IF(W73<$T$2,"NA",IF(W73>$T$3,"NA",W73)) -> NA | R73: =IF($Q73="NA","NA",IF($P11=$O11,$R11,IF(ROUNDDOWN($O42,0)=ROUNDDOWN($P42,0),R42,"X"))) -> NA | S73: =IF($Q73="NA","NA",IF($P11=$O11,$S11,IF(ROUNDDOWN($O42,0)=ROUNDDOWN($P42,0),S42,"X"))) -> NA | T73: =IF($Q73="NA","NA",IF($P11=$O11,$T11,IF(ROUNDDOWN($O42,0)=ROUNDDOWN($P42,0),T42,"X"))) -> NA | U73: =IF($Q73="NA","NA",IF($P11=$O11,$U11,IF(ROUNDDOWN($O42,0)=ROUNDDOWN($P42,0),U42,"X"))) -> NA | V73: =IF($Q73="NA","NA",IF($P11=$O11,$V11,IF(ROUNDDOWN($O42,0)=ROUNDDOWN($P42,0),V42,"X"))) -> NA | W73: 10 | Y73: =IF(AA73="NA","NA",$Q$1*1000+AA73+$Q$3/10000) -> NA | Z73: =IF($AA73="NA","NA",IF($Z11=$Y11,$Z11,IF(ROUNDDOWN($Y42,0)=ROUNDDOWN($Z42,0),Z42,"X"))) -> NA | AA73: =IF(AG73<$T$2,"NA",IF(AG73>$T$3,"NA",AG73)) -> NA | AB73: =IF($AA73="NA","NA",IF($Z11=$Y11,$AB11,IF(ROUNDDOWN($Y42,0)=ROUNDDOWN($Z42,0),AB42,"X"))) -> NA | AC73: =IF($AA73="NA","NA",IF($Z11=$Y11,$AC11,IF(ROUNDDOWN($Y42,0)=ROUNDDOWN($Z42,0),AC42,"X"))) -> NA | AD73: =IF($AA73="NA","NA",IF($Z11=$Y11,$AD11,IF(ROUNDDOWN($Y42,0)=ROUNDDOWN($Z42,0),AD42,"X"))) -> NA | AE73: =IF($AA73="NA","NA",IF($Z11=$Y11,$AE11,IF(ROUNDDOWN($Y42,0)=ROUNDDOWN($Z42,0),AE42,"X"))) -> NA | AF73: =IF($AA73="NA","NA",IF($Z11=$Y11,$AF11,IF(ROUNDDOWN($Y42,0)=ROUNDDOWN($Z42,0),AF42,"X"))) -> NA | AG73: 10 | AI73: 18016.055 | AJ73: 18 | AL73: 16 | AM73: K | AN73: 6 | AO73: 16K 6 | AP73: 550 | AQ73: 825 | AR73: 490 | AS73: =MIN(AP73,360/'Roof Bay Analysis'!$I$51*AR73) -> 550 | AT73: 8.1 | AV73: 18LH 8 | AW73: 36 | AX73: 246 | AY73: 298.8437201 | BA73: 0.9457862483 | BC73: 18LH08 | BD73: 315.9738478
A74: 18016.055 | B74: 18016.0825 | C74: 18 | E74: 16 | F74: K | G74: 7 | H74: 16K 7 | I74: 550 | J74: 825 | K74: 490 | L74: =MIN(I74,360/'Roof Bay Analysis'!$I$51*K74) -> 550 | M74: 8.6 | O74: =IF(Q74="NA","NA",$Q$1*1000+Q74+$Q$2/10000) -> NA | P74: =IF($Q74="NA","NA",IF($P12=$O12,$P12,IF(ROUNDDOWN($O43,0)=ROUNDDOWN($P43,0),P43,"X"))) -> NA | Q74: =IF(W74<$T$2,"NA",IF(W74>$T$3,"NA",W74)) -> NA | R74: =IF($Q74="NA","NA",IF($P12=$O12,$R12,IF(ROUNDDOWN($O43,0)=ROUNDDOWN($P43,0),R43,"X"))) -> NA | S74: =IF($Q74="NA","NA",IF($P12=$O12,$S12,IF(ROUNDDOWN($O43,0)=ROUNDDOWN($P43,0),S43,"X"))) -> NA | T74: =IF($Q74="NA","NA",IF($P12=$O12,$T12,IF(ROUNDDOWN($O43,0)=ROUNDDOWN($P43,0),T43,"X"))) -> NA | U74: =IF($Q74="NA","NA",IF($P12=$O12,$U12,IF(ROUNDDOWN($O43,0)=ROUNDDOWN($P43,0),U43,"X"))) -> NA | V74: =IF($Q74="NA","NA",IF($P12=$O12,$V12,IF(ROUNDDOWN($O43,0)=ROUNDDOWN($P43,0),V43,"X"))) -> NA | W74: 12 | Y74: =IF(AA74="NA","NA",$Q$1*1000+AA74+$Q$3/10000) -> NA | Z74: =IF($AA74="NA","NA",IF($Z12=$Y12,$Z12,IF(ROUNDDOWN($Y43,0)=ROUNDDOWN($Z43,0),Z43,"X"))) -> NA | AA74: =IF(AG74<$T$2,"NA",IF(AG74>$T$3,"NA",AG74)) -> NA | AB74: =IF($AA74="NA","NA",IF($Z12=$Y12,$AB12,IF(ROUNDDOWN($Y43,0)=ROUNDDOWN($Z43,0),AB43,"X"))) -> NA | AC74: =IF($AA74="NA","NA",IF($Z12=$Y12,$AC12,IF(ROUNDDOWN($Y43,0)=ROUNDDOWN($Z43,0),AC43,"X"))) -> NA | AD74: =IF($AA74="NA","NA",IF($Z12=$Y12,$AD12,IF(ROUNDDOWN($Y43,0)=ROUNDDOWN($Z43,0),AD43,"X"))) -> NA | AE74: =IF($AA74="NA","NA",IF($Z12=$Y12,$AE12,IF(ROUNDDOWN($Y43,0)=ROUNDDOWN($Z43,0),AE43,"X"))) -> NA | AF74: =IF($AA74="NA","NA",IF($Z12=$Y12,$AF12,IF(ROUNDDOWN($Y43,0)=ROUNDDOWN($Z43,0),AF43,"X"))) -> NA | AG74: 12 | AI74: 18016.055 | AJ74: 18 | AL74: 16 | AM74: K | AN74: 7 | AO74: 16K 7 | AP74: 550 | AQ74: 825 | AR74: 490 | AS74: =MIN(AP74,360/'Roof Bay Analysis'!$I$51*AR74) -> 550 | AT74: 8.6 | AV74: 18LH 9 | AW74: 36 | AX74: 266 | AY74: 323.1399575 | BA74: 0.9091448858 | BC74: 18LH09 | BD74: 355.4328497
A75: 18016.055 | B75: 18016.0825 | C75: 18 | E75: 16 | F75: K | G75: 9 | H75: 16K 9 | I75: 550 | J75: 825 | K75: 490 | L75: =MIN(I75,360/'Roof Bay Analysis'!$I$51*K75) -> 550 | M75: 10 | O75: NA | P75: NA | Q75: NA | R75: NA | S75: NA | T75: NA | U75: NA | V75: NA | W75: 14 | Y75: NA | Z75: NA | AA75: NA | AB75: NA | AC75: NA | AD75: NA | AE75: NA | AF75: NA | AG75: 14 | AI75: 18016.055 | AJ75: 18 | AL75: 16 | AM75: K | AN75: 9 | AO75: 16K 9 | AP75: 550 | AQ75: 825 | AR75: 490 | AS75: =MIN(AP75,360/'Roof Bay Analysis'!$I$51*AR75) -> 550 | AT75: 10 | AV75: 20LH 2 | AW75: 40 | AX75: 108 | AY75: 180.4720933 | BA75: 0.9873103901 | BC75: 20LH02 | BD75: 182.791648
A76: 18018.055 | B76: 18018.0825 | C76: 18 | E76: 18 | F76: K | G76: 3 | H76: 18K 3 | I76: 550 | J76: 825 | K76: 550 | L76: =MIN(I76,360/'Roof Bay Analysis'!$I$51*K76) -> 550 | M76: 6.4 | O76: 30016.01874 | P76: 30016.0216 | Q76: 16 | R76: 16K 4 | S76: 216 | T76: 324 | U76: 168 | V76: 7 | W76: 16 | Y76: 30016.0125 | Z76: 30016.0129 | AA76: 16 | AB76: 16K 2 | AC76: 161 | AD76: 241.5 | AE76: 129 | AF76: 5.5 | AG76: 16 | AI76: 18018.055 | AJ76: 18 | AL76: 18 | AM76: K | AN76: 3 | AO76: 18K 3 | AP76: 550 | AQ76: 825 | AR76: 550 | AS76: =MIN(AP76,360/'Roof Bay Analysis'!$I$51*AR76) -> 550 | AT76: 6.4 | AV76: 20LH 3 | AW76: 40 | AX76: 123 | AY76: 205.5376619 | BA76: 1.000413082 | BC76: 20LH03 | BD76: 205.4527931
A77: 18018.055 | B77: 18018.0825 | C77: 18 | E77: 18 | F77: K | G77: 4 | H77: 18K 4 | I77: 550 | J77: 825 | K77: 550 | L77: =MIN(I77,360/'Roof Bay Analysis'!$I$51*K77) -> 550 | M77: 7.2 | O77: 30018.01874 | P77: 30018.0203 | Q77: 18 | R77: 18K 3 | S77: 203 | T77: 304.5 | U77: 184.5 | V77: 6.4 | W77: 18 | Y77: 30018.0125 | Z77: 30018.01845 | AA77: 18 | AB77: 18K 3 | AC77: 203 | AD77: 304.5 | AE77: 184.5 | AF77: 6.4 | AG77: 18 | AI77: 18018.055 | AJ77: 18 | AL77: 18 | AM77: K | AN77: 4 | AO77: 18K 4 | AP77: 550 | AQ77: 825 | AR77: 550 | AS77: =MIN(AP77,360/'Roof Bay Analysis'!$I$51*AR77) -> 550 | AT77: 7.2 | AV77: 20LH 4 | AW77: 40 | AX77: 139 | AY77: 232.2742683 | BA77: 0.9723581787 | BC77: 20LH04 | BD77: 238.8772711
A78: 18018.055 | B78: 18018.0825 | C78: 18 | E78: 18 | F78: K | G78: 5 | H78: 18K 5 | I78: 550 | J78: 825 | K78: 550 | L78: =MIN(I78,360/'Roof Bay Analysis'!$I$51*K78) -> 550 | M78: 7.7 | O78: 30020.01874 | P78: 30020.0227 | Q78: 20 | R78: 20K 3 | S78: 227 | T78: 340.5 | U78: 227 | V78: 6.5 | W78: 20 | Y78: 30020.0125 | Z78: 30020.0227 | AA78: 20 | AB78: 20K 3 | AC78: 227 | AD78: 340.5 | AE78: 227 | AF78: 6.5 | AG78: 20 | AI78: 18018.055 | AJ78: 18 | AL78: 18 | AM78: K | AN78: 5 | AO78: 18K 5 | AP78: 550 | AQ78: 825 | AR78: 550 | AS78: =MIN(AP78,360/'Roof Bay Analysis'!$I$51*AR78) -> 550 | AT78: 7.7 | AV78: 20LH 5 | AW78: 40 | AX78: 161 | AY78: 269.0371021 | BA78: 0.9576922221 | BC78: 20LH05 | BD78: 280.9223004
A79: 18018.055 | B79: 18018.0825 | C79: 18 | E79: 18 | F79: K | G79: 6 | H79: 18K 6 | I79: 550 | J79: 825 | K79: 550 | L79: =MIN(I79,360/'Roof Bay Analysis'!$I$51*K79) -> 550 | M79: 8.4 | O79: 30022.01874 | P79: 30022.0302 | Q79: 22 | R79: 22K 4 | S79: 302 | T79: 453 | U79: 302 | V79: 7.3 | W79: 22 | Y79: 30022.0125 | Z79: 30022.0302 | AA79: 22 | AB79: 22K 4 | AC79: 302 | AD79: 453 | AE79: 302 | AF79: 7.3 | AG79: 22 | AI79: 18018.055 | AJ79: 18 | AL79: 18 | AM79: K | AN79: 6 | AO79: 18K 6 | AP79: 550 | AQ79: 825 | AR79: 550 | AS79: =MIN(AP79,360/'Roof Bay Analysis'!$I$51*AR79) -> 550 | AT79: 8.4 | AV79: 20LH 6 | AW79: 40 | AX79: 178 | AY79: 297.4447464 | BA79: 0.9240179675 | BC79: 20LH06 | BD79: 321.9036392
A80: 18018.055 | B80: 18018.0825 | C80: 18 | E80: 18 | F80: K | G80: 7 | H80: 18K 7 | I80: 550 | J80: 825 | K80: 550 | L80: =MIN(I80,360/'Roof Bay Analysis'!$I$51*K80) -> 550 | M80: 8.9 | O80: 30024.01874 | P80: 30024.0331 | Q80: 24 | R80: 24K 4 | S80: 331 | T80: 496.5 | U80: 331 | V80: 7.8 | W80: 24 | Y80: 30024.0125 | Z80: 30024.0331 | AA80: 24 | AB80: 24K 4 | AC80: 331 | AD80: 496.5 | AE80: 331 | AF80: 7.8 | AG80: 24 | AI80: 18018.055 | AJ80: 18 | AL80: 18 | AM80: K | AN80: 7 | AO80: 18K 7 | AP80: 550 | AQ80: 825 | AR80: 550 | AS80: =MIN(AP80,360/'Roof Bay Analysis'!$I$51*AR80) -> 550 | AT80: 8.9 | AV80: 20LH 7 | AW80: 40 | AX80: 202 | AY80: 337.549656 | BA80: 0.9842463815 | BC80: 20LH07 | BD80: 342.9523973
A81: 18018.055 | B81: 18018.0825 | C81: 18 | E81: 18 | F81: K | G81: 9 | H81: 18K 9 | I81: 550 | J81: 825 | K81: 550 | L81: =MIN(I81,360/'Roof Bay Analysis'!$I$51*K81) -> 550 | M81: 10.1 | O81: 30026.01874 | P81: 30026.0405 | Q81: 26 | R81: 26K 5 | S81: 405 | T81: 607.5 | U81: 405 | V81: 8.1 | W81: 26 | Y81: 30026.0125 | Z81: 30026.0405 | AA81: 26 | AB81: 26K 5 | AC81: 405 | AD81: 607.5 | AE81: 405 | AF81: 8.1 | AG81: 26 | AI81: 18018.055 | AJ81: 18 | AL81: 18 | AM81: K | AN81: 9 | AO81: 18K 9 | AP81: 550 | AQ81: 825 | AR81: 550 | AS81: =MIN(AP81,360/'Roof Bay Analysis'!$I$51*AR81) -> 550 | AT81: 10.1 | AV81: 20LH 8 | AW81: 40 | AX81: 225 | AY81: 375.9835278 | BA81: 0.9882439812 | BC81: 20LH08 | BD81: 380.4561778
A82: 18018.055 | B82: 18018.0825 | C82: 18 | E82: 18 | F82: K | G82: 10 | H82: 18K10 | I82: 550 | J82: 825 | K82: 550 | L82: =MIN(I82,360/'Roof Bay Analysis'!$I$51*K82) -> 550 | M82: 11.6 | O82: 30028.01874 | P82: 30028.0477 | Q82: 28 | R82: 28K 6 | S82: 477 | T82: 715.5 | U82: 477 | V82: 8.9 | W82: 28 | Y82: 30028.0125 | Z82: 30028.0477 | AA82: 28 | AB82: 28K 6 | AC82: 477 | AD82: 715.5 | AE82: 477 | AF82: 8.9 | AG82: 28 | AI82: 18018.055 | AJ82: 18 | AL82: 18 | AM82: K | AN82: 10 | AO82: 18K10 | AP82: 550 | AQ82: 825 | AR82: 550 | AS82: =MIN(AP82,360/'Roof Bay Analysis'!$I$51*AR82) -> 550 | AT82: 11.6 | AV82: 20LH 9 | AW82: 40 | AX82: 244 | AY82: 407.7332479 | BA82: 0.9138620347 | BC82: 20LH09 | BD82: 446.1649926
A83: 19010.0221 | B83: 19010.03315 | C83: 19 | E83: 10 | F83: K | G83: 1 | H83: 10K 1 | I83: 221 | J83: 331.5 | K83: 113 | L83: =MIN(I83,360/'Roof Bay Analysis'!$I$51*K83) -> 169.5 | M83: 5 | O83: 30030.01874 | P83: 30030.055 | Q83: 30 | R83: 30K 7 | S83: 550 | T83: 825 | U83: 550 | V83: 9.6 | W83: 30 | Y83: 30030.0125 | Z83: 30030.055 | AA83: 30 | AB83: 30K 7 | AC83: 550 | AD83: 825 | AE83: 550 | AF83: 9.6 | AG83: 30 | AI83: 19010.01695 | AJ83: 19 | AL83: 10 | AM83: K | AN83: 1 | AO83: 10K 1 | AP83: 221 | AQ83: 331.5 | AR83: 113 | AS83: =MIN(AP83,360/'Roof Bay Analysis'!$I$51*AR83) -> 169.5 | AT83: 5 | AV83: 20LH10 | AW83: 40 | AX83: 274 | AY83: 457.8643849 | BA83: 0.984424271 | BC83: 20LH10 | BD83: 465.1087934
A84: 19012.0268 | B84: 19012.0402 | C84: 19 | E84: 12 | F84: K | G84: 1 | H84: 12K 1 | I84: 268 | J84: 402 | K84: 167 | L84: =MIN(I84,360/'Roof Bay Analysis'!$I$51*K84) -> 250.5 | M84: 5 | O84: NA | P84: NA | Q84: NA | R84: NA | S84: NA | T84: NA | U84: NA | V84: NA | W84: 32 | Y84: NA | Z84: NA | AA84: NA | AB84: NA | AC84: NA | AD84: NA | AE84: NA | AF84: NA | AG84: 32 | AI84: 19012.02505 | AJ84: 19 | AL84: 12 | AM84: K | AN84: 1 | AO84: 12K 1 | AP84: 268 | AQ84: 402 | AR84: 167 | AS84: =MIN(AP84,360/'Roof Bay Analysis'!$I$51*AR84) -> 250.5 | AT84: 5 | AV84: 24LH 3 | AW84: 48 | AX84: 96 | AY84: 278.3597179 | BA84: 1.000134162 | BC84: 24LH03 | BD84: 278.3223775
A85: 19012.0335 | B85: 19012.05025 | C85: 19 | E85: 12 | F85: K | G85: 3 | H85: 12K 3 | I85: 335 | J85: 502.5 | K85: 207 | L85: =MIN(I85,360/'Roof Bay Analysis'!$I$51*K85) -> 310.5 | M85: 5.7 | O85: NA | P85: NA | Q85: NA | R85: NA | S85: NA | T85: NA | U85: NA | V85: NA | W85: 36 | Y85: NA | Z85: NA | AA85: NA | AB85: NA | AC85: NA | AD85: NA | AE85: NA | AF85: NA | AG85: 36 | AI85: 19012.03105 | AJ85: 19 | AL85: 12 | AM85: K | AN85: 3 | AO85: 12K 3 | AP85: 335 | AQ85: 502.5 | AR85: 207 | AS85: =MIN(AP85,360/'Roof Bay Analysis'!$I$51*AR85) -> 310.5 | AT85: 5.7 | AV85: 24LH 4 | AW85: 48 | AX85: 107 | AY85: 310.2551023 | BA85: 0.9968712721 | BC85: 24LH04 | BD85: 311.2288527
A86: 19012.0454 | B86: 19012.0681 | C86: 19 | E86: 12 | F86: K | G86: 5 | H86: 12K 5 | I86: 454 | J86: 681 | K86: 269 | L86: =MIN(I86,360/'Roof Bay Analysis'!$I$51*K86) -> 403.5 | M86: 7.1 | O86: NA | P86: NA | Q86: NA | R86: NA | S86: NA | T86: NA | U86: NA | V86: NA | W86: 40 | Y86: NA | Z86: NA | AA86: NA | AB86: NA | AC86: NA | AD86: NA | AE86: NA | AF86: NA | AG86: 40 | AI86: 19012.04035 | AJ86: 19 | AL86: 12 | AM86: K | AN86: 5 | AO86: 12K 5 | AP86: 454 | AQ86: 681 | AR86: 269 | AS86: =MIN(AP86,360/'Roof Bay Analysis'!$I$51*AR86) -> 403.5 | AT86: 7.1 | AV86: 24LH 5 | AW86: 48 | AX86: 124 | AY86: 359.547969 | BA86: 0.9505917953 | BC86: 24LH05 | BD86: 378.2359271
A87: 19014.0315 | B87: 19014.04725 | C87: 19 | E87: 14 | F87: K | G87: 1 | H87: 14K 1 | I87: 315 | J87: 472.5 | K87: 230 | L87: =MIN(I87,360/'Roof Bay Analysis'!$I$51*K87) -> 315 | M87: 5.2 | O87: NA | P87: =IF($Q87="NA","NA",IF($P25=$O25,$P25,IF(ROUNDDOWN($O56,0)=ROUNDDOWN($P56,0),P56,"X"))) -> NA | Q87: NA | R87: =IF($Q87="NA","NA",IF($P25=$O25,$R25,IF(ROUNDDOWN($O56,0)=ROUNDDOWN($P56,0),R56,"X"))) -> NA | S87: =IF($Q87="NA","NA",IF($P25=$O25,$S25,IF(ROUNDDOWN($O56,0)=ROUNDDOWN($P56,0),S56,"X"))) -> NA | T87: =IF($Q87="NA","NA",IF($P25=$O25,$T25,IF(ROUNDDOWN($O56,0)=ROUNDDOWN($P56,0),T56,"X"))) -> NA | U87: =IF($Q87="NA","NA",IF($P25=$O25,$U25,IF(ROUNDDOWN($O56,0)=ROUNDDOWN($P56,0),U56,"X"))) -> NA | V87: =IF($Q87="NA","NA",IF($P25=$O25,$V25,IF(ROUNDDOWN($O56,0)=ROUNDDOWN($P56,0),V56,"X"))) -> NA | W87: 44 | Y87: NA | Z87: =IF($AA87="NA","NA",IF($Z25=$Y25,$Z25,IF(ROUNDDOWN($Y56,0)=ROUNDDOWN($Z56,0),Z56,"X"))) -> NA | AA87: NA | AB87: =IF($AA87="NA","NA",IF($Z25=$Y25,$AB25,IF(ROUNDDOWN($Y56,0)=ROUNDDOWN($Z56,0),AB56,"X"))) -> NA | AC87: =IF($AA87="NA","NA",IF($Z25=$Y25,$AC25,IF(ROUNDDOWN($Y56,0)=ROUNDDOWN($Z56,0),AC56,"X"))) -> NA | AD87: =IF($AA87="NA","NA",IF($Z25=$Y25,$AD25,IF(ROUNDDOWN($Y56,0)=ROUNDDOWN($Z56,0),AD56,"X"))) -> NA | AE87: =IF($AA87="NA","NA",IF($Z25=$Y25,$AE25,IF(ROUNDDOWN($Y56,0)=ROUNDDOWN($Z56,0),AE56,"X"))) -> NA | AF87: =IF($AA87="NA","NA",IF($Z25=$Y25,$AF25,IF(ROUNDDOWN($Y56,0)=ROUNDDOWN($Z56,0),AF56,"X"))) -> NA | AG87: 44 | AI87: 19014.0315 | AJ87: 19 | AL87: 14 | AM87: K | AN87: 1 | AO87: 14K 1 | AP87: 315 | AQ87: 472.5 | AR87: 230 | AS87: =MIN(AP87,360/'Roof Bay Analysis'!$I$51*AR87) -> 315 | AT87: 5.2 | AV87: 24LH 6 | AW87: 48 | AX87: 152 | AY87: 440.7362201 | BA87: 0.9325416666 | BC87: 24LH06 | BD87: 472.6182602
A88: 19014.0395 | B88: 19014.05925 | C88: 19 | E88: 14 | F88: K | G88: 3 | H88: 14K 3 | I88: 395 | J88: 592.5 | K88: 287 | L88: =MIN(I88,360/'Roof Bay Analysis'!$I$51*K88) -> 395 | M88: 6 | O88: NA | P88: NA | Q88: =IF(W88<$T$2,"NA",IF(W88>$T$3,"NA",W88)) -> NA | R88: NA | S88: NA | T88: NA | U88: NA | V88: NA | W88: 48 | Y88: NA | Z88: NA | AA88: =IF(AG88<$T$2,"NA",IF(AG88>$T$3,"NA",AG88)) -> NA | AB88: NA | AC88: NA | AD88: NA | AE88: NA | AF88: NA | AG88: 48 | AI88: 19014.0395 | AJ88: 19 | AL88: 14 | AM88: K | AN88: 3 | AO88: 14K 3 | AP88: 395 | AQ88: 592.5 | AR88: 287 | AS88: =MIN(AP88,360/'Roof Bay Analysis'!$I$51*AR88) -> 395 | AT88: 6 | AV88: 24LH 7 | AW88: 48 | AX88: 171 | AY88: =26.767*AX88*(AW88-0.33)^3*10^-6 -> 495.8282476 | BA88: 0.9829904382 | BC88: 24LH07 | BD88: 504.4080067
A89: 19014.0475 | B89: 19014.07125 | C89: 19 | E89: 14 | F89: K | G89: 4 | H89: 14K 4 | I89: 475 | J89: 712.5 | K89: 336 | L89: =MIN(I89,360/'Roof Bay Analysis'!$I$51*K89) -> 475 | M89: 6.7 | O89: NA | P89: NA | Q89: NA | R89: NA | S89: NA | T89: NA | U89: NA | V89: NA | W89: 52 | Y89: NA | Z89: NA | AA89: NA | AB89: NA | AC89: NA | AD89: NA | AE89: NA | AF89: NA | AG89: 52 | AI89: 19014.0475 | AJ89: 19 | AL89: 14 | AM89: K | AN89: 4 | AO89: 14K 4 | AP89: 475 | AQ89: 712.5 | AR89: 336 | AS89: =MIN(AP89,360/'Roof Bay Analysis'!$I$51*AR89) -> 475 | AT89: 6.7 | AV89: 24LH 8 | AW89: 48 | AX89: 184 | AY89: 533.5227927 | BA89: 0.9871145137 | BC89: 24LH08 | BD89: 540.4872335
A90: 19014.055 | B90: 19014.0825 | C90: 19 | E90: 14 | F90: K | G90: 6 | H90: 14K 6 | I90: 550 | J90: 825 | K90: 383 | L90: =MIN(I90,360/'Roof Bay Analysis'!$I$51*K90) -> 550 | M90: 7.7 | O90: NA | P90: NA | Q90: NA | R90: NA | S90: NA | T90: NA | U90: NA | V90: NA | W90: 56 | Y90: NA | Z90: NA | AA90: NA | AB90: NA | AC90: NA | AD90: NA | AE90: NA | AF90: NA | AG90: 56 | AI90: 19014.055 | AJ90: 19 | AL90: 14 | AM90: K | AN90: 6 | AO90: 14K 6 | AP90: 550 | AQ90: 825 | AR90: 383 | AS90: =MIN(AP90,360/'Roof Bay Analysis'!$I$51*AR90) -> 550 | AT90: 7.7 | AV90: 24LH 9 | AW90: 48 | AX90: 209 | AY90: 606.0123026 | BA90: 0.919812131 | BC90: 24LH09 | BD90: 658.843564
A91: 19016.0408 | B91: 19016.0612 | C91: 19 | E91: 16 | F91: K | G91: 2 | H91: 16K 2 | I91: 408 | J91: 612 | K91: 347 | L91: =MIN(I91,360/'Roof Bay Analysis'!$I$51*K91) -> 408 | M91: 5.5 | O91: NA | P91: NA | Q91: NA | R91: NA | S91: NA | T91: NA | U91: NA | V91: NA | W91: 60 | Y91: NA | Z91: NA | AA91: NA | AB91: NA | AC91: NA | AD91: NA | AE91: NA | AF91: NA | AG91: 60 | AI91: 19016.0408 | AJ91: 19 | AL91: 16 | AM91: K | AN91: 2 | AO91: 16K 2 | AP91: 408 | AQ91: 612 | AR91: 347 | AS91: =MIN(AP91,360/'Roof Bay Analysis'!$I$51*AR91) -> 408 | AT91: 5.5 | AV91: 24LH10 | AW91: 48 | AX91: 234 | AY91: 678.5018125 | BA91: 0.9374627561 | BC91: 24LH10 | BD91: 723.7640195
A92: 19016.0455 | B92: 19016.06825 | C92: 19 | E92: 16 | F92: K | G92: 3 | H92: 16K 3 | I92: 455 | J92: 682.5 | K92: 386 | L92: =MIN(I92,360/'Roof Bay Analysis'!$I$51*K92) -> 455 | M92: 6.3 | O92: NA | P92: NA | Q92: NA | R92: NA | S92: NA | T92: NA | U92: NA | V92: NA | W92: 64 | Y92: NA | Z92: NA | AA92: NA | AB92: NA | AC92: NA | AD92: NA | AE92: NA | AF92: NA | AG92: 64 | AI92: 19016.0455 | AJ92: 19 | AL92: 16 | AM92: K | AN92: 3 | AO92: 16K 3 | AP92: 455 | AQ92: 682.5 | AR92: 386 | AS92: =MIN(AP92,360/'Roof Bay Analysis'!$I$51*AR92) -> 455 | AT92: 6.3 | AV92: 24LH11 | AW92: 48 | AX92: 259 | AY92: 750.9913223 | BA92: 0.9879196371 | BC92: 24LH11 | BD92: 760.1745062
A93: 19016.0547 | B93: 19016.08205 | C93: 19 | E93: 16 | F93: K | G93: 4 | H93: 16K 4 | I93: 547 | J93: 820.5 | K93: 452 | L93: =MIN(I93,360/'Roof Bay Analysis'!$I$51*K93) -> 547 | M93: 7 | O93: NA | P93: NA | Q93: NA | R93: NA | S93: NA | T93: NA | U93: NA | V93: NA | W93: 68 | Y93: NA | Z93: NA | AA93: NA | AB93: NA | AC93: NA | AD93: NA | AE93: NA | AF93: NA | AG93: 68 | AI93: 19016.0547 | AJ93: 19 | AL93: 16 | AM93: K | AN93: 4 | AO93: 16K 4 | AP93: 547 | AQ93: 820.5 | AR93: 452 | AS93: =MIN(AP93,360/'Roof Bay Analysis'!$I$51*AR93) -> 547 | AT93: 7 | AV93: 28LH 5 | AW93: 56 | AX93: 97 | AY93: 447.9557309 | BA93: 0.9545723193 | BC93: 28LH05 | BD93: 469.2737489
A94: 19016.055 | B94: 19016.0825 | C94: 19 | E94: 16 | F94: K | G94: 5 | H94: 16K 5 | I94: 550 | J94: 825 | K94: 455 | L94: =MIN(I94,360/'Roof Bay Analysis'!$I$51*K94) -> 550 | M94: 7.5 | O94: NA | P94: NA | Q94: NA | R94: NA | S94: NA | T94: NA | U94: NA | V94: NA | W94: 72 | Y94: NA | Z94: NA | AA94: NA | AB94: NA | AC94: NA | AD94: NA | AE94: NA | AF94: NA | AG94: 72 | AI94: 19016.055 | AJ94: 19 | AL94: 16 | AM94: K | AN94: 5 | AO94: 16K 5 | AP94: 550 | AQ94: 825 | AR94: 455 | AS94: =MIN(AP94,360/'Roof Bay Analysis'!$I$51*AR94) -> 550 | AT94: 7.5 | AV94: 28LH 6 | AW94: 56 | AX94: 126 | AY94: 581.8806402 | BA94: 0.9791261058 | BC94: 28LH06 | BD94: 594.285697
A95: 19016.055 | B95: 19016.0825 | C95: 19 | E95: 16 | F95: K | G95: 6 | H95: 16K 6 | I95: 550 | J95: 825 | K95: 455 | L95: =MIN(I95,360/'Roof Bay Analysis'!$I$51*K95) -> 550 | M95: 8.1 | O95: =IF(Q95="NA","NA",$Q$1*1000+Q95+$Q$2/10000) -> NA | P95: NA | Q95: NA | R95: NA | S95: NA | T95: NA | U95: NA | V95: NA | W95: 80 | Y95: =IF(AA95="NA","NA",$Q$1*1000+AA95+$Q$3/10000) -> NA | Z95: NA | AA95: NA | AB95: NA | AC95: NA | AD95: NA | AE95: NA | AF95: NA | AG95: 80 | AI95: 19016.055 | AJ95: 19 | AL95: 16 | AM95: K | AN95: 6 | AO95: 16K 6 | AP95: 550 | AQ95: 825 | AR95: 455 | AS95: =MIN(AP95,360/'Roof Bay Analysis'!$I$51*AR95) -> 550 | AT95: 8.1 | AV95: 28LH 7 | AW95: 56 | AX95: 142 | AY95: 655.7702453 | BA95: 0.9756895374 | BC95: 28LH07 | BD95: 672.1095391
A96: 19016.055 | B96: 19016.0825 | C96: 19 | E96: 16 | F96: K | G96: 7 | H96: 16K 7 | I96: 550 | J96: 825 | K96: 455 | L96: =MIN(I96,360/'Roof Bay Analysis'!$I$51*K96) -> 550 | M96: 8.6 | O96: NA | P96: NA | Q96: NA | R96: NA | S96: NA | T96: NA | U96: NA | V96: NA | W96: 88 | Y96: NA | Z96: NA | AA96: NA | AB96: NA | AC96: NA | AD96: NA | AE96: NA | AF96: NA | AG96: 88 | AI96: 19016.055 | AJ96: 19 | AL96: 16 | AM96: K | AN96: 7 | AO96: 16K 7 | AP96: 550 | AQ96: 825 | AR96: 455 | AS96: =MIN(AP96,360/'Roof Bay Analysis'!$I$51*AR96) -> 550 | AT96: 8.6 | AV96: 28LH 8 | AW96: 56 | AX96: 148 | AY96: 683.4788472 | BA96: 0.9805232415 | BC96: 28LH08 | BD96: 697.0552235
A97: 19016.055 | B97: 19016.0825 | C97: 19 | E97: 16 | F97: K | G97: 9 | H97: 16K 9 | I97: 550 | J97: 825 | K97: 455 | L97: =MIN(I97,360/'Roof Bay Analysis'!$I$51*K97) -> 550 | M97: 10 | O97: NA | P97: NA | Q97: NA | R97: NA | S97: NA | T97: NA | U97: NA | V97: NA | W97: 96 | Y97: NA | Z97: NA | AA97: NA | AB97: NA | AC97: NA | AD97: NA | AE97: NA | AF97: NA | AG97: 96 | AI97: 19016.055 | AJ97: 19 | AL97: 16 | AM97: K | AN97: 9 | AO97: 16K 9 | AP97: 550 | AQ97: 825 | AR97: 455 | AS97: =MIN(AP97,360/'Roof Bay Analysis'!$I$51*AR97) -> 550 | AT97: 10 | AV97: 28LH 9 | AW97: 56 | AX97: 183 | AY97: 845.1123583 | BA97: 0.9255002118 | BC97: 28LH09 | BD97: 913.141183
A98: 19018.0514 | B98: 19018.0771 | C98: 19 | E98: 18 | F98: K | G98: 3 | H98: 18K 3 | I98: 514 | J98: 771 | K98: 494 | L98: =MIN(I98,360/'Roof Bay Analysis'!$I$51*K98) -> 514 | M98: 6.4 | O98: NA | P98: NA | Q98: NA | R98: NA | S98: NA | T98: NA | U98: NA | V98: NA | W98: 104 | Y98: NA | Z98: NA | AA98: NA | AB98: NA | AC98: NA | AD98: NA | AE98: NA | AF98: NA | AG98: 104 | AI98: 19018.0514 | AJ98: 19 | AL98: 18 | AM98: K | AN98: 3 | AO98: 18K 3 | AP98: 514 | AQ98: 771 | AR98: 494 | AS98: =MIN(AP98,360/'Roof Bay Analysis'!$I$51*AR98) -> 514 | AT98: 6.4 | AV98: 28LH10 | AW98: 56 | AX98: 204 | AY98: 942.092465 | BA98: 0.9866733956 | BC98: 28LH10 | BD98: 954.8169325
A99: 19018.055 | B99: 19018.0825 | C99: 19 | E99: 18 | F99: K | G99: 4 | H99: 18K 4 | I99: 550 | J99: 825 | K99: 523 | L99: =MIN(I99,360/'Roof Bay Analysis'!$I$51*K99) -> 550 | M99: 7.2 | O99: NA | P99: NA | Q99: NA | R99: NA | S99: NA | T99: NA | U99: NA | V99: NA | W99: 112 | Y99: NA | Z99: NA | AA99: NA | AB99: NA | AC99: NA | AD99: NA | AE99: NA | AF99: NA | AG99: 112 | AI99: 19018.055 | AJ99: 19 | AL99: 18 | AM99: K | AN99: 4 | AO99: 18K 4 | AP99: 550 | AQ99: 825 | AR99: 523 | AS99: =MIN(AP99,360/'Roof Bay Analysis'!$I$51*AR99) -> 550 | AT99: 7.2 | AV99: 28LH11 | AW99: 56 | AX99: 223 | AY99: 1029.836371 | BA99: 0.9759316613 | BC99: 28LH11 | BD99: 1055.234103
A100: 19018.055 | B100: 19018.0825 | C100: 19 | E100: 18 | F100: K | G100: 5 | H100: 18K 5 | I100: 550 | J100: 825 | K100: 523 | L100: =MIN(I100,360/'Roof Bay Analysis'!$I$51*K100) -> 550 | M100: 7.7 | O100: NA | P100: NA | Q100: NA | R100: NA | S100: NA | T100: NA | U100: NA | V100: NA | W100: 120 | Y100: NA | Z100: NA | AA100: NA | AB100: NA | AC100: NA | AD100: NA | AE100: NA | AF100: NA | AG100: 120 | AI100: 19018.055 | AJ100: 19 | AL100: 18 | AM100: K | AN100: 5 | AO100: 18K 5 | AP100: 550 | AQ100: 825 | AR100: 523 | AS100: =MIN(AP100,360/'Roof Bay Analysis'!$I$51*AR100) -> 550 | AT100: 7.7 | AV100: 28LH12 | AW100: 56 | AX100: 256 | AY100: 1182.233682 | BA100: =AY100/BD100 -> 0.9577173665 | BC100: 28LH12 | BD100: 1234.428573
A101: 19018.055 | B101: 19018.0825 | C101: 19 | E101: 18 | F101: K | G101: 6 | H101: 18K 6 | I101: 550 | J101: 825 | K101: 523 | L101: =MIN(I101,360/'Roof Bay Analysis'!$I$51*K101) -> 550 | M101: 8.4 | AI101: 19018.055 | AJ101: 19 | AL101: 18 | AM101: K | AN101: 6 | AO101: 18K 6 | AP101: 550 | AQ101: 825 | AR101: 523 | AS101: =MIN(AP101,360/'Roof Bay Analysis'!$I$51*AR101) -> 550 | AT101: 8.4 | AV101: 28LH13 | AW101: 56 | AX101: 281 | AY101: 1297.68619 | BA101: 0.9809085419 | BC101: 28LH13 | BD101: 1322.943102
A102: 19018.055 | B102: 19018.0825 | C102: 19 | E102: 18 | F102: K | G102: 7 | H102: 18K 7 | I102: 550 | J102: 825 | K102: 523 | L102: =MIN(I102,360/'Roof Bay Analysis'!$I$51*K102) -> 550 | M102: 8.9 | O102: Return "NA" if deflection is inadequate. | Y102: Return "NA" if total load (strength) is inadequate. | AI102: 19018.055 | AJ102: 19 | AL102: 18 | AM102: K | AN102: 7 | AO102: 18K 7 | AP102: 550 | AQ102: 825 | AR102: 523 | AS102: =MIN(AP102,360/'Roof Bay Analysis'!$I$51*AR102) -> 550 | AT102: 8.9 | AV102: 32LH 6 | AW102: 64 | AX102: 104 | AY102: 718.5178932 | BA102: 0.9572947796 | BC102: 32LH06 | BD102: 750.5712018
A103: 19018.055 | B103: 19018.0825 | C103: 19 | E103: 18 | F103: K | G103: 9 | H103: 18K 9 | I103: 550 | J103: 825 | K103: 523 | L103: =MIN(I103,360/'Roof Bay Analysis'!$I$51*K103) -> 550 | M103: 10.1 | AI103: 19018.055 | AJ103: 19 | AL103: 18 | AM103: K | AN103: 9 | AO103: 18K 9 | AP103: 550 | AQ103: 825 | AR103: 523 | AS103: =MIN(AP103,360/'Roof Bay Analysis'!$I$51*AR103) -> 550 | AT103: 10.1 | AV103: 32LH 7 | AW103: 64 | AX103: 116 | AY103: 801.423804 | BA103: 0.930912085 | BC103: 32LH07 | BD103: 860.901708
A104: 19018.055 | B104: 19018.0825 | C104: 19 | E104: 18 | F104: K | G104: 10 | H104: 18K10 | I104: 550 | J104: 825 | K104: 523 | L104: =MIN(I104,360/'Roof Bay Analysis'!$I$51*K104) -> 550 | M104: 11.6 | O104: =IF(Q104="NA","NA",$Q$1*1000+Q104+$Q$2/10000) -> NA | P104: =IF($Q$3>$U73,"NA",P73) -> NA | Q104: =IF(W104<$T$2,"NA",IF(W104>$T$3,"NA",W104)) -> NA | R104: =IF($Q$3>$U73,"NA",R73) -> NA | S104: =IF($Q$3>$U73,"NA",S73) -> NA | T104: NA | U104: NA | V104: =IF($Q$3>$U73,"NA",V73) -> NA | W104: 10 | Y104: =IF(AA104="NA","NA",$Q$1*1000+AA104+$Q$3/10000) -> NA | Z104: =IF($O$1="ASD",IF($Q$2>$AC73,"NA",Z73),IF($Q$2>$AD73,"NA",Z73)) -> NA | AA104: =IF(AG104<$T$2,"NA",IF(AG104>$T$3,"NA",AG104)) -> NA | AB104: =IF($O$1="ASD",IF($Q$2>$AC73,"NA",AB73),IF($Q$2>$AD73,"NA",AB73)) -> NA | AC104: =IF($O$1="ASD",IF($Q$2>$AC73,"NA",AC73),IF($Q$2>$AD73,"NA",AC73)) -> NA | AD104: NA | AE104: NA | AF104: NA | AG104: 10 | AI104: 19018.055 | AJ104: 19 | AL104: 18 | AM104: K | AN104: 10 | AO104: 18K10 | AP104: 550 | AQ104: 825 | AR104: 523 | AS104: =MIN(AP104,360/'Roof Bay Analysis'!$I$51*AR104) -> 550 | AT104: 11.6 | AV104: 32LH 8 | AW104: 64 | AX104: 125 | AY104: 863.603237 | BA104: 0.972664769 | BC104: 32LH08 | BD104: 887.8734632
A105: 20010.0199 | B105: 20010.02985 | C105: 20 | E105: 10 | F105: K | G105: 1 | H105: 10K 1 | I105: 199 | J105: 298.5 | K105: 97 | L105: =MIN(I105,360/'Roof Bay Analysis'!$I$51*K105) -> 145.5 | M105: 5 | O105: =IF(Q105="NA","NA",$Q$1*1000+Q105+$Q$2/10000) -> NA | P105: =IF($Q$3>$U74,"NA",P74) -> NA | Q105: NA | R105: =IF($Q$3>$U74,"NA",R74) -> NA | S105: NA | T105: NA | U105: NA | V105: NA | W105: 12 | Y105: =IF(AA105="NA","NA",$Q$1*1000+AA105+$Q$3/10000) -> NA | Z105: =IF($O$1="ASD",IF($Q$2>$AC74,"NA",Z74),IF($Q$2>$AD74,"NA",Z74)) -> NA | AA105: NA | AB105: =IF($O$1="ASD",IF($Q$2>$AC74,"NA",AB74),IF($Q$2>$AD74,"NA",AB74)) -> NA | AC105: NA | AD105: NA | AE105: NA | AF105: NA | AG105: 12 | AI105: 20010.01455 | AJ105: 20 | AL105: 10 | AM105: K | AN105: 1 | AO105: 10K 1 | AP105: 199 | AQ105: 298.5 | AR105: 97 | AS105: =MIN(AP105,360/'Roof Bay Analysis'!$I$51*AR105) -> 145.5 | AT105: 5 | AV105: 32LH 9 | AW105: 64 | AX105: 157 | AY105: 1084.685666 | BA105: 0.9752129346 | BC105: 32LH09 | BD105: 1112.255208
A106: 20012.0241 | B106: 20012.03615 | C106: 20 | E106: 12 | F106: K | G106: 1 | H106: 12K 1 | I106: 241 | J106: 361.5 | K106: 142 | L106: =MIN(I106,360/'Roof Bay Analysis'!$I$51*K106) -> 213 | M106: 5 | O106: NA | P106: NA | Q106: NA | R106: =IF($Q$3>$U75,"NA",R75) -> NA | S106: NA | T106: NA | U106: NA | V106: NA | W106: 14 | Y106: NA | Z106: NA | AA106: NA | AB106: =IF($O$1="ASD",IF($Q$2>$AC75,"NA",AB75),IF($Q$2>$AD75,"NA",AB75)) -> NA | AC106: NA | AD106: NA | AE106: NA | AF106: NA | AG106: 14 | AI106: 20012.0213 | AJ106: 20 | AL106: 12 | AM106: K | AN106: 1 | AO106: 12K 1 | AP106: 241 | AQ106: 361.5 | AR106: 142 | AS106: =MIN(AP106,360/'Roof Bay Analysis'!$I$51*AR106) -> 213 | AT106: 5 | AV106: 32LH10 | AW106: 64 | AX106: 169 | AY106: 1167.591576 | BA106: 0.9657036483 | BC106: 32LH10 | BD106: 1209.05785
A107: 20012.0302 | B107: 20012.0453 | C107: 20 | E107: 12 | F107: K | G107: 3 | H107: 12K 3 | I107: 302 | J107: 453 | K107: 177 | L107: =MIN(I107,360/'Roof Bay Analysis'!$I$51*K107) -> 265.5 | M107: 5.7 | O107: 30016.01874 | P107: 30016.0216 | Q107: 16 | R107: =IF($Q$3>$U76,"NA",R76) -> 16K 4 | S107: 216 | T107: 324 | U107: 168 | V107: 7 | W107: 16 | Y107: 30016.0125 | Z107: NA | AA107: 16 | AB107: =IF($O$1="ASD",IF($Q$2>$AC76,"NA",AB76),IF($Q$2>$AD76,"NA",AB76)) -> NA | AC107: NA | AD107: NA | AE107: NA | AF107: NA | AG107: 16 | AI107: 20012.02655 | AJ107: 20 | AL107: 12 | AM107: K | AN107: 3 | AO107: 12K 3 | AP107: 302 | AQ107: 453 | AR107: 177 | AS107: =MIN(AP107,360/'Roof Bay Analysis'!$I$51*AR107) -> 265.5 | AT107: 5.7 | AV107: 32LH11 | AW107: 64 | AX107: 187 | AY107: 1291.950443 | BA107: 0.9702602736 | BC107: 32LH11 | BD107: 1331.550387
A108: 20012.0409 | B108: 20012.06135 | C108: 20 | E108: 12 | F108: K | G108: 5 | H108: 12K 5 | I108: 409 | J108: 613.5 | K108: 230 | L108: =MIN(I108,360/'Roof Bay Analysis'!$I$51*K108) -> 345 | M108: 7.1 | O108: 30018.01874 | P108: 30018.0203 | Q108: 18 | R108: =IF($Q$3>$U77,"NA",R77) -> 18K 3 | S108: 203 | T108: 304.5 | U108: 184.5 | V108: 6.4 | W108: 18 | Y108: 30018.0125 | Z108: 30018.01845 | AA108: 18 | AB108: =IF($O$1="ASD",IF($Q$2>$AC77,"NA",AB77),IF($Q$2>$AD77,"NA",AB77)) -> 18K 3 | AC108: 203 | AD108: 304.5 | AE108: 184.5 | AF108: 6.4 | AG108: 18 | AI108: 20012.0345 | AJ108: 20 | AL108: 12 | AM108: K | AN108: 5 | AO108: 12K 5 | AP108: 409 | AQ108: 613.5 | AR108: 230 | AS108: =MIN(AP108,360/'Roof Bay Analysis'!$I$51*AR108) -> 345 | AT108: 7.1 | AV108: 32LH12 | AW108: 64 | AX108: 221 | AY108: 1526.850523 | BA108: 0.9821434094 | BC108: 32LH12 | BD108: 1554.610568
A109: 20014.0284 | B109: 20014.0426 | C109: 20 | E109: 14 | F109: K | G109: 1 | H109: 14K 1 | I109: 284 | J109: 426 | K109: 197 | L109: =MIN(I109,360/'Roof Bay Analysis'!$I$51*K109) -> 284 | M109: 5.2 | O109: 30020.01874 | P109: 30020.0227 | Q109: 20 | R109: =IF($Q$3>$U78,"NA",R78) -> 20K 3 | S109: 227 | T109: 340.5 | U109: 227 | V109: 6.5 | W109: 20 | Y109: 30020.0125 | Z109: 30020.0227 | AA109: 20 | AB109: =IF($O$1="ASD",IF($Q$2>$AC78,"NA",AB78),IF($Q$2>$AD78,"NA",AB78)) -> 20K 3 | AC109: 227 | AD109: 340.5 | AE109: 227 | AF109: 6.5 | AG109: 20 | AI109: 20014.0284 | AJ109: 20 | AL109: 14 | AM109: K | AN109: 1 | AO109: 14K 1 | AP109: 284 | AQ109: 426 | AR109: 197 | AS109: =MIN(AP109,360/'Roof Bay Analysis'!$I$51*AR109) -> 284 | AT109: 5.2 | AV109: 32LH13 | AW109: 64 | AX109: 249 | AY109: 1720.297648 | BA109: 0.9796053622 | BC109: 32LH13 | BD109: 1756.112935
A110: 20014.0356 | B110: 20014.0534 | C110: 20 | E110: 14 | F110: K | G110: 3 | H110: 14K 3 | I110: 356 | J110: 534 | K110: 246 | L110: =MIN(I110,360/'Roof Bay Analysis'!$I$51*K110) -> 356 | M110: 6 | O110: 30022.01874 | P110: 30022.0302 | Q110: 22 | R110: =IF($Q$3>$U79,"NA",R79) -> 22K 4 | S110: 302 | T110: 453 | U110: 302 | V110: 7.3 | W110: 22 | Y110: 30022.0125 | Z110: 30022.0302 | AA110: 22 | AB110: =IF($O$1="ASD",IF($Q$2>$AC79,"NA",AB79),IF($Q$2>$AD79,"NA",AB79)) -> 22K 4 | AC110: 302 | AD110: 453 | AE110: 302 | AF110: 7.3 | AG110: 22 | AI110: 20014.0356 | AJ110: 20 | AL110: 14 | AM110: K | AN110: 3 | AO110: 14K 3 | AP110: 356 | AQ110: 534 | AR110: 246 | AS110: =MIN(AP110,360/'Roof Bay Analysis'!$I$51*AR110) -> 356 | AT110: 6 | AV110: 32LH14 | AW110: 64 | AX110: 264 | AY110: 1823.930037 | BA110: 0.962032726 | BC110: 32LH14 | BD110: 1895.912672
A111: 20014.0428 | B111: 20014.0642 | C111: 20 | E111: 14 | F111: K | G111: 4 | H111: 14K 4 | I111: 428 | J111: 642 | K111: 287 | L111: =MIN(I111,360/'Roof Bay Analysis'!$I$51*K111) -> 428 | M111: 6.7 | O111: 30024.01874 | P111: 30024.0331 | Q111: 24 | R111: =IF($Q$3>$U80,"NA",R80) -> 24K 4 | S111: 331 | T111: 496.5 | U111: 331 | V111: 7.8 | W111: 24 | Y111: 30024.0125 | Z111: 30024.0331 | AA111: 24 | AB111: =IF($O$1="ASD",IF($Q$2>$AC80,"NA",AB80),IF($Q$2>$AD80,"NA",AB80)) -> 24K 4 | AC111: 331 | AD111: 496.5 | AE111: 331 | AF111: 7.8 | AG111: 24 | AI111: 20014.0428 | AJ111: 20 | AL111: 14 | AM111: K | AN111: 4 | AO111: 14K 4 | AP111: 428 | AQ111: 642 | AR111: 287 | AS111: =MIN(AP111,360/'Roof Bay Analysis'!$I$51*AR111) -> 428 | AT111: 6.7 | AV111: 32LH15 | AW111: 64 | AX111: 292 | AY111: 2017.377162 | BA111: 0.9741761557 | BC111: 32LH15 | BD111: 2070.854588
A112: 20014.0525 | B112: 20014.07875 | C112: 20 | E112: 14 | F112: K | G112: 6 | H112: 14K 6 | I112: 525 | J112: 787.5 | K112: 347 | L112: =MIN(I112,360/'Roof Bay Analysis'!$I$51*K112) -> 520.5 | M112: 7.7 | O112: 30026.01874 | P112: 30026.0405 | Q112: 26 | R112: =IF($Q$3>$U81,"NA",R81) -> 26K 5 | S112: 405 | T112: 607.5 | U112: 405 | V112: 8.1 | W112: 26 | Y112: 30026.0125 | Z112: 30026.0405 | AA112: 26 | AB112: =IF($O$1="ASD",IF($Q$2>$AC81,"NA",AB81),IF($Q$2>$AD81,"NA",AB81)) -> 26K 5 | AC112: 405 | AD112: 607.5 | AE112: 405 | AF112: 8.1 | AG112: 26 | AI112: 20014.05205 | AJ112: 20 | AL112: 14 | AM112: K | AN112: 6 | AO112: 14K 6 | AP112: 525 | AQ112: 787.5 | AR112: 347 | AS112: =MIN(AP112,360/'Roof Bay Analysis'!$I$51*AR112) -> 520.5 | AT112: 7.7 | AV112: 36LH 7 | AW112: 72 | AX112: 95 | AY112: 936.1286084 | BA112: 0.9776510634 | BC112: 36LH07 | BD112: 957.5283487
A113: 20016.0368 | B113: 20016.0552 | C113: 20 | E113: 16 | F113: K | G113: 2 | H113: 16K 2 | I113: 368 | J113: 552 | K113: 297 | L113: =MIN(I113,360/'Roof Bay Analysis'!$I$51*K113) -> 368 | M113: 5.5 | O113: 30028.01874 | P113: 30028.0477 | Q113: 28 | R113: =IF($Q$3>$U82,"NA",R82) -> 28K 6 | S113: 477 | T113: 715.5 | U113: 477 | V113: 8.9 | W113: 28 | Y113: 30028.0125 | Z113: =IF($O$1="ASD",IF($Q$2>$AC82,"NA",Z82),IF($Q$2>$AD82,"NA",Z82)) -> 30028.0477 | AA113: 28 | AB113: =IF($O$1="ASD",IF($Q$2>$AC82,"NA",AB82),IF($Q$2>$AD82,"NA",AB82)) -> 28K 6 | AC113: 477 | AD113: 715.5 | AE113: 477 | AF113: 8.9 | AG113: 28 | AI113: 20016.0368 | AJ113: 20 | AL113: 16 | AM113: K | AN113: 2 | AO113: 16K 2 | AP113: 368 | AQ113: 552 | AR113: 297 | AS113: =MIN(AP113,360/'Roof Bay Analysis'!$I$51*AR113) -> 368 | AT113: 5.5 | AV113: 36LH 8 | AW113: 72 | AX113: 104 | AY113: 1024.814477 | BA113: 0.9329467147 | BC113: 36LH08 | BD113: 1098.470535
A114: 20016.041 | B114: 20016.0615 | C114: 20 | E114: 16 | F114: K | G114: 3 | H114: 16K 3 | I114: 410 | J114: 615 | K114: 330 | L114: =MIN(I114,360/'Roof Bay Analysis'!$I$51*K114) -> 410 | M114: 6.3 | O114: 30030.01874 | P114: 30030.055 | Q114: 30 | R114: =IF($Q$3>$U83,"NA",R83) -> 30K 7 | S114: 550 | T114: 825 | U114: 550 | V114: 9.6 | W114: 30 | Y114: 30030.0125 | Z114: 30030.055 | AA114: 30 | AB114: =IF($O$1="ASD",IF($Q$2>$AC83,"NA",AB83),IF($Q$2>$AD83,"NA",AB83)) -> 30K 7 | AC114: 550 | AD114: 825 | AE114: 550 | AF114: 9.6 | AG114: 30 | AI114: 20016.041 | AJ114: 20 | AL114: 16 | AM114: K | AN114: 3 | AO114: 16K 3 | AP114: 410 | AQ114: 615 | AR114: 330 | AS114: =MIN(AP114,360/'Roof Bay Analysis'!$I$51*AR114) -> 410 | AT114: 6.3 | AV114: 36LH 9 | AW114: 72 | AX114: 133 | AY114: 1310.580052 | BA114: 0.9993729877 | BC114: 36LH09 | BD114: 1311.402317
A115: 20016.0493 | B115: 20016.07395 | C115: 20 | E115: 16 | F115: K | G115: 4 | H115: 16K 4 | I115: 493 | J115: 739.5 | K115: 386 | L115: =MIN(I115,360/'Roof Bay Analysis'!$I$51*K115) -> 493 | M115: 7 | O115: NA | P115: NA | Q115: NA | R115: =IF($Q$3>$U84,"NA",R84) -> NA | S115: NA | T115: NA | U115: NA | V115: NA | W115: 32 | Y115: NA | Z115: NA | AA115: NA | AB115: =IF($O$1="ASD",IF($Q$2>$AC84,"NA",AB84),IF($Q$2>$AD84,"NA",AB84)) -> NA | AC115: NA | AD115: NA | AE115: NA | AF115: NA | AG115: 32 | AI115: 20016.0493 | AJ115: 20 | AL115: 16 | AM115: K | AN115: 4 | AO115: 16K 4 | AP115: 493 | AQ115: 739.5 | AR115: 386 | AS115: =MIN(AP115,360/'Roof Bay Analysis'!$I$51*AR115) -> 493 | AT115: 7 | AV115: 36LH10 | AW115: 72 | AX115: 146 | AY115: 1438.681861 | BA115: 0.9302262047 | BC115: 36LH10 | BD115: 1546.593564
A116: 20016.055 | B116: 20016.0825 | C116: 20 | E116: 16 | F116: K | G116: 5 | H116: 16K 5 | I116: 550 | J116: 825 | K116: 426 | L116: =MIN(I116,360/'Roof Bay Analysis'!$I$51*K116) -> 550 | M116: 7.5 | O116: NA | P116: NA | Q116: NA | R116: =IF($Q$3>$U85,"NA",R85) -> NA | S116: NA | T116: NA | U116: NA | V116: NA | W116: 36 | Y116: NA | Z116: NA | AA116: NA | AB116: =IF($O$1="ASD",IF($Q$2>$AC85,"NA",AB85),IF($Q$2>$AD85,"NA",AB85)) -> NA | AC116: NA | AD116: NA | AE116: NA | AF116: NA | AG116: 36 | AI116: 20016.055 | AJ116: 20 | AL116: 16 | AM116: K | AN116: 5 | AO116: 16K 5 | AP116: 550 | AQ116: 825 | AR116: 426 | AS116: =MIN(AP116,360/'Roof Bay Analysis'!$I$51*AR116) -> 550 | AT116: 7.5 | AV116: 36LH11 | AW116: 72 | AX116: 159 | AY116: 1566.783671 | BA116: 0.9671388317 | BC116: 36LH11 | BD116: 1620.019401
A117: 20016.055 | B117: 20016.0825 | C117: 20 | E117: 16 | F117: K | G117: 6 | H117: 16K 6 | I117: 550 | J117: 825 | K117: 426 | L117: =MIN(I117,360/'Roof Bay Analysis'!$I$51*K117) -> 550 | M117: 8.1 | O117: NA | P117: NA | Q117: NA | R117: =IF($Q$3>$U86,"NA",R86) -> NA | S117: NA | T117: NA | U117: NA | V117: NA | W117: 40 | Y117: NA | Z117: NA | AA117: NA | AB117: =IF($O$1="ASD",IF($Q$2>$AC86,"NA",AB86),IF($Q$2>$AD86,"NA",AB86)) -> NA | AC117: NA | AD117: NA | AE117: NA | AF117: NA | AG117: 40 | AI117: 20016.055 | AJ117: 20 | AL117: 16 | AM117: K | AN117: 6 | AO117: 16K 6 | AP117: 550 | AQ117: 825 | AR117: 426 | AS117: =MIN(AP117,360/'Roof Bay Analysis'!$I$51*AR117) -> 550 | AT117: 8.1 | AV117: 36LH12 | AW117: 72 | AX117: 187 | AY117: 1842.695261 | BA117: 0.972207219 | BC117: 36LH12 | BD117: 1895.372946
A118: 20016.055 | B118: 20016.0825 | C118: 20 | E118: 16 | F118: K | G118: 7 | H118: 16K 7 | I118: 550 | J118: 825 | K118: 426 | L118: =MIN(I118,360/'Roof Bay Analysis'!$I$51*K118) -> 550 | M118: 8.6 | O118: NA | P118: NA | Q118: NA | R118: =IF($Q$3>$U87,"NA",R87) -> NA | S118: NA | T118: NA | U118: NA | V118: NA | W118: 44 | Y118: NA | Z118: NA | AA118: NA | AB118: =IF($O$1="ASD",IF($Q$2>$AC87,"NA",AB87),IF($Q$2>$AD87,"NA",AB87)) -> NA | AC118: NA | AD118: NA | AE118: NA | AF118: NA | AG118: 44 | AI118: 20016.055 | AJ118: 20 | AL118: 16 | AM118: K | AN118: 7 | AO118: 16K 7 | AP118: 550 | AQ118: 825 | AR118: 426 | AS118: =MIN(AP118,360/'Roof Bay Analysis'!$I$51*AR118) -> 550 | AT118: 8.6 | AV118: 36LH13 | AW118: 72 | AX118: 222 | AY118: 2187.584748 | BA118: 0.9718940064 | BC118: 36LH13 | BD118: 2250.847041
A119: 20016.055 | B119: 20016.0825 | C119: 20 | E119: 16 | F119: K | G119: 9 | H119: 16K 9 | I119: 550 | J119: 825 | K119: 426 | L119: =MIN(I119,360/'Roof Bay Analysis'!$I$51*K119) -> 550 | M119: 10 | O119: NA | P119: NA | Q119: NA | R119: =IF($Q$3>$U88,"NA",R88) -> NA | S119: NA | T119: NA | U119: NA | V119: NA | W119: 48 | Y119: NA | Z119: NA | AA119: NA | AB119: =IF($O$1="ASD",IF($Q$2>$AC88,"NA",AB88),IF($Q$2>$AD88,"NA",AB88)) -> NA | AC119: NA | AD119: NA | AE119: NA | AF119: NA | AG119: 48 | AI119: 20016.055 | AJ119: 20 | AL119: 16 | AM119: K | AN119: 9 | AO119: 16K 9 | AP119: 550 | AQ119: 825 | AR119: 426 | AS119: =MIN(AP119,360/'Roof Bay Analysis'!$I$51*AR119) -> 550 | AT119: 10 | AV119: 36LH14 | AW119: 72 | AX119: 237 | AY119: 2335.394528 | BA119: 1.001153248 | BC119: 36LH14 | BD119: 2332.704341
A120: 20018.0463 | B120: 20018.06945 | C120: 20 | E120: 18 | F120: K | G120: 3 | H120: 18K 3 | I120: 463 | J120: 694.5 | K120: 423 | L120: =MIN(I120,360/'Roof Bay Analysis'!$I$51*K120) -> 463 | M120: 6.4 | O120: NA | P120: NA | Q120: NA | R120: =IF($Q$3>$U89,"NA",R89) -> NA | S120: =IF($Q$3>$U89,"NA",S89) -> NA | T120: NA | U120: NA | V120: =IF($Q$3>$U89,"NA",V89) -> NA | W120: 52 | Y120: NA | Z120: =IF($O$1="ASD",IF($Q$2>$AC89,"NA",Z89),IF($Q$2>$AD89,"NA",Z89)) -> NA | AA120: NA | AB120: =IF($O$1="ASD",IF($Q$2>$AC89,"NA",AB89),IF($Q$2>$AD89,"NA",AB89)) -> NA | AC120: =IF($O$1="ASD",IF($Q$2>$AC89,"NA",AC89),IF($Q$2>$AD89,"NA",AC89)) -> NA | AD120: NA | AE120: NA | AF120: NA | AG120: 52 | AI120: 20018.0463 | AJ120: 20 | AL120: 18 | AM120: K | AN120: 3 | AO120: 18K 3 | AP120: 463 | AQ120: 694.5 | AR120: 423 | AS120: =MIN(AP120,360/'Roof Bay Analysis'!$I$51*AR120) -> 463 | AT120: 6.4 | AV120: 36LH15 | AW120: 72 | AX120: 263 | AY120: 2591.598147 | BA120: 0.9754058365 | BC120: 36LH15 | BD120: 2656.943449
A121: 20018.055 | B121: 20018.0825 | C121: 20 | E121: 18 | F121: K | G121: 4 | H121: 18K 4 | I121: 550 | J121: 825 | K121: 490 | L121: =MIN(I121,360/'Roof Bay Analysis'!$I$51*K121) -> 550 | M121: 7.2 | O121: NA | P121: NA | Q121: NA | R121: =IF($Q$3>$U90,"NA",R90) -> NA | S121: NA | T121: NA | U121: NA | V121: NA | W121: 56 | Y121: NA | Z121: NA | AA121: NA | AB121: =IF($O$1="ASD",IF($Q$2>$AC90,"NA",AB90),IF($Q$2>$AD90,"NA",AB90)) -> NA | AC121: NA | AD121: NA | AE121: NA | AF121: NA | AG121: 56 | AI121: 20018.055 | AJ121: 20 | AL121: 18 | AM121: K | AN121: 4 | AO121: 18K 4 | AP121: 550 | AQ121: 825 | AR121: 490 | AS121: =MIN(AP121,360/'Roof Bay Analysis'!$I$51*AR121) -> 550 | AT121: 7.2 | AV121: 40LH 8 | AW121: 80 | AX121: 86 | AY121: 1164.079394 | BA121: 0.9784734896 | BC121: 40LH08 | BD121: 1189.689252
A122: 20018.055 | B122: 20018.0825 | C122: 20 | E122: 18 | F122: K | G122: 5 | H122: 18K 5 | I122: 550 | J122: 825 | K122: 490 | L122: =MIN(I122,360/'Roof Bay Analysis'!$I$51*K122) -> 550 | M122: 7.7 | O122: NA | P122: NA | Q122: NA | R122: =IF($Q$3>$U91,"NA",R91) -> NA | S122: NA | T122: NA | U122: NA | V122: NA | W122: 60 | Y122: NA | Z122: NA | AA122: NA | AB122: =IF($O$1="ASD",IF($Q$2>$AC91,"NA",AB91),IF($Q$2>$AD91,"NA",AB91)) -> NA | AC122: NA | AD122: NA | AE122: NA | AF122: NA | AG122: 60 | AI122: 20018.055 | AJ122: 20 | AL122: 18 | AM122: K | AN122: 5 | AO122: 18K 5 | AP122: 550 | AQ122: 825 | AR122: 490 | AS122: =MIN(AP122,360/'Roof Bay Analysis'!$I$51*AR122) -> 550 | AT122: 7.7 | AV122: 40LH 9 | AW122: 80 | AX122: 113 | AY122: 1529.546181 | BA122: 1.008863021 | BC122: 40LH09 | BD122: 1516.108876
A123: 20018.055 | B123: 20018.0825 | C123: 20 | E123: 18 | F123: K | G123: 6 | H123: 18K 6 | I123: 550 | J123: 825 | K123: 490 | L123: =MIN(I123,360/'Roof Bay Analysis'!$I$51*K123) -> 550 | M123: 8.4 | O123: NA | P123: NA | Q123: NA | R123: =IF($Q$3>$U92,"NA",R92) -> NA | S123: NA | T123: NA | U123: NA | V123: NA | W123: 64 | Y123: NA | Z123: NA | AA123: NA | AB123: =IF($O$1="ASD",IF($Q$2>$AC92,"NA",AB92),IF($Q$2>$AD92,"NA",AB92)) -> NA | AC123: NA | AD123: NA | AE123: NA | AF123: NA | AG123: 64 | AI123: 20018.055 | AJ123: 20 | AL123: 18 | AM123: K | AN123: 6 | AO123: 18K 6 | AP123: 550 | AQ123: 825 | AR123: 490 | AS123: =MIN(AP123,360/'Roof Bay Analysis'!$I$51*AR123) -> 550 | AT123: 8.4 | AV123: 40LH10 | AW123: 80 | AX123: 124 | AY123: 1678.440057 | BA123: 0.9483477768 | BC123: 40LH10 | BD123: 1769.857111
A124: 20018.055 | B124: 20018.0825 | C124: 20 | E124: 18 | F124: K | G124: 7 | H124: 18K 7 | I124: 550 | J124: 825 | K124: 490 | L124: =MIN(I124,360/'Roof Bay Analysis'!$I$51*K124) -> 550 | M124: 8.9 | O124: NA | P124: NA | Q124: NA | R124: =IF($Q$3>$U93,"NA",R93) -> NA | S124: NA | T124: NA | U124: NA | V124: NA | W124: 68 | Y124: NA | Z124: NA | AA124: NA | AB124: =IF($O$1="ASD",IF($Q$2>$AC93,"NA",AB93),IF($Q$2>$AD93,"NA",AB93)) -> NA | AC124: NA | AD124: NA | AE124: NA | AF124: NA | AG124: 68 | AI124: 20018.055 | AJ124: 20 | AL124: 18 | AM124: K | AN124: 7 | AO124: 18K 7 | AP124: 550 | AQ124: 825 | AR124: 490 | AS124: =MIN(AP124,360/'Roof Bay Analysis'!$I$51*AR124) -> 550 | AT124: 8.9 | AV124: 40LH11 | AW124: 80 | AX124: 135 | AY124: 1827.333933 | BA124: 0.9488955063 | BC124: 40LH11 | BD124: 1925.748326
A125: 20018.055 | B125: 20018.0825 | C125: 20 | E125: 18 | F125: K | G125: 9 | H125: 18K 9 | I125: 550 | J125: 825 | K125: 490 | L125: =MIN(I125,360/'Roof Bay Analysis'!$I$51*K125) -> 550 | M125: 10.1 | O125: NA | P125: NA | Q125: NA | R125: =IF($Q$3>$U94,"NA",R94) -> NA | S125: NA | T125: NA | U125: NA | V125: NA | W125: 72 | Y125: NA | Z125: NA | AA125: NA | AB125: =IF($O$1="ASD",IF($Q$2>$AC94,"NA",AB94),IF($Q$2>$AD94,"NA",AB94)) -> NA | AC125: NA | AD125: NA | AE125: NA | AF125: NA | AG125: 72 | AI125: 20018.055 | AJ125: 20 | AL125: 18 | AM125: K | AN125: 9 | AO125: 18K 9 | AP125: 550 | AQ125: 825 | AR125: 490 | AS125: =MIN(AP125,360/'Roof Bay Analysis'!$I$51*AR125) -> 550 | AT125: 10.1 | AV125: 40LH12 | AW125: 80 | AX125: 163 | AY125: 2206.336526 | BA125: 0.9885984509 | BC125: 40LH12 | BD125: 2231.782302
A126: 20018.055 | B126: 20018.0825 | C126: 20 | E126: 18 | F126: K | G126: 10 | H126: 18K10 | I126: 550 | J126: 825 | K126: 490 | L126: =MIN(I126,360/'Roof Bay Analysis'!$I$51*K126) -> 550 | M126: 11.6 | O126: NA | P126: NA | Q126: NA | R126: =IF($Q$3>$U95,"NA",R95) -> NA | S126: NA | T126: NA | U126: NA | V126: NA | W126: 80 | Y126: NA | Z126: NA | AA126: NA | AB126: =IF($O$1="ASD",IF($Q$2>$AC95,"NA",AB95),IF($Q$2>$AD95,"NA",AB95)) -> NA | AC126: NA | AD126: NA | AE126: NA | AF126: NA | AG126: 80 | AI126: 20018.055 | AJ126: 20 | AL126: 18 | AM126: K | AN126: 10 | AO126: 18K10 | AP126: 550 | AQ126: 825 | AR126: 490 | AS126: =MIN(AP126,360/'Roof Bay Analysis'!$I$51*AR126) -> 550 | AT126: 11.6 | AV126: 40LH13 | AW126: 80 | AX126: 192 | AY126: 2598.874926 | BA126: 0.9621008965 | BC126: 40LH13 | BD126: 2701.249875
A127: 20020.0517 | B127: 20020.07755 | C127: 20 | E127: 20 | F127: K | G127: 3 | H127: 20K 3 | I127: 517 | J127: 775.5 | K127: 517 | L127: =MIN(I127,360/'Roof Bay Analysis'!$I$51*K127) -> 517 | M127: 6.5 | O127: NA | P127: NA | Q127: NA | R127: =IF($Q$3>$U96,"NA",R96) -> NA | S127: NA | T127: NA | U127: NA | V127: NA | W127: 88 | Y127: NA | Z127: NA | AA127: NA | AB127: =IF($O$1="ASD",IF($Q$2>$AC96,"NA",AB96),IF($Q$2>$AD96,"NA",AB96)) -> NA | AC127: NA | AD127: NA | AE127: NA | AF127: NA | AG127: 88 | AI127: 20020.0517 | AJ127: 20 | AL127: 20 | AM127: K | AN127: 3 | AO127: 20K 3 | AP127: 517 | AQ127: 775.5 | AR127: 517 | AS127: =MIN(AP127,360/'Roof Bay Analysis'!$I$51*AR127) -> 517 | AT127: 6.5 | AV127: 40LH14 | AW127: 80 | AX127: 216 | AY127: 2923.734292 | BA127: 0.9632899786 | BC127: 40LH14 | BD127: 3035.154893
A128: 20020.055 | B128: 20020.0825 | C128: 20 | E128: 20 | F128: K | G128: 4 | H128: 20K 4 | I128: 550 | J128: 825 | K128: 550 | L128: =MIN(I128,360/'Roof Bay Analysis'!$I$51*K128) -> 550 | M128: 7.2 | O128: NA | P128: NA | Q128: NA | R128: =IF($Q$3>$U97,"NA",R97) -> NA | S128: NA | T128: NA | U128: NA | V128: NA | W128: 96 | Y128: NA | Z128: NA | AA128: NA | AB128: =IF($O$1="ASD",IF($Q$2>$AC97,"NA",AB97),IF($Q$2>$AD97,"NA",AB97)) -> NA | AC128: NA | AD128: NA | AE128: NA | AF128: NA | AG128: 96 | AI128: 20020.055 | AJ128: 20 | AL128: 20 | AM128: K | AN128: 4 | AO128: 20K 4 | AP128: 550 | AQ128: 825 | AR128: 550 | AS128: =MIN(AP128,360/'Roof Bay Analysis'!$I$51*AR128) -> 550 | AT128: 7.2 | AV128: 40LH15 | AW128: 80 | AX128: 239 | AY128: 3235.057851 | BA128: 0.9755017133 | BC128: 40LH15 | BD128: 3316.301558
A129: 20020.055 | B129: 20020.0825 | C129: 20 | E129: 20 | F129: K | G129: 5 | H129: 20K 5 | I129: 550 | J129: 825 | K129: 550 | L129: =MIN(I129,360/'Roof Bay Analysis'!$I$51*K129) -> 550 | M129: 7.7 | O129: NA | P129: NA | Q129: NA | R129: =IF($Q$3>$U98,"NA",R98) -> NA | S129: NA | T129: NA | U129: NA | V129: NA | W129: 104 | Y129: NA | Z129: =IF($O$1="ASD",IF($Q$2>$AC98,"NA",Z98),IF($Q$2>$AD98,"NA",Z98)) -> NA | AA129: NA | AB129: =IF($O$1="ASD",IF($Q$2>$AC98,"NA",AB98),IF($Q$2>$AD98,"NA",AB98)) -> NA | AC129: NA | AD129: NA | AE129: NA | AF129: NA | AG129: 104 | AI129: 20020.055 | AJ129: 20 | AL129: 20 | AM129: K | AN129: 5 | AO129: 20K 5 | AP129: 550 | AQ129: 825 | AR129: 550 | AS129: =MIN(AP129,360/'Roof Bay Analysis'!$I$51*AR129) -> 550 | AT129: 7.7 | AV129: 40LH16 | AW129: 80 | AX129: 282 | AY129: 3817.097548 | BA129: 0.9984233154 | BC129: 40LH16 | BD129: 3823.125411
A130: 20020.055 | B130: 20020.0825 | C130: 20 | E130: 20 | F130: K | G130: 6 | H130: 20K 6 | I130: 550 | J130: 825 | K130: 550 | L130: =MIN(I130,360/'Roof Bay Analysis'!$I$51*K130) -> 550 | M130: 8.4 | O130: NA | P130: NA | Q130: NA | R130: =IF($Q$3>$U99,"NA",R99) -> NA | S130: NA | T130: NA | U130: NA | V130: NA | W130: 112 | Y130: NA | Z130: NA | AA130: NA | AB130: =IF($O$1="ASD",IF($Q$2>$AC99,"NA",AB99),IF($Q$2>$AD99,"NA",AB99)) -> NA | AC130: NA | AD130: NA | AE130: NA | AF130: NA | AG130: 112 | AI130: 20020.055 | AJ130: 20 | AL130: 20 | AM130: K | AN130: 6 | AO130: 20K 6 | AP130: 550 | AQ130: 825 | AR130: 550 | AS130: =MIN(AP130,360/'Roof Bay Analysis'!$I$51*AR130) -> 550 | AT130: 8.4 | AV130: 44LH 9 | AW130: 88 | AX130: 96 | AY130: =26.767*AX130*(AW130-0.33)^3*10^-6 -> 1731.505804 | BA130: 0.9746766427 | BC130: 44LH09 | BD130: 1776.49256
A131: 20020.055 | B131: 20020.0825 | C131: 20 | E131: 20 | F131: K | G131: 7 | H131: 20K 7 | I131: 550 | J131: 825 | K131: 550 | L131: =MIN(I131,360/'Roof Bay Analysis'!$I$51*K131) -> 550 | M131: 8.9 | O131: NA | P131: NA | Q131: NA | R131: =IF($Q$3>$U100,"NA",R100) -> NA | S131: NA | T131: NA | U131: NA | V131: NA | W131: 120 | Y131: NA | Z131: NA | AA131: NA | AB131: =IF($O$1="ASD",IF($Q$2>$AC100,"NA",AB100),IF($Q$2>$AD100,"NA",AB100)) -> NA | AC131: NA | AD131: NA | AE131: NA | AF131: NA | AG131: 120 | AI131: 20020.055 | AJ131: 20 | AL131: 20 | AM131: K | AN131: 7 | AO131: 20K 7 | AP131: 550 | AQ131: 825 | AR131: 550 | AS131: =MIN(AP131,360/'Roof Bay Analysis'!$I$51*AR131) -> 550 | AT131: 8.9 | AV131: 44LH10 | AW131: 88 | AX131: 106 | AY131: 1911.870992
A132: =C132*1000+E132+I132/10000 -> 20020.055 | B132: =C132*1000+E132+J132/10000 -> 20020.0825 | C132: 20 | E132: 20 | F132: K | G132: 9 | H132: 20K 9 | I132: 550 | J132: =1.5*I132 -> 825 | K132: 550 | L132: =MIN(I132,360/'Roof Bay Analysis'!$I$51*K132) -> 550 | M132: 10.1 | AI132: =AJ132*1000+AL132+AS132/10000 -> 20020.055 | AJ132: 20 | AL132: 20 | AM132: K | AN132: 9 | AO132: 20K 9 | AP132: 550 | AQ132: =1.5*AP132 -> 825 | AR132: 550 | AS132: =MIN(AP132,360/'Roof Bay Analysis'!$I$51*AR132) -> 550 | AT132: 10.1 | AV132: 44LH11 | AW132: 88 | AX132: 115 | AY132: 2074.199661 | BA132: Average
A133: 20020.055 | B133: 20020.0825 | C133: 20 | E133: =VALUE(LEFT(H133,2)) -> 20 | F133: =MID(H133,3,LEN(H133)-4) -> K | G133: =VALUE(RIGHT(H133,2)) -> 10 | H133: 20K10 | I133: 550 | J133: 825 | K133: 550 | L133: =MIN(I133,360/'Roof Bay Analysis'!$I$51*K133) -> 550 | M133: 11.6 | O133: Select lightest joist option for total load (black load). | Y133: Select lightest joist option for deflection (red load). | AI133: 20020.055 | AJ133: 20 | AL133: =VALUE(LEFT(AO133,2)) -> 20 | AM133: =MID(AO133,3,LEN(AO133)-4) -> K | AN133: =VALUE(RIGHT(AO133,2)) -> 10 | AO133: 20K10 | AP133: 550 | AQ133: 825 | AR133: 550 | AS133: =MIN(AP133,360/'Roof Bay Analysis'!$I$51*AR133) -> 550 | AT133: 11.6 | AV133: 44LH12 | AW133: 88 | AX133: 139 | AY133: 2507.076112 | BA133: =AVERAGE(BA4:BA130) -> 0.964799169
A134: 21012.0218 | B134: 21012.0327 | C134: 21 | E134: 12 | F134: K | G134: 1 | H134: 12K 1 | I134: 218 | J134: 327 | K134: 123 | L134: =MIN(I134,360/'Roof Bay Analysis'!$I$51*K134) -> 184.5 | M134: 5 | AI134: 21012.01845 | AJ134: 21 | AL134: 12 | AM134: K | AN134: 1 | AO134: 12K 1 | AP134: 218 | AQ134: 327 | AR134: 123 | AS134: =MIN(AP134,360/'Roof Bay Analysis'!$I$51*AR134) -> 184.5 | AT134: 5 | AV134: 44LH13 | AW134: 88 | AX134: 167 | AY134: 3012.098638
A135: 21012.0273 | B135: 21012.04095 | C135: 21 | E135: 12 | F135: K | G135: 3 | H135: 12K 3 | I135: 273 | J135: 409.5 | K135: 153 | L135: =MIN(I135,360/'Roof Bay Analysis'!$I$51*K135) -> 229.5 | M135: 5.7 | P135: =INDEX($P$104:$P$131,MATCH($V$135,$V$104:$V$131,0)) -> 30018.0203 | Q135: =INDEX($Q$104:$Q$131,MATCH($V$135,$V$104:$V$131,0)) -> 18 | R135: =INDEX($R$104:$R$131,MATCH($V$135,$V$104:$V$131,0)) -> 18K 3 | S135: =INDEX($S$104:$S$131,MATCH($V$135,$V$104:$V$131,0)) -> 203 | T135: =INDEX($T$104:$T$131,MATCH($V$135,$V$104:$V$131,0)) -> 304.5 | U135: =INDEX($U$104:$U$131,MATCH($V$135,$V$104:$V$131,0)) -> 184.5 | V135: =MIN($V$104:$V$131) -> 6.4 | Z135: =INDEX($Z$104:$Z$131,MATCH($AF$135,$AF$104:$AF$131,0)) -> 30018.01845 | AA135: =INDEX($AA$104:$AA$131,MATCH($AF$135,$AF$104:$AF$131,0)) -> 18 | AB135: =INDEX($AB$104:$AB$131,MATCH($AF$135,$AF$104:$AF$131,0)) -> 18K 3 | AC135: =INDEX($AC$104:$AC$131,MATCH($AF$135,$AF$104:$AF$131,0)) -> 203 | AD135: =INDEX($AD$104:$AD$131,MATCH($AF$135,$AF$104:$AF$131,0)) -> 304.5 | AE135: =INDEX($AE$104:$AE$131,MATCH($AF$135,$AF$104:$AF$131,0)) -> 184.5 | AF135: =MIN($AF$104:$AF$131) -> 6.4 | AI135: 21012.02295 | AJ135: 21 | AL135: 12 | AM135: K | AN135: 3 | AO135: 12K 3 | AP135: 273 | AQ135: 409.5 | AR135: 153 | AS135: =MIN(AP135,360/'Roof Bay Analysis'!$I$51*AR135) -> 229.5 | AT135: 5.7 | AV135: 44LH14 | AW135: 88 | AX135: 187 | AY135: 3372.829014
A136: 21012.037 | B136: 21012.0555 | C136: 21 | E136: 12 | F136: K | G136: 5 | H136: 12K 5 | I136: 370 | J136: 555 | K136: 198 | L136: =MIN(I136,360/'Roof Bay Analysis'!$I$51*K136) -> 297 | M136: 7.1 | AI136: 21012.0297 | AJ136: 21 | AL136: 12 | AM136: K | AN136: 5 | AO136: 12K 5 | AP136: 370 | AQ136: 555 | AR136: 198 | AS136: =MIN(AP136,360/'Roof Bay Analysis'!$I$51*AR136) -> 297 | AT136: 7.1 | AV136: 44LH15 | AW136: 88 | AX136: 219 | AY136: 3949.997615
A137: 21014.0257 | B137: 21014.03855 | C137: 21 | E137: 14 | F137: K | G137: 1 | H137: 14K 1 | I137: 257 | J137: 385.5 | K137: 170 | L137: =MIN(I137,360/'Roof Bay Analysis'!$I$51*K137) -> 255 | M137: 5.2 | O137: Copy lightest joist option for deflection (red load) from other tables. | AI137: 21014.0255 | AJ137: 21 | AL137: 14 | AM137: K | AN137: 1 | AO137: 14K 1 | AP137: 257 | AQ137: 385.5 | AR137: 170 | AS137: =MIN(AP137,360/'Roof Bay Analysis'!$I$51*AR137) -> 255 | AT137: 5.2 | AV137: 44LH16 | AW137: 88 | AX137: 255 | AY137: 4599.312292
A138: 21014.0322 | B138: 21014.0483 | C138: 21 | E138: 14 | F138: K | G138: 3 | H138: 14K 3 | I138: 322 | J138: 483 | K138: 212 | L138: =MIN(I138,360/'Roof Bay Analysis'!$I$51*K138) -> 318 | M138: 6 | AI138: 21014.0318 | AJ138: 21 | AL138: 14 | AM138: K | AN138: 3 | AO138: 14K 3 | AP138: 322 | AQ138: 483 | AR138: 212 | AS138: =MIN(AP138,360/'Roof Bay Analysis'!$I$51*AR138) -> 318 | AT138: 6 | AV138: 44LH17 | AW138: 88 | AX138: 285 | AY138: 5140.407855
A139: 21014.0388 | B139: 21014.0582 | C139: 21 | E139: 14 | F139: K | G139: 4 | H139: 14K 4 | I139: 388 | J139: 582 | K139: 248 | L139: =MIN(I139,360/'Roof Bay Analysis'!$I$51*K139) -> 372 | M139: 6.7 | P139: =Z135 -> 30018.01845 | Q139: 18 | R139: 18K 3 | S139: 203 | T139: 304.5 | U139: 184.5 | V139: 6.4 | AI139: 21014.0372 | AJ139: 21 | AL139: 14 | AM139: K | AN139: 4 | AO139: 14K 4 | AP139: 388 | AQ139: 582 | AR139: 248 | AS139: =MIN(AP139,360/'Roof Bay Analysis'!$I$51*AR139) -> 372 | AT139: 6.7 | AV139: 48LH10 | AW139: 96 | AX139: 90 | AY139: 2109.45143
A140: 21014.0475 | B140: 21014.07125 | C140: 21 | E140: 14 | F140: K | G140: 6 | H140: 14K 6 | I140: 475 | J140: 712.5 | K140: 299 | L140: =MIN(I140,360/'Roof Bay Analysis'!$I$51*K140) -> 448.5 | M140: 7.7 | AI140: 21014.04485 | AJ140: 21 | AL140: 14 | AM140: K | AN140: 6 | AO140: 14K 6 | AP140: 475 | AQ140: 712.5 | AR140: 299 | AS140: =MIN(AP140,360/'Roof Bay Analysis'!$I$51*AR140) -> 448.5 | AT140: 7.7 | AV140: 48LH11 | AW140: 96 | AX140: 97 | AY140: 2273.519875
A141: 21016.0333 | B141: 21016.04995 | C141: 21 | E141: 16 | F141: K | G141: 2 | H141: 16K 2 | I141: 333 | J141: 499.5 | K141: 255 | L141: =MIN(I141,360/'Roof Bay Analysis'!$I$51*K141) -> 333 | M141: 5.5 | O141: Select lighter joist option which meets total load and deflection requirements. | AI141: 21016.0333 | AJ141: 21 | AL141: 16 | AM141: K | AN141: 2 | AO141: 16K 2 | AP141: 333 | AQ141: 499.5 | AR141: 255 | AS141: =MIN(AP141,360/'Roof Bay Analysis'!$I$51*AR141) -> 333 | AT141: 5.5 | AV141: 48LH12 | AW141: 96 | AX141: 122 | AY141: 2859.478605
A142: 21016.0371 | B142: 21016.05565 | C142: 21 | E142: 16 | F142: K | G142: 3 | H142: 16K 3 | I142: 371 | J142: 556.5 | K142: 285 | L142: =MIN(I142,360/'Roof Bay Analysis'!$I$51*K142) -> 371 | M142: 6.3 | AI142: 21016.0371 | AJ142: 21 | AL142: 16 | AM142: K | AN142: 3 | AO142: 16K 3 | AP142: 371 | AQ142: 556.5 | AR142: 285 | AS142: =MIN(AP142,360/'Roof Bay Analysis'!$I$51*AR142) -> 371 | AT142: 6.3 | AV142: 48LH13 | AW142: 96 | AX142: 145 | AY142: 3398.560637
A143: 21016.0447 | B143: 21016.06705 | C143: 21 | E143: 16 | F143: K | G143: 4 | H143: 16K 4 | I143: 447 | J143: 670.5 | K143: 333 | L143: =MIN(I143,360/'Roof Bay Analysis'!$I$51*K143) -> 447 | M143: 7 | P143: ID | Q143: Depth | R143: Type | S143: ASD Load | T143: LRFD Load | U143: ="L/"&'Roof Bay Analysis'!$I$51&" Load" -> L/240 Load | V143: Weight | AI143: 21016.0447 | AJ143: 21 | AL143: 16 | AM143: K | AN143: 4 | AO143: 16K 4 | AP143: 447 | AQ143: 670.5 | AR143: 333 | AS143: =MIN(AP143,360/'Roof Bay Analysis'!$I$51*AR143) -> 447 | AT143: 7 | AV143: 48LH14 | AW143: 96 | AX143: 171 | AY143: 4007.957717
A144: 21016.0503 | B144: 21016.07545 | C144: 21 | E144: 16 | F144: K | G144: 5 | H144: 16K 5 | I144: 503 | J144: 754.5 | K144: 373 | L144: =MIN(I144,360/'Roof Bay Analysis'!$I$51*K144) -> 503 | M144: 7.5 | P144: =INDEX(P135:P139,MATCH($V144,$V135:$V139,0)) -> 30018.0203 | Q144: 18 | R144: 18K 3 | S144: =INDEX(S135:S139,MATCH($V144,$V135:$V139,0)) -> 203 | T144: 304.5 | U144: =INDEX(U135:U139,MATCH($V144,$V135:$V139,0)) -> 184.5 | V144: =IF(AND(V135>0,V139>0),MIN(V135,V139),MAX(V135,V139)) -> 6.4 | AI144: 21016.0503 | AJ144: 21 | AL144: 16 | AM144: K | AN144: 5 | AO144: 16K 5 | AP144: 503 | AQ144: 754.5 | AR144: 373 | AS144: =MIN(AP144,360/'Roof Bay Analysis'!$I$51*AR144) -> 503 | AT144: 7.5 | AV144: 48LH15 | AW144: 96 | AX144: 195 | AY144: 4570.478099
A145: 21016.0548 | B145: 21016.0822 | C145: 21 | E145: 16 | F145: K | G145: 6 | H145: 16K 6 | I145: 548 | J145: 822 | K145: 405 | L145: =MIN(I145,360/'Roof Bay Analysis'!$I$51*K145) -> 548 | M145: 8.1 | AI145: 21016.0548 | AJ145: 21 | AL145: 16 | AM145: K | AN145: 6 | AO145: 16K 6 | AP145: 548 | AQ145: 822 | AR145: 405 | AS145: =MIN(AP145,360/'Roof Bay Analysis'!$I$51*AR145) -> 548 | AT145: 8.1 | AV145: 48LH16 | AW145: 96 | AX145: 225 | AY145: 5273.628575
A146: 21016.055 | B146: 21016.0825 | C146: 21 | E146: 16 | F146: K | G146: 7 | H146: 16K 7 | I146: 550 | J146: 825 | K146: 406 | L146: =MIN(I146,360/'Roof Bay Analysis'!$I$51*K146) -> 550 | M146: 8.6 | U146: L/360 Load | AI146: 21016.055 | AJ146: 21 | AL146: 16 | AM146: K | AN146: 7 | AO146: 16K 7 | AP146: 550 | AQ146: 825 | AR146: 406 | AS146: =MIN(AP146,360/'Roof Bay Analysis'!$I$51*AR146) -> 550 | AT146: 8.6 | AV146: 48LH17 | AW146: 96 | AX146: 252 | AY146: 5906.464004
A147: 21016.055 | B147: 21016.0825 | C147: 21 | E147: 16 | F147: K | G147: 9 | H147: 16K 9 | I147: 550 | J147: 825 | K147: 406 | L147: =MIN(I147,360/'Roof Bay Analysis'!$I$51*K147) -> 550 | M147: 10 | U147: =INDEX($K$4:$K$1424,MATCH($P$144,IF($O$1="ASD",$A$4:$A$1424,$B$4:$B$1424))) -> 123 | AI147: 21016.055 | AJ147: 21 | AL147: 16 | AM147: K | AN147: 9 | AO147: 16K 9 | AP147: 550 | AQ147: 825 | AR147: 406 | AS147: =MIN(AP147,360/'Roof Bay Analysis'!$I$51*AR147) -> 550 | AT147: 10 | AV147: 52DLH10 | AW147: 104 | AX147: 110 | AY147: 3280.587907
A148: 21018.042 | B148: 21018.063 | C148: 21 | E148: 18 | F148: K | G148: 3 | H148: 18K 3 | I148: 420 | J148: 630 | K148: 364 | L148: =MIN(I148,360/'Roof Bay Analysis'!$I$51*K148) -> 420 | M148: 6.4 | AI148: 21018.042 | AJ148: 21 | AL148: 18 | AM148: K | AN148: 3 | AO148: 18K 3 | AP148: 420 | AQ148: 630 | AR148: 364 | AS148: =MIN(AP148,360/'Roof Bay Analysis'!$I$51*AR148) -> 420 | AT148: 6.4 | AV148: 52DLH11 | AW148: 104 | AX148: 120 | AY148: 3578.823172
A149: 21018.0506 | B149: 21018.0759 | C149: 21 | E149: 18 | F149: K | G149: 4 | H149: 18K 4 | I149: 506 | J149: 759 | K149: 426 | L149: =MIN(I149,360/'Roof Bay Analysis'!$I$51*K149) -> 506 | M149: 7.2 | AI149: 21018.0506 | AJ149: 21 | AL149: 18 | AM149: K | AN149: 4 | AO149: 18K 4 | AP149: 506 | AQ149: 759 | AR149: 426 | AS149: =MIN(AP149,360/'Roof Bay Analysis'!$I$51*AR149) -> 506 | AT149: 7.2 | AV149: 52DLH12 | AW149: 104 | AX149: 132 | AY149: 3936.705489
A150: 21018.055 | B150: 21018.0825 | C150: 21 | E150: 18 | F150: K | G150: 5 | H150: 18K 5 | I150: 550 | J150: 825 | K150: 460 | L150: =MIN(I150,360/'Roof Bay Analysis'!$I$51*K150) -> 550 | M150: 7.7 | AI150: 21018.055 | AJ150: 21 | AL150: 18 | AM150: K | AN150: 5 | AO150: 18K 5 | AP150: 550 | AQ150: 825 | AR150: 460 | AS150: =MIN(AP150,360/'Roof Bay Analysis'!$I$51*AR150) -> 550 | AT150: 7.7 | AV150: 52DLH13 | AW150: 104 | AX150: 159 | AY150: 4741.940702
A151: 21018.055 | B151: 21018.0825 | C151: 21 | E151: 18 | F151: K | G151: 6 | H151: 18K 6 | I151: 550 | J151: 825 | K151: 460 | L151: =MIN(I151,360/'Roof Bay Analysis'!$I$51*K151) -> 550 | M151: 8.4 | AI151: 21018.055 | AJ151: 21 | AL151: 18 | AM151: K | AN151: 6 | AO151: 18K 6 | AP151: 550 | AQ151: 825 | AR151: 460 | AS151: =MIN(AP151,360/'Roof Bay Analysis'!$I$51*AR151) -> 550 | AT151: 8.4 | AV151: 52DLH14 | AW151: 104 | AX151: 178 | AY151: 5308.587705
A152: 21018.055 | B152: 21018.0825 | C152: 21 | E152: 18 | F152: K | G152: 7 | H152: 18K 7 | I152: 550 | J152: 825 | K152: 460 | L152: =MIN(I152,360/'Roof Bay Analysis'!$I$51*K152) -> 550 | M152: 8.9 | AI152: 21018.055 | AJ152: 21 | AL152: 18 | AM152: K | AN152: 7 | AO152: 18K 7 | AP152: 550 | AQ152: 825 | AR152: 460 | AS152: =MIN(AP152,360/'Roof Bay Analysis'!$I$51*AR152) -> 550 | AT152: 8.9 | AV152: 52DLH15 | AW152: 104 | AX152: 201 | AY152: =26.767*AX152*(AW152-0.33)^3*10^-6 -> 5994.528812
A153: 21018.055 | B153: 21018.0825 | C153: 21 | E153: 18 | F153: K | G153: 9 | H153: 18K 9 | I153: 550 | J153: 825 | K153: 460 | L153: =MIN(I153,360/'Roof Bay Analysis'!$I$51*K153) -> 550 | M153: 10.1 | AI153: 21018.055 | AJ153: 21 | AL153: 18 | AM153: K | AN153: 9 | AO153: 18K 9 | AP153: 550 | AQ153: 825 | AR153: 460 | AS153: =MIN(AP153,360/'Roof Bay Analysis'!$I$51*AR153) -> 550 | AT153: 10.1 | AV153: 52DLH16 | AW153: 104 | AX153: 224 | AY153: 6680.46992
A154: 21018.055 | B154: 21018.0825 | C154: 21 | E154: 18 | F154: K | G154: 10 | H154: 18K10 | I154: 550 | J154: 825 | K154: 460 | L154: =MIN(I154,360/'Roof Bay Analysis'!$I$51*K154) -> 550 | M154: 11.6 | AI154: 21018.055 | AJ154: 21 | AL154: 18 | AM154: K | AN154: 10 | AO154: 18K10 | AP154: 550 | AQ154: 825 | AR154: 460 | AS154: =MIN(AP154,360/'Roof Bay Analysis'!$I$51*AR154) -> 550 | AT154: 11.6 | AV154: 52DLH17 | AW154: 104 | AX154: 255 | AY154: 7604.99924
A155: 21020.0468 | B155: 21020.0702 | C155: 21 | E155: 20 | F155: K | G155: 3 | H155: 20K 3 | I155: 468 | J155: 702 | K155: 453 | L155: =MIN(I155,360/'Roof Bay Analysis'!$I$51*K155) -> 468 | M155: 6.5 | AI155: 21020.0468 | AJ155: 21 | AL155: 20 | AM155: K | AN155: 3 | AO155: 20K 3 | AP155: 468 | AQ155: 702 | AR155: 453 | AS155: =MIN(AP155,360/'Roof Bay Analysis'!$I$51*AR155) -> 468 | AT155: 6.5 | AV155: 56DLH11 | AW155: 112 | AX155: 113 | AY155: 4211.993486
A156: 21020.055 | B156: 21020.0825 | C156: 21 | E156: 20 | F156: K | G156: 4 | H156: 20K 4 | I156: 550 | J156: 825 | K156: 520 | L156: =MIN(I156,360/'Roof Bay Analysis'!$I$51*K156) -> 550 | M156: 7.2 | AI156: 21020.055 | AJ156: 21 | AL156: 20 | AM156: K | AN156: 4 | AO156: 20K 4 | AP156: 550 | AQ156: 825 | AR156: 520 | AS156: =MIN(AP156,360/'Roof Bay Analysis'!$I$51*AR156) -> 550 | AT156: 7.2 | AV156: 56DLH12 | AW156: 112 | AX156: 123 | AY156: 4584.736272
A157: 21020.055 | B157: 21020.0825 | C157: 21 | E157: 20 | F157: K | G157: 5 | H157: 20K 5 | I157: 550 | J157: 825 | K157: 520 | L157: =MIN(I157,360/'Roof Bay Analysis'!$I$51*K157) -> 550 | M157: 7.7 | AI157: 21020.055 | AJ157: 21 | AL157: 20 | AM157: K | AN157: 5 | AO157: 20K 5 | AP157: 550 | AQ157: 825 | AR157: 520 | AS157: =MIN(AP157,360/'Roof Bay Analysis'!$I$51*AR157) -> 550 | AT157: 7.7 | AV157: 56DLH13 | AW157: 112 | AX157: 149 | AY157: 5553.867516
A158: 21020.055 | B158: 21020.0825 | C158: 21 | E158: 20 | F158: K | G158: 6 | H158: 20K 6 | I158: 550 | J158: 825 | K158: 520 | L158: =MIN(I158,360/'Roof Bay Analysis'!$I$51*K158) -> 550 | M158: 8.4 | AI158: 21020.055 | AJ158: 21 | AL158: 20 | AM158: K | AN158: 6 | AO158: 20K 6 | AP158: 550 | AQ158: 825 | AR158: 520 | AS158: =MIN(AP158,360/'Roof Bay Analysis'!$I$51*AR158) -> 550 | AT158: 8.4 | AV158: 56DLH14 | AW158: 112 | AX158: 167 | AY158: 6224.804532
A159: 21020.055 | B159: 21020.0825 | C159: 21 | E159: 20 | F159: K | G159: 7 | H159: 20K 7 | I159: 550 | J159: 825 | K159: 520 | L159: =MIN(I159,360/'Roof Bay Analysis'!$I$51*K159) -> 550 | M159: 8.9 | AI159: 21020.055 | AJ159: 21 | AL159: 20 | AM159: K | AN159: 7 | AO159: 20K 7 | AP159: 550 | AQ159: 825 | AR159: 520 | AS159: =MIN(AP159,360/'Roof Bay Analysis'!$I$51*AR159) -> 550 | AT159: 8.9 | AV159: 56DLH15 | AW159: 112 | AX159: 188 | AY159: 7007.564383
A160: 21020.055 | B160: 21020.0825 | C160: 21 | E160: 20 | F160: K | G160: 9 | H160: 20K 9 | I160: 550 | J160: 825 | K160: 520 | L160: =MIN(I160,360/'Roof Bay Analysis'!$I$51*K160) -> 550 | M160: 10.1 | AI160: 21020.055 | AJ160: 21 | AL160: 20 | AM160: K | AN160: 9 | AO160: 20K 9 | AP160: 550 | AQ160: 825 | AR160: 520 | AS160: =MIN(AP160,360/'Roof Bay Analysis'!$I$51*AR160) -> 550 | AT160: 10.1 | AV160: 56DLH16 | AW160: 112 | AX160: 209 | AY160: 7790.324234
A161: 21020.055 | B161: 21020.0825 | C161: 21 | E161: 20 | F161: K | G161: 10 | H161: 20K10 | I161: 550 | J161: 825 | K161: 520 | L161: =MIN(I161,360/'Roof Bay Analysis'!$I$51*K161) -> 550 | M161: 11.6 | AI161: 21020.055 | AJ161: 21 | AL161: 20 | AM161: K | AN161: 10 | AO161: 20K10 | AP161: 550 | AQ161: 825 | AR161: 520 | AS161: =MIN(AP161,360/'Roof Bay Analysis'!$I$51*AR161) -> 550 | AT161: 11.6 | AV161: 56DLH17 | AW161: 112 | AX161: 238 | AY161: 8871.278315
A162: 22012.0199 | B162: 22012.02985 | C162: 22 | E162: 12 | F162: K | G162: 1 | H162: 12K 1 | I162: 199 | J162: 298.5 | K162: 106 | L162: =MIN(I162,360/'Roof Bay Analysis'!$I$51*K162) -> 159 | M162: 5 | AI162: 22012.0159 | AJ162: 22 | AL162: 12 | AM162: K | AN162: 1 | AO162: 12K 1 | AP162: 199 | AQ162: 298.5 | AR162: 106 | AS162: =MIN(AP162,360/'Roof Bay Analysis'!$I$51*AR162) -> 159 | AT162: 5 | AV162: 60DLH12 | AW162: 120 | AX162: 115 | AY162: 5275.375917
A163: 22012.0249 | B163: 22012.03735 | C163: 22 | E163: 12 | F163: K | G163: 3 | H163: 12K 3 | I163: 249 | J163: 373.5 | K163: 132 | L163: =MIN(I163,360/'Roof Bay Analysis'!$I$51*K163) -> 198 | M163: 5.7 | AI163: 22012.0198 | AJ163: 22 | AL163: 12 | AM163: K | AN163: 3 | AO163: 12K 3 | AP163: 249 | AQ163: 373.5 | AR163: 132 | AS163: =MIN(AP163,360/'Roof Bay Analysis'!$I$51*AR163) -> 198 | AT163: 5.7 | AV163: 60DLH13 | AW163: 120 | AX163: 139 | AY163: 6376.323934
A164: 22012.0337 | B164: 22012.05055 | C164: 22 | E164: 12 | F164: K | G164: 5 | H164: 12K 5 | I164: 337 | J164: 505.5 | K164: 172 | L164: =MIN(I164,360/'Roof Bay Analysis'!$I$51*K164) -> 258 | M164: 7.1 | AI164: 22012.0258 | AJ164: 22 | AL164: 12 | AM164: K | AN164: 5 | AO164: 12K 5 | AP164: 337 | AQ164: 505.5 | AR164: 172 | AS164: =MIN(AP164,360/'Roof Bay Analysis'!$I$51*AR164) -> 258 | AT164: 7.1 | AV164: 60DLH14 | AW164: 120 | AX164: 149 | AY164: 6835.052275
A165: 22014.0234 | B165: 22014.0351 | C165: 22 | E165: 14 | F165: K | G165: 1 | H165: 14K 1 | I165: 234 | J165: 351 | K165: 147 | L165: =MIN(I165,360/'Roof Bay Analysis'!$I$51*K165) -> 220.5 | M165: 5.2 | AI165: 22014.02205 | AJ165: 22 | AL165: 14 | AM165: K | AN165: 1 | AO165: 14K 1 | AP165: 234 | AQ165: 351 | AR165: 147 | AS165: =MIN(AP165,360/'Roof Bay Analysis'!$I$51*AR165) -> 220.5 | AT165: 5.2 | AV165: 60DLH15 | AW165: 120 | AX165: 175 | AY165: 8027.74596
A166: 22014.0293 | B166: 22014.04395 | C166: 22 | E166: 14 | F166: K | G166: 3 | H166: 14K 3 | I166: 293 | J166: 439.5 | K166: 184 | L166: =MIN(I166,360/'Roof Bay Analysis'!$I$51*K166) -> 276 | M166: 6 | AI166: 22014.0276 | AJ166: 22 | AL166: 14 | AM166: K | AN166: 3 | AO166: 14K 3 | AP166: 293 | AQ166: 439.5 | AR166: 184 | AS166: =MIN(AP166,360/'Roof Bay Analysis'!$I$51*AR166) -> 276 | AT166: 6 | AV166: 60DLH16 | AW166: 120 | AX166: 196 | AY166: 8991.075476
A167: 22014.0353 | B167: 22014.05295 | C167: 22 | E167: 14 | F167: K | G167: 4 | H167: 14K 4 | I167: 353 | J167: 529.5 | K167: 215 | L167: =MIN(I167,360/'Roof Bay Analysis'!$I$51*K167) -> 322.5 | M167: 6.7 | AI167: 22014.03225 | AJ167: 22 | AL167: 14 | AM167: K | AN167: 4 | AO167: 14K 4 | AP167: 353 | AQ167: 529.5 | AR167: 215 | AS167: =MIN(AP167,360/'Roof Bay Analysis'!$I$51*AR167) -> 322.5 | AT167: 6.7 | AV167: 60DLH17 | AW167: 120 | AX167: 223 | AY167: 10229.642
A168: 22014.0432 | B168: 22014.0648 | C168: 22 | E168: 14 | F168: K | G168: 6 | H168: 14K 6 | I168: 432 | J168: 648 | K168: 259 | L168: =MIN(I168,360/'Roof Bay Analysis'!$I$51*K168) -> 388.5 | M168: 7.7 | AI168: 22014.03885 | AJ168: 22 | AL168: 14 | AM168: K | AN168: 6 | AO168: 14K 6 | AP168: 432 | AQ168: 648 | AR168: 259 | AS168: =MIN(AP168,360/'Roof Bay Analysis'!$I$51*AR168) -> 388.5 | AT168: 7.7 | AV168: 60DLH18 | AW168: 120 | AX168: 252 | AY168: 11559.95418
A169: 22016.0303 | B169: 22016.04545 | C169: 22 | E169: 16 | F169: K | G169: 2 | H169: 16K 2 | I169: 303 | J169: 454.5 | K169: 222 | L169: =MIN(I169,360/'Roof Bay Analysis'!$I$51*K169) -> 303 | M169: 5.5 | AI169: 22016.0303 | AJ169: 22 | AL169: 16 | AM169: K | AN169: 2 | AO169: 16K 2 | AP169: 303 | AQ169: 454.5 | AR169: 222 | AS169: =MIN(AP169,360/'Roof Bay Analysis'!$I$51*AR169) -> 303 | AT169: 5.5 | AV169: 64DLH12 | AW169: 128 | AX169: 109 | AY169: 6071.454881
A170: 22016.0337 | B170: 22016.05055 | C170: 22 | E170: 16 | F170: K | G170: 3 | H170: 16K 3 | I170: 337 | J170: 505.5 | K170: 247 | L170: =MIN(I170,360/'Roof Bay Analysis'!$I$51*K170) -> 337 | M170: 6.3 | AI170: 22016.0337 | AJ170: 22 | AL170: 16 | AM170: K | AN170: 3 | AO170: 16K 3 | AP170: 337 | AQ170: 505.5 | AR170: 247 | AS170: =MIN(AP170,360/'Roof Bay Analysis'!$I$51*AR170) -> 337 | AT170: 6.3 | AV170: 64DLH13 | AW170: 128 | AX170: 131 | AY170: 7296.886142
A171: 22016.0406 | B171: 22016.0609 | C171: 22 | E171: 16 | F171: K | G171: 4 | H171: 16K 4 | I171: 406 | J171: 609 | K171: 289 | L171: =MIN(I171,360/'Roof Bay Analysis'!$I$51*K171) -> 406 | M171: 7 | AI171: 22016.0406 | AJ171: 22 | AL171: 16 | AM171: K | AN171: 4 | AO171: 16K 4 | AP171: 406 | AQ171: 609 | AR171: 289 | AS171: =MIN(AP171,360/'Roof Bay Analysis'!$I$51*AR171) -> 406 | AT171: 7 | AV171: 64DLH14 | AW171: 128 | AX171: 140 | AY171: 7798.19893
A172: 22016.0458 | B172: 22016.0687 | C172: 22 | E172: 16 | F172: K | G172: 5 | H172: 16K 5 | I172: 458 | J172: 687 | K172: 323 | L172: =MIN(I172,360/'Roof Bay Analysis'!$I$51*K172) -> 458 | M172: 7.5 | AI172: 22016.0458 | AJ172: 22 | AL172: 16 | AM172: K | AN172: 5 | AO172: 16K 5 | AP172: 458 | AQ172: 687 | AR172: 323 | AS172: =MIN(AP172,360/'Roof Bay Analysis'!$I$51*AR172) -> 458 | AT172: 7.5 | AV172: 64DLH15 | AW172: 128 | AX172: 165 | AY172: 9190.734454
A173: 22016.0498 | B173: 22016.0747 | C173: 22 | E173: 16 | F173: K | G173: 6 | H173: 16K 6 | I173: 498 | J173: 747 | K173: 351 | L173: =MIN(I173,360/'Roof Bay Analysis'!$I$51*K173) -> 498 | M173: 8.1 | AI173: 22016.0498 | AJ173: 22 | AL173: 16 | AM173: K | AN173: 6 | AO173: 16K 6 | AP173: 498 | AQ173: 747 | AR173: 351 | AS173: =MIN(AP173,360/'Roof Bay Analysis'!$I$51*AR173) -> 498 | AT173: 8.1 | AV173: 64DLH16 | AW173: 128 | AX173: 184 | AY173: 10249.06145
A174: 22016.055 | B174: 22016.0825 | C174: 22 | E174: 16 | F174: K | G174: 7 | H174: 16K 7 | I174: 550 | J174: 825 | K174: 385 | L174: =MIN(I174,360/'Roof Bay Analysis'!$I$51*K174) -> 550 | M174: 8.6 | AI174: 22016.055 | AJ174: 22 | AL174: 16 | AM174: K | AN174: 7 | AO174: 16K 7 | AP174: 550 | AQ174: 825 | AR174: 385 | AS174: =MIN(AP174,360/'Roof Bay Analysis'!$I$51*AR174) -> 550 | AT174: 8.6 | AV174: 64DLH17 | AW174: 128 | AX174: 210 | AY174: 11697.2984
A175: 22016.055 | B175: 22016.0825 | C175: 22 | E175: 16 | F175: K | G175: 9 | H175: 16K 9 | I175: 550 | J175: 825 | K175: 385 | L175: =MIN(I175,360/'Roof Bay Analysis'!$I$51*K175) -> 550 | M175: 10 | AI175: 22016.055 | AJ175: 22 | AL175: 16 | AM175: K | AN175: 9 | AO175: 16K 9 | AP175: 550 | AQ175: 825 | AR175: 385 | AS175: =MIN(AP175,360/'Roof Bay Analysis'!$I$51*AR175) -> 550 | AT175: 10 | AV175: 64DLH18 | AW175: 128 | AX175: 237 | AY175: 13201.23676
A176: 22018.0382 | B176: 22018.0573 | C176: 22 | E176: 18 | F176: K | G176: 3 | H176: 18K 3 | I176: 382 | J176: 573 | K176: 316 | L176: =MIN(I176,360/'Roof Bay Analysis'!$I$51*K176) -> 382 | M176: 6.4 | AI176: 22018.0382 | AJ176: 22 | AL176: 18 | AM176: K | AN176: 3 | AO176: 18K 3 | AP176: 382 | AQ176: 573 | AR176: 316 | AS176: =MIN(AP176,360/'Roof Bay Analysis'!$I$51*AR176) -> 382 | AT176: 6.4 | AV176: 68DLH13 | AW176: 136 | AX176: 124 | AY176: 8288.441167
A177: 22018.046 | B177: 22018.069 | C177: 22 | E177: 18 | F177: K | G177: 4 | H177: 18K 4 | I177: 460 | J177: 690 | K177: 370 | L177: =MIN(I177,360/'Roof Bay Analysis'!$I$51*K177) -> 460 | M177: 7.2 | AI177: 22018.046 | AJ177: 22 | AL177: 18 | AM177: K | AN177: 4 | AO177: 18K 4 | AP177: 460 | AQ177: 690 | AR177: 370 | AS177: =MIN(AP177,360/'Roof Bay Analysis'!$I$51*AR177) -> 460 | AT177: 7.2 | AV177: 68DLH14 | AW177: 136 | AX177: 133 | AY177: 8890.021574
A178: 22018.0518 | B178: 22018.0777 | C178: 22 | E178: 18 | F178: K | G178: 5 | H178: 18K 5 | I178: 518 | J178: 777 | K178: 414 | L178: =MIN(I178,360/'Roof Bay Analysis'!$I$51*K178) -> 518 | M178: 7.7 | AI178: 22018.0518 | AJ178: 22 | AL178: 18 | AM178: K | AN178: 5 | AO178: 18K 5 | AP178: 518 | AQ178: 777 | AR178: 414 | AS178: =MIN(AP178,360/'Roof Bay Analysis'!$I$51*AR178) -> 518 | AT178: 7.7 | AV178: 68DLH15 | AW178: 136 | AX178: 148 | AY178: 9892.655586
A179: 22018.055 | B179: 22018.0825 | C179: 22 | E179: 18 | F179: K | G179: 6 | H179: 18K 6 | I179: 550 | J179: 825 | K179: 438 | L179: =MIN(I179,360/'Roof Bay Analysis'!$I$51*K179) -> 550 | M179: 8.4 | AI179: 22018.055 | AJ179: 22 | AL179: 18 | AM179: K | AN179: 6 | AO179: 18K 6 | AP179: 550 | AQ179: 825 | AR179: 438 | AS179: =MIN(AP179,360/'Roof Bay Analysis'!$I$51*AR179) -> 550 | AT179: 8.4 | AV179: 68DLH16 | AW179: 136 | AX179: 174 | AY179: 11630.55454
A180: 22018.055 | B180: 22018.0825 | C180: 22 | E180: 18 | F180: K | G180: 7 | H180: 18K 7 | I180: 550 | J180: 825 | K180: 438 | L180: =MIN(I180,360/'Roof Bay Analysis'!$I$51*K180) -> 550 | M180: 8.9 | AI180: 22018.055 | AJ180: 22 | AL180: 18 | AM180: K | AN180: 7 | AO180: 18K 7 | AP180: 550 | AQ180: 825 | AR180: 438 | AS180: =MIN(AP180,360/'Roof Bay Analysis'!$I$51*AR180) -> 550 | AT180: 8.9 | AV180: 68DLH17 | AW180: 136 | AX180: 198 | AY180: 13234.76896
A181: 22018.055 | B181: 22018.0825 | C181: 22 | E181: 18 | F181: K | G181: 9 | H181: 18K 9 | I181: 550 | J181: 825 | K181: 438 | L181: =MIN(I181,360/'Roof Bay Analysis'!$I$51*K181) -> 550 | M181: 10.1 | AI181: 22018.055 | AJ181: 22 | AL181: 18 | AM181: K | AN181: 9 | AO181: 18K 9 | AP181: 550 | AQ181: 825 | AR181: 438 | AS181: =MIN(AP181,360/'Roof Bay Analysis'!$I$51*AR181) -> 550 | AT181: 10.1 | AV181: 68DLH18 | AW181: 136 | AX181: 225 | AY181: 15039.51018
A182: 22018.055 | B182: 22018.0825 | C182: 22 | E182: 18 | F182: K | G182: 10 | H182: 18K10 | I182: 550 | J182: 825 | K182: 438 | L182: =MIN(I182,360/'Roof Bay Analysis'!$I$51*K182) -> 550 | M182: 11.6 | AI182: 22018.055 | AJ182: 22 | AL182: 18 | AM182: K | AN182: 10 | AO182: 18K10 | AP182: 550 | AQ182: 825 | AR182: 438 | AS182: =MIN(AP182,360/'Roof Bay Analysis'!$I$51*AR182) -> 550 | AT182: 11.6 | AV182: 68DLH19 | AW182: 136 | AX182: 254 | AY182: 16977.93594
A183: 22020.0426 | B183: 22020.0639 | C183: 22 | E183: 20 | F183: K | G183: 3 | H183: 20K 3 | I183: 426 | J183: 639 | K183: 393 | L183: =MIN(I183,360/'Roof Bay Analysis'!$I$51*K183) -> 426 | M183: 6.5 | AI183: 22020.0426 | AJ183: 22 | AL183: 20 | AM183: K | AN183: 3 | AO183: 20K 3 | AP183: 426 | AQ183: 639 | AR183: 393 | AS183: =MIN(AP183,360/'Roof Bay Analysis'!$I$51*AR183) -> 426 | AT183: 6.5 | AV183: 72DLH14 | AW183: 144 | AX183: 125 | AY183: 9922.200238
A184: 22020.0514 | B184: 22020.0771 | C184: 22 | E184: 20 | F184: K | G184: 4 | H184: 20K 4 | I184: 514 | J184: 771 | K184: 461 | L184: =MIN(I184,360/'Roof Bay Analysis'!$I$51*K184) -> 514 | M184: 7.2 | AI184: 22020.0514 | AJ184: 22 | AL184: 20 | AM184: K | AN184: 4 | AO184: 20K 4 | AP184: 514 | AQ184: 771 | AR184: 461 | AS184: =MIN(AP184,360/'Roof Bay Analysis'!$I$51*AR184) -> 514 | AT184: 7.2 | AV184: 72DLH15 | AW184: 144 | AX184: 140 | AY184: 11112.86427
A185: 22020.055 | B185: 22020.0825 | C185: 22 | E185: 20 | F185: K | G185: 5 | H185: 20K 5 | I185: 550 | J185: 825 | K185: 490 | L185: =MIN(I185,360/'Roof Bay Analysis'!$I$51*K185) -> 550 | M185: 7.7 | AI185: 22020.055 | AJ185: 22 | AL185: 20 | AM185: K | AN185: 5 | AO185: 20K 5 | AP185: 550 | AQ185: 825 | AR185: 490 | AS185: =MIN(AP185,360/'Roof Bay Analysis'!$I$51*AR185) -> 550 | AT185: 7.7 | AV185: 72DLH16 | AW185: 144 | AX185: 165 | AY185: 13097.30431
A186: 22020.055 | B186: 22020.0825 | C186: 22 | E186: 20 | F186: K | G186: 6 | H186: 20K 6 | I186: 550 | J186: 825 | K186: 490 | L186: =MIN(I186,360/'Roof Bay Analysis'!$I$51*K186) -> 550 | M186: 8.4 | AI186: 22020.055 | AJ186: 22 | AL186: 20 | AM186: K | AN186: 6 | AO186: 20K 6 | AP186: 550 | AQ186: 825 | AR186: 490 | AS186: =MIN(AP186,360/'Roof Bay Analysis'!$I$51*AR186) -> 550 | AT186: 8.4 | AV186: 72DLH17 | AW186: 144 | AX186: 188 | AY186: 14922.98916
A187: 22020.055 | B187: 22020.0825 | C187: 22 | E187: 20 | F187: K | G187: 7 | H187: 20K 7 | I187: 550 | J187: 825 | K187: 490 | L187: =MIN(I187,360/'Roof Bay Analysis'!$I$51*K187) -> 550 | M187: 8.9 | AI187: 22020.055 | AJ187: 22 | AL187: 20 | AM187: K | AN187: 7 | AO187: 20K 7 | AP187: 550 | AQ187: 825 | AR187: 490 | AS187: =MIN(AP187,360/'Roof Bay Analysis'!$I$51*AR187) -> 550 | AT187: 8.9 | AV187: 72DLH18 | AW187: 144 | AX187: 212 | AY187: 16828.0516
A188: 22020.055 | B188: 22020.0825 | C188: 22 | E188: 20 | F188: K | G188: 9 | H188: 20K 9 | I188: 550 | J188: 825 | K188: 490 | L188: =MIN(I188,360/'Roof Bay Analysis'!$I$51*K188) -> 550 | M188: 10.1 | AI188: 22020.055 | AJ188: 22 | AL188: 20 | AM188: K | AN188: 9 | AO188: 20K 9 | AP188: 550 | AQ188: 825 | AR188: 490 | AS188: =MIN(AP188,360/'Roof Bay Analysis'!$I$51*AR188) -> 550 | AT188: 10.1 | AV188: 72DLH19 | AW188: 144 | AX188: 241 | AY188: 19130.00206
A189: 22020.055 | B189: 22020.0825 | C189: 22 | E189: 20 | F189: K | G189: 10 | H189: 20K10 | I189: 550 | J189: 825 | K189: 490 | L189: =MIN(I189,360/'Roof Bay Analysis'!$I$51*K189) -> 550 | M189: 11.6 | AI189: 22020.055 | AJ189: 22 | AL189: 20 | AM189: K | AN189: 10 | AO189: 20K10 | AP189: 550 | AQ189: 825 | AR189: 490 | AS189: =MIN(AP189,360/'Roof Bay Analysis'!$I$51*AR189) -> 550 | AT189: 11.6 | AV189: 80DLH15 | AW189: 160 | AX189: 107 | AY189: 11658.78927
A190: 22022.055 | B190: 22022.0825 | C190: 22 | E190: 22 | F190: K | G190: 4 | H190: 22K 4 | I190: 550 | J190: 825 | K190: 548 | L190: =MIN(I190,360/'Roof Bay Analysis'!$I$51*K190) -> 550 | M190: 7.3 | AI190: 22022.055 | AJ190: 22 | AL190: 22 | AM190: K | AN190: 4 | AO190: 22K 4 | AP190: 550 | AQ190: 825 | AR190: 548 | AS190: =MIN(AP190,360/'Roof Bay Analysis'!$I$51*AR190) -> 550 | AT190: 7.3 | AV190: 80DLH16 | AW190: 160 | AX190: 126 | AY190: 13729.04157
A191: 22022.055 | B191: 22022.0825 | C191: 22 | E191: 22 | F191: K | G191: 5 | H191: 22K 5 | I191: 550 | J191: 825 | K191: 548 | L191: =MIN(I191,360/'Roof Bay Analysis'!$I$51*K191) -> 550 | M191: 7.7 | AI191: 22022.055 | AJ191: 22 | AL191: 22 | AM191: K | AN191: 5 | AO191: 22K 5 | AP191: 550 | AQ191: 825 | AR191: 548 | AS191: =MIN(AP191,360/'Roof Bay Analysis'!$I$51*AR191) -> 550 | AT191: 7.7 | AV191: 80DLH17 | AW191: 160 | AX191: 151 | AY191: 16453.05775
A192: 22022.055 | B192: 22022.0825 | C192: 22 | E192: 22 | F192: K | G192: 6 | H192: 22K 6 | I192: 550 | J192: 825 | K192: 548 | L192: =MIN(I192,360/'Roof Bay Analysis'!$I$51*K192) -> 550 | M192: 8.5 | AI192: 22022.055 | AJ192: 22 | AL192: 22 | AM192: K | AN192: 6 | AO192: 22K 6 | AP192: 550 | AQ192: 825 | AR192: 548 | AS192: =MIN(AP192,360/'Roof Bay Analysis'!$I$51*AR192) -> 550 | AT192: 8.5 | AV192: 80DLH18 | AW192: 160 | AX192: 173 | AY192: 18850.19199
A193: 22022.055 | B193: 22022.0825 | C193: 22 | E193: 22 | F193: K | G193: 7 | H193: 22K 7 | I193: 550 | J193: 825 | K193: 548 | L193: =MIN(I193,360/'Roof Bay Analysis'!$I$51*K193) -> 550 | M193: 9 | AI193: 22022.055 | AJ193: 22 | AL193: 22 | AM193: K | AN193: 7 | AO193: 22K 7 | AP193: 550 | AQ193: 825 | AR193: 548 | AS193: =MIN(AP193,360/'Roof Bay Analysis'!$I$51*AR193) -> 550 | AT193: 9 | AV193: 80DLH19 | AW193: 160 | AX193: 193 | AY193: 21029.40494
A194: 22022.055 | B194: 22022.0825 | C194: 22 | E194: 22 | F194: K | G194: 9 | H194: 22K 9 | I194: 550 | J194: 825 | K194: 548 | L194: =MIN(I194,360/'Roof Bay Analysis'!$I$51*K194) -> 550 | M194: 10.2 | AI194: 22022.055 | AJ194: 22 | AL194: 22 | AM194: K | AN194: 9 | AO194: 22K 9 | AP194: 550 | AQ194: 825 | AR194: 548 | AS194: =MIN(AP194,360/'Roof Bay Analysis'!$I$51*AR194) -> 550 | AT194: 10.2 | AV194: 80DLH20 | AW194: 160 | AX194: 216 | AY194: 23535.49983
A195: 22022.055 | B195: 22022.0825 | C195: 22 | E195: 22 | F195: K | G195: 10 | H195: 22K10 | I195: 550 | J195: 825 | K195: 548 | L195: =MIN(I195,360/'Roof Bay Analysis'!$I$51*K195) -> 550 | M195: 11.7 | AI195: 22022.055 | AJ195: 22 | AL195: 22 | AM195: K | AN195: 10 | AO195: 22K10 | AP195: 550 | AQ195: 825 | AR195: 548 | AS195: =MIN(AP195,360/'Roof Bay Analysis'!$I$51*AR195) -> 550 | AT195: 11.7 | AV195: 88DLH16 | AW195: 175 | AX195: 117 | AY195: 16689.39223
A196: =C196*1000+E196+I196/10000 -> 22022.055 | B196: =C196*1000+E196+J196/10000 -> 22022.0825 | C196: 22 | E196: 22 | F196: K | G196: 11 | H196: 22K11 | I196: 550 | J196: =1.5*I196 -> 825 | K196: 548 | L196: =MIN(I196,360/'Roof Bay Analysis'!$I$51*K196) -> 550 | M196: 11.9 | AI196: =AJ196*1000+AL196+AS196/10000 -> 22022.055 | AJ196: 22 | AL196: 22 | AM196: K | AN196: 11 | AO196: 22K11 | AP196: 550 | AQ196: =1.5*AP196 -> 825 | AR196: 548 | AS196: =MIN(AP196,360/'Roof Bay Analysis'!$I$51*AR196) -> 550 | AT196: 11.9 | AV196: 88DLH17 | AW196: 175 | AX196: 130 | AY196: 18543.76914
A197: 23012.0181 | B197: 23012.02715 | C197: 23 | D197: X | E197: =VALUE(LEFT(H197,2)) -> 12 | F197: =MID(H197,3,LEN(H197)-4) -> K | G197: =VALUE(RIGHT(H197,2)) -> 1 | H197: 12K 1 | I197: 181 | J197: 271.5 | K197: 93 | L197: =MIN(I197,360/'Roof Bay Analysis'!$I$51*K197) -> 139.5 | M197: 5 | AI197: 23012.01395 | AJ197: 23 | AK197: X | AL197: =VALUE(LEFT(AO197,2)) -> 12 | AM197: =MID(AO197,3,LEN(AO197)-4) -> K | AN197: =VALUE(RIGHT(AO197,2)) -> 1 | AO197: 12K 1 | AP197: 181 | AQ197: 271.5 | AR197: 93 | AS197: =MIN(AP197,360/'Roof Bay Analysis'!$I$51*AR197) -> 139.5 | AT197: 5 | AV197: 88DLH18 | AW197: 175 | AX197: 149 | AY197: 21254.01232
A198: 23012.0227 | B198: 23012.03405 | C198: 23 | E198: 12 | F198: K | G198: 3 | H198: 12K 3 | I198: 227 | J198: 340.5 | K198: 116 | L198: =MIN(I198,360/'Roof Bay Analysis'!$I$51*K198) -> 174 | M198: 5.7 | AI198: 23012.0174 | AJ198: 23 | AL198: 12 | AM198: K | AN198: 3 | AO198: 12K 3 | AP198: 227 | AQ198: 340.5 | AR198: 116 | AS198: =MIN(AP198,360/'Roof Bay Analysis'!$I$51*AR198) -> 174 | AT198: 5.7 | AV198: 88DLH19 | AW198: 175 | AX198: 169 | AY198: 24106.89989
A199: 23012.0308 | B199: 23012.0462 | C199: 23 | E199: 12 | F199: K | G199: 5 | H199: 12K 5 | I199: 308 | J199: 462 | K199: 150 | L199: =MIN(I199,360/'Roof Bay Analysis'!$I$51*K199) -> 225 | M199: 7.1 | AI199: 23012.0225 | AJ199: 23 | AL199: 12 | AM199: K | AN199: 5 | AO199: 12K 5 | AP199: 308 | AQ199: 462 | AR199: 150 | AS199: =MIN(AP199,360/'Roof Bay Analysis'!$I$51*AR199) -> 225 | AT199: 7.1 | AV199: 88DLH20 | AW199: 175 | AX199: 202 | AY199: 28814.16436
A200: 23014.0214 | B200: 23014.0321 | C200: 23 | E200: 14 | F200: K | G200: 1 | H200: 14K 1 | I200: 214 | J200: 321 | K200: 128 | L200: =MIN(I200,360/'Roof Bay Analysis'!$I$51*K200) -> 192 | M200: 5.2 | AI200: 23014.0192 | AJ200: 23 | AL200: 14 | AM200: K | AN200: 1 | AO200: 14K 1 | AP200: 214 | AQ200: 321 | AR200: 128 | AS200: =MIN(AP200,360/'Roof Bay Analysis'!$I$51*AR200) -> 192 | AT200: 5.2 | AV200: 88DLH21 | AW200: 175 | AX200: 235 | AY200: 33521.42883
... 1224 more rows

Sheet K No X (hidden)
A1: JOIST SELECTION TABLE (sorted by span, then joist depth, then black total ASD loads, then weight) | O1: ='Roof Bay Analysis'!D8 -> ASD | P1: Span | Q1: =ROUNDUP('Roof Bay Analysis'!E11,0) -> 30 | R1: ft. | S1: Joist Depths | AI1: JOIST SELECTION TABLE (sorted by span, then joist depth, then red L/360 deflection loads, then weight)
A2: ASD ID | B2: LRFD ID | C2: Span | D2: Requires | E2: Joist Type | I2: ASD Load | J2: LRFD Load | K2: L/360 Load | L2: ="L/"&'Roof Bay Analysis'!$I$51&" Load" -> L/240 Load | M2: Weight | P2: Applied Total Load | Q2: ='Roof Bay Analysis'!D76 -> 187.3875 | R2: plf | S2: Min. | T2: =MAX('Roof Bay Analysis'!D50:D51) -> 16 | U2: in. | AI2: ="L/"&'Roof Bay Analysis'!$I$51&" ID" -> L/240 ID | AJ2: Span | AK2: Requires | AL2: Joist Type | AP2: ASD Load | AQ2: LRFD Load | AR2: L/360 Load | AS2: ="L/"&'Roof Bay Analysis'!$I$51&" Load" -> L/240 Load | AT2: Weight | AV2: Joist | AW2: Span | AX2: Load | AY2: IJ | BC2: From Vulcraft
C3: ft. | D3: X-Bridging | I3: plf | J3: plf | K3: plf | L3: plf | M3: plf | P3: ="Applied L/"&'Roof Bay Analysis'!$I$51&" Load" -> Applied L/240 Load | Q3: =MAX('Roof Bay Analysis'!Y83:Z83) -> 125 | R3: plf | S3: Max. | T3: =MIN('Roof Bay Analysis'!D52:D53) -> 30 | U3: in. | AJ3: ft. | AK3: X-Bridging | AP3: plf | AQ3: plf | AR3: plf | AS3: plf | AT3: plf | AV3: Type | AW3: ft. | AX3: plf | AY3: in.^4 | BA3: Comparison | BC3: Joist | BD3: Ixx
A4: =C4*1000+E4+I4/10000 -> 10000 | B4: =C4*1000+E4+J4/10000 -> 10000 | C4: 10 | E4: 0 | F4: 0 | G4: 0 | H4: 0 | I4: 0 | J4: =1.5*I4 -> 0 | K4: 0 | L4: =MIN(I4,360/'Roof Bay Analysis'!$I$51*K4) -> 0 | M4: 0 | AI4: =AJ4*1000+AL4+AS4/10000 -> 10000 | AJ4: 10 | AL4: 0 | AM4: 0 | AN4: 0 | AO4: 0 | AP4: 0 | AQ4: =1.5*AP4 -> 0 | AR4: 0 | AS4: =MIN(AP4,360/'Roof Bay Analysis'!$I$51*AR4) -> 0 | AT4: 0 | AV4: 10K 1 | AW4: 20 | AX4: 97 | AY4: =26.767*AX4*(AW4-0.33)^3*10^-6 -> 19.75988956 | BA4: =AY4/BD4 -> 0.9021345491 | BC4: 10K1 | BD4: 21.90348389
A5: 10010.055 | B5: 10010.0825 | C5: 10 | E5: =VALUE(LEFT(H5,2)) -> 10 | F5: =MID(H5,3,LEN(H5)-4) -> K | G5: =VALUE(RIGHT(H5,2)) -> 1 | H5: 10K 1 | I5: 550 | J5: 825 | K5: 550 | L5: =MIN(I5,360/'Roof Bay Analysis'!$I$51*K5) -> 550 | M5: 5 | AI5: 10010.055 | AJ5: 10 | AL5: =VALUE(LEFT(AO5,2)) -> 10 | AM5: =MID(AO5,3,LEN(AO5)-4) -> K | AN5: =VALUE(RIGHT(AO5,2)) -> 1 | AO5: 10K 1 | AP5: 550 | AQ5: 825 | AR5: 550 | AS5: =MIN(AP5,360/'Roof Bay Analysis'!$I$51*AR5) -> 550 | AT5: 5 | AV5: 12K 1 | AW5: 24 | AX5: 81 | AY5: 28.75275684 | BA5: 0.892505841 | BC5: 12K1 | BD5: 32.21576322
A6: 11010.055 | B6: 11010.0825 | C6: 11 | E6: 10 | F6: K | G6: 1 | H6: 10K 1 | I6: 550 | J6: 825 | K6: 542 | L6: =MIN(I6,360/'Roof Bay Analysis'!$I$51*K6) -> 550 | M6: 5 | AI6: 11010.055 | AJ6: 11 | AL6: 10 | AM6: K | AN6: 1 | AO6: 10K 1 | AP6: 550 | AQ6: 825 | AR6: 542 | AS6: =MIN(AP6,360/'Roof Bay Analysis'!$I$51*AR6) -> 550 | AT6: 5 | AV6: 12K 3 | AW6: 24 | AX6: 101 | AY6: 35.85220298 | BA6: 0.9751680637 | BC6: 12K3 | BD6: 36.76515291
A7: 12010.055 | B7: 12010.0825 | C7: 12 | E7: 10 | F7: K | G7: 1 | H7: 10K 1 | I7: 550 | J7: 825 | K7: 455 | L7: =MIN(I7,360/'Roof Bay Analysis'!$I$51*K7) -> 550 | M7: 5 | AI7: 12010.055 | AJ7: 12 | AL7: 10 | AM7: K | AN7: 1 | AO7: 10K 1 | AP7: 550 | AQ7: 825 | AR7: 455 | AS7: =MIN(AP7,360/'Roof Bay Analysis'!$I$51*AR7) -> 550 | AT7: 5 | AV7: 12K 5 | AW7: 24 | AX7: 132 | AY7: 46.85634448 | BA7: 0.9536472415 | BC7: 12K5 | BD7: 49.13383319
A8: 12012.055 | B8: 12012.0825 | C8: 12 | E8: 12 | F8: K | G8: 1 | H8: 12K 1 | I8: 550 | J8: 825 | K8: 550 | L8: =MIN(I8,360/'Roof Bay Analysis'!$I$51*K8) -> 550 | M8: 5 | O8: Vlookup (Only used with exact ID match) | Y8: Vlookup (Only used with exact ID match) | AI8: 12012.055 | AJ8: 12 | AL8: 12 | AM8: K | AN8: 1 | AO8: 12K 1 | AP8: 550 | AQ8: 825 | AR8: 550 | AS8: =MIN(AP8,360/'Roof Bay Analysis'!$I$51*AR8) -> 550 | AT8: 5 | AV8: 14K 1 | AW8: 28 | AX8: 70 | AY8: 39.69403208 | BA8: 0.8915790093 | BC8: 14K1 | BD8: 44.52104824
A9: 12012.055 | B9: 12012.0825 | C9: 12 | E9: 12 | F9: K | G9: 3 | H9: 12K 3 | I9: 550 | J9: 825 | K9: 550 | L9: =MIN(I9,360/'Roof Bay Analysis'!$I$51*K9) -> 550 | M9: 5.7 | AI9: 12012.055 | AJ9: 12 | AL9: 12 | AM9: K | AN9: 3 | AO9: 12K 3 | AP9: 550 | AQ9: 825 | AR9: 550 | AS9: =MIN(AP9,360/'Roof Bay Analysis'!$I$51*AR9) -> 550 | AT9: 5.7 | AV9: 14K 3 | AW9: 28 | AX9: 88 | AY9: 49.9010689 | BA9: 0.9795939427 | BC9: 14K3 | BD9: 50.94056499
A10: 12012.055 | B10: 12012.0825 | C10: 12 | E10: 12 | F10: K | G10: 5 | H10: 12K 5 | I10: 550 | J10: 825 | K10: 550 | L10: =MIN(I10,360/'Roof Bay Analysis'!$I$51*K10) -> 550 | M10: 7.1 | P10: ID | Q10: Depth | R10: Type | S10: ASD Load | T10: LRFD Load | U10: ="L/"&'Roof Bay Analysis'!$I$51&" Load" -> L/240 Load | V10: Weight | Z10: ID | AA10: Depth | AB10: Type | AC10: ASD Load | AD10: LRFD Load | AE10: ="L/"&'Roof Bay Analysis'!$I$51&" Load" -> L/240 Load | AF10: Weight | AI10: 12012.055 | AJ10: 12 | AL10: 12 | AM10: K | AN10: 5 | AO10: 12K 5 | AP10: 550 | AQ10: 825 | AR10: 550 | AS10: =MIN(AP10,360/'Roof Bay Analysis'!$I$51*AR10) -> 550 | AT10: 7.1 | AV10: 14K 4 | AW10: 28 | AX10: 103 | AY10: 58.40693292 | BA10: 0.950854513 | BC10: 14K4 | BD10: 61.42573035
A11: 13010.0479 | B11: 13010.07185 | C11: 13 | E11: 10 | F11: K | G11: 1 | H11: 10K 1 | I11: 479 | J11: 718.5 | K11: 363 | L11: =MIN(I11,360/'Roof Bay Analysis'!$I$51*K11) -> 479 | M11: 5 | O11: =IF(Q11="NA","NA",$Q$1*1000+Q11+$Q$2/10000) -> NA | P11: =IF(Q11="NA","NA",IF($O$1="ASD",VLOOKUP(O11,$A$4:$M$1066,1),VLOOKUP(O11,$B$4:$M$1066,1))) -> NA | Q11: =IF(W11<$T$2,"NA",IF(W11>$T$3,"NA",W11)) -> NA | R11: =IF(Q11="NA","NA",IF($O$1="ASD",VLOOKUP(O11,$A$4:$M$1066,8),VLOOKUP(O11,$B$4:$M$1066,7))) -> NA | S11: =IF(Q11="NA","NA",IF($O$1="ASD",VLOOKUP(O11,$A$4:$M$1066,9),VLOOKUP(O11,$B$4:$M$1066,8))) -> NA | T11: =IF(Q11="NA","NA",IF($O$1="ASD",VLOOKUP(O11,$A$4:$M$1066,10),VLOOKUP(O11,$B$4:$M$1066,9))) -> NA | U11: =IF(Q11="NA","NA",IF($O$1="ASD",VLOOKUP(O11,$A$4:$M$1066,12),VLOOKUP(O11,$B$4:$M$1066,11))) -> NA | V11: =IF(Q11="NA","NA",IF($O$1="ASD",VLOOKUP(O11,$A$4:$M$1066,13),VLOOKUP(O11,$B$4:$M$1066,12))) -> NA | W11: 10 | Y11: =IF(AA11="NA","NA",$Q$1*1000+AA11+$Q$3/10000) -> NA | Z11: =IF(AA11="NA","NA",VLOOKUP(Y11,$AI$4:$AT$1066,1)) -> NA | AA11: =IF(AG11<$T$2,"NA",IF(AG11>$T$3,"NA",AG11)) -> NA | AB11: =IF(AA11="NA","NA",VLOOKUP(Y11,$AI$4:$AT$1066,7)) -> NA | AC11: =IF(AA11="NA","NA",VLOOKUP(Y11,$AI$4:$AT$1066,8)) -> NA | AD11: =IF(AA11="NA","NA",VLOOKUP(Y11,$AI$4:$AT$1066,9)) -> NA | AE11: =IF(AA11="NA","NA",VLOOKUP(Y11,$AI$4:$AT$1066,11)) -> NA | AF11: =IF(AA11="NA","NA",VLOOKUP(Y11,$AI$4:$AT$1066,12)) -> NA | AG11: 10 | AI11: 13010.0479 | AJ11: 13 | AL11: 10 | AM11: K | AN11: 1 | AO11: 10K 1 | AP11: 479 | AQ11: 718.5 | AR11: 363 | AS11: =MIN(AP11,360/'Roof Bay Analysis'!$I$51*AR11) -> 479 | AT11: 5 | AV11: 14K 6 | AW11: 28 | AX11: 124 | AY11: 70.31514254 | BA11: 0.9346427653 | BC11: 14K6 | BD11: 75.23210488
A12: 13012.055 | B12: 13012.0825 | C12: 13 | E12: 12 | F12: K | G12: 1 | H12: 12K 1 | I12: 550 | J12: 825 | K12: 510 | L12: =MIN(I12,360/'Roof Bay Analysis'!$I$51*K12) -> 550 | M12: 5 | O12: NA | P12: NA | Q12: NA | R12: NA | S12: NA | T12: NA | U12: NA | V12: NA | W12: 12 | Y12: =IF(AA12="NA","NA",$Q$1*1000+AA12+$Q$3/10000) -> NA | Z12: NA | AA12: NA | AB12: NA | AC12: NA | AD12: NA | AE12: NA | AF12: NA | AG12: 12 | AI12: 13012.055 | AJ12: 13 | AL12: 12 | AM12: K | AN12: 1 | AO12: 12K 1 | AP12: 550 | AQ12: 825 | AR12: 510 | AS12: =MIN(AP12,360/'Roof Bay Analysis'!$I$51*AR12) -> 550 | AT12: 5 | AV12: 16K 2 | AW12: 32 | AX12: 71 | AY12: 60.36736753 | BA12: 0.8952062272 | BC12: 16K2 | BD12: 67.43403441
A13: 13012.055 | B13: 13012.0825 | C13: 13 | E13: 12 | F13: K | G13: 3 | H13: 12K 3 | I13: 550 | J13: 825 | K13: 510 | L13: =MIN(I13,360/'Roof Bay Analysis'!$I$51*K13) -> 550 | M13: 5.7 | O13: NA | P13: NA | Q13: NA | R13: NA | S13: NA | T13: NA | U13: NA | V13: NA | W13: 14 | Y13: NA | Z13: NA | AA13: NA | AB13: NA | AC13: NA | AD13: NA | AE13: NA | AF13: NA | AG13: 14 | AI13: 13012.055 | AJ13: 13 | AL13: 12 | AM13: K | AN13: 3 | AO13: 12K 3 | AP13: 550 | AQ13: 825 | AR13: 510 | AS13: =MIN(AP13,360/'Roof Bay Analysis'!$I$51*AR13) -> 550 | AT13: 5.7 | AV13: 16K 3 | AW13: 32 | AX13: 79 | AY13: 67.16932443 | BA13: 0.9619382328 | BC13: 16K3 | BD13: 69.82706596
A14: 13012.055 | B14: 13012.0825 | C14: 13 | E14: 12 | F14: K | G14: 5 | H14: 12K 5 | I14: 550 | J14: 825 | K14: 510 | L14: =MIN(I14,360/'Roof Bay Analysis'!$I$51*K14) -> 550 | M14: 7.1 | O14: 30016.01874 | P14: 29028.055 | Q14: 16 | R14: 28K12 | S14: 550 | T14: 825 | U14: 550 | V14: 14.5 | W14: 16 | Y14: 30016.0125 | Z14: 29028.055 | AA14: 16 | AB14: 28K12 | AC14: 550 | AD14: 825 | AE14: 550 | AF14: 14.5 | AG14: 16 | AI14: 13012.055 | AJ14: 13 | AL14: 12 | AM14: K | AN14: 5 | AO14: 12K 5 | AP14: 550 | AQ14: 825 | AR14: 510 | AS14: =MIN(AP14,360/'Roof Bay Analysis'!$I$51*AR14) -> 550 | AT14: 7.1 | AV14: 16K 4 | AW14: 32 | AX14: 92 | AY14: 78.2225044 | BA14: 0.9616281711 | BC14: 16K4 | BD14: 81.34381537
A15: 14010.0412 | B15: 14010.0618 | C15: 14 | E15: 10 | F15: K | G15: 1 | H15: 10K 1 | I15: 412 | J15: 618 | K15: 289 | L15: =MIN(I15,360/'Roof Bay Analysis'!$I$51*K15) -> 412 | M15: 5 | O15: 30018.01874 | P15: 30016.0355 | Q15: 18 | R15: 16K 9 | S15: 355 | T15: 532.5 | U15: 267 | V15: 10 | W15: 18 | Y15: 30018.0125 | Z15: 30016.0267 | AA15: 18 | AB15: 16K 9 | AC15: 355 | AD15: 532.5 | AE15: 267 | AF15: 10 | AG15: 18 | AI15: 14010.0412 | AJ15: 14 | AL15: 10 | AM15: K | AN15: 1 | AO15: 10K 1 | AP15: 412 | AQ15: 618 | AR15: 289 | AS15: =MIN(AP15,360/'Roof Bay Analysis'!$I$51*AR15) -> 412 | AT15: 5 | AV15: 16K 5 | AW15: 32 | AX15: 103 | AY15: 87.57519515 | BA15: 0.9684021168 | BC15: 16K5 | BD15: 90.43267629
A16: 14012.05 | B16: 14012.075 | C16: 14 | E16: 12 | F16: K | G16: 1 | H16: 12K 1 | I16: 500 | J16: 750 | K16: 425 | L16: =MIN(I16,360/'Roof Bay Analysis'!$I$51*K16) -> 500 | M16: 5 | O16: =IF(Q16="NA","NA",$Q$1*1000+Q16+$Q$2/10000) -> 30020.01874 | P16: 30018.0477 | Q16: 20 | R16: 18K10 | S16: 477 | T16: 715.5 | U16: 403.5 | V16: 11.6 | W16: 20 | Y16: 30020.0125 | Z16: 30018.04035 | AA16: 20 | AB16: 18K10 | AC16: 477 | AD16: 715.5 | AE16: 403.5 | AF16: 11.6 | AG16: 20 | AI16: 14012.05 | AJ16: 14 | AL16: 12 | AM16: K | AN16: 1 | AO16: 12K 1 | AP16: 500 | AQ16: 750 | AR16: 425 | AS16: =MIN(AP16,360/'Roof Bay Analysis'!$I$51*AR16) -> 500 | AT16: 5 | AV16: 16K 6 | AW16: 32 | AX16: 112 | AY16: 95.22739666 | BA16: 0.9545502585 | BC16: 16K6 | BD16: 99.76153253
A17: 14012.055 | B17: 14012.0825 | C17: 14 | E17: 12 | F17: K | G17: 3 | H17: 12K 3 | I17: 550 | J17: 825 | K17: 463 | L17: =MIN(I17,360/'Roof Bay Analysis'!$I$51*K17) -> 550 | M17: 5.7 | O17: =IF(Q17="NA","NA",$Q$1*1000+Q17+$Q$2/10000) -> 30022.01874 | P17: 30020.0533 | Q17: 22 | R17: 20K10 | S17: 533 | T17: 799.5 | U17: 504 | V17: 11.6 | W17: 22 | Y17: 30022.0125 | Z17: 30020.0504 | AA17: 22 | AB17: 20K10 | AC17: 533 | AD17: 799.5 | AE17: 504 | AF17: 11.6 | AG17: 22 | AI17: 14012.055 | AJ17: 14 | AL17: 12 | AM17: K | AN17: 3 | AO17: 12K 3 | AP17: 550 | AQ17: 825 | AR17: 463 | AS17: =MIN(AP17,360/'Roof Bay Analysis'!$I$51*AR17) -> 550 | AT17: 5.7 | AV17: 16K 7 | AW17: 32 | AX17: 124 | AY17: 105.430332 | BA17: 0.9664256392 | BC17: 16K7 | BD17: 109.0930618
A18: 14012.055 | B18: 14012.0825 | C18: 14 | E18: 12 | F18: K | G18: 5 | H18: 12K 5 | I18: 550 | J18: 825 | K18: 463 | L18: =MIN(I18,360/'Roof Bay Analysis'!$I$51*K18) -> 550 | M18: 7.1 | O18: 30024.01874 | P18: 30022.055 | Q18: 24 | R18: 22K11 | S18: 550 | T18: 825 | U18: 550 | V18: 11.9 | W18: 24 | Y18: 30024.0125 | Z18: 30022.055 | AA18: 24 | AB18: 22K11 | AC18: 550 | AD18: 825 | AE18: 550 | AF18: 11.9 | AG18: 24 | AI18: 14012.055 | AJ18: 14 | AL18: 12 | AM18: K | AN18: 5 | AO18: 12K 5 | AP18: 550 | AQ18: 825 | AR18: 463 | AS18: =MIN(AP18,360/'Roof Bay Analysis'!$I$51*AR18) -> 550 | AT18: 7.1 | AV18: 16K 9 | AW18: 32 | AX18: 147 | AY18: 124.9859581 | BA18: 0.9765289182 | BC18: 16K9 | BD18: 127.9900224
A19: 14014.055 | B19: 14014.0825 | C19: 14 | E19: 14 | F19: K | G19: 1 | H19: 14K 1 | I19: 550 | J19: 825 | K19: 550 | L19: =MIN(I19,360/'Roof Bay Analysis'!$I$51*K19) -> 550 | M19: 5.2 | O19: 30026.01874 | P19: 30024.055 | Q19: 26 | R19: 24K12 | S19: 550 | T19: 825 | U19: 550 | V19: 13.5 | W19: 26 | Y19: 30026.0125 | Z19: 30024.055 | AA19: 26 | AB19: 24K12 | AC19: 550 | AD19: 825 | AE19: 550 | AF19: 13.5 | AG19: 26 | AI19: 14014.055 | AJ19: 14 | AL19: 14 | AM19: K | AN19: 1 | AO19: 14K 1 | AP19: 550 | AQ19: 825 | AR19: 550 | AS19: =MIN(AP19,360/'Roof Bay Analysis'!$I$51*AR19) -> 550 | AT19: 5.2 | AV19: 18K 3 | AW19: 36 | AX19: 70 | AY19: 85.03683093 | BA19: 0.9521515305 | BC19: 18K3 | BD19: 89.31018668
A20: 14014.055 | B20: 14014.0825 | C20: 14 | E20: 14 | F20: K | G20: 3 | H20: 14K 3 | I20: 550 | J20: 825 | K20: 550 | L20: =MIN(I20,360/'Roof Bay Analysis'!$I$51*K20) -> 550 | M20: 6 | O20: 30028.01874 | P20: 30026.055 | Q20: 28 | R20: 26K12 | S20: 550 | T20: 825 | U20: 550 | V20: 13.7 | W20: 28 | Y20: 30028.0125 | Z20: 30026.055 | AA20: 28 | AB20: 26K12 | AC20: 550 | AD20: 825 | AE20: 550 | AF20: 13.7 | AG20: 28 | AI20: 14014.055 | AJ20: 14 | AL20: 14 | AM20: K | AN20: 3 | AO20: 14K 3 | AP20: 550 | AQ20: 825 | AR20: 550 | AS20: =MIN(AP20,360/'Roof Bay Analysis'!$I$51*AR20) -> 550 | AT20: 6 | AV20: 18K 4 | AW20: 36 | AX20: 82 | AY20: 99.61457338 | BA20: 0.9572362866 | BC20: 18K4 | BD20: 104.0647693
A21: 14014.055 | B21: 14014.0825 | C21: 14 | E21: 14 | F21: K | G21: 4 | H21: 14K 4 | I21: 550 | J21: 825 | K21: 550 | L21: =MIN(I21,360/'Roof Bay Analysis'!$I$51*K21) -> 550 | M21: 6.7 | O21: 30030.01874 | P21: 30028.055 | Q21: 30 | R21: 28K12 | S21: 550 | T21: 825 | U21: 550 | V21: 14.5 | W21: 30 | Y21: 30030.0125 | Z21: 30028.055 | AA21: 30 | AB21: 28K12 | AC21: 550 | AD21: 825 | AE21: 550 | AF21: 14.5 | AG21: 30 | AI21: 14014.055 | AJ21: 14 | AL21: 14 | AM21: K | AN21: 4 | AO21: 14K 4 | AP21: 550 | AQ21: 825 | AR21: 550 | AS21: =MIN(AP21,360/'Roof Bay Analysis'!$I$51*AR21) -> 550 | AT21: 6.7 | AV21: 18K 5 | AW21: 36 | AX21: 92 | AY21: 111.7626921 | BA21: 0.9651863403 | BC21: 18K5 | BD21: 115.7939016
A22: 14014.055 | B22: 14014.0825 | C22: 14 | E22: 14 | F22: K | G22: 6 | H22: 14K 6 | I22: 550 | J22: 825 | K22: 550 | L22: =MIN(I22,360/'Roof Bay Analysis'!$I$51*K22) -> 550 | M22: 7.7 | O22: NA | P22: NA | Q22: NA | R22: NA | S22: NA | T22: NA | U22: NA | V22: NA | W22: 32 | Y22: NA | Z22: NA | AA22: NA | AB22: NA | AC22: NA | AD22: NA | AE22: NA | AF22: NA | AG22: 32 | AI22: 14014.055 | AJ22: 14 | AL22: 14 | AM22: K | AN22: 6 | AO22: 14K 6 | AP22: 550 | AQ22: 825 | AR22: 550 | AS22: =MIN(AP22,360/'Roof Bay Analysis'!$I$51*AR22) -> 550 | AT22: 7.7 | AV22: 18K 6 | AW22: 36 | AX22: 101 | AY22: 122.6959989 | BA22: 0.9603533895 | BC22: 18K6 | BD22: 127.7613015
A23: 15010.0358 | B23: 15010.0537 | C23: 15 | E23: 10 | F23: K | G23: 1 | H23: 10K 1 | I23: 358 | J23: 537 | K23: 234 | L23: =MIN(I23,360/'Roof Bay Analysis'!$I$51*K23) -> 351 | M23: 5 | O23: NA | P23: NA | Q23: NA | R23: NA | S23: NA | T23: NA | U23: NA | V23: NA | W23: 36 | Y23: NA | Z23: NA | AA23: NA | AB23: NA | AC23: NA | AD23: NA | AE23: NA | AF23: NA | AG23: 36 | AI23: 15010.0351 | AJ23: 15 | AL23: 10 | AM23: K | AN23: 1 | AO23: 10K 1 | AP23: 358 | AQ23: 537 | AR23: 234 | AS23: =MIN(AP23,360/'Roof Bay Analysis'!$I$51*AR23) -> 351 | AT23: 5 | AV23: 18K 7 | AW23: 36 | AX23: 111 | AY23: 134.8441176 | BA23: 0.9637520673 | BC23: 18K7 | BD23: 139.9157752
A24: 15012.0434 | B24: 15012.0651 | C24: 15 | E24: 12 | F24: K | G24: 1 | H24: 12K 1 | I24: 434 | J24: 651 | K24: 344 | L24: =MIN(I24,360/'Roof Bay Analysis'!$I$51*K24) -> 434 | M24: 5 | O24: NA | P24: NA | Q24: NA | R24: NA | S24: NA | T24: NA | U24: NA | V24: NA | W24: 40 | Y24: NA | Z24: NA | AA24: NA | AB24: NA | AC24: NA | AD24: NA | AE24: NA | AF24: NA | AG24: 40 | AI24: 15012.0434 | AJ24: 15 | AL24: 12 | AM24: K | AN24: 1 | AO24: 12K 1 | AP24: 434 | AQ24: 651 | AR24: 344 | AS24: =MIN(AP24,360/'Roof Bay Analysis'!$I$51*AR24) -> 434 | AT24: 5 | AV24: 18K 9 | AW24: 36 | AX24: 132 | AY24: 160.3551669 | BA24: 0.9752296219 | BC24: 18K9 | BD24: 164.4281134
A25: 15012.0543 | B25: 15012.08145 | C25: 15 | E25: 12 | F25: K | G25: 3 | H25: 12K 3 | I25: 543 | J25: 814.5 | K25: 428 | L25: =MIN(I25,360/'Roof Bay Analysis'!$I$51*K25) -> 543 | M25: 5.7 | O25: NA | P25: NA | Q25: NA | R25: NA | S25: NA | T25: NA | U25: NA | V25: NA | W25: 44 | Y25: NA | Z25: NA | AA25: NA | AB25: NA | AC25: NA | AD25: NA | AE25: NA | AF25: NA | AG25: 44 | AI25: 15012.0543 | AJ25: 15 | AL25: 12 | AM25: K | AN25: 3 | AO25: 12K 3 | AP25: 543 | AQ25: 814.5 | AR25: 428 | AS25: =MIN(AP25,360/'Roof Bay Analysis'!$I$51*AR25) -> 543 | AT25: 5.7 | AV25: 18K10 | AW25: 36 | AX25: 154 | AY25: 187.081028 | BA25: 0.9788072623 | BC25: 18K10 | BD25: 191.1316306
A26: 15012.055 | B26: 15012.0825 | C26: 15 | E26: 12 | F26: K | G26: 5 | H26: 12K 5 | I26: 550 | J26: 825 | K26: 434 | L26: =MIN(I26,360/'Roof Bay Analysis'!$I$51*K26) -> 550 | M26: 7.1 | O26: NA | P26: NA | Q26: NA | R26: NA | S26: NA | T26: NA | U26: NA | V26: NA | W26: 48 | Y26: NA | Z26: NA | AA26: NA | AB26: NA | AC26: NA | AD26: NA | AE26: NA | AF26: NA | AG26: 48 | AI26: 15012.055 | AJ26: 15 | AL26: 12 | AM26: K | AN26: 5 | AO26: 12K 5 | AP26: 550 | AQ26: 825 | AR26: 434 | AS26: =MIN(AP26,360/'Roof Bay Analysis'!$I$51*AR26) -> 550 | AT26: 7.1 | AV26: 20K 3 | AW26: 40 | AX26: 64 | AY26: 106.9464257 | BA26: 0.9617946061 | BC26: 20K3 | BD26: 111.1946615
A27: 15014.0511 | B27: 15014.07665 | C27: 15 | E27: 14 | F27: K | G27: 1 | H27: 14K 1 | I27: 511 | J27: 766.5 | K27: 475 | L27: =MIN(I27,360/'Roof Bay Analysis'!$I$51*K27) -> 511 | M27: 5.2 | O27: NA | P27: NA | Q27: NA | R27: NA | S27: NA | T27: NA | U27: NA | V27: NA | W27: 52 | Y27: NA | Z27: NA | AA27: NA | AB27: NA | AC27: NA | AD27: NA | AE27: NA | AF27: NA | AG27: 52 | AI27: 15014.0511 | AJ27: 15 | AL27: 14 | AM27: K | AN27: 1 | AO27: 14K 1 | AP27: 511 | AQ27: 766.5 | AR27: 475 | AS27: =MIN(AP27,360/'Roof Bay Analysis'!$I$51*AR27) -> 511 | AT27: 5.2 | AV27: 20K 4 | AW27: 40 | AX27: 75 | AY27: 125.3278426 | BA27: 0.9671209508 | BC27: 20K4 | BD27: 129.5885923
A28: 15014.055 | B28: 15014.0825 | C28: 15 | E28: 14 | F28: K | G28: 3 | H28: 14K 3 | I28: 550 | J28: 825 | K28: 507 | L28: =MIN(I28,360/'Roof Bay Analysis'!$I$51*K28) -> 550 | M28: 6 | O28: NA | P28: NA | Q28: NA | R28: NA | S28: NA | T28: NA | U28: NA | V28: NA | W28: 56 | Y28: NA | Z28: NA | AA28: NA | AB28: NA | AC28: NA | AD28: NA | AE28: NA | AF28: NA | AG28: 56 | AI28: 15014.055 | AJ28: 15 | AL28: 14 | AM28: K | AN28: 3 | AO28: 14K 3 | AP28: 550 | AQ28: 825 | AR28: 507 | AS28: =MIN(AP28,360/'Roof Bay Analysis'!$I$51*AR28) -> 550 | AT28: 6 | AV28: 20K 5 | AW28: 40 | AX28: 84 | AY28: 140.3671837 | BA28: 0.972770301 | BC28: 20K5 | BD28: 144.2963293
A29: 15014.055 | B29: 15014.0825 | C29: 15 | E29: 14 | F29: K | G29: 4 | H29: 14K 4 | I29: 550 | J29: 825 | K29: 507 | L29: =MIN(I29,360/'Roof Bay Analysis'!$I$51*K29) -> 550 | M29: 6.7 | O29: NA | P29: NA | Q29: NA | R29: NA | S29: NA | T29: NA | U29: NA | V29: NA | W29: 60 | Y29: NA | Z29: NA | AA29: NA | AB29: NA | AC29: NA | AD29: NA | AE29: NA | AF29: NA | AG29: 60 | AI29: 15014.055 | AJ29: 15 | AL29: 14 | AM29: K | AN29: 4 | AO29: 14K 4 | AP29: 550 | AQ29: 825 | AR29: 507 | AS29: =MIN(AP29,360/'Roof Bay Analysis'!$I$51*AR29) -> 550 | AT29: 6.7 | AV29: 20K 6 | AW29: 40 | AX29: 91 | AY29: 152.064449 | BA29: 0.9549902711 | BC29: 20K6 | BD29: 159.2314117
A30: 15014.055 | B30: 15014.0825 | C30: 15 | E30: 14 | F30: K | G30: 6 | H30: 14K 6 | I30: 550 | J30: 825 | K30: 507 | L30: =MIN(I30,360/'Roof Bay Analysis'!$I$51*K30) -> 550 | M30: 7.7 | O30: NA | P30: NA | Q30: NA | R30: NA | S30: NA | T30: NA | U30: NA | V30: NA | W30: 64 | Y30: NA | Z30: NA | AA30: NA | AB30: NA | AC30: NA | AD30: NA | AE30: NA | AF30: NA | AG30: 64 | AI30: 15014.055 | AJ30: 15 | AL30: 14 | AM30: K | AN30: 6 | AO30: 14K 6 | AP30: 550 | AQ30: 825 | AR30: 507 | AS30: =MIN(AP30,360/'Roof Bay Analysis'!$I$51*AR30) -> 550 | AT30: 7.7 | AV30: 20K 7 | AW30: 40 | AX30: 101 | AY30: 168.774828 | BA30: 0.9667079182 | BC30: 20K7 | BD30: 174.5871993
